Workbook

Sheet MENU
A1: MOVES v2 Model for Estimating the Outcomes and Values in the Economics of Sport

Sheet Instructions
A1: Instructions
C5: MOVES was developed by the University of East Anglia’s Medical School specifically for Sport England to help to demonstrate the economic benefits of participating in sport and wider physical activity. It is intended for use by those commissioning these types of activities.
C7: MOVES is based on evidence that increased physical activity reduces the risk of a number of diseases including cardiovascular disease and diabetes. These diseases cost money to treat and reduce quality of life.
C9: MOVES compares groups or populations of participants engaging in a programme with the same group as if they had not taken part in this programme.
C11: At the heart of MOVES is an ‘epidemiological engine’ containing UK data regarding the population, age and gender and related disease rates for conditions amenable to change through improved sport and physical activity e.g. cardiovascular and diabetes.
C13: Estimates used in MOVES are based on the most robust data and evidence currently available for UK populations.
C15: More information on the data and calculations used in MOVES is available in the technical note.
C17: However MOVES should not be used as a replacement for robust data collection and evaluation where necessary. We hope MOVES will help make the case for investment into sport and wider physical activity by identifying potential savings that can be made across the NHS and improvements to quality of life.
C19: Turn to the inputs sheet to get started…

Sheet Technical Notes
A1: Technical Notes
C5: Disease Incidence and age groups
C6: Disease incidence data was taken from the latest published or publicly available UK-specific data. To derive age and sex-specific incidence data, the overall population incidence was multiplied by the appropriate proportion of disease attributed to a certain sex and age group (information on proportion calculated from Murray and Lopez, 1996). This enables the model to calculate the appropriate incidence of disease for the population in question. The incidence data from the scientific literature (1 -7) reflecting the diseases included in the model were reported for the following age groups: 16-30,31-45,46-60 and 60+. The age group 0-15 is not included in the model as there is lack of appropriate evidence to calculate the incidence rates for this age group.
C8: Dose-response relationship
C9: The number of MET hours per week determines the change in risk for disease and injury. In general, this means that a higher number of MET hours per week (high frequency/duration of activity) will result in a higher reduction of risk for disease.
C10: Whilst there is good evidence to support the hypothesis that increasing physical activity is good for health, evidence for the precise nature of the relationship is incomplete. The benefits of increasing the time and intensity of exercise are quite high for someone who is relatively inactive but likely to be smaller for people who are initially more active. We were able to include robust evidence for how this relationship changes over a range of different MET values for cardiovascular diseases and cancers but were only able to find point estimates for depression, dementia and hip fracture. For these conditions we assumed a curvilinear relationship that was consistent with the evidence for cardiovascular diseases and cancers.
C11: The model further assumes that individuals only gain health benefits from an activity for as long as they continue to participate in that activity. The model allows the user to specify the proportion of initial participants who complete a programme in the first year ('completers'), as well as the average number of years that completers will continue to maintain an equivilent activity levels in subsequent years ('maintainers'). As it seems implausible that all individuals will maintain activity levels for the entire analysis horizon, we encourage users to specify a duration less than the selected horizon.
C13: Costs
C14: MOVES v2 adds the option to specify one-time or ongoing programme costs (for the length of time the programme is running), on a per participant or aggregate basis. We recommend ongoing per participant costs as the most realistic costing option. This approach has the advantage of directly linking the costs of an individual's participation to the benefits they generate from that participation. Costing on the basis of aggregate programme costs neglects this link.
C15: Unit cost data is based on direct costs to the NHS only for one year of treatment and was gathered from the most recent UK estimates (8 - 13). We gathered information on the first year of treatment and cost information for subsequent years of treatment. We multiply first year costs by each new case averted and subsequent yearly costs of the number of cumulative cases averted.
C17: Benefits
C18: The model assesses benefits in multiple ways: 1) cases of disease averted, 2) quality-adjusted life years (QALYs) gained, and 3) disability-adjusted life years (DALYs) avoided. We calculate the number of new cases averted for an increase in physical activity by multiplying the relative reduction for each disease by the population incidence (adjusted for age/sex). QALYs gained are calculated by estimating the difference in QALYs lost due to preventable morbidity and mortality in the activity and no activity arms of the model. DALYs avoided are calculated in the same manner.
C19: QALYs are a composite measure of both the quantity and quality of life in respect of a disease or the net gain in respect of a treatment for a disease (when compared to another treatment or no treatment). For example, a year of full health is worth 1 QALY whilst half a year of full health (or a year of life at only 50% health) is equal to 0.5 QALYs. DALYs are essentially the reverse of the QALY, where 0 represents no disability and 1 represents death.
C20: Condition-specific preventable mortality is included in the estimates of QALYs and DALYs by comparing the total number deaths with disease-specific mortality with the number of deaths in a counter-factual group with the same number of individuals subject to general background mortality rather than the elevated disease-specific mortality rates.
C22: Discounting
C23: Usually costs and benefits are worth less the further into the future they occur. Such adjustment is known as ‘discounting’. Currently, the analysis is set to discount the costs and the QALYs gained/DALYs avoided at 3.5% annually. The 3.5% rate is set to reflect the return of investment practice as recommended in the Treasury Green Book (14).
C25: Uncertainty
C26: The model is probabilistic to deal with uncertainty around the relative risk (log-normal distribution) and the cost of treatment (gamma distribution) information. The model randomly samples from these distributions 1000 times for each scenario to ensure an accurate and stable result. The randomness intrinsic to this approach means that the final results of each scenario will be slightly different, even when the input parameters have not changed.
C33: References
C34: (1) Sharma et al, 2016
C35: (2) Davies et al, 2007
C36: (3) Wang et al, 2013
C37: (4) ONS data, 2013
C38: (5) Matthews et al, 2016
C39: (6) Depression data
C40: (7) Hernlund, 2013
C41: (8) NHS Reference Costs, 2014/15
C42: (9) Hex et al, 2012
C43: (10) Luengo-Fernandez et al, 2006
C44: (11) Hall et al, 2015
C45: (12) Dementia/Alzheimers UK, 2014
C46: (13) Mcrone P et al, 2008
C47: (14) Her Majesty's Treasury, 2003

Sheet FAQs
A1: Frequently Asked Questions
C5: How does MOVES work?
C6: At the heart of MOVES is an ‘epidemiological engine’ containing UK data regarding the population, age, gender and related disease rates for conditions amenable to change through improved physical activity e.g. Heart disease, diabetes etc
C8: MOVES v2 compares groups or populations of participants engaging in a programme with the same group as if they had not taken part in this programme.
C10: The user selects the activity of interest and a relevant intensity level; the expected frequency of the activity; typical age group/s involved; and overall duration of the programme etc.
C12: MOVES statistically adjusts usual rates of chronic illness found in the population to take account of the impact of activity chosen by changing risks and comparative rates of diseases. MOVES uses METs to equate the diverse range of sports activities that may be required.
C14: By comparing the cost of the intervention with the different types of benefit, an economic assessment of cost-effectiveness or ‘cost-benefit’ is made.
C16: What information do you need to use MOVES?
C17: MOVES needs only a few key pieces of information to get started. These include:
C18: - the average physical activity level of the target group before the intervention takes place;
C19: - the type of sport or physical activity engaged/planned;
C20: - how strenous the activity is (intensity);
C21: - how much time participants will spend doing the activity in each session (duration);
C22: - how often participants will engage in the activity each week (frequency);
C23: - expected number of participants completing the programme;
C24: - The costs of the programme. We recommend that users input costs on an ongoing per-participant basis,
C25: but the model will also accept one-time programme costs.
C27: What does 'time horizon' mean?
C28: This is the period over which you would like to know how long the benefits will accrue for. The time horizon for the model can be set at 1,5,10,15,20 and 25 years. This allows the user to assess the health benefits after the first year, then at 5 years intervals for 25 years.
C30: Most of the conditions included in MOVES are longer-term, chronic conditions and so the results of the model are sensitive to the time horizon chosen. The costs avoided will depend on the type of condition treated and how soon it would have otherwise occurred e.g. some health benefits will obviously take longer than others to acquire and so the total gains of a programme will depend on the time horizon you chose. For example, reductions in the level of dementia of a group may take many decades to produce through increased activity or exercise, whilst reducing cases of depression in the same group may only take a few months.
C32: Cost-effectiveness is therefore time dependent. The time-horizon is important as it assumes that the level of activity is continued throughout this period and therefore that the programmes changes not only peoples’ attitudes to physical activity but also their long-term behaviour. In setting a relevant time-horizon it therefore assumes that costs and benefits are also both on-going during this period (although the further in the future they occur the less weight they carry – or as economists say, the more highly ‘discounted’ they are).
C34: What assumptions are made in the model?
C35: As with any model, MOVES v2 relies on a number of assumptions. In these assumptions we have tried to take a conservative approach to avoid over-stating potential savings and health benefits. Working from better assumptions will always improve the outputs of the model. The more accurate the data you collect, the better the cost-benefit calculations will be. The Standard Evaluation Framework is a great starting point when planning or evaluating a sport and physical activity intervention.
C37: As the precise length of participation required to achieve health benefit is unclear, a key assumption in the model is that individuals who do not complete the full programme ('drop-outs') do not benefit from a reduction in risk. We believe this is a conservative and justifiable assumption. It is also necessary to make some assumption about the proportion of participants who maintain their activity levels following the intervention. This proportion can be adjusted from the Inputs tab.
C39: It is also important to consider whether individuals can realistically gain a lifetime benefit from participating in a single intervention or whether they will need to participate on an ongoing basis to maintain benefit. Our view is that assuming lifetime benefit from a single intervention may be overly optimistic and therefore recommend modelling ongoing participant costs.
C41: Who should use this tool?
C42: The model is designed for a wide variety of users. In general, the bigger the population the more accurate the model will be because of the national data used to calculate the benefits.
C44: We have created the tool to enable a variety of decisions makers to evaluate chosen sport programmes in terms of its cost-effectiveness to the healthcare system.
C46: Can MOVES be used to treat specific population or treatment groups?
C47: The model is not designed to take into account the health profile of specific patient groups, geographical areas or populations. MOVES is intended for a general population group. Users should therefore be aware that the model could underestimate benefits in some populations and over-estimate them in others, depending on a local population.
C49: Does MOVES include the cost of injuries?
C50: The cost of injuries due to sport or physical activity are not included in MOVES.
C52: Where does the data used in the model come from?
C53: The references to data used in the model are listed in the table below:
C74: If you still have questions which have not been answered within this section, please consult the full FAQs guide or user guide for further information.

Sheet Facility (hidden)
A1: Facility-level Activities
Y2: 1 | Z2: 2 | AA2: 3 | AB2: 4 | AC2: 5 | AD2: 6 | AE2: 7 | AF2: 8 | AG2: 9 | AH2: 10 | AI2: 11 | AJ2: 12 | AK2: 13 | AL2: 14 | AM2: 15 | AN2: 16 | AO2: 17 | AP2: 18 | AQ2: 19 | AR2: 20 | AS2: 21 | AT2: 22 | AU2: 23 | AV2: 24 | AW2: 25 | AX2: 26 | AY2: 27 | AZ2: 28 | BA2: 29 | BB2: 30 | BC2: 31 | BD2: 32 | BE2: 33 | BF2: 34 | BG2: 35 | BH2: 36 | BI2: 37 | BJ2: 38 | BK2: 39 | BL2: 40 | BM2: 41 | BN2: 42 | BO2: 43 | BP2: 44 | BQ2: 45 | BR2: 46 | BS2: 47 | BT2: 48 | BU2: 49 | BV2: 50 | BW2: 51 | BX2: 52 | BY2: 53 | BZ2: 54 | CA2: 55 | CB2: 56 | CC2: 57 | CD2: 58 | CE2: 59 | CF2: 60 | CG2: 61 | CH2: 62 | CI2: 63 | CJ2: 64 | CK2: 65 | CL2: 66 | CM2: 67 | CN2: 68 | CO2: 69 | CP2: 70 | CQ2: 71 | CR2: 72 | CS2: 73 | CT2: 74 | CU2: 75 | CV2: 76 | CW2: 77 | CX2: 78 | CY2: 79 | CZ2: 80 | DA2: 81 | DB2: 82 | DC2: 83 | DD2: 84 | DE2: 85 | DF2: 86 | DG2: 87 | DH2: 88 | DI2: 89 | DJ2: 90 | DK2: 91 | DL2: 92 | DM2: 93 | DN2: 94 | DO2: 95 | DP2: 96 | DQ2: 97 | DR2: 98 | DS2: 99
Y3: =OFFSET($B$14,Y$2,0) -> Running | Z3: =OFFSET($B$14,Z$2,0) -> Boxing | AA3: Cycling (competitive) | AB3: Bowls | AC3: Bowls | AD3: 0 | AE3: 0 | AF3: 0 | AG3: 0 | AH3: 0 | AI3: 0 | AJ3: 0 | AK3: 0 | AL3: 0 | AM3: 0 | AN3: 0 | AO3: 0 | AP3: 0 | AQ3: 0 | AR3: 0 | AS3: 0 | AT3: 0 | AU3: 0 | AV3: 0 | AW3: 0 | AX3: 0 | AY3: 0 | AZ3: 0 | BA3: 0 | BB3: 0 | BC3: 0 | BD3: 0 | BE3: 0 | BF3: 0 | BG3: 0 | BH3: 0 | BI3: 0 | BJ3: 0 | BK3: 0 | BL3: 0 | BM3: 0 | BN3: 0 | BO3: 0 | BP3: 0 | BQ3: 0 | BR3: 0 | BS3: 0 | BT3: 0 | BU3: 0 | BV3: 0 | BW3: 0 | BX3: 0 | BY3: 0 | BZ3: 0 | CA3: 0 | CB3: 0 | CC3: 0 | CD3: 0 | CE3: 0 | CF3: 0 | CG3: 0 | CH3: 0 | CI3: 0 | CJ3: 0 | CK3: 0 | CL3: =OFFSET($B$14,CL$2,0) -> 0 | CM3: 0 | CN3: 0 | CO3: 0 | CP3: 0 | CQ3: 0 | CR3: 0 | CS3: 0 | CT3: 0 | CU3: 0 | CV3: 0 | CW3: 0 | CX3: 0 | CY3: 0 | CZ3: 0 | DA3: 0 | DB3: 0 | DC3: 0 | DD3: 0 | DE3: 0 | DF3: 0 | DG3: 0 | DH3: 0 | DI3: 0 | DJ3: 0 | DK3: 0 | DL3: 0 | DM3: 0 | DN3: 0 | DO3: 0 | DP3: 0 | DQ3: 0 | DR3: 0 | DS3: 0
I4: Facility flag | J4: 0 | K4: 1000 | O4: Facility summary | V4: Distribution category | W4: 1 | Y4: Intensity1 | Z4: Intensity2 | AA4: Intensity3 | AB4: Intensity4 | AC4: Intensity5 | AD4: Intensity6 | AE4: Intensity7 | AF4: Intensity8 | AG4: Intensity9 | AH4: Intensity10 | AI4: Intensity11 | AJ4: Intensity12 | AK4: Intensity13 | AL4: Intensity14 | AM4: Intensity15 | AN4: Intensity16 | AO4: Intensity17 | AP4: Intensity18 | AQ4: Intensity19 | AR4: Intensity20 | AS4: Intensity21 | AT4: Intensity22 | AU4: Intensity23 | AV4: Intensity24 | AW4: Intensity25 | AX4: Intensity26 | AY4: Intensity27 | AZ4: Intensity28 | BA4: Intensity29 | BB4: Intensity30 | BC4: Intensity31 | BD4: Intensity32 | BE4: Intensity33 | BF4: Intensity34 | BG4: Intensity35 | BH4: Intensity36 | BI4: Intensity37 | BJ4: Intensity38 | BK4: Intensity39 | BL4: Intensity40 | BM4: Intensity41 | BN4: Intensity42 | BO4: Intensity43 | BP4: Intensity44 | BQ4: Intensity45 | BR4: Intensity46 | BS4: Intensity47 | BT4: Intensity48 | BU4: Intensity49 | BV4: Intensity50 | BW4: Intensity51 | BX4: Intensity52 | BY4: Intensity53 | BZ4: Intensity54 | CA4: Intensity55 | CB4: Intensity56 | CC4: Intensity57 | CD4: Intensity58 | CE4: Intensity59 | CF4: Intensity60 | CG4: Intensity61 | CH4: Intensity62 | CI4: Intensity63 | CJ4: Intensity64 | CK4: Intensity65 | CL4: Intensity66 | CM4: Intensity67 | CN4: Intensity68 | CO4: Intensity69 | CP4: Intensity70 | CQ4: Intensity71 | CR4: Intensity72 | CS4: Intensity73 | CT4: Intensity74 | CU4: Intensity75 | CV4: Intensity76 | CW4: Intensity77 | CX4: Intensity78 | CY4: Intensity79 | CZ4: Intensity80 | DA4: Intensity81 | DB4: Intensity82 | DC4: Intensity83 | DD4: Intensity84 | DE4: Intensity85 | DF4: Intensity86 | DG4: Intensity87 | DH4: Intensity88 | DI4: Intensity89 | DJ4: Intensity90 | DK4: Intensity91 | DL4: Intensity92 | DM4: Intensity93 | DN4: Intensity94 | DO4: Intensity95 | DP4: Intensity96 | DQ4: Intensity97 | DR4: Intensity98 | DS4: Intensity99
B5: Scale | C5: Time Horizon | E5: 25 | F5: years | O5: Age group | P5: Participants | Q5: Distribution | R5: % Male | S5: wAvg Starting METs | T5: wAvg Final METs | V5: # PARTICIPANTS | Y5: =OFFSET(METS!$R$1,MATCH(OFFSET($B$14,Y$2,0),METS!$R:$R,0)-1,1,MATCH(OFFSET($B$14,Y$2,0),METS!$R:$R)-MATCH(OFFSET($B$14,Y$2,0),METS!$R:$R,0)+1,1) -> General | Z5: =OFFSET(METS!$R$1,MATCH(OFFSET($B$14,Z$2,0),METS!$R:$R,0)-1,1,MATCH(OFFSET($B$14,Z$2,0),METS!$R:$R)-MATCH(OFFSET($B$14,Z$2,0),METS!$R:$R,0)+1,1) -> Competitive | AA5: =OFFSET(METS!$R$1,MATCH(OFFSET($B$14,AA$2,0),METS!$R:$R,0)-1,1,MATCH(OFFSET($B$14,AA$2,0),METS!$R:$R)-MATCH(OFFSET($B$14,AA$2,0),METS!$R:$R,0)+1,1) -> Racing | AB5: =OFFSET(METS!$R$1,MATCH(OFFSET($B$14,AB$2,0),METS!$R:$R,0)-1,1,MATCH(OFFSET($B$14,AB$2,0),METS!$R:$R)-MATCH(OFFSET($B$14,AB$2,0),METS!$R:$R,0)+1,1) -> General | AC5: =OFFSET(METS!$R$1,MATCH(OFFSET($B$14,AC$2,0),METS!$R:$R,0)-1,1,MATCH(OFFSET($B$14,AC$2,0),METS!$R:$R)-MATCH(OFFSET($B$14,AC$2,0),METS!$R:$R,0)+1,1) -> General | AD5: =OFFSET(METS!$R$1,MATCH(OFFSET($B$14,AD$2,0),METS!$R:$R,0)-1,1,MATCH(OFFSET($B$14,AD$2,0),METS!$R:$R)-MATCH(OFFSET($B$14,AD$2,0),METS!$R:$R,0)+1,1) ->  | AE5: =OFFSET(METS!$R$1,MATCH(OFFSET($B$14,AE$2,0),METS!$R:$R,0)-1,1,MATCH(OFFSET($B$14,AE$2,0),METS!$R:$R)-MATCH(OFFSET($B$14,AE$2,0),METS!$R:$R,0)+1,1) ->  | AF5: =OFFSET(METS!$R$1,MATCH(OFFSET($B$14,AF$2,0),METS!$R:$R,0)-1,1,MATCH(OFFSET($B$14,AF$2,0),METS!$R:$R)-MATCH(OFFSET($B$14,AF$2,0),METS!$R:$R,0)+1,1) ->  | AG5: =OFFSET(METS!$R$1,MATCH(OFFSET($B$14,AG$2,0),METS!$R:$R,0)-1,1,MATCH(OFFSET($B$14,AG$2,0),METS!$R:$R)-MATCH(OFFSET($B$14,AG$2,0),METS!$R:$R,0)+1,1) ->  | AH5: =OFFSET(METS!$R$1,MATCH(OFFSET($B$14,AH$2,0),METS!$R:$R,0)-1,1,MATCH(OFFSET($B$14,AH$2,0),METS!$R:$R)-MATCH(OFFSET($B$14,AH$2,0),METS!$R:$R,0)+1,1) ->  | AI5: =OFFSET(METS!$R$1,MATCH(OFFSET($B$14,AI$2,0),METS!$R:$R,0)-1,1,MATCH(OFFSET($B$14,AI$2,0),METS!$R:$R)-MATCH(OFFSET($B$14,AI$2,0),METS!$R:$R,0)+1,1) ->  | AJ5: =OFFSET(METS!$R$1,MATCH(OFFSET($B$14,AJ$2,0),METS!$R:$R,0)-1,1,MATCH(OFFSET($B$14,AJ$2,0),METS!$R:$R)-MATCH(OFFSET($B$14,AJ$2,0),METS!$R:$R,0)+1,1) ->  | AK5: =OFFSET(METS!$R$1,MATCH(OFFSET($B$14,AK$2,0),METS!$R:$R,0)-1,1,MATCH(OFFSET($B$14,AK$2,0),METS!$R:$R)-MATCH(OFFSET($B$14,AK$2,0),METS!$R:$R,0)+1,1) ->  | AL5: =OFFSET(METS!$R$1,MATCH(OFFSET($B$14,AL$2,0),METS!$R:$R,0)-1,1,MATCH(OFFSET($B$14,AL$2,0),METS!$R:$R)-MATCH(OFFSET($B$14,AL$2,0),METS!$R:$R,0)+1,1) ->  | AM5: =OFFSET(METS!$R$1,MATCH(OFFSET($B$14,AM$2,0),METS!$R:$R,0)-1,1,MATCH(OFFSET($B$14,AM$2,0),METS!$R:$R)-MATCH(OFFSET($B$14,AM$2,0),METS!$R:$R,0)+1,1) ->  | AN5: =OFFSET(METS!$R$1,MATCH(OFFSET($B$14,AN$2,0),METS!$R:$R,0)-1,1,MATCH(OFFSET($B$14,AN$2,0),METS!$R:$R)-MATCH(OFFSET($B$14,AN$2,0),METS!$R:$R,0)+1,1) ->  | AO5: =OFFSET(METS!$R$1,MATCH(OFFSET($B$14,AO$2,0),METS!$R:$R,0)-1,1,MATCH(OFFSET($B$14,AO$2,0),METS!$R:$R)-MATCH(OFFSET($B$14,AO$2,0),METS!$R:$R,0)+1,1) ->  | AP5: =OFFSET(METS!$R$1,MATCH(OFFSET($B$14,AP$2,0),METS!$R:$R,0)-1,1,MATCH(OFFSET($B$14,AP$2,0),METS!$R:$R)-MATCH(OFFSET($B$14,AP$2,0),METS!$R:$R,0)+1,1) ->  | AQ5: =OFFSET(METS!$R$1,MATCH(OFFSET($B$14,AQ$2,0),METS!$R:$R,0)-1,1,MATCH(OFFSET($B$14,AQ$2,0),METS!$R:$R)-MATCH(OFFSET($B$14,AQ$2,0),METS!$R:$R,0)+1,1) ->  | AR5: =OFFSET(METS!$R$1,MATCH(OFFSET($B$14,AR$2,0),METS!$R:$R,0)-1,1,MATCH(OFFSET($B$14,AR$2,0),METS!$R:$R)-MATCH(OFFSET($B$14,AR$2,0),METS!$R:$R,0)+1,1) ->  | AS5: =OFFSET(METS!$R$1,MATCH(OFFSET($B$14,AS$2,0),METS!$R:$R,0)-1,1,MATCH(OFFSET($B$14,AS$2,0),METS!$R:$R)-MATCH(OFFSET($B$14,AS$2,0),METS!$R:$R,0)+1,1) ->  | AT5: =OFFSET(METS!$R$1,MATCH(OFFSET($B$14,AT$2,0),METS!$R:$R,0)-1,1,MATCH(OFFSET($B$14,AT$2,0),METS!$R:$R)-MATCH(OFFSET($B$14,AT$2,0),METS!$R:$R,0)+1,1) ->  | AU5: =OFFSET(METS!$R$1,MATCH(OFFSET($B$14,AU$2,0),METS!$R:$R,0)-1,1,MATCH(OFFSET($B$14,AU$2,0),METS!$R:$R)-MATCH(OFFSET($B$14,AU$2,0),METS!$R:$R,0)+1,1) ->  | AV5: =OFFSET(METS!$R$1,MATCH(OFFSET($B$14,AV$2,0),METS!$R:$R,0)-1,1,MATCH(OFFSET($B$14,AV$2,0),METS!$R:$R)-MATCH(OFFSET($B$14,AV$2,0),METS!$R:$R,0)+1,1) ->  | AW5: =OFFSET(METS!$R$1,MATCH(OFFSET($B$14,AW$2,0),METS!$R:$R,0)-1,1,MATCH(OFFSET($B$14,AW$2,0),METS!$R:$R)-MATCH(OFFSET($B$14,AW$2,0),METS!$R:$R,0)+1,1) ->  | AX5: =OFFSET(METS!$R$1,MATCH(OFFSET($B$14,AX$2,0),METS!$R:$R,0)-1,1,MATCH(OFFSET($B$14,AX$2,0),METS!$R:$R)-MATCH(OFFSET($B$14,AX$2,0),METS!$R:$R,0)+1,1) ->  | AY5: =OFFSET(METS!$R$1,MATCH(OFFSET($B$14,AY$2,0),METS!$R:$R,0)-1,1,MATCH(OFFSET($B$14,AY$2,0),METS!$R:$R)-MATCH(OFFSET($B$14,AY$2,0),METS!$R:$R,0)+1,1) ->  | AZ5: =OFFSET(METS!$R$1,MATCH(OFFSET($B$14,AZ$2,0),METS!$R:$R,0)-1,1,MATCH(OFFSET($B$14,AZ$2,0),METS!$R:$R)-MATCH(OFFSET($B$14,AZ$2,0),METS!$R:$R,0)+1,1) ->  | BA5: =OFFSET(METS!$R$1,MATCH(OFFSET($B$14,BA$2,0),METS!$R:$R,0)-1,1,MATCH(OFFSET($B$14,BA$2,0),METS!$R:$R)-MATCH(OFFSET($B$14,BA$2,0),METS!$R:$R,0)+1,1) ->  | BB5: =OFFSET(METS!$R$1,MATCH(OFFSET($B$14,BB$2,0),METS!$R:$R,0)-1,1,MATCH(OFFSET($B$14,BB$2,0),METS!$R:$R)-MATCH(OFFSET($B$14,BB$2,0),METS!$R:$R,0)+1,1) ->  | BC5: =OFFSET(METS!$R$1,MATCH(OFFSET($B$14,BC$2,0),METS!$R:$R,0)-1,1,MATCH(OFFSET($B$14,BC$2,0),METS!$R:$R)-MATCH(OFFSET($B$14,BC$2,0),METS!$R:$R,0)+1,1) ->  | BD5: =OFFSET(METS!$R$1,MATCH(OFFSET($B$14,BD$2,0),METS!$R:$R,0)-1,1,MATCH(OFFSET($B$14,BD$2,0),METS!$R:$R)-MATCH(OFFSET($B$14,BD$2,0),METS!$R:$R,0)+1,1) ->  | BE5: =OFFSET(METS!$R$1,MATCH(OFFSET($B$14,BE$2,0),METS!$R:$R,0)-1,1,MATCH(OFFSET($B$14,BE$2,0),METS!$R:$R)-MATCH(OFFSET($B$14,BE$2,0),METS!$R:$R,0)+1,1) ->  | BF5: =OFFSET(METS!$R$1,MATCH(OFFSET($B$14,BF$2,0),METS!$R:$R,0)-1,1,MATCH(OFFSET($B$14,BF$2,0),METS!$R:$R)-MATCH(OFFSET($B$14,BF$2,0),METS!$R:$R,0)+1,1) ->  | BG5: =OFFSET(METS!$R$1,MATCH(OFFSET($B$14,BG$2,0),METS!$R:$R,0)-1,1,MATCH(OFFSET($B$14,BG$2,0),METS!$R:$R)-MATCH(OFFSET($B$14,BG$2,0),METS!$R:$R,0)+1,1) ->  | BH5: =OFFSET(METS!$R$1,MATCH(OFFSET($B$14,BH$2,0),METS!$R:$R,0)-1,1,MATCH(OFFSET($B$14,BH$2,0),METS!$R:$R)-MATCH(OFFSET($B$14,BH$2,0),METS!$R:$R,0)+1,1) ->  | BI5: =OFFSET(METS!$R$1,MATCH(OFFSET($B$14,BI$2,0),METS!$R:$R,0)-1,1,MATCH(OFFSET($B$14,BI$2,0),METS!$R:$R)-MATCH(OFFSET($B$14,BI$2,0),METS!$R:$R,0)+1,1) ->  | BJ5: =OFFSET(METS!$R$1,MATCH(OFFSET($B$14,BJ$2,0),METS!$R:$R,0)-1,1,MATCH(OFFSET($B$14,BJ$2,0),METS!$R:$R)-MATCH(OFFSET($B$14,BJ$2,0),METS!$R:$R,0)+1,1) ->  | BK5: =OFFSET(METS!$R$1,MATCH(OFFSET($B$14,BK$2,0),METS!$R:$R,0)-1,1,MATCH(OFFSET($B$14,BK$2,0),METS!$R:$R)-MATCH(OFFSET($B$14,BK$2,0),METS!$R:$R,0)+1,1) ->  | BL5: =OFFSET(METS!$R$1,MATCH(OFFSET($B$14,BL$2,0),METS!$R:$R,0)-1,1,MATCH(OFFSET($B$14,BL$2,0),METS!$R:$R)-MATCH(OFFSET($B$14,BL$2,0),METS!$R:$R,0)+1,1) ->  | BM5: =OFFSET(METS!$R$1,MATCH(OFFSET($B$14,BM$2,0),METS!$R:$R,0)-1,1,MATCH(OFFSET($B$14,BM$2,0),METS!$R:$R)-MATCH(OFFSET($B$14,BM$2,0),METS!$R:$R,0)+1,1) ->  | BN5: =OFFSET(METS!$R$1,MATCH(OFFSET($B$14,BN$2,0),METS!$R:$R,0)-1,1,MATCH(OFFSET($B$14,BN$2,0),METS!$R:$R)-MATCH(OFFSET($B$14,BN$2,0),METS!$R:$R,0)+1,1) ->  | BO5: =OFFSET(METS!$R$1,MATCH(OFFSET($B$14,BO$2,0),METS!$R:$R,0)-1,1,MATCH(OFFSET($B$14,BO$2,0),METS!$R:$R)-MATCH(OFFSET($B$14,BO$2,0),METS!$R:$R,0)+1,1) ->  | BP5: =OFFSET(METS!$R$1,MATCH(OFFSET($B$14,BP$2,0),METS!$R:$R,0)-1,1,MATCH(OFFSET($B$14,BP$2,0),METS!$R:$R)-MATCH(OFFSET($B$14,BP$2,0),METS!$R:$R,0)+1,1) ->  | BQ5: =OFFSET(METS!$R$1,MATCH(OFFSET($B$14,BQ$2,0),METS!$R:$R,0)-1,1,MATCH(OFFSET($B$14,BQ$2,0),METS!$R:$R)-MATCH(OFFSET($B$14,BQ$2,0),METS!$R:$R,0)+1,1) ->  | BR5: =OFFSET(METS!$R$1,MATCH(OFFSET($B$14,BR$2,0),METS!$R:$R,0)-1,1,MATCH(OFFSET($B$14,BR$2,0),METS!$R:$R)-MATCH(OFFSET($B$14,BR$2,0),METS!$R:$R,0)+1,1) ->  | BS5: =OFFSET(METS!$R$1,MATCH(OFFSET($B$14,BS$2,0),METS!$R:$R,0)-1,1,MATCH(OFFSET($B$14,BS$2,0),METS!$R:$R)-MATCH(OFFSET($B$14,BS$2,0),METS!$R:$R,0)+1,1) ->  | BT5: =OFFSET(METS!$R$1,MATCH(OFFSET($B$14,BT$2,0),METS!$R:$R,0)-1,1,MATCH(OFFSET($B$14,BT$2,0),METS!$R:$R)-MATCH(OFFSET($B$14,BT$2,0),METS!$R:$R,0)+1,1) ->  | BU5: =OFFSET(METS!$R$1,MATCH(OFFSET($B$14,BU$2,0),METS!$R:$R,0)-1,1,MATCH(OFFSET($B$14,BU$2,0),METS!$R:$R)-MATCH(OFFSET($B$14,BU$2,0),METS!$R:$R,0)+1,1) ->  | BV5: =OFFSET(METS!$R$1,MATCH(OFFSET($B$14,BV$2,0),METS!$R:$R,0)-1,1,MATCH(OFFSET($B$14,BV$2,0),METS!$R:$R)-MATCH(OFFSET($B$14,BV$2,0),METS!$R:$R,0)+1,1) ->  | BW5: =OFFSET(METS!$R$1,MATCH(OFFSET($B$14,BW$2,0),METS!$R:$R,0)-1,1,MATCH(OFFSET($B$14,BW$2,0),METS!$R:$R)-MATCH(OFFSET($B$14,BW$2,0),METS!$R:$R,0)+1,1) ->  | BX5: =OFFSET(METS!$R$1,MATCH(OFFSET($B$14,BX$2,0),METS!$R:$R,0)-1,1,MATCH(OFFSET($B$14,BX$2,0),METS!$R:$R)-MATCH(OFFSET($B$14,BX$2,0),METS!$R:$R,0)+1,1) ->  | BY5: =OFFSET(METS!$R$1,MATCH(OFFSET($B$14,BY$2,0),METS!$R:$R,0)-1,1,MATCH(OFFSET($B$14,BY$2,0),METS!$R:$R)-MATCH(OFFSET($B$14,BY$2,0),METS!$R:$R,0)+1,1) ->  | BZ5: =OFFSET(METS!$R$1,MATCH(OFFSET($B$14,BZ$2,0),METS!$R:$R,0)-1,1,MATCH(OFFSET($B$14,BZ$2,0),METS!$R:$R)-MATCH(OFFSET($B$14,BZ$2,0),METS!$R:$R,0)+1,1) ->  | CA5: =OFFSET(METS!$R$1,MATCH(OFFSET($B$14,CA$2,0),METS!$R:$R,0)-1,1,MATCH(OFFSET($B$14,CA$2,0),METS!$R:$R)-MATCH(OFFSET($B$14,CA$2,0),METS!$R:$R,0)+1,1) ->  | CB5: =OFFSET(METS!$R$1,MATCH(OFFSET($B$14,CB$2,0),METS!$R:$R,0)-1,1,MATCH(OFFSET($B$14,CB$2,0),METS!$R:$R)-MATCH(OFFSET($B$14,CB$2,0),METS!$R:$R,0)+1,1) ->  | CC5: =OFFSET(METS!$R$1,MATCH(OFFSET($B$14,CC$2,0),METS!$R:$R,0)-1,1,MATCH(OFFSET($B$14,CC$2,0),METS!$R:$R)-MATCH(OFFSET($B$14,CC$2,0),METS!$R:$R,0)+1,1) ->  | CD5: =OFFSET(METS!$R$1,MATCH(OFFSET($B$14,CD$2,0),METS!$R:$R,0)-1,1,MATCH(OFFSET($B$14,CD$2,0),METS!$R:$R)-MATCH(OFFSET($B$14,CD$2,0),METS!$R:$R,0)+1,1) ->  | CE5: =OFFSET(METS!$R$1,MATCH(OFFSET($B$14,CE$2,0),METS!$R:$R,0)-1,1,MATCH(OFFSET($B$14,CE$2,0),METS!$R:$R)-MATCH(OFFSET($B$14,CE$2,0),METS!$R:$R,0)+1,1) ->  | CF5: =OFFSET(METS!$R$1,MATCH(OFFSET($B$14,CF$2,0),METS!$R:$R,0)-1,1,MATCH(OFFSET($B$14,CF$2,0),METS!$R:$R)-MATCH(OFFSET($B$14,CF$2,0),METS!$R:$R,0)+1,1) ->  | CG5: =OFFSET(METS!$R$1,MATCH(OFFSET($B$14,CG$2,0),METS!$R:$R,0)-1,1,MATCH(OFFSET($B$14,CG$2,0),METS!$R:$R)-MATCH(OFFSET($B$14,CG$2,0),METS!$R:$R,0)+1,1) ->  | CH5: =OFFSET(METS!$R$1,MATCH(OFFSET($B$14,CH$2,0),METS!$R:$R,0)-1,1,MATCH(OFFSET($B$14,CH$2,0),METS!$R:$R)-MATCH(OFFSET($B$14,CH$2,0),METS!$R:$R,0)+1,1) ->  | CI5: =OFFSET(METS!$R$1,MATCH(OFFSET($B$14,CI$2,0),METS!$R:$R,0)-1,1,MATCH(OFFSET($B$14,CI$2,0),METS!$R:$R)-MATCH(OFFSET($B$14,CI$2,0),METS!$R:$R,0)+1,1) ->  | CJ5: =OFFSET(METS!$R$1,MATCH(OFFSET($B$14,CJ$2,0),METS!$R:$R,0)-1,1,MATCH(OFFSET($B$14,CJ$2,0),METS!$R:$R)-MATCH(OFFSET($B$14,CJ$2,0),METS!$R:$R,0)+1,1) ->  | CK5: =OFFSET(METS!$R$1,MATCH(OFFSET($B$14,CK$2,0),METS!$R:$R,0)-1,1,MATCH(OFFSET($B$14,CK$2,0),METS!$R:$R)-MATCH(OFFSET($B$14,CK$2,0),METS!$R:$R,0)+1,1) ->  | CL5: =OFFSET(METS!$R$1,MATCH(OFFSET($B$14,CL$2,0),METS!$R:$R,0)-1,1,MATCH(OFFSET($B$14,CL$2,0),METS!$R:$R)-MATCH(OFFSET($B$14,CL$2,0),METS!$R:$R,0)+1,1) ->  | CM5: =OFFSET(METS!$R$1,MATCH(OFFSET($B$14,CM$2,0),METS!$R:$R,0)-1,1,MATCH(OFFSET($B$14,CM$2,0),METS!$R:$R)-MATCH(OFFSET($B$14,CM$2,0),METS!$R:$R,0)+1,1) ->  | CN5: =OFFSET(METS!$R$1,MATCH(OFFSET($B$14,CN$2,0),METS!$R:$R,0)-1,1,MATCH(OFFSET($B$14,CN$2,0),METS!$R:$R)-MATCH(OFFSET($B$14,CN$2,0),METS!$R:$R,0)+1,1) ->  | CO5: =OFFSET(METS!$R$1,MATCH(OFFSET($B$14,CO$2,0),METS!$R:$R,0)-1,1,MATCH(OFFSET($B$14,CO$2,0),METS!$R:$R)-MATCH(OFFSET($B$14,CO$2,0),METS!$R:$R,0)+1,1) ->  | CP5: =OFFSET(METS!$R$1,MATCH(OFFSET($B$14,CP$2,0),METS!$R:$R,0)-1,1,MATCH(OFFSET($B$14,CP$2,0),METS!$R:$R)-MATCH(OFFSET($B$14,CP$2,0),METS!$R:$R,0)+1,1) ->  | CQ5: =OFFSET(METS!$R$1,MATCH(OFFSET($B$14,CQ$2,0),METS!$R:$R,0)-1,1,MATCH(OFFSET($B$14,CQ$2,0),METS!$R:$R)-MATCH(OFFSET($B$14,CQ$2,0),METS!$R:$R,0)+1,1) ->  | CR5: =OFFSET(METS!$R$1,MATCH(OFFSET($B$14,CR$2,0),METS!$R:$R,0)-1,1,MATCH(OFFSET($B$14,CR$2,0),METS!$R:$R)-MATCH(OFFSET($B$14,CR$2,0),METS!$R:$R,0)+1,1) ->  | CS5: =OFFSET(METS!$R$1,MATCH(OFFSET($B$14,CS$2,0),METS!$R:$R,0)-1,1,MATCH(OFFSET($B$14,CS$2,0),METS!$R:$R)-MATCH(OFFSET($B$14,CS$2,0),METS!$R:$R,0)+1,1) ->  | CT5: =OFFSET(METS!$R$1,MATCH(OFFSET($B$14,CT$2,0),METS!$R:$R,0)-1,1,MATCH(OFFSET($B$14,CT$2,0),METS!$R:$R)-MATCH(OFFSET($B$14,CT$2,0),METS!$R:$R,0)+1,1) ->  | CU5: =OFFSET(METS!$R$1,MATCH(OFFSET($B$14,CU$2,0),METS!$R:$R,0)-1,1,MATCH(OFFSET($B$14,CU$2,0),METS!$R:$R)-MATCH(OFFSET($B$14,CU$2,0),METS!$R:$R,0)+1,1) ->  | CV5: =OFFSET(METS!$R$1,MATCH(OFFSET($B$14,CV$2,0),METS!$R:$R,0)-1,1,MATCH(OFFSET($B$14,CV$2,0),METS!$R:$R)-MATCH(OFFSET($B$14,CV$2,0),METS!$R:$R,0)+1,1) ->  | CW5: =OFFSET(METS!$R$1,MATCH(OFFSET($B$14,CW$2,0),METS!$R:$R,0)-1,1,MATCH(OFFSET($B$14,CW$2,0),METS!$R:$R)-MATCH(OFFSET($B$14,CW$2,0),METS!$R:$R,0)+1,1) ->  | CX5: =OFFSET(METS!$R$1,MATCH(OFFSET($B$14,CX$2,0),METS!$R:$R,0)-1,1,MATCH(OFFSET($B$14,CX$2,0),METS!$R:$R)-MATCH(OFFSET($B$14,CX$2,0),METS!$R:$R,0)+1,1) ->  | CY5: =OFFSET(METS!$R$1,MATCH(OFFSET($B$14,CY$2,0),METS!$R:$R,0)-1,1,MATCH(OFFSET($B$14,CY$2,0),METS!$R:$R)-MATCH(OFFSET($B$14,CY$2,0),METS!$R:$R,0)+1,1) ->  | CZ5: =OFFSET(METS!$R$1,MATCH(OFFSET($B$14,CZ$2,0),METS!$R:$R,0)-1,1,MATCH(OFFSET($B$14,CZ$2,0),METS!$R:$R)-MATCH(OFFSET($B$14,CZ$2,0),METS!$R:$R,0)+1,1) ->  | DA5: =OFFSET(METS!$R$1,MATCH(OFFSET($B$14,DA$2,0),METS!$R:$R,0)-1,1,MATCH(OFFSET($B$14,DA$2,0),METS!$R:$R)-MATCH(OFFSET($B$14,DA$2,0),METS!$R:$R,0)+1,1) ->  | DB5: =OFFSET(METS!$R$1,MATCH(OFFSET($B$14,DB$2,0),METS!$R:$R,0)-1,1,MATCH(OFFSET($B$14,DB$2,0),METS!$R:$R)-MATCH(OFFSET($B$14,DB$2,0),METS!$R:$R,0)+1,1) ->  | DC5: =OFFSET(METS!$R$1,MATCH(OFFSET($B$14,DC$2,0),METS!$R:$R,0)-1,1,MATCH(OFFSET($B$14,DC$2,0),METS!$R:$R)-MATCH(OFFSET($B$14,DC$2,0),METS!$R:$R,0)+1,1) ->  | DD5: =OFFSET(METS!$R$1,MATCH(OFFSET($B$14,DD$2,0),METS!$R:$R,0)-1,1,MATCH(OFFSET($B$14,DD$2,0),METS!$R:$R)-MATCH(OFFSET($B$14,DD$2,0),METS!$R:$R,0)+1,1) ->  | DE5: =OFFSET(METS!$R$1,MATCH(OFFSET($B$14,DE$2,0),METS!$R:$R,0)-1,1,MATCH(OFFSET($B$14,DE$2,0),METS!$R:$R)-MATCH(OFFSET($B$14,DE$2,0),METS!$R:$R,0)+1,1) ->  | DF5: =OFFSET(METS!$R$1,MATCH(OFFSET($B$14,DF$2,0),METS!$R:$R,0)-1,1,MATCH(OFFSET($B$14,DF$2,0),METS!$R:$R)-MATCH(OFFSET($B$14,DF$2,0),METS!$R:$R,0)+1,1) ->  | DG5: =OFFSET(METS!$R$1,MATCH(OFFSET($B$14,DG$2,0),METS!$R:$R,0)-1,1,MATCH(OFFSET($B$14,DG$2,0),METS!$R:$R)-MATCH(OFFSET($B$14,DG$2,0),METS!$R:$R,0)+1,1) ->  | DH5: =OFFSET(METS!$R$1,MATCH(OFFSET($B$14,DH$2,0),METS!$R:$R,0)-1,1,MATCH(OFFSET($B$14,DH$2,0),METS!$R:$R)-MATCH(OFFSET($B$14,DH$2,0),METS!$R:$R,0)+1,1) ->  | DI5: =OFFSET(METS!$R$1,MATCH(OFFSET($B$14,DI$2,0),METS!$R:$R,0)-1,1,MATCH(OFFSET($B$14,DI$2,0),METS!$R:$R)-MATCH(OFFSET($B$14,DI$2,0),METS!$R:$R,0)+1,1) ->  | DJ5: =OFFSET(METS!$R$1,MATCH(OFFSET($B$14,DJ$2,0),METS!$R:$R,0)-1,1,MATCH(OFFSET($B$14,DJ$2,0),METS!$R:$R)-MATCH(OFFSET($B$14,DJ$2,0),METS!$R:$R,0)+1,1) ->  | DK5: =OFFSET(METS!$R$1,MATCH(OFFSET($B$14,DK$2,0),METS!$R:$R,0)-1,1,MATCH(OFFSET($B$14,DK$2,0),METS!$R:$R)-MATCH(OFFSET($B$14,DK$2,0),METS!$R:$R,0)+1,1) ->  | DL5: =OFFSET(METS!$R$1,MATCH(OFFSET($B$14,DL$2,0),METS!$R:$R,0)-1,1,MATCH(OFFSET($B$14,DL$2,0),METS!$R:$R)-MATCH(OFFSET($B$14,DL$2,0),METS!$R:$R,0)+1,1) ->  | DM5: =OFFSET(METS!$R$1,MATCH(OFFSET($B$14,DM$2,0),METS!$R:$R,0)-1,1,MATCH(OFFSET($B$14,DM$2,0),METS!$R:$R)-MATCH(OFFSET($B$14,DM$2,0),METS!$R:$R,0)+1,1) ->  | DN5: =OFFSET(METS!$R$1,MATCH(OFFSET($B$14,DN$2,0),METS!$R:$R,0)-1,1,MATCH(OFFSET($B$14,DN$2,0),METS!$R:$R)-MATCH(OFFSET($B$14,DN$2,0),METS!$R:$R,0)+1,1) ->  | DO5: =OFFSET(METS!$R$1,MATCH(OFFSET($B$14,DO$2,0),METS!$R:$R,0)-1,1,MATCH(OFFSET($B$14,DO$2,0),METS!$R:$R)-MATCH(OFFSET($B$14,DO$2,0),METS!$R:$R,0)+1,1) ->  | DP5: =OFFSET(METS!$R$1,MATCH(OFFSET($B$14,DP$2,0),METS!$R:$R,0)-1,1,MATCH(OFFSET($B$14,DP$2,0),METS!$R:$R)-MATCH(OFFSET($B$14,DP$2,0),METS!$R:$R,0)+1,1) ->  | DQ5: =OFFSET(METS!$R$1,MATCH(OFFSET($B$14,DQ$2,0),METS!$R:$R,0)-1,1,MATCH(OFFSET($B$14,DQ$2,0),METS!$R:$R)-MATCH(OFFSET($B$14,DQ$2,0),METS!$R:$R,0)+1,1) ->  | DR5: =OFFSET(METS!$R$1,MATCH(OFFSET($B$14,DR$2,0),METS!$R:$R,0)-1,1,MATCH(OFFSET($B$14,DR$2,0),METS!$R:$R)-MATCH(OFFSET($B$14,DR$2,0),METS!$R:$R,0)+1,1) ->  | DS5: =OFFSET(METS!$R$1,MATCH(OFFSET($B$14,DS$2,0),METS!$R:$R,0)-1,1,MATCH(OFFSET($B$14,DS$2,0),METS!$R:$R)-MATCH(OFFSET($B$14,DS$2,0),METS!$R:$R,0)+1,1) -> 
C6: Median years of participation | E6: 5 | F6: ="years ["&ROUND(1-EXP(LN(0.5)/E6),3)*100&"% annual dropoff]" -> years [12.9% annual dropoff] | O6: =TRANSPOSE('Weighted METs'!W14:Z14) -> 16-30 | P6: =TRANSPOSE('Weighted METs'!$C$114:$F$114) -> 55 | Q6: =TRANSPOSE('Weighted METs'!$H$115:$K$115) -> 0.06547619048 | R6: =TRANSPOSE('Weighted METs'!M114:P114) -> 0.95 | S6: =TRANSPOSE('Weighted METs'!$R$114:$U$114) -> 8 | T6: =TRANSPOSE('Weighted METs'!$W$114:$Z$114) -> 12.8 | V6: % PARTICIPANTS | Y6: Fast (8mph) | Z6: Training | AA6: Racing | AB6: General | AC6: General
C7: Check box for no annual dropoff in participation | E7: =IF(F7,"100% ongoing","") ->  | F7: FALSE | O7: 31-45 | P7: 360 | Q7: 0.4285714286 | R7: 0.4944444444 | S7: 5.777777778 | T7: 50.31111111 | Y7: Marathon | AA7: Racing | AB7: General | AC7: General
O8: 46-60 | P8: 250 | Q8: 0.2976190476 | R8: 0.4 | S8: 3 | T8: 5 | AA8: Racing | AB8: General | AC8: General
C9: Annual operating costs | E9: 100000 | F9: per year | O9: 60+ | P9: 175 | Q9: 0.2083333333 | R9: 0.3 | S9: 3 | T9: 2.5 | AA9: Racing | AB9: General | AC9: General
O10: ALL | P10: =SUM(P6:P9) -> 840 | Q10: =IF($P$10>0,SUM(Q6:Q9),0) -> 1 | R10: =IF($P$10>0,'Weighted METs'!$M$115,0) -> 0.4556547619 | S10: =IF($P$10>0,'Weighted METs'!$R$115,0) -> 4.517857143 | T10: =IF($P$10>0,'Weighted METs'!$W$115,0) -> 24.40892857 | AA10: Racing | AB10: General | AC10: General
C11: Total facility participants (if reporting % participants) | E11: 1000 | F11: participants | AA11: Racing | AB11: General | AC11: General
AA12: Racing | AB12: General | AC12: General
E13: =IF(AND($W$4=2,$E$114>0,$E$114<>1),"Participants do not sum to 100%",IF(AND($W$4=1,E114=100%),"Participants appear to be entered as %. Please enter as counts or adjust category.",IF(AND($W$4=2,$E$11<1),"Please enter total facility participants above",""))) ->  | I13: =IF($V$114>0,"Activity levels not specified for all participants","") ->  | AA13: Racing | AB13: General | AC13: General
B14: ACTIVITY | C14: INTENSITY | D14: METS/Hour | F14: Age group | G14: Midpoint | H14: % MALE | I14: STARTING ACTIVITY LEVEL | J14: HOURS PER SESSION | K14: SESSIONS PER WEEK | L14: DISTRIBUTION | M14: Old METs | N14: New METs | O14: Change in weekly METS | P14: Additional METS per WEEK | V14: Count of completed cells | W14: Intensity mismatch | AA14: Racing | AB14: General | AC14: General
A15: 1 | B15: Running | C15: General | D15: =OFFSET($X$23,0,$A15) -> 8 | E15: 200 | F15: 31-45 | G15: =IF(F15<>"",VLOOKUP(F15,Inputs!$N$11:$P$14,3,TRUE),"") -> 38 | H15: 0.25 | I15: Some activity | J15: 1 | K15: 5 | L15: =IF($E$114>0,E15/$E$114,0) -> 0.2380952381 | M15: =IF($E15>0,VLOOKUP($I15,Inputs!$N$21:$O$24,2),0) -> 8 | N15: =IF(E15>0,$D15*$J15*$K15,0) -> 40 | O15: =IF($N15>0,$M15&" -> "&$N15,"") -> 8 -> 40 | P15: =IF(N15>0,N15-M15,0) -> 32 | Q15: =IF(AND($E15>0,$V15>1,$V15<7)," <- Specify duration and frequency",IF(AND($E15=0,$V15>1,$V15<7)," <- Specify participants","")) ->  | V15: =COUNTA(E15:K15) -> 7 | W15: =AND($B15<>"",ISERROR(OFFSET($X$22,0,$A15)),$E15>0) -> FALSE | AA15: Racing | AB15: General | AC15: General
A16: 2 | B16: Boxing | C16: Competitive | D16: =OFFSET($X$23,0,$A16) -> 12.8 | E16: 55 | F16: 16-30 | G16: =IF(F16<>"",VLOOKUP(F16,Inputs!$N$11:$P$14,3,TRUE),"") -> 23 | H16: 0.95 | I16: Some activity | J16: 1 | K16: 1 | L16: 0.06547619048 | M16: =IF($E16>0,VLOOKUP($I16,Inputs!$N$21:$O$24,2),0) -> 8 | N16: 12.8 | O16: 8 -> 12.8 | P16: =IF(N16>0,N16-M16,0) -> 4.8 | V16: 7 | W16: =AND($B16<>"",ISERROR(OFFSET($X$22,0,$A16)),$E16>0) -> FALSE | AA16: Racing | AB16: General | AC16: General
A17: 3 | B17: Cycling (competitive) | C17: Racing | D17: 15.8 | E17: 160 | F17: 31-45 | G17: =IF(F17<>"",VLOOKUP(F17,Inputs!$N$11:$P$14,3,TRUE),"") -> 38 | H17: 0.8 | I17: Low activity | J17: 2 | K17: 2 | L17: 0.1904761905 | M17: =IF($E17>0,VLOOKUP($I17,Inputs!$N$21:$O$24,2),0) -> 3 | N17: 63.2 | O17: 3 -> 63.2 | P17: 60.2 | V17: 7 | W17: FALSE | AA17: Racing | AB17: General | AC17: General
A18: 4 | B18: Bowls | C18: General | D18: 2.5 | E18: 175 | F18: 60+ | G18: =IF(F18<>"",VLOOKUP(F18,Inputs!$N$11:$P$14,3,TRUE),"") -> 53 | H18: 0.3 | I18: Low activity | J18: 1 | K18: 1 | L18: 0.2083333333 | M18: =IF($E18>0,VLOOKUP($I18,Inputs!$N$21:$O$24,2),0) -> 3 | N18: =IF(E18>0,$D18*$J18*$K18,0) -> 2.5 | O18: 3 -> 2.5 | P18: -0.5 | V18: 7 | W18: FALSE | AA18: Racing | AB18: General | AC18: General
A19: 5 | B19: Bowls | C19: General | D19: 2.5 | E19: 250 | F19: 46-60 | G19: =IF(F19<>"",VLOOKUP(F19,Inputs!$N$11:$P$14,3,TRUE),"") -> 53 | H19: 0.4 | I19: Low activity | J19: 1 | K19: 2 | L19: 0.2976190476 | M19: =IF($E19>0,VLOOKUP($I19,Inputs!$N$21:$O$24,2),0) -> 3 | N19: =IF(E19>0,$D19*$J19*$K19,0) -> 5 | O19: 3 -> 5 | P19: 2 | V19: 7 | W19: FALSE | AA19: Racing | AB19: General | AC19: General
A20: 6 | G20: =IF(F20<>"",VLOOKUP(F20,Inputs!$N$11:$P$14,3,TRUE),"") ->  | L20: 0 | M20: =IF($E20>0,VLOOKUP($I20,Inputs!$N$21:$O$24,2),0) -> 0 | N20: 0 | P20: 0 | V20: 1 | W20: FALSE | X20: Unq levels | Y20: =MATCH(OFFSET($B$14,Y$2,0),METS!$R:$R)-MATCH(OFFSET($B$14,Y$2,0),METS!$R:$R,0)+1 -> 3 | Z20: =MATCH(OFFSET($B$14,Z$2,0),METS!$R:$R)-MATCH(OFFSET($B$14,Z$2,0),METS!$R:$R,0)+1 -> 2 | AA20: =MATCH(OFFSET($B$14,AA$2,0),METS!$R:$R)-MATCH(OFFSET($B$14,AA$2,0),METS!$R:$R,0)+1 -> 1 | AB20: =MATCH(OFFSET($B$14,AB$2,0),METS!$R:$R)-MATCH(OFFSET($B$14,AB$2,0),METS!$R:$R,0)+1 -> 1 | AC20: =MATCH(OFFSET($B$14,AC$2,0),METS!$R:$R)-MATCH(OFFSET($B$14,AC$2,0),METS!$R:$R,0)+1 -> 1 | AD20: =MATCH(OFFSET($B$14,AD$2,0),METS!$R:$R)-MATCH(OFFSET($B$14,AD$2,0),METS!$R:$R,0)+1 ->  | AE20: =MATCH(OFFSET($B$14,AE$2,0),METS!$R:$R)-MATCH(OFFSET($B$14,AE$2,0),METS!$R:$R,0)+1 ->  | AF20: =MATCH(OFFSET($B$14,AF$2,0),METS!$R:$R)-MATCH(OFFSET($B$14,AF$2,0),METS!$R:$R,0)+1 ->  | AG20: =MATCH(OFFSET($B$14,AG$2,0),METS!$R:$R)-MATCH(OFFSET($B$14,AG$2,0),METS!$R:$R,0)+1 ->  | AH20: =MATCH(OFFSET($B$14,AH$2,0),METS!$R:$R)-MATCH(OFFSET($B$14,AH$2,0),METS!$R:$R,0)+1 ->  | AI20: =MATCH(OFFSET($B$14,AI$2,0),METS!$R:$R)-MATCH(OFFSET($B$14,AI$2,0),METS!$R:$R,0)+1 ->  | AJ20: =MATCH(OFFSET($B$14,AJ$2,0),METS!$R:$R)-MATCH(OFFSET($B$14,AJ$2,0),METS!$R:$R,0)+1 ->  | AK20: =MATCH(OFFSET($B$14,AK$2,0),METS!$R:$R)-MATCH(OFFSET($B$14,AK$2,0),METS!$R:$R,0)+1 ->  | AL20: =MATCH(OFFSET($B$14,AL$2,0),METS!$R:$R)-MATCH(OFFSET($B$14,AL$2,0),METS!$R:$R,0)+1 ->  | AM20: =MATCH(OFFSET($B$14,AM$2,0),METS!$R:$R)-MATCH(OFFSET($B$14,AM$2,0),METS!$R:$R,0)+1 ->  | AN20: =MATCH(OFFSET($B$14,AN$2,0),METS!$R:$R)-MATCH(OFFSET($B$14,AN$2,0),METS!$R:$R,0)+1 ->  | AO20: =MATCH(OFFSET($B$14,AO$2,0),METS!$R:$R)-MATCH(OFFSET($B$14,AO$2,0),METS!$R:$R,0)+1 ->  | AP20: =MATCH(OFFSET($B$14,AP$2,0),METS!$R:$R)-MATCH(OFFSET($B$14,AP$2,0),METS!$R:$R,0)+1 ->  | AQ20: =MATCH(OFFSET($B$14,AQ$2,0),METS!$R:$R)-MATCH(OFFSET($B$14,AQ$2,0),METS!$R:$R,0)+1 ->  | AR20: =MATCH(OFFSET($B$14,AR$2,0),METS!$R:$R)-MATCH(OFFSET($B$14,AR$2,0),METS!$R:$R,0)+1 ->  | AS20: =MATCH(OFFSET($B$14,AS$2,0),METS!$R:$R)-MATCH(OFFSET($B$14,AS$2,0),METS!$R:$R,0)+1 ->  | AT20: =MATCH(OFFSET($B$14,AT$2,0),METS!$R:$R)-MATCH(OFFSET($B$14,AT$2,0),METS!$R:$R,0)+1 ->  | AU20: =MATCH(OFFSET($B$14,AU$2,0),METS!$R:$R)-MATCH(OFFSET($B$14,AU$2,0),METS!$R:$R,0)+1 ->  | AV20: =MATCH(OFFSET($B$14,AV$2,0),METS!$R:$R)-MATCH(OFFSET($B$14,AV$2,0),METS!$R:$R,0)+1 ->  | AW20: =MATCH(OFFSET($B$14,AW$2,0),METS!$R:$R)-MATCH(OFFSET($B$14,AW$2,0),METS!$R:$R,0)+1 ->  | AX20: =MATCH(OFFSET($B$14,AX$2,0),METS!$R:$R)-MATCH(OFFSET($B$14,AX$2,0),METS!$R:$R,0)+1 ->  | AY20: =MATCH(OFFSET($B$14,AY$2,0),METS!$R:$R)-MATCH(OFFSET($B$14,AY$2,0),METS!$R:$R,0)+1 ->  | AZ20: =MATCH(OFFSET($B$14,AZ$2,0),METS!$R:$R)-MATCH(OFFSET($B$14,AZ$2,0),METS!$R:$R,0)+1 ->  | BA20: =MATCH(OFFSET($B$14,BA$2,0),METS!$R:$R)-MATCH(OFFSET($B$14,BA$2,0),METS!$R:$R,0)+1 ->  | BB20: =MATCH(OFFSET($B$14,BB$2,0),METS!$R:$R)-MATCH(OFFSET($B$14,BB$2,0),METS!$R:$R,0)+1 ->  | BC20: =MATCH(OFFSET($B$14,BC$2,0),METS!$R:$R)-MATCH(OFFSET($B$14,BC$2,0),METS!$R:$R,0)+1 ->  | BD20: =MATCH(OFFSET($B$14,BD$2,0),METS!$R:$R)-MATCH(OFFSET($B$14,BD$2,0),METS!$R:$R,0)+1 ->  | BE20: =MATCH(OFFSET($B$14,BE$2,0),METS!$R:$R)-MATCH(OFFSET($B$14,BE$2,0),METS!$R:$R,0)+1 ->  | BF20: =MATCH(OFFSET($B$14,BF$2,0),METS!$R:$R)-MATCH(OFFSET($B$14,BF$2,0),METS!$R:$R,0)+1 ->  | BG20: =MATCH(OFFSET($B$14,BG$2,0),METS!$R:$R)-MATCH(OFFSET($B$14,BG$2,0),METS!$R:$R,0)+1 ->  | BH20: =MATCH(OFFSET($B$14,BH$2,0),METS!$R:$R)-MATCH(OFFSET($B$14,BH$2,0),METS!$R:$R,0)+1 ->  | BI20: =MATCH(OFFSET($B$14,BI$2,0),METS!$R:$R)-MATCH(OFFSET($B$14,BI$2,0),METS!$R:$R,0)+1 ->  | BJ20: =MATCH(OFFSET($B$14,BJ$2,0),METS!$R:$R)-MATCH(OFFSET($B$14,BJ$2,0),METS!$R:$R,0)+1 ->  | BK20: =MATCH(OFFSET($B$14,BK$2,0),METS!$R:$R)-MATCH(OFFSET($B$14,BK$2,0),METS!$R:$R,0)+1 ->  | BL20: =MATCH(OFFSET($B$14,BL$2,0),METS!$R:$R)-MATCH(OFFSET($B$14,BL$2,0),METS!$R:$R,0)+1 ->  | BM20: =MATCH(OFFSET($B$14,BM$2,0),METS!$R:$R)-MATCH(OFFSET($B$14,BM$2,0),METS!$R:$R,0)+1 ->  | BN20: =MATCH(OFFSET($B$14,BN$2,0),METS!$R:$R)-MATCH(OFFSET($B$14,BN$2,0),METS!$R:$R,0)+1 ->  | BO20: =MATCH(OFFSET($B$14,BO$2,0),METS!$R:$R)-MATCH(OFFSET($B$14,BO$2,0),METS!$R:$R,0)+1 ->  | BP20: =MATCH(OFFSET($B$14,BP$2,0),METS!$R:$R)-MATCH(OFFSET($B$14,BP$2,0),METS!$R:$R,0)+1 ->  | BQ20: =MATCH(OFFSET($B$14,BQ$2,0),METS!$R:$R)-MATCH(OFFSET($B$14,BQ$2,0),METS!$R:$R,0)+1 ->  | BR20: =MATCH(OFFSET($B$14,BR$2,0),METS!$R:$R)-MATCH(OFFSET($B$14,BR$2,0),METS!$R:$R,0)+1 ->  | BS20: =MATCH(OFFSET($B$14,BS$2,0),METS!$R:$R)-MATCH(OFFSET($B$14,BS$2,0),METS!$R:$R,0)+1 ->  | BT20: =MATCH(OFFSET($B$14,BT$2,0),METS!$R:$R)-MATCH(OFFSET($B$14,BT$2,0),METS!$R:$R,0)+1 ->  | BU20: =MATCH(OFFSET($B$14,BU$2,0),METS!$R:$R)-MATCH(OFFSET($B$14,BU$2,0),METS!$R:$R,0)+1 ->  | BV20: =MATCH(OFFSET($B$14,BV$2,0),METS!$R:$R)-MATCH(OFFSET($B$14,BV$2,0),METS!$R:$R,0)+1 ->  | BW20: =MATCH(OFFSET($B$14,BW$2,0),METS!$R:$R)-MATCH(OFFSET($B$14,BW$2,0),METS!$R:$R,0)+1 ->  | BX20: =MATCH(OFFSET($B$14,BX$2,0),METS!$R:$R)-MATCH(OFFSET($B$14,BX$2,0),METS!$R:$R,0)+1 ->  | BY20: =MATCH(OFFSET($B$14,BY$2,0),METS!$R:$R)-MATCH(OFFSET($B$14,BY$2,0),METS!$R:$R,0)+1 ->  | BZ20: =MATCH(OFFSET($B$14,BZ$2,0),METS!$R:$R)-MATCH(OFFSET($B$14,BZ$2,0),METS!$R:$R,0)+1 ->  | CA20: =MATCH(OFFSET($B$14,CA$2,0),METS!$R:$R)-MATCH(OFFSET($B$14,CA$2,0),METS!$R:$R,0)+1 ->  | CB20: =MATCH(OFFSET($B$14,CB$2,0),METS!$R:$R)-MATCH(OFFSET($B$14,CB$2,0),METS!$R:$R,0)+1 ->  | CC20: =MATCH(OFFSET($B$14,CC$2,0),METS!$R:$R)-MATCH(OFFSET($B$14,CC$2,0),METS!$R:$R,0)+1 ->  | CD20: =MATCH(OFFSET($B$14,CD$2,0),METS!$R:$R)-MATCH(OFFSET($B$14,CD$2,0),METS!$R:$R,0)+1 ->  | CE20: =MATCH(OFFSET($B$14,CE$2,0),METS!$R:$R)-MATCH(OFFSET($B$14,CE$2,0),METS!$R:$R,0)+1 ->  | CF20: =MATCH(OFFSET($B$14,CF$2,0),METS!$R:$R)-MATCH(OFFSET($B$14,CF$2,0),METS!$R:$R,0)+1 ->  | CG20: =MATCH(OFFSET($B$14,CG$2,0),METS!$R:$R)-MATCH(OFFSET($B$14,CG$2,0),METS!$R:$R,0)+1 ->  | CH20: =MATCH(OFFSET($B$14,CH$2,0),METS!$R:$R)-MATCH(OFFSET($B$14,CH$2,0),METS!$R:$R,0)+1 ->  | CI20: =MATCH(OFFSET($B$14,CI$2,0),METS!$R:$R)-MATCH(OFFSET($B$14,CI$2,0),METS!$R:$R,0)+1 ->  | CJ20: =MATCH(OFFSET($B$14,CJ$2,0),METS!$R:$R)-MATCH(OFFSET($B$14,CJ$2,0),METS!$R:$R,0)+1 ->  | CK20: =MATCH(OFFSET($B$14,CK$2,0),METS!$R:$R)-MATCH(OFFSET($B$14,CK$2,0),METS!$R:$R,0)+1 ->  | CL20: =MATCH(OFFSET($B$14,CL$2,0),METS!$R:$R)-MATCH(OFFSET($B$14,CL$2,0),METS!$R:$R,0)+1 ->  | CM20: =MATCH(OFFSET($B$14,CM$2,0),METS!$R:$R)-MATCH(OFFSET($B$14,CM$2,0),METS!$R:$R,0)+1 ->  | CN20: =MATCH(OFFSET($B$14,CN$2,0),METS!$R:$R)-MATCH(OFFSET($B$14,CN$2,0),METS!$R:$R,0)+1 ->  | CO20: =MATCH(OFFSET($B$14,CO$2,0),METS!$R:$R)-MATCH(OFFSET($B$14,CO$2,0),METS!$R:$R,0)+1 ->  | CP20: =MATCH(OFFSET($B$14,CP$2,0),METS!$R:$R)-MATCH(OFFSET($B$14,CP$2,0),METS!$R:$R,0)+1 ->  | CQ20: =MATCH(OFFSET($B$14,CQ$2,0),METS!$R:$R)-MATCH(OFFSET($B$14,CQ$2,0),METS!$R:$R,0)+1 ->  | CR20: =MATCH(OFFSET($B$14,CR$2,0),METS!$R:$R)-MATCH(OFFSET($B$14,CR$2,0),METS!$R:$R,0)+1 ->  | CS20: =MATCH(OFFSET($B$14,CS$2,0),METS!$R:$R)-MATCH(OFFSET($B$14,CS$2,0),METS!$R:$R,0)+1 ->  | CT20: =MATCH(OFFSET($B$14,CT$2,0),METS!$R:$R)-MATCH(OFFSET($B$14,CT$2,0),METS!$R:$R,0)+1 ->  | CU20: =MATCH(OFFSET($B$14,CU$2,0),METS!$R:$R)-MATCH(OFFSET($B$14,CU$2,0),METS!$R:$R,0)+1 ->  | CV20: =MATCH(OFFSET($B$14,CV$2,0),METS!$R:$R)-MATCH(OFFSET($B$14,CV$2,0),METS!$R:$R,0)+1 ->  | CW20: =MATCH(OFFSET($B$14,CW$2,0),METS!$R:$R)-MATCH(OFFSET($B$14,CW$2,0),METS!$R:$R,0)+1 ->  | CX20: =MATCH(OFFSET($B$14,CX$2,0),METS!$R:$R)-MATCH(OFFSET($B$14,CX$2,0),METS!$R:$R,0)+1 ->  | CY20: =MATCH(OFFSET($B$14,CY$2,0),METS!$R:$R)-MATCH(OFFSET($B$14,CY$2,0),METS!$R:$R,0)+1 ->  | CZ20: =MATCH(OFFSET($B$14,CZ$2,0),METS!$R:$R)-MATCH(OFFSET($B$14,CZ$2,0),METS!$R:$R,0)+1 ->  | DA20: =MATCH(OFFSET($B$14,DA$2,0),METS!$R:$R)-MATCH(OFFSET($B$14,DA$2,0),METS!$R:$R,0)+1 ->  | DB20: =MATCH(OFFSET($B$14,DB$2,0),METS!$R:$R)-MATCH(OFFSET($B$14,DB$2,0),METS!$R:$R,0)+1 ->  | DC20: =MATCH(OFFSET($B$14,DC$2,0),METS!$R:$R)-MATCH(OFFSET($B$14,DC$2,0),METS!$R:$R,0)+1 ->  | DD20: =MATCH(OFFSET($B$14,DD$2,0),METS!$R:$R)-MATCH(OFFSET($B$14,DD$2,0),METS!$R:$R,0)+1 ->  | DE20: =MATCH(OFFSET($B$14,DE$2,0),METS!$R:$R)-MATCH(OFFSET($B$14,DE$2,0),METS!$R:$R,0)+1 ->  | DF20: =MATCH(OFFSET($B$14,DF$2,0),METS!$R:$R)-MATCH(OFFSET($B$14,DF$2,0),METS!$R:$R,0)+1 ->  | DG20: =MATCH(OFFSET($B$14,DG$2,0),METS!$R:$R)-MATCH(OFFSET($B$14,DG$2,0),METS!$R:$R,0)+1 ->  | DH20: =MATCH(OFFSET($B$14,DH$2,0),METS!$R:$R)-MATCH(OFFSET($B$14,DH$2,0),METS!$R:$R,0)+1 ->  | DI20: =MATCH(OFFSET($B$14,DI$2,0),METS!$R:$R)-MATCH(OFFSET($B$14,DI$2,0),METS!$R:$R,0)+1 ->  | DJ20: =MATCH(OFFSET($B$14,DJ$2,0),METS!$R:$R)-MATCH(OFFSET($B$14,DJ$2,0),METS!$R:$R,0)+1 ->  | DK20: =MATCH(OFFSET($B$14,DK$2,0),METS!$R:$R)-MATCH(OFFSET($B$14,DK$2,0),METS!$R:$R,0)+1 ->  | DL20: =MATCH(OFFSET($B$14,DL$2,0),METS!$R:$R)-MATCH(OFFSET($B$14,DL$2,0),METS!$R:$R,0)+1 ->  | DM20: =MATCH(OFFSET($B$14,DM$2,0),METS!$R:$R)-MATCH(OFFSET($B$14,DM$2,0),METS!$R:$R,0)+1 ->  | DN20: =MATCH(OFFSET($B$14,DN$2,0),METS!$R:$R)-MATCH(OFFSET($B$14,DN$2,0),METS!$R:$R,0)+1 ->  | DO20: =MATCH(OFFSET($B$14,DO$2,0),METS!$R:$R)-MATCH(OFFSET($B$14,DO$2,0),METS!$R:$R,0)+1 ->  | DP20: =MATCH(OFFSET($B$14,DP$2,0),METS!$R:$R)-MATCH(OFFSET($B$14,DP$2,0),METS!$R:$R,0)+1 ->  | DQ20: =MATCH(OFFSET($B$14,DQ$2,0),METS!$R:$R)-MATCH(OFFSET($B$14,DQ$2,0),METS!$R:$R,0)+1 ->  | DR20: =MATCH(OFFSET($B$14,DR$2,0),METS!$R:$R)-MATCH(OFFSET($B$14,DR$2,0),METS!$R:$R,0)+1 ->  | DS20: =MATCH(OFFSET($B$14,DS$2,0),METS!$R:$R)-MATCH(OFFSET($B$14,DS$2,0),METS!$R:$R,0)+1 -> 
A21: 7 | G21: =IF(F21<>"",VLOOKUP(F21,Inputs!$N$11:$P$14,3,TRUE),"") ->  | L21: 0 | M21: =IF($E21>0,VLOOKUP($I21,Inputs!$N$21:$O$24,2),0) -> 0 | N21: 0 | P21: 0 | V21: 1 | W21: FALSE | X21: Activity row | Y21: =MATCH(OFFSET($B$14,Y$2,0),METS!$R$2:$R$1015,0) -> 63 | Z21: =MATCH(OFFSET($B$14,Z$2,0),METS!$R$2:$R$1015,0) -> 17 | AA21: =MATCH(OFFSET($B$14,AA$2,0),METS!$R$2:$R$1015,0) -> 23 | AB21: =MATCH(OFFSET($B$14,AB$2,0),METS!$R$2:$R$1015,0) -> 15 | AC21: =MATCH(OFFSET($B$14,AC$2,0),METS!$R$2:$R$1015,0) -> 15 | AD21: =MATCH(OFFSET($B$14,AD$2,0),METS!$R$2:$R$1015,0) ->  | AE21: =MATCH(OFFSET($B$14,AE$2,0),METS!$R$2:$R$1015,0) ->  | AF21: =MATCH(OFFSET($B$14,AF$2,0),METS!$R$2:$R$1015,0) ->  | AG21: =MATCH(OFFSET($B$14,AG$2,0),METS!$R$2:$R$1015,0) ->  | AH21: =MATCH(OFFSET($B$14,AH$2,0),METS!$R$2:$R$1015,0) ->  | AI21: =MATCH(OFFSET($B$14,AI$2,0),METS!$R$2:$R$1015,0) ->  | AJ21: =MATCH(OFFSET($B$14,AJ$2,0),METS!$R$2:$R$1015,0) ->  | AK21: =MATCH(OFFSET($B$14,AK$2,0),METS!$R$2:$R$1015,0) ->  | AL21: =MATCH(OFFSET($B$14,AL$2,0),METS!$R$2:$R$1015,0) ->  | AM21: =MATCH(OFFSET($B$14,AM$2,0),METS!$R$2:$R$1015,0) ->  | AN21: =MATCH(OFFSET($B$14,AN$2,0),METS!$R$2:$R$1015,0) ->  | AO21: =MATCH(OFFSET($B$14,AO$2,0),METS!$R$2:$R$1015,0) ->  | AP21: =MATCH(OFFSET($B$14,AP$2,0),METS!$R$2:$R$1015,0) ->  | AQ21: =MATCH(OFFSET($B$14,AQ$2,0),METS!$R$2:$R$1015,0) ->  | AR21: =MATCH(OFFSET($B$14,AR$2,0),METS!$R$2:$R$1015,0) ->  | AS21: =MATCH(OFFSET($B$14,AS$2,0),METS!$R$2:$R$1015,0) ->  | AT21: =MATCH(OFFSET($B$14,AT$2,0),METS!$R$2:$R$1015,0) ->  | AU21: =MATCH(OFFSET($B$14,AU$2,0),METS!$R$2:$R$1015,0) ->  | AV21: =MATCH(OFFSET($B$14,AV$2,0),METS!$R$2:$R$1015,0) ->  | AW21: =MATCH(OFFSET($B$14,AW$2,0),METS!$R$2:$R$1015,0) ->  | AX21: =MATCH(OFFSET($B$14,AX$2,0),METS!$R$2:$R$1015,0) ->  | AY21: =MATCH(OFFSET($B$14,AY$2,0),METS!$R$2:$R$1015,0) ->  | AZ21: =MATCH(OFFSET($B$14,AZ$2,0),METS!$R$2:$R$1015,0) ->  | BA21: =MATCH(OFFSET($B$14,BA$2,0),METS!$R$2:$R$1015,0) ->  | BB21: =MATCH(OFFSET($B$14,BB$2,0),METS!$R$2:$R$1015,0) ->  | BC21: =MATCH(OFFSET($B$14,BC$2,0),METS!$R$2:$R$1015,0) ->  | BD21: =MATCH(OFFSET($B$14,BD$2,0),METS!$R$2:$R$1015,0) ->  | BE21: =MATCH(OFFSET($B$14,BE$2,0),METS!$R$2:$R$1015,0) ->  | BF21: =MATCH(OFFSET($B$14,BF$2,0),METS!$R$2:$R$1015,0) ->  | BG21: =MATCH(OFFSET($B$14,BG$2,0),METS!$R$2:$R$1015,0) ->  | BH21: =MATCH(OFFSET($B$14,BH$2,0),METS!$R$2:$R$1015,0) ->  | BI21: =MATCH(OFFSET($B$14,BI$2,0),METS!$R$2:$R$1015,0) ->  | BJ21: =MATCH(OFFSET($B$14,BJ$2,0),METS!$R$2:$R$1015,0) ->  | BK21: =MATCH(OFFSET($B$14,BK$2,0),METS!$R$2:$R$1015,0) ->  | BL21: =MATCH(OFFSET($B$14,BL$2,0),METS!$R$2:$R$1015,0) ->  | BM21: =MATCH(OFFSET($B$14,BM$2,0),METS!$R$2:$R$1015,0) ->  | BN21: =MATCH(OFFSET($B$14,BN$2,0),METS!$R$2:$R$1015,0) ->  | BO21: =MATCH(OFFSET($B$14,BO$2,0),METS!$R$2:$R$1015,0) ->  | BP21: =MATCH(OFFSET($B$14,BP$2,0),METS!$R$2:$R$1015,0) ->  | BQ21: =MATCH(OFFSET($B$14,BQ$2,0),METS!$R$2:$R$1015,0) ->  | BR21: =MATCH(OFFSET($B$14,BR$2,0),METS!$R$2:$R$1015,0) ->  | BS21: =MATCH(OFFSET($B$14,BS$2,0),METS!$R$2:$R$1015,0) ->  | BT21: =MATCH(OFFSET($B$14,BT$2,0),METS!$R$2:$R$1015,0) ->  | BU21: =MATCH(OFFSET($B$14,BU$2,0),METS!$R$2:$R$1015,0) ->  | BV21: =MATCH(OFFSET($B$14,BV$2,0),METS!$R$2:$R$1015,0) ->  | BW21: =MATCH(OFFSET($B$14,BW$2,0),METS!$R$2:$R$1015,0) ->  | BX21: =MATCH(OFFSET($B$14,BX$2,0),METS!$R$2:$R$1015,0) ->  | BY21: =MATCH(OFFSET($B$14,BY$2,0),METS!$R$2:$R$1015,0) ->  | BZ21: =MATCH(OFFSET($B$14,BZ$2,0),METS!$R$2:$R$1015,0) ->  | CA21: =MATCH(OFFSET($B$14,CA$2,0),METS!$R$2:$R$1015,0) ->  | CB21: =MATCH(OFFSET($B$14,CB$2,0),METS!$R$2:$R$1015,0) ->  | CC21: =MATCH(OFFSET($B$14,CC$2,0),METS!$R$2:$R$1015,0) ->  | CD21: =MATCH(OFFSET($B$14,CD$2,0),METS!$R$2:$R$1015,0) ->  | CE21: =MATCH(OFFSET($B$14,CE$2,0),METS!$R$2:$R$1015,0) ->  | CF21: =MATCH(OFFSET($B$14,CF$2,0),METS!$R$2:$R$1015,0) ->  | CG21: =MATCH(OFFSET($B$14,CG$2,0),METS!$R$2:$R$1015,0) ->  | CH21: =MATCH(OFFSET($B$14,CH$2,0),METS!$R$2:$R$1015,0) ->  | CI21: =MATCH(OFFSET($B$14,CI$2,0),METS!$R$2:$R$1015,0) ->  | CJ21: =MATCH(OFFSET($B$14,CJ$2,0),METS!$R$2:$R$1015,0) ->  | CK21: =MATCH(OFFSET($B$14,CK$2,0),METS!$R$2:$R$1015,0) ->  | CL21: =MATCH(OFFSET($B$14,CL$2,0),METS!$R$2:$R$1015,0) ->  | CM21: =MATCH(OFFSET($B$14,CM$2,0),METS!$R$2:$R$1015,0) ->  | CN21: =MATCH(OFFSET($B$14,CN$2,0),METS!$R$2:$R$1015,0) ->  | CO21: =MATCH(OFFSET($B$14,CO$2,0),METS!$R$2:$R$1015,0) ->  | CP21: =MATCH(OFFSET($B$14,CP$2,0),METS!$R$2:$R$1015,0) ->  | CQ21: =MATCH(OFFSET($B$14,CQ$2,0),METS!$R$2:$R$1015,0) ->  | CR21: =MATCH(OFFSET($B$14,CR$2,0),METS!$R$2:$R$1015,0) ->  | CS21: =MATCH(OFFSET($B$14,CS$2,0),METS!$R$2:$R$1015,0) ->  | CT21: =MATCH(OFFSET($B$14,CT$2,0),METS!$R$2:$R$1015,0) ->  | CU21: =MATCH(OFFSET($B$14,CU$2,0),METS!$R$2:$R$1015,0) ->  | CV21: =MATCH(OFFSET($B$14,CV$2,0),METS!$R$2:$R$1015,0) ->  | CW21: =MATCH(OFFSET($B$14,CW$2,0),METS!$R$2:$R$1015,0) ->  | CX21: =MATCH(OFFSET($B$14,CX$2,0),METS!$R$2:$R$1015,0) ->  | CY21: =MATCH(OFFSET($B$14,CY$2,0),METS!$R$2:$R$1015,0) ->  | CZ21: =MATCH(OFFSET($B$14,CZ$2,0),METS!$R$2:$R$1015,0) ->  | DA21: =MATCH(OFFSET($B$14,DA$2,0),METS!$R$2:$R$1015,0) ->  | DB21: =MATCH(OFFSET($B$14,DB$2,0),METS!$R$2:$R$1015,0) ->  | DC21: =MATCH(OFFSET($B$14,DC$2,0),METS!$R$2:$R$1015,0) ->  | DD21: =MATCH(OFFSET($B$14,DD$2,0),METS!$R$2:$R$1015,0) ->  | DE21: =MATCH(OFFSET($B$14,DE$2,0),METS!$R$2:$R$1015,0) ->  | DF21: =MATCH(OFFSET($B$14,DF$2,0),METS!$R$2:$R$1015,0) ->  | DG21: =MATCH(OFFSET($B$14,DG$2,0),METS!$R$2:$R$1015,0) ->  | DH21: =MATCH(OFFSET($B$14,DH$2,0),METS!$R$2:$R$1015,0) ->  | DI21: =MATCH(OFFSET($B$14,DI$2,0),METS!$R$2:$R$1015,0) ->  | DJ21: =MATCH(OFFSET($B$14,DJ$2,0),METS!$R$2:$R$1015,0) ->  | DK21: =MATCH(OFFSET($B$14,DK$2,0),METS!$R$2:$R$1015,0) ->  | DL21: =MATCH(OFFSET($B$14,DL$2,0),METS!$R$2:$R$1015,0) ->  | DM21: =MATCH(OFFSET($B$14,DM$2,0),METS!$R$2:$R$1015,0) ->  | DN21: =MATCH(OFFSET($B$14,DN$2,0),METS!$R$2:$R$1015,0) ->  | DO21: =MATCH(OFFSET($B$14,DO$2,0),METS!$R$2:$R$1015,0) ->  | DP21: =MATCH(OFFSET($B$14,DP$2,0),METS!$R$2:$R$1015,0) ->  | DQ21: =MATCH(OFFSET($B$14,DQ$2,0),METS!$R$2:$R$1015,0) ->  | DR21: =MATCH(OFFSET($B$14,DR$2,0),METS!$R$2:$R$1015,0) ->  | DS21: =MATCH(OFFSET($B$14,DS$2,0),METS!$R$2:$R$1015,0) -> 
A22: 8 | G22: =IF(F22<>"",VLOOKUP(F22,Inputs!$N$11:$P$14,3,TRUE),"") ->  | L22: 0 | M22: =IF($E22>0,VLOOKUP($I22,Inputs!$N$21:$O$24,2),0) -> 0 | N22: 0 | P22: 0 | V22: 1 | W22: FALSE | X22: Intensity row | Y22: =MATCH(OFFSET($C$14,Y$2,0),Y$5:Y$19,0) -> 1 | Z22: =MATCH(OFFSET($C$14,Z$2,0),Z$5:Z$19,0) -> 1 | AA22: =MATCH(OFFSET($C$14,AA$2,0),AA$5:AA$19,0) -> 1 | AB22: 1 | AC22: 1 | CM22: =MATCH(OFFSET($C$14,CM$2,0),CM$5:CM$19,0) -> 
A23: 9 | G23: =IF(F23<>"",VLOOKUP(F23,Inputs!$N$11:$P$14,3,TRUE),"") ->  | L23: 0 | M23: =IF($E23>0,VLOOKUP($I23,Inputs!$N$21:$O$24,2),0) -> 0 | N23: 0 | P23: 0 | V23: 1 | W23: FALSE | X23: METs | Y23: =OFFSET(METS!$T$1,Y21+Y22-1,0) -> 8 | Z23: =OFFSET(METS!$T$1,Z21+Z22-1,0) -> 12.8 | AA23: =OFFSET(METS!$T$1,AA21+AA22-1,0) -> 15.8 | AB23: =OFFSET(METS!$T$1,AB21+AB22-1,0) -> 2.5 | AC23: =OFFSET(METS!$T$1,AC21+AC22-1,0) -> 2.5 | AD23: =OFFSET(METS!$T$1,AD21+AD22-1,0) ->  | AE23: =OFFSET(METS!$T$1,AE21+AE22-1,0) ->  | AF23: =OFFSET(METS!$T$1,AF21+AF22-1,0) ->  | AG23: =OFFSET(METS!$T$1,AG21+AG22-1,0) ->  | AH23: =OFFSET(METS!$T$1,AH21+AH22-1,0) ->  | AI23: =OFFSET(METS!$T$1,AI21+AI22-1,0) ->  | AJ23: =OFFSET(METS!$T$1,AJ21+AJ22-1,0) ->  | AK23: =OFFSET(METS!$T$1,AK21+AK22-1,0) ->  | AL23: =OFFSET(METS!$T$1,AL21+AL22-1,0) ->  | AM23: =OFFSET(METS!$T$1,AM21+AM22-1,0) ->  | AN23: =OFFSET(METS!$T$1,AN21+AN22-1,0) ->  | AO23: =OFFSET(METS!$T$1,AO21+AO22-1,0) ->  | AP23: =OFFSET(METS!$T$1,AP21+AP22-1,0) ->  | AQ23: =OFFSET(METS!$T$1,AQ21+AQ22-1,0) ->  | AR23: =OFFSET(METS!$T$1,AR21+AR22-1,0) ->  | AS23: =OFFSET(METS!$T$1,AS21+AS22-1,0) ->  | AT23: =OFFSET(METS!$T$1,AT21+AT22-1,0) ->  | AU23: =OFFSET(METS!$T$1,AU21+AU22-1,0) ->  | AV23: =OFFSET(METS!$T$1,AV21+AV22-1,0) ->  | AW23: =OFFSET(METS!$T$1,AW21+AW22-1,0) ->  | AX23: =OFFSET(METS!$T$1,AX21+AX22-1,0) ->  | AY23: =OFFSET(METS!$T$1,AY21+AY22-1,0) ->  | AZ23: =OFFSET(METS!$T$1,AZ21+AZ22-1,0) ->  | BA23: =OFFSET(METS!$T$1,BA21+BA22-1,0) ->  | BB23: =OFFSET(METS!$T$1,BB21+BB22-1,0) ->  | BC23: =OFFSET(METS!$T$1,BC21+BC22-1,0) ->  | BD23: =OFFSET(METS!$T$1,BD21+BD22-1,0) ->  | BE23: =OFFSET(METS!$T$1,BE21+BE22-1,0) ->  | BF23: =OFFSET(METS!$T$1,BF21+BF22-1,0) ->  | BG23: =OFFSET(METS!$T$1,BG21+BG22-1,0) ->  | BH23: =OFFSET(METS!$T$1,BH21+BH22-1,0) ->  | BI23: =OFFSET(METS!$T$1,BI21+BI22-1,0) ->  | BJ23: =OFFSET(METS!$T$1,BJ21+BJ22-1,0) ->  | BK23: =OFFSET(METS!$T$1,BK21+BK22-1,0) ->  | BL23: =OFFSET(METS!$T$1,BL21+BL22-1,0) ->  | BM23: =OFFSET(METS!$T$1,BM21+BM22-1,0) ->  | BN23: =OFFSET(METS!$T$1,BN21+BN22-1,0) ->  | BO23: =OFFSET(METS!$T$1,BO21+BO22-1,0) ->  | BP23: =OFFSET(METS!$T$1,BP21+BP22-1,0) ->  | BQ23: =OFFSET(METS!$T$1,BQ21+BQ22-1,0) ->  | BR23: =OFFSET(METS!$T$1,BR21+BR22-1,0) ->  | BS23: =OFFSET(METS!$T$1,BS21+BS22-1,0) ->  | BT23: =OFFSET(METS!$T$1,BT21+BT22-1,0) ->  | BU23: =OFFSET(METS!$T$1,BU21+BU22-1,0) ->  | BV23: =OFFSET(METS!$T$1,BV21+BV22-1,0) ->  | BW23: =OFFSET(METS!$T$1,BW21+BW22-1,0) ->  | BX23: =OFFSET(METS!$T$1,BX21+BX22-1,0) ->  | BY23: =OFFSET(METS!$T$1,BY21+BY22-1,0) ->  | BZ23: =OFFSET(METS!$T$1,BZ21+BZ22-1,0) ->  | CA23: =OFFSET(METS!$T$1,CA21+CA22-1,0) ->  | CB23: =OFFSET(METS!$T$1,CB21+CB22-1,0) ->  | CC23: =OFFSET(METS!$T$1,CC21+CC22-1,0) ->  | CD23: =OFFSET(METS!$T$1,CD21+CD22-1,0) ->  | CE23: =OFFSET(METS!$T$1,CE21+CE22-1,0) ->  | CF23: =OFFSET(METS!$T$1,CF21+CF22-1,0) ->  | CG23: =OFFSET(METS!$T$1,CG21+CG22-1,0) ->  | CH23: =OFFSET(METS!$T$1,CH21+CH22-1,0) ->  | CI23: =OFFSET(METS!$T$1,CI21+CI22-1,0) ->  | CJ23: =OFFSET(METS!$T$1,CJ21+CJ22-1,0) ->  | CK23: =OFFSET(METS!$T$1,CK21+CK22-1,0) ->  | CL23: =OFFSET(METS!$T$1,CL21+CL22-1,0) ->  | CM23: =OFFSET(METS!$T$1,CM21+CM22-1,0) ->  | CN23: =OFFSET(METS!$T$1,CN21+CN22-1,0) ->  | CO23: =OFFSET(METS!$T$1,CO21+CO22-1,0) ->  | CP23: =OFFSET(METS!$T$1,CP21+CP22-1,0) ->  | CQ23: =OFFSET(METS!$T$1,CQ21+CQ22-1,0) ->  | CR23: =OFFSET(METS!$T$1,CR21+CR22-1,0) ->  | CS23: =OFFSET(METS!$T$1,CS21+CS22-1,0) ->  | CT23: =OFFSET(METS!$T$1,CT21+CT22-1,0) ->  | CU23: =OFFSET(METS!$T$1,CU21+CU22-1,0) ->  | CV23: =OFFSET(METS!$T$1,CV21+CV22-1,0) ->  | CW23: =OFFSET(METS!$T$1,CW21+CW22-1,0) ->  | CX23: =OFFSET(METS!$T$1,CX21+CX22-1,0) ->  | CY23: =OFFSET(METS!$T$1,CY21+CY22-1,0) ->  | CZ23: =OFFSET(METS!$T$1,CZ21+CZ22-1,0) ->  | DA23: =OFFSET(METS!$T$1,DA21+DA22-1,0) ->  | DB23: =OFFSET(METS!$T$1,DB21+DB22-1,0) ->  | DC23: =OFFSET(METS!$T$1,DC21+DC22-1,0) ->  | DD23: =OFFSET(METS!$T$1,DD21+DD22-1,0) ->  | DE23: =OFFSET(METS!$T$1,DE21+DE22-1,0) ->  | DF23: =OFFSET(METS!$T$1,DF21+DF22-1,0) ->  | DG23: =OFFSET(METS!$T$1,DG21+DG22-1,0) ->  | DH23: =OFFSET(METS!$T$1,DH21+DH22-1,0) ->  | DI23: =OFFSET(METS!$T$1,DI21+DI22-1,0) ->  | DJ23: =OFFSET(METS!$T$1,DJ21+DJ22-1,0) ->  | DK23: =OFFSET(METS!$T$1,DK21+DK22-1,0) ->  | DL23: =OFFSET(METS!$T$1,DL21+DL22-1,0) ->  | DM23: =OFFSET(METS!$T$1,DM21+DM22-1,0) ->  | DN23: =OFFSET(METS!$T$1,DN21+DN22-1,0) ->  | DO23: =OFFSET(METS!$T$1,DO21+DO22-1,0) ->  | DP23: =OFFSET(METS!$T$1,DP21+DP22-1,0) ->  | DQ23: =OFFSET(METS!$T$1,DQ21+DQ22-1,0) ->  | DR23: =OFFSET(METS!$T$1,DR21+DR22-1,0) ->  | DS23: =OFFSET(METS!$T$1,DS21+DS22-1,0) -> 
A24: 10 | G24: =IF(F24<>"",VLOOKUP(F24,Inputs!$N$11:$P$14,3,TRUE),"") ->  | L24: 0 | M24: =IF($E24>0,VLOOKUP($I24,Inputs!$N$21:$O$24,2),0) -> 0 | N24: 0 | P24: 0 | V24: 1 | W24: FALSE
A25: 11 | G25: =IF(F25<>"",VLOOKUP(F25,Inputs!$N$11:$P$14,3,TRUE),"") ->  | L25: 0 | M25: =IF($E25>0,VLOOKUP($I25,Inputs!$N$21:$O$24,2),0) -> 0 | N25: 0 | P25: 0 | V25: 1 | W25: FALSE
A26: 12 | G26: =IF(F26<>"",VLOOKUP(F26,Inputs!$N$11:$P$14,3,TRUE),"") ->  | L26: 0 | M26: =IF($E26>0,VLOOKUP($I26,Inputs!$N$21:$O$24,2),0) -> 0 | N26: 0 | P26: 0 | V26: 1 | W26: FALSE
A27: 13 | G27: =IF(F27<>"",VLOOKUP(F27,Inputs!$N$11:$P$14,3,TRUE),"") ->  | L27: 0 | M27: =IF($E27>0,VLOOKUP($I27,Inputs!$N$21:$O$24,2),0) -> 0 | N27: 0 | P27: 0 | V27: 1 | W27: FALSE
A28: 14 | G28: =IF(F28<>"",VLOOKUP(F28,Inputs!$N$11:$P$14,3,TRUE),"") ->  | L28: 0 | M28: =IF($E28>0,VLOOKUP($I28,Inputs!$N$21:$O$24,2),0) -> 0 | N28: 0 | P28: 0 | V28: 1 | W28: FALSE
A29: 15 | G29: =IF(F29<>"",VLOOKUP(F29,Inputs!$N$11:$P$14,3,TRUE),"") ->  | L29: 0 | M29: =IF($E29>0,VLOOKUP($I29,Inputs!$N$21:$O$24,2),0) -> 0 | N29: 0 | P29: 0 | V29: 1 | W29: FALSE
A30: 16 | G30: =IF(F30<>"",VLOOKUP(F30,Inputs!$N$11:$P$14,3,TRUE),"") ->  | L30: 0 | M30: =IF($E30>0,VLOOKUP($I30,Inputs!$N$21:$O$24,2),0) -> 0 | N30: 0 | P30: 0 | V30: 1 | W30: FALSE
A31: 17 | G31: =IF(F31<>"",VLOOKUP(F31,Inputs!$N$11:$P$14,3,TRUE),"") ->  | L31: 0 | M31: =IF($E31>0,VLOOKUP($I31,Inputs!$N$21:$O$24,2),0) -> 0 | N31: 0 | P31: 0 | V31: 1 | W31: FALSE
A32: 18 | G32: =IF(F32<>"",VLOOKUP(F32,Inputs!$N$11:$P$14,3,TRUE),"") ->  | L32: 0 | M32: =IF($E32>0,VLOOKUP($I32,Inputs!$N$21:$O$24,2),0) -> 0 | N32: 0 | P32: 0 | V32: 1 | W32: FALSE
A33: 19 | G33: =IF(F33<>"",VLOOKUP(F33,Inputs!$N$11:$P$14,3,TRUE),"") ->  | L33: 0 | M33: =IF($E33>0,VLOOKUP($I33,Inputs!$N$21:$O$24,2),0) -> 0 | N33: 0 | P33: 0 | V33: 1 | W33: FALSE
A34: 20 | G34: =IF(F34<>"",VLOOKUP(F34,Inputs!$N$11:$P$14,3,TRUE),"") ->  | L34: 0 | M34: =IF($E34>0,VLOOKUP($I34,Inputs!$N$21:$O$24,2),0) -> 0 | N34: 0 | P34: 0 | V34: 1 | W34: FALSE
A35: 21 | G35: =IF(F35<>"",VLOOKUP(F35,Inputs!$N$11:$P$14,3,TRUE),"") ->  | L35: 0 | M35: =IF($E35>0,VLOOKUP($I35,Inputs!$N$21:$O$24,2),0) -> 0 | N35: 0 | P35: 0 | V35: 1 | W35: FALSE
A36: 22 | G36: =IF(F36<>"",VLOOKUP(F36,Inputs!$N$11:$P$14,3,TRUE),"") ->  | L36: 0 | M36: =IF($E36>0,VLOOKUP($I36,Inputs!$N$21:$O$24,2),0) -> 0 | N36: 0 | P36: 0 | V36: 1 | W36: FALSE
A37: 23 | G37: =IF(F37<>"",VLOOKUP(F37,Inputs!$N$11:$P$14,3,TRUE),"") ->  | L37: 0 | M37: =IF($E37>0,VLOOKUP($I37,Inputs!$N$21:$O$24,2),0) -> 0 | N37: 0 | P37: 0 | V37: 1 | W37: FALSE
A38: 24 | G38: =IF(F38<>"",VLOOKUP(F38,Inputs!$N$11:$P$14,3,TRUE),"") ->  | L38: 0 | M38: =IF($E38>0,VLOOKUP($I38,Inputs!$N$21:$O$24,2),0) -> 0 | N38: 0 | P38: 0 | V38: 1 | W38: FALSE
A39: 25 | G39: =IF(F39<>"",VLOOKUP(F39,Inputs!$N$11:$P$14,3,TRUE),"") ->  | L39: 0 | M39: =IF($E39>0,VLOOKUP($I39,Inputs!$N$21:$O$24,2),0) -> 0 | N39: 0 | P39: 0 | V39: 1 | W39: FALSE
A40: 26 | G40: =IF(F40<>"",VLOOKUP(F40,Inputs!$N$11:$P$14,3,TRUE),"") ->  | L40: 0 | M40: =IF($E40>0,VLOOKUP($I40,Inputs!$N$21:$O$24,2),0) -> 0 | N40: 0 | P40: 0 | V40: 1 | W40: FALSE
A41: 27 | G41: =IF(F41<>"",VLOOKUP(F41,Inputs!$N$11:$P$14,3,TRUE),"") ->  | L41: 0 | M41: =IF($E41>0,VLOOKUP($I41,Inputs!$N$21:$O$24,2),0) -> 0 | N41: 0 | P41: 0 | V41: 1 | W41: FALSE
A42: 28 | G42: =IF(F42<>"",VLOOKUP(F42,Inputs!$N$11:$P$14,3,TRUE),"") ->  | L42: 0 | M42: =IF($E42>0,VLOOKUP($I42,Inputs!$N$21:$O$24,2),0) -> 0 | N42: 0 | P42: 0 | V42: 1 | W42: FALSE
A43: 29 | G43: =IF(F43<>"",VLOOKUP(F43,Inputs!$N$11:$P$14,3,TRUE),"") ->  | L43: 0 | M43: =IF($E43>0,VLOOKUP($I43,Inputs!$N$21:$O$24,2),0) -> 0 | N43: 0 | P43: 0 | V43: 1 | W43: FALSE
A44: 30 | G44: =IF(F44<>"",VLOOKUP(F44,Inputs!$N$11:$P$14,3,TRUE),"") ->  | L44: 0 | M44: =IF($E44>0,VLOOKUP($I44,Inputs!$N$21:$O$24,2),0) -> 0 | N44: 0 | P44: 0 | V44: 1 | W44: FALSE
A45: 31 | G45: =IF(F45<>"",VLOOKUP(F45,Inputs!$N$11:$P$14,3,TRUE),"") ->  | L45: 0 | M45: =IF($E45>0,VLOOKUP($I45,Inputs!$N$21:$O$24,2),0) -> 0 | N45: 0 | P45: 0 | V45: 1 | W45: FALSE
A46: 32 | G46: =IF(F46<>"",VLOOKUP(F46,Inputs!$N$11:$P$14,3,TRUE),"") ->  | L46: 0 | M46: =IF($E46>0,VLOOKUP($I46,Inputs!$N$21:$O$24,2),0) -> 0 | N46: 0 | P46: 0 | V46: 1 | W46: FALSE
A47: 33 | G47: =IF(F47<>"",VLOOKUP(F47,Inputs!$N$11:$P$14,3,TRUE),"") ->  | L47: =IF($E$114>0,E47/$E$114,0) -> 0 | M47: =IF($E47>0,VLOOKUP($I47,Inputs!$N$21:$O$24,2),0) -> 0 | N47: 0 | O47: =IF($N47>0,$M47&" -> "&$N47,"") ->  | P47: 0 | Q47: =IF(AND($E47>0,$V47>1,$V47<7)," <- Specify duration and frequency",IF(AND($E47=0,$V47>1,$V47<7)," <- Specify participants","")) ->  | V47: =COUNTA(E47:K47) -> 1 | W47: FALSE
A48: 34 | G48: =IF(F48<>"",VLOOKUP(F48,Inputs!$N$11:$P$14,3,TRUE),"") ->  | L48: 0 | M48: =IF($E48>0,VLOOKUP($I48,Inputs!$N$21:$O$24,2),0) -> 0 | N48: 0 | P48: 0 | V48: 1 | W48: FALSE
A49: 35 | G49: =IF(F49<>"",VLOOKUP(F49,Inputs!$N$11:$P$14,3,TRUE),"") ->  | L49: 0 | M49: =IF($E49>0,VLOOKUP($I49,Inputs!$N$21:$O$24,2),0) -> 0 | N49: 0 | P49: 0 | V49: 1 | W49: FALSE
A50: 36 | G50: =IF(F50<>"",VLOOKUP(F50,Inputs!$N$11:$P$14,3,TRUE),"") ->  | L50: 0 | M50: =IF($E50>0,VLOOKUP($I50,Inputs!$N$21:$O$24,2),0) -> 0 | N50: 0 | P50: 0 | V50: 1 | W50: FALSE
A51: 37 | G51: =IF(F51<>"",VLOOKUP(F51,Inputs!$N$11:$P$14,3,TRUE),"") ->  | L51: 0 | M51: =IF($E51>0,VLOOKUP($I51,Inputs!$N$21:$O$24,2),0) -> 0 | N51: 0 | P51: 0 | V51: 1 | W51: FALSE
A52: 38 | G52: =IF(F52<>"",VLOOKUP(F52,Inputs!$N$11:$P$14,3,TRUE),"") ->  | L52: 0 | M52: =IF($E52>0,VLOOKUP($I52,Inputs!$N$21:$O$24,2),0) -> 0 | N52: 0 | P52: 0 | V52: 1 | W52: FALSE
A53: 39 | G53: =IF(F53<>"",VLOOKUP(F53,Inputs!$N$11:$P$14,3,TRUE),"") ->  | L53: 0 | M53: =IF($E53>0,VLOOKUP($I53,Inputs!$N$21:$O$24,2),0) -> 0 | N53: 0 | P53: 0 | V53: 1 | W53: FALSE
A54: 40 | G54: =IF(F54<>"",VLOOKUP(F54,Inputs!$N$11:$P$14,3,TRUE),"") ->  | L54: 0 | M54: =IF($E54>0,VLOOKUP($I54,Inputs!$N$21:$O$24,2),0) -> 0 | N54: 0 | P54: 0 | V54: 1 | W54: FALSE
A55: 41 | G55: =IF(F55<>"",VLOOKUP(F55,Inputs!$N$11:$P$14,3,TRUE),"") ->  | L55: 0 | M55: =IF($E55>0,VLOOKUP($I55,Inputs!$N$21:$O$24,2),0) -> 0 | N55: 0 | P55: 0 | V55: 1 | W55: FALSE
A56: 42 | G56: =IF(F56<>"",VLOOKUP(F56,Inputs!$N$11:$P$14,3,TRUE),"") ->  | L56: 0 | M56: =IF($E56>0,VLOOKUP($I56,Inputs!$N$21:$O$24,2),0) -> 0 | N56: 0 | P56: 0 | V56: 1 | W56: FALSE
A57: 43 | G57: =IF(F57<>"",VLOOKUP(F57,Inputs!$N$11:$P$14,3,TRUE),"") ->  | L57: 0 | M57: =IF($E57>0,VLOOKUP($I57,Inputs!$N$21:$O$24,2),0) -> 0 | N57: 0 | P57: 0 | V57: 1 | W57: FALSE
A58: 44 | G58: =IF(F58<>"",VLOOKUP(F58,Inputs!$N$11:$P$14,3,TRUE),"") ->  | L58: 0 | M58: =IF($E58>0,VLOOKUP($I58,Inputs!$N$21:$O$24,2),0) -> 0 | N58: 0 | P58: 0 | V58: 1 | W58: FALSE
A59: 45 | G59: =IF(F59<>"",VLOOKUP(F59,Inputs!$N$11:$P$14,3,TRUE),"") ->  | L59: 0 | M59: =IF($E59>0,VLOOKUP($I59,Inputs!$N$21:$O$24,2),0) -> 0 | N59: 0 | P59: 0 | V59: 1 | W59: FALSE
A60: 46 | G60: =IF(F60<>"",VLOOKUP(F60,Inputs!$N$11:$P$14,3,TRUE),"") ->  | L60: 0 | M60: =IF($E60>0,VLOOKUP($I60,Inputs!$N$21:$O$24,2),0) -> 0 | N60: 0 | P60: 0 | V60: 1 | W60: FALSE
A61: 47 | G61: =IF(F61<>"",VLOOKUP(F61,Inputs!$N$11:$P$14,3,TRUE),"") ->  | L61: 0 | M61: =IF($E61>0,VLOOKUP($I61,Inputs!$N$21:$O$24,2),0) -> 0 | N61: 0 | P61: 0 | V61: 1 | W61: FALSE
A62: 48 | G62: =IF(F62<>"",VLOOKUP(F62,Inputs!$N$11:$P$14,3,TRUE),"") ->  | L62: 0 | M62: =IF($E62>0,VLOOKUP($I62,Inputs!$N$21:$O$24,2),0) -> 0 | N62: 0 | P62: 0 | V62: 1 | W62: FALSE
A63: 49 | G63: =IF(F63<>"",VLOOKUP(F63,Inputs!$N$11:$P$14,3,TRUE),"") ->  | L63: 0 | M63: =IF($E63>0,VLOOKUP($I63,Inputs!$N$21:$O$24,2),0) -> 0 | N63: 0 | P63: 0 | V63: 1 | W63: FALSE
A64: 50 | G64: =IF(F64<>"",VLOOKUP(F64,Inputs!$N$11:$P$14,3,TRUE),"") ->  | L64: 0 | M64: =IF($E64>0,VLOOKUP($I64,Inputs!$N$21:$O$24,2),0) -> 0 | N64: 0 | P64: 0 | V64: 1 | W64: FALSE
A65: 51 | G65: =IF(F65<>"",VLOOKUP(F65,Inputs!$N$11:$P$14,3,TRUE),"") ->  | L65: 0 | M65: =IF($E65>0,VLOOKUP($I65,Inputs!$N$21:$O$24,2),0) -> 0 | N65: 0 | P65: 0 | V65: 1 | W65: FALSE
A66: 52 | G66: =IF(F66<>"",VLOOKUP(F66,Inputs!$N$11:$P$14,3,TRUE),"") ->  | L66: 0 | M66: =IF($E66>0,VLOOKUP($I66,Inputs!$N$21:$O$24,2),0) -> 0 | N66: 0 | P66: 0 | V66: 1 | W66: FALSE
A67: 53 | G67: =IF(F67<>"",VLOOKUP(F67,Inputs!$N$11:$P$14,3,TRUE),"") ->  | L67: 0 | M67: =IF($E67>0,VLOOKUP($I67,Inputs!$N$21:$O$24,2),0) -> 0 | N67: 0 | P67: 0 | V67: 1 | W67: FALSE
A68: 54 | G68: =IF(F68<>"",VLOOKUP(F68,Inputs!$N$11:$P$14,3,TRUE),"") ->  | L68: 0 | M68: =IF($E68>0,VLOOKUP($I68,Inputs!$N$21:$O$24,2),0) -> 0 | N68: 0 | P68: 0 | V68: 1 | W68: FALSE
A69: 55 | G69: =IF(F69<>"",VLOOKUP(F69,Inputs!$N$11:$P$14,3,TRUE),"") ->  | L69: 0 | M69: =IF($E69>0,VLOOKUP($I69,Inputs!$N$21:$O$24,2),0) -> 0 | N69: 0 | P69: 0 | V69: 1 | W69: FALSE
A70: 56 | G70: =IF(F70<>"",VLOOKUP(F70,Inputs!$N$11:$P$14,3,TRUE),"") ->  | L70: 0 | M70: =IF($E70>0,VLOOKUP($I70,Inputs!$N$21:$O$24,2),0) -> 0 | N70: 0 | P70: 0 | V70: 1 | W70: FALSE
A71: 57 | G71: =IF(F71<>"",VLOOKUP(F71,Inputs!$N$11:$P$14,3,TRUE),"") ->  | L71: 0 | M71: =IF($E71>0,VLOOKUP($I71,Inputs!$N$21:$O$24,2),0) -> 0 | N71: 0 | P71: 0 | V71: 1 | W71: FALSE
A72: 58 | G72: =IF(F72<>"",VLOOKUP(F72,Inputs!$N$11:$P$14,3,TRUE),"") ->  | L72: 0 | M72: =IF($E72>0,VLOOKUP($I72,Inputs!$N$21:$O$24,2),0) -> 0 | N72: 0 | P72: 0 | V72: 1 | W72: FALSE
A73: 59 | G73: =IF(F73<>"",VLOOKUP(F73,Inputs!$N$11:$P$14,3,TRUE),"") ->  | L73: 0 | M73: =IF($E73>0,VLOOKUP($I73,Inputs!$N$21:$O$24,2),0) -> 0 | N73: 0 | P73: 0 | V73: 1 | W73: FALSE
A74: 60 | G74: =IF(F74<>"",VLOOKUP(F74,Inputs!$N$11:$P$14,3,TRUE),"") ->  | L74: 0 | M74: =IF($E74>0,VLOOKUP($I74,Inputs!$N$21:$O$24,2),0) -> 0 | N74: 0 | P74: 0 | V74: 1 | W74: FALSE
A75: 61 | G75: =IF(F75<>"",VLOOKUP(F75,Inputs!$N$11:$P$14,3,TRUE),"") ->  | L75: 0 | M75: =IF($E75>0,VLOOKUP($I75,Inputs!$N$21:$O$24,2),0) -> 0 | N75: 0 | P75: 0 | V75: 1 | W75: FALSE
A76: 62 | G76: =IF(F76<>"",VLOOKUP(F76,Inputs!$N$11:$P$14,3,TRUE),"") ->  | L76: 0 | M76: =IF($E76>0,VLOOKUP($I76,Inputs!$N$21:$O$24,2),0) -> 0 | N76: 0 | P76: 0 | V76: 1 | W76: FALSE
A77: 63 | G77: =IF(F77<>"",VLOOKUP(F77,Inputs!$N$11:$P$14,3,TRUE),"") ->  | L77: 0 | M77: =IF($E77>0,VLOOKUP($I77,Inputs!$N$21:$O$24,2),0) -> 0 | N77: 0 | P77: 0 | V77: 1 | W77: FALSE
A78: 64 | G78: =IF(F78<>"",VLOOKUP(F78,Inputs!$N$11:$P$14,3,TRUE),"") ->  | L78: 0 | M78: =IF($E78>0,VLOOKUP($I78,Inputs!$N$21:$O$24,2),0) -> 0 | N78: 0 | P78: 0 | V78: 1 | W78: FALSE
A79: 65 | G79: =IF(F79<>"",VLOOKUP(F79,Inputs!$N$11:$P$14,3,TRUE),"") ->  | L79: =IF($E$114>0,E79/$E$114,0) -> 0 | M79: =IF($E79>0,VLOOKUP($I79,Inputs!$N$21:$O$24,2),0) -> 0 | N79: 0 | O79: =IF($N79>0,$M79&" -> "&$N79,"") ->  | P79: 0 | Q79: =IF(AND($E79>0,$V79>1,$V79<7)," <- Specify duration and frequency",IF(AND($E79=0,$V79>1,$V79<7)," <- Specify participants","")) ->  | V79: =COUNTA(E79:K79) -> 1 | W79: FALSE
A80: 66 | D80: =OFFSET($X$23,0,$A80) ->  | G80: =IF(F80<>"",VLOOKUP(F80,Inputs!$N$11:$P$14,3,TRUE),"") ->  | L80: 0 | M80: =IF($E80>0,VLOOKUP($I80,Inputs!$N$21:$O$24,2),0) -> 0 | N80: 0 | P80: =IF(N80>0,N80-M80,0) -> 0 | V80: 1 | W80: =AND($B80<>"",ISERROR(OFFSET($X$22,0,$A80)),$E80>0) -> FALSE
A81: 67 | G81: =IF(F81<>"",VLOOKUP(F81,Inputs!$N$11:$P$14,3,TRUE),"") ->  | L81: 0 | M81: =IF($E81>0,VLOOKUP($I81,Inputs!$N$21:$O$24,2),0) -> 0 | N81: 0 | P81: 0 | V81: 1 | W81: FALSE
A82: 68 | G82: =IF(F82<>"",VLOOKUP(F82,Inputs!$N$11:$P$14,3,TRUE),"") ->  | L82: 0 | M82: =IF($E82>0,VLOOKUP($I82,Inputs!$N$21:$O$24,2),0) -> 0 | N82: 0 | P82: 0 | V82: 1 | W82: FALSE
A83: 69 | G83: =IF(F83<>"",VLOOKUP(F83,Inputs!$N$11:$P$14,3,TRUE),"") ->  | L83: 0 | M83: =IF($E83>0,VLOOKUP($I83,Inputs!$N$21:$O$24,2),0) -> 0 | N83: =IF(E83>0,$D83*$J83*$K83,0) -> 0 | P83: 0 | V83: 1 | W83: FALSE
A84: 70 | G84: =IF(F84<>"",VLOOKUP(F84,Inputs!$N$11:$P$14,3,TRUE),"") ->  | L84: 0 | M84: =IF($E84>0,VLOOKUP($I84,Inputs!$N$21:$O$24,2),0) -> 0 | N84: 0 | P84: 0 | V84: 1 | W84: FALSE
A85: 71 | G85: =IF(F85<>"",VLOOKUP(F85,Inputs!$N$11:$P$14,3,TRUE),"") ->  | L85: 0 | M85: =IF($E85>0,VLOOKUP($I85,Inputs!$N$21:$O$24,2),0) -> 0 | N85: 0 | P85: 0 | V85: 1 | W85: FALSE
A86: 72 | G86: =IF(F86<>"",VLOOKUP(F86,Inputs!$N$11:$P$14,3,TRUE),"") ->  | L86: 0 | M86: =IF($E86>0,VLOOKUP($I86,Inputs!$N$21:$O$24,2),0) -> 0 | N86: 0 | P86: 0 | V86: 1 | W86: FALSE
A87: 73 | G87: =IF(F87<>"",VLOOKUP(F87,Inputs!$N$11:$P$14,3,TRUE),"") ->  | L87: 0 | M87: =IF($E87>0,VLOOKUP($I87,Inputs!$N$21:$O$24,2),0) -> 0 | N87: 0 | P87: 0 | V87: 1 | W87: FALSE
A88: 74 | G88: =IF(F88<>"",VLOOKUP(F88,Inputs!$N$11:$P$14,3,TRUE),"") ->  | L88: 0 | M88: =IF($E88>0,VLOOKUP($I88,Inputs!$N$21:$O$24,2),0) -> 0 | N88: 0 | P88: 0 | V88: 1 | W88: FALSE
A89: 75 | G89: =IF(F89<>"",VLOOKUP(F89,Inputs!$N$11:$P$14,3,TRUE),"") ->  | L89: 0 | M89: =IF($E89>0,VLOOKUP($I89,Inputs!$N$21:$O$24,2),0) -> 0 | N89: 0 | P89: 0 | V89: 1 | W89: FALSE
A90: 76 | G90: =IF(F90<>"",VLOOKUP(F90,Inputs!$N$11:$P$14,3,TRUE),"") ->  | L90: 0 | M90: =IF($E90>0,VLOOKUP($I90,Inputs!$N$21:$O$24,2),0) -> 0 | N90: 0 | P90: 0 | V90: 1 | W90: FALSE
A91: 77 | G91: =IF(F91<>"",VLOOKUP(F91,Inputs!$N$11:$P$14,3,TRUE),"") ->  | L91: 0 | M91: =IF($E91>0,VLOOKUP($I91,Inputs!$N$21:$O$24,2),0) -> 0 | N91: 0 | P91: 0 | V91: 1 | W91: FALSE
A92: 78 | G92: =IF(F92<>"",VLOOKUP(F92,Inputs!$N$11:$P$14,3,TRUE),"") ->  | L92: 0 | M92: =IF($E92>0,VLOOKUP($I92,Inputs!$N$21:$O$24,2),0) -> 0 | N92: 0 | P92: 0 | V92: 1 | W92: FALSE
A93: 79 | G93: =IF(F93<>"",VLOOKUP(F93,Inputs!$N$11:$P$14,3,TRUE),"") ->  | L93: 0 | M93: =IF($E93>0,VLOOKUP($I93,Inputs!$N$21:$O$24,2),0) -> 0 | N93: 0 | P93: 0 | V93: 1 | W93: FALSE
A94: 80 | G94: =IF(F94<>"",VLOOKUP(F94,Inputs!$N$11:$P$14,3,TRUE),"") ->  | L94: 0 | M94: =IF($E94>0,VLOOKUP($I94,Inputs!$N$21:$O$24,2),0) -> 0 | N94: 0 | P94: 0 | V94: 1 | W94: FALSE
A95: 81 | G95: =IF(F95<>"",VLOOKUP(F95,Inputs!$N$11:$P$14,3,TRUE),"") ->  | L95: 0 | M95: =IF($E95>0,VLOOKUP($I95,Inputs!$N$21:$O$24,2),0) -> 0 | N95: 0 | P95: 0 | V95: 1 | W95: FALSE
A96: 82 | G96: =IF(F96<>"",VLOOKUP(F96,Inputs!$N$11:$P$14,3,TRUE),"") ->  | L96: 0 | M96: =IF($E96>0,VLOOKUP($I96,Inputs!$N$21:$O$24,2),0) -> 0 | N96: 0 | P96: 0 | V96: 1 | W96: FALSE
A97: 83 | G97: =IF(F97<>"",VLOOKUP(F97,Inputs!$N$11:$P$14,3,TRUE),"") ->  | L97: 0 | M97: =IF($E97>0,VLOOKUP($I97,Inputs!$N$21:$O$24,2),0) -> 0 | N97: 0 | P97: 0 | V97: 1 | W97: FALSE
A98: 84 | G98: =IF(F98<>"",VLOOKUP(F98,Inputs!$N$11:$P$14,3,TRUE),"") ->  | L98: 0 | M98: =IF($E98>0,VLOOKUP($I98,Inputs!$N$21:$O$24,2),0) -> 0 | N98: 0 | P98: 0 | V98: 1 | W98: FALSE
A99: 85 | G99: =IF(F99<>"",VLOOKUP(F99,Inputs!$N$11:$P$14,3,TRUE),"") ->  | L99: 0 | M99: =IF($E99>0,VLOOKUP($I99,Inputs!$N$21:$O$24,2),0) -> 0 | N99: 0 | P99: 0 | V99: 1 | W99: FALSE
A100: 86 | G100: =IF(F100<>"",VLOOKUP(F100,Inputs!$N$11:$P$14,3,TRUE),"") ->  | L100: 0 | M100: =IF($E100>0,VLOOKUP($I100,Inputs!$N$21:$O$24,2),0) -> 0 | N100: 0 | P100: 0 | V100: 1 | W100: FALSE
A101: 87 | G101: =IF(F101<>"",VLOOKUP(F101,Inputs!$N$11:$P$14,3,TRUE),"") ->  | L101: 0 | M101: =IF($E101>0,VLOOKUP($I101,Inputs!$N$21:$O$24,2),0) -> 0 | N101: 0 | P101: 0 | V101: 1 | W101: FALSE
A102: 88 | G102: =IF(F102<>"",VLOOKUP(F102,Inputs!$N$11:$P$14,3,TRUE),"") ->  | L102: 0 | M102: =IF($E102>0,VLOOKUP($I102,Inputs!$N$21:$O$24,2),0) -> 0 | N102: 0 | P102: 0 | V102: 1 | W102: FALSE
A103: 89 | G103: =IF(F103<>"",VLOOKUP(F103,Inputs!$N$11:$P$14,3,TRUE),"") ->  | L103: 0 | M103: =IF($E103>0,VLOOKUP($I103,Inputs!$N$21:$O$24,2),0) -> 0 | N103: 0 | P103: 0 | V103: 1 | W103: FALSE
A104: 90 | G104: =IF(F104<>"",VLOOKUP(F104,Inputs!$N$11:$P$14,3,TRUE),"") ->  | L104: 0 | M104: =IF($E104>0,VLOOKUP($I104,Inputs!$N$21:$O$24,2),0) -> 0 | N104: 0 | P104: 0 | V104: 1 | W104: FALSE
A105: 91 | G105: =IF(F105<>"",VLOOKUP(F105,Inputs!$N$11:$P$14,3,TRUE),"") ->  | L105: 0 | M105: =IF($E105>0,VLOOKUP($I105,Inputs!$N$21:$O$24,2),0) -> 0 | N105: 0 | P105: 0 | V105: 1 | W105: FALSE
A106: 92 | G106: =IF(F106<>"",VLOOKUP(F106,Inputs!$N$11:$P$14,3,TRUE),"") ->  | L106: 0 | M106: =IF($E106>0,VLOOKUP($I106,Inputs!$N$21:$O$24,2),0) -> 0 | N106: 0 | P106: 0 | V106: 1 | W106: FALSE
A107: 93 | G107: =IF(F107<>"",VLOOKUP(F107,Inputs!$N$11:$P$14,3,TRUE),"") ->  | L107: 0 | M107: =IF($E107>0,VLOOKUP($I107,Inputs!$N$21:$O$24,2),0) -> 0 | N107: 0 | P107: 0 | V107: 1 | W107: FALSE
A108: 94 | G108: =IF(F108<>"",VLOOKUP(F108,Inputs!$N$11:$P$14,3,TRUE),"") ->  | L108: 0 | M108: =IF($E108>0,VLOOKUP($I108,Inputs!$N$21:$O$24,2),0) -> 0 | N108: 0 | P108: 0 | V108: 1 | W108: FALSE
A109: 95 | G109: =IF(F109<>"",VLOOKUP(F109,Inputs!$N$11:$P$14,3,TRUE),"") ->  | L109: 0 | M109: =IF($E109>0,VLOOKUP($I109,Inputs!$N$21:$O$24,2),0) -> 0 | N109: 0 | P109: 0 | V109: 1 | W109: FALSE
A110: 96 | G110: =IF(F110<>"",VLOOKUP(F110,Inputs!$N$11:$P$14,3,TRUE),"") ->  | L110: 0 | M110: =IF($E110>0,VLOOKUP($I110,Inputs!$N$21:$O$24,2),0) -> 0 | N110: 0 | P110: 0 | V110: 1 | W110: FALSE
A111: 97 | G111: =IF(F111<>"",VLOOKUP(F111,Inputs!$N$11:$P$14,3,TRUE),"") ->  | L111: 0 | M111: =IF($E111>0,VLOOKUP($I111,Inputs!$N$21:$O$24,2),0) -> 0 | N111: 0 | O111: =IF($N111>0,$M111&" -> "&$N111,"") ->  | P111: 0 | Q111: =IF(AND($E111>0,$V111>1,$V111<7)," <- Specify duration and frequency",IF(AND($E111=0,$V111>1,$V111<7)," <- Specify participants","")) ->  | V111: =COUNTA(E111:K111) -> 1 | W111: FALSE
A112: 98 | G112: =IF(F112<>"",VLOOKUP(F112,Inputs!$N$11:$P$14,3,TRUE),"") ->  | L112: 0 | M112: =IF($E112>0,VLOOKUP($I112,Inputs!$N$21:$O$24,2),0) -> 0 | N112: 0 | P112: 0 | V112: 1 | W112: FALSE
A113: 99 | G113: =IF(F113<>"",VLOOKUP(F113,Inputs!$N$11:$P$14,3,TRUE),"") ->  | L113: 0 | M113: =IF($E113>0,VLOOKUP($I113,Inputs!$N$21:$O$24,2),0) -> 0 | N113: 0 | P113: 0 | V113: 1 | W113: FALSE
B114: FACILITY | E114: =SUM(E15:E113) -> 840 | F114: =G114 -> 44.60714286 | G114: =IF(COUNT(G15:G113)>0,SUMPRODUCT($L$15:$L$113,G15:G113),0) -> 44.60714286 | H114: =IF(COUNT(H15:H113)>0,SUMPRODUCT($L$15:$L$113,H15:H113),0) -> 0.4556547619 | I114: =ROUND(M114,1)&" METs per week" -> 4.5 METs per week | J114: =IF(COUNT(J15:J113)>1,ROUND(SUMPRODUCT($L$15:$L$113,J15:J113),2),0)&" hours" -> 1.19 hours | K114: =IF(COUNT(K15:K113)>1,ROUND(SUMPRODUCT($L$15:$L$113,K15:K113),2),0)&" sessions" -> 2.44 sessions | L114: =SUM(L15:L113) -> 1 | M114: =SUMPRODUCT($L$15:$L$113,M15:M113) -> 4.517857143 | N114: =SUMPRODUCT($L$15:$L$113,N15:N113) -> 24.40892857 | O114: =IF($N114>0,ROUND($M114,1)&" -> "&ROUND($N114,1),"") -> 4.5 -> 24.4 | P114: =IF($E$114>0,SUMPRODUCT($L$15:$L$113,P15:P113),0) -> 19.89107143 | V114: =COUNTA(Q15:Q113)-COUNTBLANK(Q15:Q113) -> 0
E115: =CHOOSE($W$4,E114,E11) -> 840

Sheet Facility outcomes (hidden)
A1: Outcomes | DO1: 100000
P3: Cost saving? | Q3: QALYs>0?
K4: Scenario run: | L4: ='Facility PSA simulations'!BV31 -> 2016-10-17T19:15:04 | P4: 0 | Q4: 0
C5: Health Outcomes | P5: 0 | Q5: 1
D6: Disease | E6: Cases | G6: Cases | I6: Cases | K6: Consequences | P6: 1 | Q6: 0
E7: without facility | F7: - | G7: with facility | H7: = | I7: avoided | K7: NHS Treatment Costs | L7: QALYs Gained | M7: DALYs Avoided | P7: 1 | Q7: 1
D9: Type 2 Diabetes | E9: =TRANSPOSE('Facility PSA simulations'!L4:S4) -> 24.04344079 | G9: =TRANSPOSE('Facility PSA simulations'!W4:AD4) -> 23.75846123 | I9: =E9-G9 -> 0.2849795629 | K9: =TRANSPOSE('Facility PSA simulations'!$AH$4:$AO$4) -> -1522.517213 | L9: =TRANSPOSE('Facility PSA simulations'!$AP$4:$AW$4) -> 1.554649255 | M9: =TRANSPOSE('Facility PSA simulations'!$AX$4:$BE$4) -> -0.8701945264
D10: Coronary Heart Disease | E10: 16.99797729 | G10: 16.84403388 | I10: =E10-G10 -> 0.1539434091 | K10: -1740.585837 | L10: 1.175872607 | M10: -1.066872332
D11: Cerebrovascular disease (Stroke) | E11: 5.94704192 | G11: 5.874395863 | I11: 0.07264605679 | K11: -1899.666095 | L11: 0.352301968 | M11: -0.3369507495
D12: Breast Cancer | E12: 11.62585137 | G12: 11.57329446 | I12: 0.05255690191 | K12: -5212.882527 | L12: 0.207775416 | M12: -0.1422725961
D13: Colorectal Cancer | E13: 2.803095099 | G13: 2.786720655 | I13: 0.01637444434 | K13: -914.9913487 | L13: 0.1165317999 | M13: -0.125401937
D14: Dementia | E14: 34.32035103 | G14: 34.25731401 | I14: 0.06303702012 | K14: -1988.250353 | L14: 0.4576723991 | M14: -0.5280479574
D15: Depression | E15: 180.3194341 | G15: 172.1490519 | I15: 8.170382217 | K15: -115386.6649 | L15: 67.28281131 | M15: -80.56855212
D16: Hip fracture | E16: 12.5295218 | G16: 12.32631913 | I16: =E16-G16 -> 0.2032026668 | K16: -1647.8285 | L16: 0.4936891189 | M16: -0.6557025038
D18: Total | E18: =SUM(E9:E15) -> 276.0571916 | G18: =SUM(G9:G15) -> 267.243272 | I18: =SUM(I9:I15) -> 8.813919612 | K18: =SUM(K9:K17) -> -130313.3868 | L18: =SUM(L9:L16) -> 71.64130387 | M18: =SUM(M9:M16) -> -84.29399472
I19: =diseasesaverted2/E18 -> 0.03192787538 | K19: =K18/'Facility PSA simulations'!$T$4 -> -0.03605732509 | L19: =-L18/'Facility PSA simulations'!$U$4 -> 0.07628989154 | M19: =-M18/'Facility PSA simulations'!$V$4 -> 0.08230684015
C22: Cost per QALY gained
E23: Without facility | G23: With facility | I23: Difference | K23: Incremental Cost Effectiveness Ratio | P23: Cost saving? | Q23: QALYs>0? | R23: Combined | S23: Advice
D25: Cost | E25: ='Facility PSA simulations'!$T$4 -> 3614061.401 | F25: - | G25: ='Facility PSA simulations'!$AE$4+'Facility PSA simulations'!$C$4 -> 4029267.763 | H25: = | I25: =G25-E25 -> 415206.3627 | J25: = | K25: =IF(AND(I25<0,I26>=0),"Cost saving",DOLLAR(I25/I26,0)& " / QALY gained") -> £5,796 / QALY gained | L25: =IF($K$25="Cost saving","(Saves " &DOLLAR(-$I$25,0)&" and","") ->  | P25: =IF(I25<0,1,0) -> 0 | Q25: =IF(I26>=0,1,0) -> 1 | R25: =P4&Q4 -> 00 | S25: This intervention is more expensive and less effective and is dominated. It SHOULD NOT be implemented.
D26: QALYs lost | E26: ='Facility PSA simulations'!$U$4 -> -939.0667941 | F26: - | G26: ='Facility PSA simulations'!$AF$4 -> -867.4254902 | I26: =G26-E26 -> 71.64130387 | L26: =IF($K$25="Cost saving"," gains "&ROUND($I$26,1)&" QALYs)","") ->  | R26: =P5&Q5 -> 01 | S26: ="This intervention has an ICER of "&DOLLAR(I25/I26,0)&" per QALY gained and therefore CAN"&IF((I25/I26)<=$G$52,"","NOT")&" be considered cost-effective. It SHOULD"&IF((I25/I26)<=$G$52,""," NOT")&" be implemented." -> This intervention has an ICER of £5,796 per QALY gained and therefore CAN be considered cost-effective. It SHOULD be implemented.
R27: =P6&Q6 -> 10 | S27: This intervention is cost saving but less effective and is dominated. It is UNCLEAR whether it should be implemented.
D28: The ICER is the ratio of the change in costs to the increase in benefits from the intervention. The change in cost includes a) the cost of delivering the physical activity programme minus b) the savings made from the reduction in treatment costs. The benefits are measured in terms of the Quality Adjusted Life Years that are gained as a result of people being more healthy thanks to sport and physical activity. The National Institute for Health and Clinical Excellence (NICE) uses the ICER to determine if an intervention is cost effecitve relative to the treatment currently in use. NICE operate a threshold of £20,000 per QALY gained. | R28: =P7&Q7 -> 11 | S28: This intervention is less expensive and at least as effective as the comparator and should be considered dominant. It SHOULD be implemented
D29: =VLOOKUP(P25&Q25,$R25:$S28,2) -> This intervention has an ICER of £5,796 per QALY gained and therefore CAN be considered cost-effective. It SHOULD be implemented.
C32: Cost per DALY avoided
E33: Without Intervention | G33: With Intervention | I33: Difference | K33: Incremental Cost Effectiveness Ratio | P33: Cost saving? | Q33: DALYs<0? | R33: Combined | S33: Advice
D35: Cost | E35: ='Facility PSA simulations'!$T$4 -> 3614061.401 | F35: - | G35: ='Facility PSA simulations'!$AE$4+'Facility PSA simulations'!$C$4 -> 4029267.763 | H35: = | I35: =G35-E35 -> 415206.3627 | J35: = | K35: =IF(AND(I35<0,I36<=0),"Cost saving",DOLLAR(I35/-I36,0)& " / DALY avoided") -> £4,926 / DALY avoided | L35: =IF($K$35="Cost saving","(Saves " &DOLLAR(-$I$35,0)&" and","") ->  | P35: =IF(I35<0,1,0) -> 0 | Q35: =IF(I36<=0,1,0) -> 1 | R35: =P4&Q4 -> 00 | S35: This intervention is more expensive and less effective and is dominated. It SHOULD NOT be implemented.
D36: DALYs | E36: ='Facility PSA simulations'!$V$4 -> 1024.143249 | F36: - | G36: ='Facility PSA simulations'!$AG$4 -> 939.8492547 | I36: =G36-E36 -> -84.29399472 | L36: =IF($K$35="Cost saving"," avoids "&ROUND(-$I$36,1)&" DALYs)","") ->  | R36: =P5&Q5 -> 01 | S36: ="This intervention has an ICER of "&DOLLAR(I35/-I36,0)&" per DALY avoided and therefore CAN"&IF((I35/-I36)<=$G$52,"","NOT")&" be considered cost-effective. It SHOULD"&IF((I35/-I36)<=$G$52,""," NOT")&" be implemented." -> This intervention has an ICER of £4,926 per DALY avoided and therefore CAN be considered cost-effective. It SHOULD be implemented.
R37: =P6&Q6 -> 10 | S37: This intervention is cost saving but less effective and is dominated. It is UNCLEAR whether it should be implemented.
D38: The ICER is the ratio of the change in costs to the increase in benefits from the intervention. The change in cost includes a) the cost of delivering the physical activity programme minus b) the savings made from the reduction in treatment costs. The benefits are measured in terms of the Disability Adjusted Life Years that are gained as a result of people being more healthy thanks to exercise. | R38: =P7&Q7 -> 11 | S38: This intervention is less expensive and at least as effective as the comparator and should be considered dominant. It SHOULD be implemented
D39: There is no recognised cost-effectiveness threshold for DALYs so we cannot make a funding recommendation on the basis of this result.
K41: Financial
K42: Return on Investment
D44: NHS ROI | G44: NHS Treatment Costs Saved | I44: ='Facility PSA simulations'!$T$4-'Facility PSA simulations'!$AE$4 -> 130313.3868 | J44: = | K44: =I44/I45 -> 0.23887932 | L44: per £1 invested
G45: Programme Investment | I45: ='Facility PSA simulations'!$C$4 -> 545519.7495 | K45: =K44-1 -> -0.76112068 | L45: net return on investment
K46: ="95% CI: "&DOLLAR('PSA simulations'!$BI$45,2)&"; "&DOLLAR('PSA simulations'!$BI$6,2) -> 95% CI: £11.04; £10.17
D48: This measure looks at the money saved by the NHS as a result of the programme. It looks purely at costs (not benefits). It compares the reduction in treatment costs to the costs of delivering the programme. ROI less than 1 indicates that the programme cost more to deliver than was saved in terms of treatment costs. ROI greater than 1 indicates that the programme saved enough in terms of treatment costs to more than cover its own costs. An ROI less than 1 does not necessarily mean the programme is not worthwhile, as by adding in the benefits of the programme you could make a more comprehensive case for investment.
K49: QALYs
E50: QALYs Gained | G50: Willingness to Pay | K50: Return on Investment
D52: QALY ROI | E52: =L18 -> 71.64130387 | F52: x | G52: =QALYWTP -> 20000 | H52: = | I52: =E52*G52 -> 1432826.077 | J52: = | K52: =I52/I53 -> 2.626533831 | L52: per £1 invested
E53: ='Facility PSA simulations'!$C$4 -> 545519.7495 | I53: ='Facility PSA simulations'!$C$4 -> 545519.7495 | K53: =K52-1 -> 1.626533831 | L53: net return on investment
K54: ="95% CI: "&DOLLAR('PSA simulations'!$BJ$45,2)&"; "&DOLLAR('PSA simulations'!$BJ$6,2) -> 95% CI: £40.59; £43.11
D55: This measure looks at the benefits acheived by the programme. It is the product of the Quality Adjust Life Years gained (as with less disease, people live fuller, longer lives) and the value associated with those QALYs. In this case we use the NICE willingness-to-pay for an additional QALY as the measure of the value of a QALY. We would hope to see a value greater than £1, i.e. a case where the benefits are worth more than the programme costs. Note that this measure doesn't take account of any savings to the NHS through a reduction in treatment costs. For a holistic view of cost-effectiveness, please consult the Cost per QALY gained above.
I58: The more effective an intervention, the lower the number of number of participants that must be enrolled to achieve a particular outcome (such as an event avoided or a QALY gained). This concept is known as the Number Needed to Treat (NNT) and is explained in more detail in the User Guide. NNT can be compared across different scenarios but there is no absolute threshold that separates acceptable and unacceptable scenarios.
E59: =ROUNDUP(1/(($E$18-$G$18)/$M$64),0) -> 96 | G59: participants to avoid 1 event
D60: NNT (Numbers needed to treat)
E61: =ROUNDUP(1/(L18/$M$64),0) -> 12 | G61: participants to gain 1 QALY
E63: =ROUNDUP(1/(-M18/$M$64),0) -> 10 | G63: participants to avoid 1 DALY
M64: 840
D68: Probabilistic scenario (See user guide for definitions and further explanations of the terms below)
D70: =COUNTIF('Facility PSA simulations'!$BI$11:$BI$4010,">0")/COUNT('Facility PSA simulations'!$BI$11:$BI$4010) -> 0.4364364364 | E70: ="probability of being cost-effective @ "&DOLLAR($G$52,0)&" per QALY" -> probability of being cost-effective @ £20,000 per QALY
D72: =COUNTIF('Facility PSA simulations'!$BJ$11:$BJ$4010,">1")/COUNT('Facility PSA simulations'!$BJ$11:$BJ$4010) -> 0.002002002002 | E72: probability of positive financial ROI (i.e. cost saving)
D74: =COUNTIF('Facility PSA simulations'!$BK$11:$BK$4010,">1")/COUNT('Facility PSA simulations'!$BK$11:$BK$4010) -> 0.4274274274 | E74: probability of positive QALY ROI (i.e. value of QALYs gained being greater than programme costs)
B77: Summary of Inputs
B80: Sex: | C80: =gender -> Mixed | D80: Age range: | E80: =agegroup -> 61+ | G80: Start level: | H80: =startingpalevel -> Low activity
B82: Activity: | C82: =activity -> Badminton | D82: Intensity: | E82: =activity -> Badminton | G82: Hours per week: | H82: =activityduration*activityfrequency -> 3
B84: Time Horizon: | C84: =timehorizon -> 25 | D84: Start participants: | E84: =begparticipant -> 5000 | G84: Cost per completion: | H84: =pcosts/begparticipant -> 0.004
B86: Summary of Costs
B89: Cost of no intervention: | C89: =#REF! -> 
B90: QALYs gained by participation: | C90: =#REF!-#REF! -> 
B92: Cost Savings from disease prevention: | C92: =#REF!-C124 -> 
B94: Money invested per QALY gained: | C94: =-C92/C90 -> 
B96: Break even year: | C96: =IF(#REF!>0,#REF!,"Beyond 20 Years") -> 
B99: Health Effects (cases averted)
D100: Savings Made
B101: Type 2 Diabetes | C101: =SUM('Health Outcomes'!AK24,'Health Outcomes'!AK59)-SUM('Health Outcomes'!AK74,'Health Outcomes'!AK109) -> 18.14052031 | D101: =#REF! -> 
B102: Ischaemic Heart Disease | C102: =SUM('Health Outcomes'!AK25,'Health Outcomes'!AK60)-SUM('Health Outcomes'!AK75,'Health Outcomes'!AK110) -> 56.64621123 | D102: =#REF! -> 
B103: Cerebrovascular disease (Stroke) | C103: =SUM('Health Outcomes'!AK26,'Health Outcomes'!AK61)-SUM('Health Outcomes'!AK76,'Health Outcomes'!AK111) -> 29.28954703 | D103: =#REF! -> 
B104: Breast Cancer | C104: =SUM('Health Outcomes'!AK27,'Health Outcomes'!AK62)-SUM('Health Outcomes'!AK77,'Health Outcomes'!AK112) -> 5.393221806 | D104: =#REF! ->  | E104: 0
B105: Colorectal Cancer | C105: =SUM('Health Outcomes'!AK28,'Health Outcomes'!AK63)-SUM('Health Outcomes'!AK78,'Health Outcomes'!AK113) -> 5.923233584 | D105: =#REF! -> 
B106: Dementia | C106: =SUM('Health Outcomes'!AK29,'Health Outcomes'!AK64)-SUM('Health Outcomes'!AK79,'Health Outcomes'!AK114) -> 65.70514429 | D106: =#REF! -> 
B107: Depression | C107: =SUM('Health Outcomes'!AK30,'Health Outcomes'!AK65)-SUM('Health Outcomes'!AK80,'Health Outcomes'!AK115) -> 21.00134913 | D107: =#REF! -> 
B108: Total | C108: =SUM(C101:C107) -> 202.0992274 | D108: =SUM(D101:D107) -> 
B109: Costs
C110: Costs Averted | D110: Expected Costs | E110: Total Costs After Intervention
B112: Type 2 Diabetes | C112: =#REF! ->  | D112: =#REF! ->  | E112: =(D112+C112) -> 
B113: Ischaemic Heart Disease | C113: =#REF! ->  | D113: =#REF! ->  | E113: =(D113+C113) -> 
B114: Cerebrovascular disease (Stroke) | C114: =#REF! ->  | D114: =#REF! -> 
B115: Breast Cancer | C115: =#REF! ->  | D115: =#REF! -> 
B116: Colorectal Cancer | C116: =#REF! ->  | D116: =#REF! -> 
B117: Dementia | C117: =#REF! ->  | D117: =#REF! -> 
B118: Depression | C118: =#REF! ->  | D118: =#REF! -> 
B119: Injuries | C119: =#REF! ->  | D119: =#REF! -> 
B120: Total | C120: =#REF! ->  | D120: =#REF! ->  | E120: =SUM(E112:E119) -> 
B122: Cost of programme
B124: Programme | C124: =#REF! -> 
B126: Difference in Costs | C126: =C124-C120 -> 
B128: Unit Costs - Simulation Results | C128: YR 1 | E128: YR2
B129: Disease | C129: Average | D129: SD | E129: Average | G129: SD
B130: Type 2 Diabetes | C130: =#REF! ->  | D130: =#REF! ->  | E130: =#REF! ->  | G130: =#REF! -> 
B131: Ischaemic Heart Disease | C131: =#REF! ->  | D131: =#REF! ->  | E131: =#REF! ->  | G131: =#REF! -> 
B132: Cerebrovascular disease (Stroke) | C132: =#REF! ->  | D132: =#REF! ->  | E132: =#REF! ->  | G132: =#REF! -> 
B133: Breast Cancer | C133: =#REF! ->  | D133: =#REF! ->  | E133: =#REF! ->  | G133: =#REF! -> 
B134: Colorectal Cancer | C134: =#REF! ->  | D134: =#REF! ->  | E134: =#REF! ->  | G134: =#REF! -> 
B135: Dementia | C135: =#REF! ->  | D135: =#REF! ->  | E135: =#REF! ->  | G135: =#REF! -> 
B136: Depression | C136: =#REF! ->  | D136: =#REF! ->  | E136: =#REF! ->  | G136: =#REF! -> 
B137: Injuries | C137: =#REF! ->  | D137: =#REF! ->  | E137: =#REF! ->  | G137: =#REF! -> 

Sheet Weighted METs (hidden)
C13: Participants by age group | H13: % within age group | M13: % Male | R13: Weighted Starting METs | W13: Weighted Final METs
A14: ACTIVITY | B14: INTENSITY | C14: 16-30 | D14: 31-45 | E14: 46-60 | F14: 60+ | H14: 16-30 | I14: 31-45 | J14: 46-60 | K14: 60+ | M14: 16-30 | N14: 31-45 | O14: 46-60 | P14: 60+ | R14: 16-30 | S14: 31-45 | T14: 46-60 | U14: 60+ | W14: 16-30 | X14: 31-45 | Y14: 46-60 | Z14: 60+
A15: =Facility!B15 -> Running | B15: =Facility!C15 -> General | C15: =IF(Facility!$F15=C$14,CHOOSE(Facility!$W$4,Facility!$E15,Facility!$E15*Facility!$E$115),0) -> 0 | D15: =IF(Facility!$F15=D$14,CHOOSE(Facility!$W$4,Facility!$E15,Facility!$E15*Facility!$E$115),0) -> 200 | E15: =IF(Facility!$F15=E$14,CHOOSE(Facility!$W$4,Facility!$E15,Facility!$E15*Facility!$E$115),0) -> 0 | F15: =IF(Facility!$F15=F$14,CHOOSE(Facility!$W$4,Facility!$E15,Facility!$E15*Facility!$E$115),0) -> 0 | H15: =IF(C$114>0,C15/C$114,0) -> 0 | I15: =IF(D$114>0,D15/D$114,0) -> 0.5555555556 | J15: =IF(E$114>0,E15/E$114,0) -> 0 | K15: =IF(F$114>0,F15/F$114,0) -> 0 | M15: =H15*Facility!$H15 -> 0 | N15: =I15*Facility!$H15 -> 0.1388888889 | O15: =J15*Facility!$H15 -> 0 | P15: =K15*Facility!$H15 -> 0 | R15: =H15*Facility!$M15 -> 0 | S15: =I15*Facility!$M15 -> 4.444444444 | T15: =J15*Facility!$M15 -> 0 | U15: =K15*Facility!$M15 -> 0 | W15: =H15*Facility!$N15 -> 0 | X15: =I15*Facility!$N15 -> 22.22222222 | Y15: =J15*Facility!$N15 -> 0 | Z15: =K15*Facility!$N15 -> 0
A16: =Facility!B16 -> Boxing | B16: =Facility!C16 -> Competitive | C16: =IF(Facility!$F16=C$14,CHOOSE(Facility!$W$4,Facility!$E16,Facility!$E16*Facility!$E$115),0) -> 55 | D16: =IF(Facility!$F16=D$14,CHOOSE(Facility!$W$4,Facility!$E16,Facility!$E16*Facility!$E$115),0) -> 0 | E16: =IF(Facility!$F16=E$14,CHOOSE(Facility!$W$4,Facility!$E16,Facility!$E16*Facility!$E$115),0) -> 0 | F16: =IF(Facility!$F16=F$14,CHOOSE(Facility!$W$4,Facility!$E16,Facility!$E16*Facility!$E$115),0) -> 0 | H16: 1 | I16: 0 | J16: 0 | K16: 0 | M16: =H16*Facility!$H16 -> 0.95 | N16: =I16*Facility!$H16 -> 0 | O16: =J16*Facility!$H16 -> 0 | P16: =K16*Facility!$H16 -> 0 | R16: =H16*Facility!$M16 -> 8 | S16: =I16*Facility!$M16 -> 0 | T16: =J16*Facility!$M16 -> 0 | U16: =K16*Facility!$M16 -> 0 | W16: =H16*Facility!$N16 -> 12.8 | X16: =I16*Facility!$N16 -> 0 | Y16: =J16*Facility!$N16 -> 0 | Z16: =K16*Facility!$N16 -> 0
A17: =Facility!B17 -> Cycling (competitive) | B17: =Facility!C17 -> Racing | C17: =IF(Facility!$F17=C$14,CHOOSE(Facility!$W$4,Facility!$E17,Facility!$E17*Facility!$E$115),0) -> 0 | D17: =IF(Facility!$F17=D$14,CHOOSE(Facility!$W$4,Facility!$E17,Facility!$E17*Facility!$E$115),0) -> 160 | E17: =IF(Facility!$F17=E$14,CHOOSE(Facility!$W$4,Facility!$E17,Facility!$E17*Facility!$E$115),0) -> 0 | F17: =IF(Facility!$F17=F$14,CHOOSE(Facility!$W$4,Facility!$E17,Facility!$E17*Facility!$E$115),0) -> 0 | H17: 0 | I17: 0.4444444444 | J17: 0 | K17: 0 | M17: =H17*Facility!$H17 -> 0 | N17: =I17*Facility!$H17 -> 0.3555555556 | O17: =J17*Facility!$H17 -> 0 | P17: =K17*Facility!$H17 -> 0 | R17: =H17*Facility!$M17 -> 0 | S17: =I17*Facility!$M17 -> 1.333333333 | T17: =J17*Facility!$M17 -> 0 | U17: =K17*Facility!$M17 -> 0 | W17: =H17*Facility!$N17 -> 0 | X17: =I17*Facility!$N17 -> 28.08888889 | Y17: =J17*Facility!$N17 -> 0 | Z17: =K17*Facility!$N17 -> 0
A18: =Facility!B18 -> Bowls | B18: =Facility!C18 -> General | C18: =IF(Facility!$F18=C$14,CHOOSE(Facility!$W$4,Facility!$E18,Facility!$E18*Facility!$E$115),0) -> 0 | D18: =IF(Facility!$F18=D$14,CHOOSE(Facility!$W$4,Facility!$E18,Facility!$E18*Facility!$E$115),0) -> 0 | E18: =IF(Facility!$F18=E$14,CHOOSE(Facility!$W$4,Facility!$E18,Facility!$E18*Facility!$E$115),0) -> 0 | F18: =IF(Facility!$F18=F$14,CHOOSE(Facility!$W$4,Facility!$E18,Facility!$E18*Facility!$E$115),0) -> 175 | H18: 0 | I18: 0 | J18: 0 | K18: 1 | M18: =H18*Facility!$H18 -> 0 | N18: =I18*Facility!$H18 -> 0 | O18: =J18*Facility!$H18 -> 0 | P18: =K18*Facility!$H18 -> 0.3 | R18: =H18*Facility!$M18 -> 0 | S18: =I18*Facility!$M18 -> 0 | T18: =J18*Facility!$M18 -> 0 | U18: =K18*Facility!$M18 -> 3 | W18: =H18*Facility!$N18 -> 0 | X18: =I18*Facility!$N18 -> 0 | Y18: =J18*Facility!$N18 -> 0 | Z18: =K18*Facility!$N18 -> 2.5
A19: =Facility!B19 -> Bowls | B19: =Facility!C19 -> General | C19: =IF(Facility!$F19=C$14,CHOOSE(Facility!$W$4,Facility!$E19,Facility!$E19*Facility!$E$115),0) -> 0 | D19: =IF(Facility!$F19=D$14,CHOOSE(Facility!$W$4,Facility!$E19,Facility!$E19*Facility!$E$115),0) -> 0 | E19: =IF(Facility!$F19=E$14,CHOOSE(Facility!$W$4,Facility!$E19,Facility!$E19*Facility!$E$115),0) -> 250 | F19: =IF(Facility!$F19=F$14,CHOOSE(Facility!$W$4,Facility!$E19,Facility!$E19*Facility!$E$115),0) -> 0 | H19: 0 | I19: 0 | J19: 1 | K19: 0 | M19: =H19*Facility!$H19 -> 0 | N19: =I19*Facility!$H19 -> 0 | O19: =J19*Facility!$H19 -> 0.4 | P19: =K19*Facility!$H19 -> 0 | R19: =H19*Facility!$M19 -> 0 | S19: =I19*Facility!$M19 -> 0 | T19: =J19*Facility!$M19 -> 3 | U19: =K19*Facility!$M19 -> 0 | W19: =H19*Facility!$N19 -> 0 | X19: =I19*Facility!$N19 -> 0 | Y19: =J19*Facility!$N19 -> 5 | Z19: =K19*Facility!$N19 -> 0
A20: =Facility!B20 -> 0 | B20: =Facility!C20 -> 0 | C20: =IF(Facility!$F20=C$14,CHOOSE(Facility!$W$4,Facility!$E20,Facility!$E20*Facility!$E$115),0) -> 0 | D20: =IF(Facility!$F20=D$14,CHOOSE(Facility!$W$4,Facility!$E20,Facility!$E20*Facility!$E$115),0) -> 0 | E20: =IF(Facility!$F20=E$14,CHOOSE(Facility!$W$4,Facility!$E20,Facility!$E20*Facility!$E$115),0) -> 0 | F20: =IF(Facility!$F20=F$14,CHOOSE(Facility!$W$4,Facility!$E20,Facility!$E20*Facility!$E$115),0) -> 0 | H20: 0 | I20: 0 | J20: 0 | K20: 0 | M20: =H20*Facility!$H20 -> 0 | N20: =I20*Facility!$H20 -> 0 | O20: =J20*Facility!$H20 -> 0 | P20: =K20*Facility!$H20 -> 0 | R20: =H20*Facility!$M20 -> 0 | S20: =I20*Facility!$M20 -> 0 | T20: =J20*Facility!$M20 -> 0 | U20: =K20*Facility!$M20 -> 0 | W20: =H20*Facility!$N20 -> 0 | X20: =I20*Facility!$N20 -> 0 | Y20: =J20*Facility!$N20 -> 0 | Z20: =K20*Facility!$N20 -> 0
A21: =Facility!B21 -> 0 | B21: =Facility!C21 -> 0 | C21: =IF(Facility!$F21=C$14,CHOOSE(Facility!$W$4,Facility!$E21,Facility!$E21*Facility!$E$115),0) -> 0 | D21: =IF(Facility!$F21=D$14,CHOOSE(Facility!$W$4,Facility!$E21,Facility!$E21*Facility!$E$115),0) -> 0 | E21: =IF(Facility!$F21=E$14,CHOOSE(Facility!$W$4,Facility!$E21,Facility!$E21*Facility!$E$115),0) -> 0 | F21: =IF(Facility!$F21=F$14,CHOOSE(Facility!$W$4,Facility!$E21,Facility!$E21*Facility!$E$115),0) -> 0 | H21: 0 | I21: 0 | J21: 0 | K21: 0 | M21: =H21*Facility!$H21 -> 0 | N21: =I21*Facility!$H21 -> 0 | O21: =J21*Facility!$H21 -> 0 | P21: =K21*Facility!$H21 -> 0 | R21: =H21*Facility!$M21 -> 0 | S21: =I21*Facility!$M21 -> 0 | T21: =J21*Facility!$M21 -> 0 | U21: =K21*Facility!$M21 -> 0 | W21: =H21*Facility!$N21 -> 0 | X21: =I21*Facility!$N21 -> 0 | Y21: =J21*Facility!$N21 -> 0 | Z21: =K21*Facility!$N21 -> 0
A22: =Facility!B22 -> 0 | B22: =Facility!C22 -> 0 | C22: =IF(Facility!$F22=C$14,CHOOSE(Facility!$W$4,Facility!$E22,Facility!$E22*Facility!$E$115),0) -> 0 | D22: =IF(Facility!$F22=D$14,CHOOSE(Facility!$W$4,Facility!$E22,Facility!$E22*Facility!$E$115),0) -> 0 | E22: =IF(Facility!$F22=E$14,CHOOSE(Facility!$W$4,Facility!$E22,Facility!$E22*Facility!$E$115),0) -> 0 | F22: =IF(Facility!$F22=F$14,CHOOSE(Facility!$W$4,Facility!$E22,Facility!$E22*Facility!$E$115),0) -> 0 | H22: 0 | I22: 0 | J22: 0 | K22: 0 | M22: =H22*Facility!$H22 -> 0 | N22: =I22*Facility!$H22 -> 0 | O22: =J22*Facility!$H22 -> 0 | P22: =K22*Facility!$H22 -> 0 | R22: =H22*Facility!$M22 -> 0 | S22: =I22*Facility!$M22 -> 0 | T22: =J22*Facility!$M22 -> 0 | U22: =K22*Facility!$M22 -> 0 | W22: =H22*Facility!$N22 -> 0 | X22: =I22*Facility!$N22 -> 0 | Y22: =J22*Facility!$N22 -> 0 | Z22: =K22*Facility!$N22 -> 0
A23: =Facility!B23 -> 0 | B23: =Facility!C23 -> 0 | C23: =IF(Facility!$F23=C$14,CHOOSE(Facility!$W$4,Facility!$E23,Facility!$E23*Facility!$E$115),0) -> 0 | D23: =IF(Facility!$F23=D$14,CHOOSE(Facility!$W$4,Facility!$E23,Facility!$E23*Facility!$E$115),0) -> 0 | E23: =IF(Facility!$F23=E$14,CHOOSE(Facility!$W$4,Facility!$E23,Facility!$E23*Facility!$E$115),0) -> 0 | F23: =IF(Facility!$F23=F$14,CHOOSE(Facility!$W$4,Facility!$E23,Facility!$E23*Facility!$E$115),0) -> 0 | H23: 0 | I23: 0 | J23: 0 | K23: 0 | M23: =H23*Facility!$H23 -> 0 | N23: =I23*Facility!$H23 -> 0 | O23: =J23*Facility!$H23 -> 0 | P23: =K23*Facility!$H23 -> 0 | R23: =H23*Facility!$M23 -> 0 | S23: =I23*Facility!$M23 -> 0 | T23: =J23*Facility!$M23 -> 0 | U23: =K23*Facility!$M23 -> 0 | W23: =H23*Facility!$N23 -> 0 | X23: =I23*Facility!$N23 -> 0 | Y23: =J23*Facility!$N23 -> 0 | Z23: =K23*Facility!$N23 -> 0
A24: =Facility!B24 -> 0 | B24: =Facility!C24 -> 0 | C24: =IF(Facility!$F24=C$14,CHOOSE(Facility!$W$4,Facility!$E24,Facility!$E24*Facility!$E$115),0) -> 0 | D24: =IF(Facility!$F24=D$14,CHOOSE(Facility!$W$4,Facility!$E24,Facility!$E24*Facility!$E$115),0) -> 0 | E24: =IF(Facility!$F24=E$14,CHOOSE(Facility!$W$4,Facility!$E24,Facility!$E24*Facility!$E$115),0) -> 0 | F24: =IF(Facility!$F24=F$14,CHOOSE(Facility!$W$4,Facility!$E24,Facility!$E24*Facility!$E$115),0) -> 0 | H24: 0 | I24: 0 | J24: 0 | K24: 0 | M24: =H24*Facility!$H24 -> 0 | N24: =I24*Facility!$H24 -> 0 | O24: =J24*Facility!$H24 -> 0 | P24: =K24*Facility!$H24 -> 0 | R24: =H24*Facility!$M24 -> 0 | S24: =I24*Facility!$M24 -> 0 | T24: =J24*Facility!$M24 -> 0 | U24: =K24*Facility!$M24 -> 0 | W24: =H24*Facility!$N24 -> 0 | X24: =I24*Facility!$N24 -> 0 | Y24: =J24*Facility!$N24 -> 0 | Z24: =K24*Facility!$N24 -> 0
A25: =Facility!B25 -> 0 | B25: =Facility!C25 -> 0 | C25: =IF(Facility!$F25=C$14,CHOOSE(Facility!$W$4,Facility!$E25,Facility!$E25*Facility!$E$115),0) -> 0 | D25: =IF(Facility!$F25=D$14,CHOOSE(Facility!$W$4,Facility!$E25,Facility!$E25*Facility!$E$115),0) -> 0 | E25: =IF(Facility!$F25=E$14,CHOOSE(Facility!$W$4,Facility!$E25,Facility!$E25*Facility!$E$115),0) -> 0 | F25: =IF(Facility!$F25=F$14,CHOOSE(Facility!$W$4,Facility!$E25,Facility!$E25*Facility!$E$115),0) -> 0 | H25: 0 | I25: 0 | J25: 0 | K25: 0 | M25: =H25*Facility!$H25 -> 0 | N25: =I25*Facility!$H25 -> 0 | O25: =J25*Facility!$H25 -> 0 | P25: =K25*Facility!$H25 -> 0 | R25: =H25*Facility!$M25 -> 0 | S25: =I25*Facility!$M25 -> 0 | T25: =J25*Facility!$M25 -> 0 | U25: =K25*Facility!$M25 -> 0 | W25: =H25*Facility!$N25 -> 0 | X25: =I25*Facility!$N25 -> 0 | Y25: =J25*Facility!$N25 -> 0 | Z25: =K25*Facility!$N25 -> 0
A26: =Facility!B26 -> 0 | B26: =Facility!C26 -> 0 | C26: =IF(Facility!$F26=C$14,CHOOSE(Facility!$W$4,Facility!$E26,Facility!$E26*Facility!$E$115),0) -> 0 | D26: =IF(Facility!$F26=D$14,CHOOSE(Facility!$W$4,Facility!$E26,Facility!$E26*Facility!$E$115),0) -> 0 | E26: =IF(Facility!$F26=E$14,CHOOSE(Facility!$W$4,Facility!$E26,Facility!$E26*Facility!$E$115),0) -> 0 | F26: =IF(Facility!$F26=F$14,CHOOSE(Facility!$W$4,Facility!$E26,Facility!$E26*Facility!$E$115),0) -> 0 | H26: 0 | I26: 0 | J26: 0 | K26: 0 | M26: =H26*Facility!$H26 -> 0 | N26: =I26*Facility!$H26 -> 0 | O26: =J26*Facility!$H26 -> 0 | P26: =K26*Facility!$H26 -> 0 | R26: =H26*Facility!$M26 -> 0 | S26: =I26*Facility!$M26 -> 0 | T26: =J26*Facility!$M26 -> 0 | U26: =K26*Facility!$M26 -> 0 | W26: =H26*Facility!$N26 -> 0 | X26: =I26*Facility!$N26 -> 0 | Y26: =J26*Facility!$N26 -> 0 | Z26: =K26*Facility!$N26 -> 0
A27: =Facility!B27 -> 0 | B27: =Facility!C27 -> 0 | C27: =IF(Facility!$F27=C$14,CHOOSE(Facility!$W$4,Facility!$E27,Facility!$E27*Facility!$E$115),0) -> 0 | D27: =IF(Facility!$F27=D$14,CHOOSE(Facility!$W$4,Facility!$E27,Facility!$E27*Facility!$E$115),0) -> 0 | E27: =IF(Facility!$F27=E$14,CHOOSE(Facility!$W$4,Facility!$E27,Facility!$E27*Facility!$E$115),0) -> 0 | F27: =IF(Facility!$F27=F$14,CHOOSE(Facility!$W$4,Facility!$E27,Facility!$E27*Facility!$E$115),0) -> 0 | H27: 0 | I27: 0 | J27: 0 | K27: 0 | M27: =H27*Facility!$H27 -> 0 | N27: =I27*Facility!$H27 -> 0 | O27: =J27*Facility!$H27 -> 0 | P27: =K27*Facility!$H27 -> 0 | R27: =H27*Facility!$M27 -> 0 | S27: =I27*Facility!$M27 -> 0 | T27: =J27*Facility!$M27 -> 0 | U27: =K27*Facility!$M27 -> 0 | W27: =H27*Facility!$N27 -> 0 | X27: =I27*Facility!$N27 -> 0 | Y27: =J27*Facility!$N27 -> 0 | Z27: =K27*Facility!$N27 -> 0
A28: =Facility!B28 -> 0 | B28: =Facility!C28 -> 0 | C28: =IF(Facility!$F28=C$14,CHOOSE(Facility!$W$4,Facility!$E28,Facility!$E28*Facility!$E$115),0) -> 0 | D28: =IF(Facility!$F28=D$14,CHOOSE(Facility!$W$4,Facility!$E28,Facility!$E28*Facility!$E$115),0) -> 0 | E28: =IF(Facility!$F28=E$14,CHOOSE(Facility!$W$4,Facility!$E28,Facility!$E28*Facility!$E$115),0) -> 0 | F28: =IF(Facility!$F28=F$14,CHOOSE(Facility!$W$4,Facility!$E28,Facility!$E28*Facility!$E$115),0) -> 0 | H28: 0 | I28: 0 | J28: 0 | K28: 0 | M28: =H28*Facility!$H28 -> 0 | N28: =I28*Facility!$H28 -> 0 | O28: =J28*Facility!$H28 -> 0 | P28: =K28*Facility!$H28 -> 0 | R28: =H28*Facility!$M28 -> 0 | S28: =I28*Facility!$M28 -> 0 | T28: =J28*Facility!$M28 -> 0 | U28: =K28*Facility!$M28 -> 0 | W28: =H28*Facility!$N28 -> 0 | X28: =I28*Facility!$N28 -> 0 | Y28: =J28*Facility!$N28 -> 0 | Z28: =K28*Facility!$N28 -> 0
A29: =Facility!B29 -> 0 | B29: =Facility!C29 -> 0 | C29: =IF(Facility!$F29=C$14,CHOOSE(Facility!$W$4,Facility!$E29,Facility!$E29*Facility!$E$115),0) -> 0 | D29: =IF(Facility!$F29=D$14,CHOOSE(Facility!$W$4,Facility!$E29,Facility!$E29*Facility!$E$115),0) -> 0 | E29: =IF(Facility!$F29=E$14,CHOOSE(Facility!$W$4,Facility!$E29,Facility!$E29*Facility!$E$115),0) -> 0 | F29: =IF(Facility!$F29=F$14,CHOOSE(Facility!$W$4,Facility!$E29,Facility!$E29*Facility!$E$115),0) -> 0 | H29: 0 | I29: 0 | J29: 0 | K29: 0 | M29: =H29*Facility!$H29 -> 0 | N29: =I29*Facility!$H29 -> 0 | O29: =J29*Facility!$H29 -> 0 | P29: =K29*Facility!$H29 -> 0 | R29: =H29*Facility!$M29 -> 0 | S29: =I29*Facility!$M29 -> 0 | T29: =J29*Facility!$M29 -> 0 | U29: =K29*Facility!$M29 -> 0 | W29: =H29*Facility!$N29 -> 0 | X29: =I29*Facility!$N29 -> 0 | Y29: =J29*Facility!$N29 -> 0 | Z29: =K29*Facility!$N29 -> 0
A30: =Facility!B30 -> 0 | B30: =Facility!C30 -> 0 | C30: =IF(Facility!$F30=C$14,CHOOSE(Facility!$W$4,Facility!$E30,Facility!$E30*Facility!$E$115),0) -> 0 | D30: =IF(Facility!$F30=D$14,CHOOSE(Facility!$W$4,Facility!$E30,Facility!$E30*Facility!$E$115),0) -> 0 | E30: =IF(Facility!$F30=E$14,CHOOSE(Facility!$W$4,Facility!$E30,Facility!$E30*Facility!$E$115),0) -> 0 | F30: =IF(Facility!$F30=F$14,CHOOSE(Facility!$W$4,Facility!$E30,Facility!$E30*Facility!$E$115),0) -> 0 | H30: 0 | I30: 0 | J30: 0 | K30: 0 | M30: =H30*Facility!$H30 -> 0 | N30: =I30*Facility!$H30 -> 0 | O30: =J30*Facility!$H30 -> 0 | P30: =K30*Facility!$H30 -> 0 | R30: =H30*Facility!$M30 -> 0 | S30: =I30*Facility!$M30 -> 0 | T30: =J30*Facility!$M30 -> 0 | U30: =K30*Facility!$M30 -> 0 | W30: =H30*Facility!$N30 -> 0 | X30: =I30*Facility!$N30 -> 0 | Y30: =J30*Facility!$N30 -> 0 | Z30: =K30*Facility!$N30 -> 0
A31: =Facility!B31 -> 0 | B31: =Facility!C31 -> 0 | C31: =IF(Facility!$F31=C$14,CHOOSE(Facility!$W$4,Facility!$E31,Facility!$E31*Facility!$E$115),0) -> 0 | D31: =IF(Facility!$F31=D$14,CHOOSE(Facility!$W$4,Facility!$E31,Facility!$E31*Facility!$E$115),0) -> 0 | E31: =IF(Facility!$F31=E$14,CHOOSE(Facility!$W$4,Facility!$E31,Facility!$E31*Facility!$E$115),0) -> 0 | F31: =IF(Facility!$F31=F$14,CHOOSE(Facility!$W$4,Facility!$E31,Facility!$E31*Facility!$E$115),0) -> 0 | H31: 0 | I31: 0 | J31: 0 | K31: 0 | M31: =H31*Facility!$H31 -> 0 | N31: =I31*Facility!$H31 -> 0 | O31: =J31*Facility!$H31 -> 0 | P31: =K31*Facility!$H31 -> 0 | R31: =H31*Facility!$M31 -> 0 | S31: =I31*Facility!$M31 -> 0 | T31: =J31*Facility!$M31 -> 0 | U31: =K31*Facility!$M31 -> 0 | W31: =H31*Facility!$N31 -> 0 | X31: =I31*Facility!$N31 -> 0 | Y31: =J31*Facility!$N31 -> 0 | Z31: =K31*Facility!$N31 -> 0
A32: =Facility!B32 -> 0 | B32: =Facility!C32 -> 0 | C32: =IF(Facility!$F32=C$14,CHOOSE(Facility!$W$4,Facility!$E32,Facility!$E32*Facility!$E$115),0) -> 0 | D32: =IF(Facility!$F32=D$14,CHOOSE(Facility!$W$4,Facility!$E32,Facility!$E32*Facility!$E$115),0) -> 0 | E32: =IF(Facility!$F32=E$14,CHOOSE(Facility!$W$4,Facility!$E32,Facility!$E32*Facility!$E$115),0) -> 0 | F32: =IF(Facility!$F32=F$14,CHOOSE(Facility!$W$4,Facility!$E32,Facility!$E32*Facility!$E$115),0) -> 0 | H32: 0 | I32: 0 | J32: 0 | K32: 0 | M32: =H32*Facility!$H32 -> 0 | N32: =I32*Facility!$H32 -> 0 | O32: =J32*Facility!$H32 -> 0 | P32: =K32*Facility!$H32 -> 0 | R32: =H32*Facility!$M32 -> 0 | S32: =I32*Facility!$M32 -> 0 | T32: =J32*Facility!$M32 -> 0 | U32: =K32*Facility!$M32 -> 0 | W32: =H32*Facility!$N32 -> 0 | X32: =I32*Facility!$N32 -> 0 | Y32: =J32*Facility!$N32 -> 0 | Z32: =K32*Facility!$N32 -> 0
A33: =Facility!B33 -> 0 | B33: =Facility!C33 -> 0 | C33: =IF(Facility!$F33=C$14,CHOOSE(Facility!$W$4,Facility!$E33,Facility!$E33*Facility!$E$115),0) -> 0 | D33: =IF(Facility!$F33=D$14,CHOOSE(Facility!$W$4,Facility!$E33,Facility!$E33*Facility!$E$115),0) -> 0 | E33: =IF(Facility!$F33=E$14,CHOOSE(Facility!$W$4,Facility!$E33,Facility!$E33*Facility!$E$115),0) -> 0 | F33: =IF(Facility!$F33=F$14,CHOOSE(Facility!$W$4,Facility!$E33,Facility!$E33*Facility!$E$115),0) -> 0 | H33: 0 | I33: 0 | J33: 0 | K33: 0 | M33: =H33*Facility!$H33 -> 0 | N33: =I33*Facility!$H33 -> 0 | O33: =J33*Facility!$H33 -> 0 | P33: =K33*Facility!$H33 -> 0 | R33: =H33*Facility!$M33 -> 0 | S33: =I33*Facility!$M33 -> 0 | T33: =J33*Facility!$M33 -> 0 | U33: =K33*Facility!$M33 -> 0 | W33: =H33*Facility!$N33 -> 0 | X33: =I33*Facility!$N33 -> 0 | Y33: =J33*Facility!$N33 -> 0 | Z33: =K33*Facility!$N33 -> 0
A34: =Facility!B34 -> 0 | B34: =Facility!C34 -> 0 | C34: =IF(Facility!$F34=C$14,CHOOSE(Facility!$W$4,Facility!$E34,Facility!$E34*Facility!$E$115),0) -> 0 | D34: =IF(Facility!$F34=D$14,CHOOSE(Facility!$W$4,Facility!$E34,Facility!$E34*Facility!$E$115),0) -> 0 | E34: =IF(Facility!$F34=E$14,CHOOSE(Facility!$W$4,Facility!$E34,Facility!$E34*Facility!$E$115),0) -> 0 | F34: =IF(Facility!$F34=F$14,CHOOSE(Facility!$W$4,Facility!$E34,Facility!$E34*Facility!$E$115),0) -> 0 | H34: 0 | I34: 0 | J34: 0 | K34: 0 | M34: =H34*Facility!$H34 -> 0 | N34: =I34*Facility!$H34 -> 0 | O34: =J34*Facility!$H34 -> 0 | P34: =K34*Facility!$H34 -> 0 | R34: =H34*Facility!$M34 -> 0 | S34: =I34*Facility!$M34 -> 0 | T34: =J34*Facility!$M34 -> 0 | U34: =K34*Facility!$M34 -> 0 | W34: =H34*Facility!$N34 -> 0 | X34: =I34*Facility!$N34 -> 0 | Y34: =J34*Facility!$N34 -> 0 | Z34: =K34*Facility!$N34 -> 0
A35: =Facility!B35 -> 0 | B35: =Facility!C35 -> 0 | C35: =IF(Facility!$F35=C$14,CHOOSE(Facility!$W$4,Facility!$E35,Facility!$E35*Facility!$E$115),0) -> 0 | D35: =IF(Facility!$F35=D$14,CHOOSE(Facility!$W$4,Facility!$E35,Facility!$E35*Facility!$E$115),0) -> 0 | E35: =IF(Facility!$F35=E$14,CHOOSE(Facility!$W$4,Facility!$E35,Facility!$E35*Facility!$E$115),0) -> 0 | F35: =IF(Facility!$F35=F$14,CHOOSE(Facility!$W$4,Facility!$E35,Facility!$E35*Facility!$E$115),0) -> 0 | H35: 0 | I35: 0 | J35: 0 | K35: 0 | M35: =H35*Facility!$H35 -> 0 | N35: =I35*Facility!$H35 -> 0 | O35: =J35*Facility!$H35 -> 0 | P35: =K35*Facility!$H35 -> 0 | R35: =H35*Facility!$M35 -> 0 | S35: =I35*Facility!$M35 -> 0 | T35: =J35*Facility!$M35 -> 0 | U35: =K35*Facility!$M35 -> 0 | W35: =H35*Facility!$N35 -> 0 | X35: =I35*Facility!$N35 -> 0 | Y35: =J35*Facility!$N35 -> 0 | Z35: =K35*Facility!$N35 -> 0
A36: =Facility!B36 -> 0 | B36: =Facility!C36 -> 0 | C36: =IF(Facility!$F36=C$14,CHOOSE(Facility!$W$4,Facility!$E36,Facility!$E36*Facility!$E$115),0) -> 0 | D36: =IF(Facility!$F36=D$14,CHOOSE(Facility!$W$4,Facility!$E36,Facility!$E36*Facility!$E$115),0) -> 0 | E36: =IF(Facility!$F36=E$14,CHOOSE(Facility!$W$4,Facility!$E36,Facility!$E36*Facility!$E$115),0) -> 0 | F36: =IF(Facility!$F36=F$14,CHOOSE(Facility!$W$4,Facility!$E36,Facility!$E36*Facility!$E$115),0) -> 0 | H36: 0 | I36: 0 | J36: 0 | K36: 0 | M36: =H36*Facility!$H36 -> 0 | N36: =I36*Facility!$H36 -> 0 | O36: =J36*Facility!$H36 -> 0 | P36: =K36*Facility!$H36 -> 0 | R36: =H36*Facility!$M36 -> 0 | S36: =I36*Facility!$M36 -> 0 | T36: =J36*Facility!$M36 -> 0 | U36: =K36*Facility!$M36 -> 0 | W36: =H36*Facility!$N36 -> 0 | X36: =I36*Facility!$N36 -> 0 | Y36: =J36*Facility!$N36 -> 0 | Z36: =K36*Facility!$N36 -> 0
A37: =Facility!B37 -> 0 | B37: =Facility!C37 -> 0 | C37: =IF(Facility!$F37=C$14,CHOOSE(Facility!$W$4,Facility!$E37,Facility!$E37*Facility!$E$115),0) -> 0 | D37: =IF(Facility!$F37=D$14,CHOOSE(Facility!$W$4,Facility!$E37,Facility!$E37*Facility!$E$115),0) -> 0 | E37: =IF(Facility!$F37=E$14,CHOOSE(Facility!$W$4,Facility!$E37,Facility!$E37*Facility!$E$115),0) -> 0 | F37: =IF(Facility!$F37=F$14,CHOOSE(Facility!$W$4,Facility!$E37,Facility!$E37*Facility!$E$115),0) -> 0 | H37: 0 | I37: 0 | J37: 0 | K37: 0 | M37: =H37*Facility!$H37 -> 0 | N37: =I37*Facility!$H37 -> 0 | O37: =J37*Facility!$H37 -> 0 | P37: =K37*Facility!$H37 -> 0 | R37: =H37*Facility!$M37 -> 0 | S37: =I37*Facility!$M37 -> 0 | T37: =J37*Facility!$M37 -> 0 | U37: =K37*Facility!$M37 -> 0 | W37: =H37*Facility!$N37 -> 0 | X37: =I37*Facility!$N37 -> 0 | Y37: =J37*Facility!$N37 -> 0 | Z37: =K37*Facility!$N37 -> 0
A38: =Facility!B38 -> 0 | B38: =Facility!C38 -> 0 | C38: =IF(Facility!$F38=C$14,CHOOSE(Facility!$W$4,Facility!$E38,Facility!$E38*Facility!$E$115),0) -> 0 | D38: =IF(Facility!$F38=D$14,CHOOSE(Facility!$W$4,Facility!$E38,Facility!$E38*Facility!$E$115),0) -> 0 | E38: =IF(Facility!$F38=E$14,CHOOSE(Facility!$W$4,Facility!$E38,Facility!$E38*Facility!$E$115),0) -> 0 | F38: =IF(Facility!$F38=F$14,CHOOSE(Facility!$W$4,Facility!$E38,Facility!$E38*Facility!$E$115),0) -> 0 | H38: 0 | I38: 0 | J38: 0 | K38: 0 | M38: =H38*Facility!$H38 -> 0 | N38: =I38*Facility!$H38 -> 0 | O38: =J38*Facility!$H38 -> 0 | P38: =K38*Facility!$H38 -> 0 | R38: =H38*Facility!$M38 -> 0 | S38: =I38*Facility!$M38 -> 0 | T38: =J38*Facility!$M38 -> 0 | U38: =K38*Facility!$M38 -> 0 | W38: =H38*Facility!$N38 -> 0 | X38: =I38*Facility!$N38 -> 0 | Y38: =J38*Facility!$N38 -> 0 | Z38: =K38*Facility!$N38 -> 0
A39: =Facility!B39 -> 0 | B39: =Facility!C39 -> 0 | C39: =IF(Facility!$F39=C$14,CHOOSE(Facility!$W$4,Facility!$E39,Facility!$E39*Facility!$E$115),0) -> 0 | D39: =IF(Facility!$F39=D$14,CHOOSE(Facility!$W$4,Facility!$E39,Facility!$E39*Facility!$E$115),0) -> 0 | E39: =IF(Facility!$F39=E$14,CHOOSE(Facility!$W$4,Facility!$E39,Facility!$E39*Facility!$E$115),0) -> 0 | F39: =IF(Facility!$F39=F$14,CHOOSE(Facility!$W$4,Facility!$E39,Facility!$E39*Facility!$E$115),0) -> 0 | H39: 0 | I39: 0 | J39: 0 | K39: 0 | M39: =H39*Facility!$H39 -> 0 | N39: =I39*Facility!$H39 -> 0 | O39: =J39*Facility!$H39 -> 0 | P39: =K39*Facility!$H39 -> 0 | R39: =H39*Facility!$M39 -> 0 | S39: =I39*Facility!$M39 -> 0 | T39: =J39*Facility!$M39 -> 0 | U39: =K39*Facility!$M39 -> 0 | W39: =H39*Facility!$N39 -> 0 | X39: =I39*Facility!$N39 -> 0 | Y39: =J39*Facility!$N39 -> 0 | Z39: =K39*Facility!$N39 -> 0
A40: =Facility!B40 -> 0 | B40: =Facility!C40 -> 0 | C40: =IF(Facility!$F40=C$14,CHOOSE(Facility!$W$4,Facility!$E40,Facility!$E40*Facility!$E$115),0) -> 0 | D40: =IF(Facility!$F40=D$14,CHOOSE(Facility!$W$4,Facility!$E40,Facility!$E40*Facility!$E$115),0) -> 0 | E40: =IF(Facility!$F40=E$14,CHOOSE(Facility!$W$4,Facility!$E40,Facility!$E40*Facility!$E$115),0) -> 0 | F40: =IF(Facility!$F40=F$14,CHOOSE(Facility!$W$4,Facility!$E40,Facility!$E40*Facility!$E$115),0) -> 0 | H40: 0 | I40: 0 | J40: 0 | K40: 0 | M40: =H40*Facility!$H40 -> 0 | N40: =I40*Facility!$H40 -> 0 | O40: =J40*Facility!$H40 -> 0 | P40: =K40*Facility!$H40 -> 0 | R40: =H40*Facility!$M40 -> 0 | S40: =I40*Facility!$M40 -> 0 | T40: =J40*Facility!$M40 -> 0 | U40: =K40*Facility!$M40 -> 0 | W40: =H40*Facility!$N40 -> 0 | X40: =I40*Facility!$N40 -> 0 | Y40: =J40*Facility!$N40 -> 0 | Z40: =K40*Facility!$N40 -> 0
A41: =Facility!B41 -> 0 | B41: =Facility!C41 -> 0 | C41: =IF(Facility!$F41=C$14,CHOOSE(Facility!$W$4,Facility!$E41,Facility!$E41*Facility!$E$115),0) -> 0 | D41: =IF(Facility!$F41=D$14,CHOOSE(Facility!$W$4,Facility!$E41,Facility!$E41*Facility!$E$115),0) -> 0 | E41: =IF(Facility!$F41=E$14,CHOOSE(Facility!$W$4,Facility!$E41,Facility!$E41*Facility!$E$115),0) -> 0 | F41: =IF(Facility!$F41=F$14,CHOOSE(Facility!$W$4,Facility!$E41,Facility!$E41*Facility!$E$115),0) -> 0 | H41: 0 | I41: 0 | J41: 0 | K41: 0 | M41: =H41*Facility!$H41 -> 0 | N41: =I41*Facility!$H41 -> 0 | O41: =J41*Facility!$H41 -> 0 | P41: =K41*Facility!$H41 -> 0 | R41: =H41*Facility!$M41 -> 0 | S41: =I41*Facility!$M41 -> 0 | T41: =J41*Facility!$M41 -> 0 | U41: =K41*Facility!$M41 -> 0 | W41: =H41*Facility!$N41 -> 0 | X41: =I41*Facility!$N41 -> 0 | Y41: =J41*Facility!$N41 -> 0 | Z41: =K41*Facility!$N41 -> 0
A42: =Facility!B42 -> 0 | B42: =Facility!C42 -> 0 | C42: =IF(Facility!$F42=C$14,CHOOSE(Facility!$W$4,Facility!$E42,Facility!$E42*Facility!$E$115),0) -> 0 | D42: =IF(Facility!$F42=D$14,CHOOSE(Facility!$W$4,Facility!$E42,Facility!$E42*Facility!$E$115),0) -> 0 | E42: =IF(Facility!$F42=E$14,CHOOSE(Facility!$W$4,Facility!$E42,Facility!$E42*Facility!$E$115),0) -> 0 | F42: =IF(Facility!$F42=F$14,CHOOSE(Facility!$W$4,Facility!$E42,Facility!$E42*Facility!$E$115),0) -> 0 | H42: 0 | I42: 0 | J42: 0 | K42: 0 | M42: =H42*Facility!$H42 -> 0 | N42: =I42*Facility!$H42 -> 0 | O42: =J42*Facility!$H42 -> 0 | P42: =K42*Facility!$H42 -> 0 | R42: =H42*Facility!$M42 -> 0 | S42: =I42*Facility!$M42 -> 0 | T42: =J42*Facility!$M42 -> 0 | U42: =K42*Facility!$M42 -> 0 | W42: =H42*Facility!$N42 -> 0 | X42: =I42*Facility!$N42 -> 0 | Y42: =J42*Facility!$N42 -> 0 | Z42: =K42*Facility!$N42 -> 0
A43: =Facility!B43 -> 0 | B43: =Facility!C43 -> 0 | C43: =IF(Facility!$F43=C$14,CHOOSE(Facility!$W$4,Facility!$E43,Facility!$E43*Facility!$E$115),0) -> 0 | D43: =IF(Facility!$F43=D$14,CHOOSE(Facility!$W$4,Facility!$E43,Facility!$E43*Facility!$E$115),0) -> 0 | E43: =IF(Facility!$F43=E$14,CHOOSE(Facility!$W$4,Facility!$E43,Facility!$E43*Facility!$E$115),0) -> 0 | F43: =IF(Facility!$F43=F$14,CHOOSE(Facility!$W$4,Facility!$E43,Facility!$E43*Facility!$E$115),0) -> 0 | H43: 0 | I43: 0 | J43: 0 | K43: 0 | M43: =H43*Facility!$H43 -> 0 | N43: =I43*Facility!$H43 -> 0 | O43: =J43*Facility!$H43 -> 0 | P43: =K43*Facility!$H43 -> 0 | R43: =H43*Facility!$M43 -> 0 | S43: =I43*Facility!$M43 -> 0 | T43: =J43*Facility!$M43 -> 0 | U43: =K43*Facility!$M43 -> 0 | W43: =H43*Facility!$N43 -> 0 | X43: =I43*Facility!$N43 -> 0 | Y43: =J43*Facility!$N43 -> 0 | Z43: =K43*Facility!$N43 -> 0
A44: =Facility!B44 -> 0 | B44: =Facility!C44 -> 0 | C44: =IF(Facility!$F44=C$14,CHOOSE(Facility!$W$4,Facility!$E44,Facility!$E44*Facility!$E$115),0) -> 0 | D44: =IF(Facility!$F44=D$14,CHOOSE(Facility!$W$4,Facility!$E44,Facility!$E44*Facility!$E$115),0) -> 0 | E44: =IF(Facility!$F44=E$14,CHOOSE(Facility!$W$4,Facility!$E44,Facility!$E44*Facility!$E$115),0) -> 0 | F44: =IF(Facility!$F44=F$14,CHOOSE(Facility!$W$4,Facility!$E44,Facility!$E44*Facility!$E$115),0) -> 0 | H44: 0 | I44: 0 | J44: 0 | K44: 0 | M44: =H44*Facility!$H44 -> 0 | N44: =I44*Facility!$H44 -> 0 | O44: =J44*Facility!$H44 -> 0 | P44: =K44*Facility!$H44 -> 0 | R44: =H44*Facility!$M44 -> 0 | S44: =I44*Facility!$M44 -> 0 | T44: =J44*Facility!$M44 -> 0 | U44: =K44*Facility!$M44 -> 0 | W44: =H44*Facility!$N44 -> 0 | X44: =I44*Facility!$N44 -> 0 | Y44: =J44*Facility!$N44 -> 0 | Z44: =K44*Facility!$N44 -> 0
A45: =Facility!B45 -> 0 | B45: =Facility!C45 -> 0 | C45: =IF(Facility!$F45=C$14,CHOOSE(Facility!$W$4,Facility!$E45,Facility!$E45*Facility!$E$115),0) -> 0 | D45: =IF(Facility!$F45=D$14,CHOOSE(Facility!$W$4,Facility!$E45,Facility!$E45*Facility!$E$115),0) -> 0 | E45: =IF(Facility!$F45=E$14,CHOOSE(Facility!$W$4,Facility!$E45,Facility!$E45*Facility!$E$115),0) -> 0 | F45: =IF(Facility!$F45=F$14,CHOOSE(Facility!$W$4,Facility!$E45,Facility!$E45*Facility!$E$115),0) -> 0 | H45: 0 | I45: 0 | J45: 0 | K45: 0 | M45: =H45*Facility!$H45 -> 0 | N45: =I45*Facility!$H45 -> 0 | O45: =J45*Facility!$H45 -> 0 | P45: =K45*Facility!$H45 -> 0 | R45: =H45*Facility!$M45 -> 0 | S45: =I45*Facility!$M45 -> 0 | T45: =J45*Facility!$M45 -> 0 | U45: =K45*Facility!$M45 -> 0 | W45: =H45*Facility!$N45 -> 0 | X45: =I45*Facility!$N45 -> 0 | Y45: =J45*Facility!$N45 -> 0 | Z45: =K45*Facility!$N45 -> 0
A46: =Facility!B46 -> 0 | B46: =Facility!C46 -> 0 | C46: =IF(Facility!$F46=C$14,CHOOSE(Facility!$W$4,Facility!$E46,Facility!$E46*Facility!$E$115),0) -> 0 | D46: =IF(Facility!$F46=D$14,CHOOSE(Facility!$W$4,Facility!$E46,Facility!$E46*Facility!$E$115),0) -> 0 | E46: =IF(Facility!$F46=E$14,CHOOSE(Facility!$W$4,Facility!$E46,Facility!$E46*Facility!$E$115),0) -> 0 | F46: =IF(Facility!$F46=F$14,CHOOSE(Facility!$W$4,Facility!$E46,Facility!$E46*Facility!$E$115),0) -> 0 | H46: 0 | I46: 0 | J46: 0 | K46: 0 | M46: =H46*Facility!$H46 -> 0 | N46: =I46*Facility!$H46 -> 0 | O46: =J46*Facility!$H46 -> 0 | P46: =K46*Facility!$H46 -> 0 | R46: =H46*Facility!$M46 -> 0 | S46: =I46*Facility!$M46 -> 0 | T46: =J46*Facility!$M46 -> 0 | U46: =K46*Facility!$M46 -> 0 | W46: =H46*Facility!$N46 -> 0 | X46: =I46*Facility!$N46 -> 0 | Y46: =J46*Facility!$N46 -> 0 | Z46: =K46*Facility!$N46 -> 0
A47: =Facility!B47 -> 0 | B47: =Facility!C47 -> 0 | C47: =IF(Facility!$F47=C$14,CHOOSE(Facility!$W$4,Facility!$E47,Facility!$E47*Facility!$E$115),0) -> 0 | D47: =IF(Facility!$F47=D$14,CHOOSE(Facility!$W$4,Facility!$E47,Facility!$E47*Facility!$E$115),0) -> 0 | E47: =IF(Facility!$F47=E$14,CHOOSE(Facility!$W$4,Facility!$E47,Facility!$E47*Facility!$E$115),0) -> 0 | F47: =IF(Facility!$F47=F$14,CHOOSE(Facility!$W$4,Facility!$E47,Facility!$E47*Facility!$E$115),0) -> 0 | H47: =IF(C$114>0,C47/C$114,0) -> 0 | I47: =IF(D$114>0,D47/D$114,0) -> 0 | J47: =IF(E$114>0,E47/E$114,0) -> 0 | K47: =IF(F$114>0,F47/F$114,0) -> 0 | M47: =H47*Facility!$H47 -> 0 | N47: =I47*Facility!$H47 -> 0 | O47: =J47*Facility!$H47 -> 0 | P47: =K47*Facility!$H47 -> 0 | R47: =H47*Facility!$M47 -> 0 | S47: =I47*Facility!$M47 -> 0 | T47: =J47*Facility!$M47 -> 0 | U47: =K47*Facility!$M47 -> 0 | W47: =H47*Facility!$N47 -> 0 | X47: =I47*Facility!$N47 -> 0 | Y47: =J47*Facility!$N47 -> 0 | Z47: =K47*Facility!$N47 -> 0
A48: =Facility!B48 -> 0 | B48: =Facility!C48 -> 0 | C48: =IF(Facility!$F48=C$14,CHOOSE(Facility!$W$4,Facility!$E48,Facility!$E48*Facility!$E$115),0) -> 0 | D48: =IF(Facility!$F48=D$14,CHOOSE(Facility!$W$4,Facility!$E48,Facility!$E48*Facility!$E$115),0) -> 0 | E48: =IF(Facility!$F48=E$14,CHOOSE(Facility!$W$4,Facility!$E48,Facility!$E48*Facility!$E$115),0) -> 0 | F48: =IF(Facility!$F48=F$14,CHOOSE(Facility!$W$4,Facility!$E48,Facility!$E48*Facility!$E$115),0) -> 0 | H48: 0 | I48: 0 | J48: 0 | K48: 0 | M48: =H48*Facility!$H48 -> 0 | N48: =I48*Facility!$H48 -> 0 | O48: =J48*Facility!$H48 -> 0 | P48: =K48*Facility!$H48 -> 0 | R48: =H48*Facility!$M48 -> 0 | S48: =I48*Facility!$M48 -> 0 | T48: =J48*Facility!$M48 -> 0 | U48: =K48*Facility!$M48 -> 0 | W48: =H48*Facility!$N48 -> 0 | X48: =I48*Facility!$N48 -> 0 | Y48: =J48*Facility!$N48 -> 0 | Z48: =K48*Facility!$N48 -> 0
A49: =Facility!B49 -> 0 | B49: =Facility!C49 -> 0 | C49: =IF(Facility!$F49=C$14,CHOOSE(Facility!$W$4,Facility!$E49,Facility!$E49*Facility!$E$115),0) -> 0 | D49: =IF(Facility!$F49=D$14,CHOOSE(Facility!$W$4,Facility!$E49,Facility!$E49*Facility!$E$115),0) -> 0 | E49: =IF(Facility!$F49=E$14,CHOOSE(Facility!$W$4,Facility!$E49,Facility!$E49*Facility!$E$115),0) -> 0 | F49: =IF(Facility!$F49=F$14,CHOOSE(Facility!$W$4,Facility!$E49,Facility!$E49*Facility!$E$115),0) -> 0 | H49: 0 | I49: 0 | J49: 0 | K49: 0 | M49: =H49*Facility!$H49 -> 0 | N49: =I49*Facility!$H49 -> 0 | O49: =J49*Facility!$H49 -> 0 | P49: =K49*Facility!$H49 -> 0 | R49: =H49*Facility!$M49 -> 0 | S49: =I49*Facility!$M49 -> 0 | T49: =J49*Facility!$M49 -> 0 | U49: =K49*Facility!$M49 -> 0 | W49: =H49*Facility!$N49 -> 0 | X49: =I49*Facility!$N49 -> 0 | Y49: =J49*Facility!$N49 -> 0 | Z49: =K49*Facility!$N49 -> 0
A50: =Facility!B50 -> 0 | B50: =Facility!C50 -> 0 | C50: =IF(Facility!$F50=C$14,CHOOSE(Facility!$W$4,Facility!$E50,Facility!$E50*Facility!$E$115),0) -> 0 | D50: =IF(Facility!$F50=D$14,CHOOSE(Facility!$W$4,Facility!$E50,Facility!$E50*Facility!$E$115),0) -> 0 | E50: =IF(Facility!$F50=E$14,CHOOSE(Facility!$W$4,Facility!$E50,Facility!$E50*Facility!$E$115),0) -> 0 | F50: =IF(Facility!$F50=F$14,CHOOSE(Facility!$W$4,Facility!$E50,Facility!$E50*Facility!$E$115),0) -> 0 | H50: 0 | I50: 0 | J50: 0 | K50: 0 | M50: =H50*Facility!$H50 -> 0 | N50: =I50*Facility!$H50 -> 0 | O50: =J50*Facility!$H50 -> 0 | P50: =K50*Facility!$H50 -> 0 | R50: =H50*Facility!$M50 -> 0 | S50: =I50*Facility!$M50 -> 0 | T50: =J50*Facility!$M50 -> 0 | U50: =K50*Facility!$M50 -> 0 | W50: =H50*Facility!$N50 -> 0 | X50: =I50*Facility!$N50 -> 0 | Y50: =J50*Facility!$N50 -> 0 | Z50: =K50*Facility!$N50 -> 0
A51: =Facility!B51 -> 0 | B51: =Facility!C51 -> 0 | C51: =IF(Facility!$F51=C$14,CHOOSE(Facility!$W$4,Facility!$E51,Facility!$E51*Facility!$E$115),0) -> 0 | D51: =IF(Facility!$F51=D$14,CHOOSE(Facility!$W$4,Facility!$E51,Facility!$E51*Facility!$E$115),0) -> 0 | E51: =IF(Facility!$F51=E$14,CHOOSE(Facility!$W$4,Facility!$E51,Facility!$E51*Facility!$E$115),0) -> 0 | F51: =IF(Facility!$F51=F$14,CHOOSE(Facility!$W$4,Facility!$E51,Facility!$E51*Facility!$E$115),0) -> 0 | H51: 0 | I51: 0 | J51: 0 | K51: 0 | M51: =H51*Facility!$H51 -> 0 | N51: =I51*Facility!$H51 -> 0 | O51: =J51*Facility!$H51 -> 0 | P51: =K51*Facility!$H51 -> 0 | R51: =H51*Facility!$M51 -> 0 | S51: =I51*Facility!$M51 -> 0 | T51: =J51*Facility!$M51 -> 0 | U51: =K51*Facility!$M51 -> 0 | W51: =H51*Facility!$N51 -> 0 | X51: =I51*Facility!$N51 -> 0 | Y51: =J51*Facility!$N51 -> 0 | Z51: =K51*Facility!$N51 -> 0
A52: =Facility!B52 -> 0 | B52: =Facility!C52 -> 0 | C52: =IF(Facility!$F52=C$14,CHOOSE(Facility!$W$4,Facility!$E52,Facility!$E52*Facility!$E$115),0) -> 0 | D52: =IF(Facility!$F52=D$14,CHOOSE(Facility!$W$4,Facility!$E52,Facility!$E52*Facility!$E$115),0) -> 0 | E52: =IF(Facility!$F52=E$14,CHOOSE(Facility!$W$4,Facility!$E52,Facility!$E52*Facility!$E$115),0) -> 0 | F52: =IF(Facility!$F52=F$14,CHOOSE(Facility!$W$4,Facility!$E52,Facility!$E52*Facility!$E$115),0) -> 0 | H52: 0 | I52: 0 | J52: 0 | K52: 0 | M52: =H52*Facility!$H52 -> 0 | N52: =I52*Facility!$H52 -> 0 | O52: =J52*Facility!$H52 -> 0 | P52: =K52*Facility!$H52 -> 0 | R52: =H52*Facility!$M52 -> 0 | S52: =I52*Facility!$M52 -> 0 | T52: =J52*Facility!$M52 -> 0 | U52: =K52*Facility!$M52 -> 0 | W52: =H52*Facility!$N52 -> 0 | X52: =I52*Facility!$N52 -> 0 | Y52: =J52*Facility!$N52 -> 0 | Z52: =K52*Facility!$N52 -> 0
A53: =Facility!B53 -> 0 | B53: =Facility!C53 -> 0 | C53: =IF(Facility!$F53=C$14,CHOOSE(Facility!$W$4,Facility!$E53,Facility!$E53*Facility!$E$115),0) -> 0 | D53: =IF(Facility!$F53=D$14,CHOOSE(Facility!$W$4,Facility!$E53,Facility!$E53*Facility!$E$115),0) -> 0 | E53: =IF(Facility!$F53=E$14,CHOOSE(Facility!$W$4,Facility!$E53,Facility!$E53*Facility!$E$115),0) -> 0 | F53: =IF(Facility!$F53=F$14,CHOOSE(Facility!$W$4,Facility!$E53,Facility!$E53*Facility!$E$115),0) -> 0 | H53: 0 | I53: 0 | J53: 0 | K53: 0 | M53: =H53*Facility!$H53 -> 0 | N53: =I53*Facility!$H53 -> 0 | O53: =J53*Facility!$H53 -> 0 | P53: =K53*Facility!$H53 -> 0 | R53: =H53*Facility!$M53 -> 0 | S53: =I53*Facility!$M53 -> 0 | T53: =J53*Facility!$M53 -> 0 | U53: =K53*Facility!$M53 -> 0 | W53: =H53*Facility!$N53 -> 0 | X53: =I53*Facility!$N53 -> 0 | Y53: =J53*Facility!$N53 -> 0 | Z53: =K53*Facility!$N53 -> 0
A54: =Facility!B54 -> 0 | B54: =Facility!C54 -> 0 | C54: =IF(Facility!$F54=C$14,CHOOSE(Facility!$W$4,Facility!$E54,Facility!$E54*Facility!$E$115),0) -> 0 | D54: =IF(Facility!$F54=D$14,CHOOSE(Facility!$W$4,Facility!$E54,Facility!$E54*Facility!$E$115),0) -> 0 | E54: =IF(Facility!$F54=E$14,CHOOSE(Facility!$W$4,Facility!$E54,Facility!$E54*Facility!$E$115),0) -> 0 | F54: =IF(Facility!$F54=F$14,CHOOSE(Facility!$W$4,Facility!$E54,Facility!$E54*Facility!$E$115),0) -> 0 | H54: 0 | I54: 0 | J54: 0 | K54: 0 | M54: =H54*Facility!$H54 -> 0 | N54: =I54*Facility!$H54 -> 0 | O54: =J54*Facility!$H54 -> 0 | P54: =K54*Facility!$H54 -> 0 | R54: =H54*Facility!$M54 -> 0 | S54: =I54*Facility!$M54 -> 0 | T54: =J54*Facility!$M54 -> 0 | U54: =K54*Facility!$M54 -> 0 | W54: =H54*Facility!$N54 -> 0 | X54: =I54*Facility!$N54 -> 0 | Y54: =J54*Facility!$N54 -> 0 | Z54: =K54*Facility!$N54 -> 0
A55: =Facility!B55 -> 0 | B55: =Facility!C55 -> 0 | C55: =IF(Facility!$F55=C$14,CHOOSE(Facility!$W$4,Facility!$E55,Facility!$E55*Facility!$E$115),0) -> 0 | D55: =IF(Facility!$F55=D$14,CHOOSE(Facility!$W$4,Facility!$E55,Facility!$E55*Facility!$E$115),0) -> 0 | E55: =IF(Facility!$F55=E$14,CHOOSE(Facility!$W$4,Facility!$E55,Facility!$E55*Facility!$E$115),0) -> 0 | F55: =IF(Facility!$F55=F$14,CHOOSE(Facility!$W$4,Facility!$E55,Facility!$E55*Facility!$E$115),0) -> 0 | H55: 0 | I55: 0 | J55: 0 | K55: 0 | M55: =H55*Facility!$H55 -> 0 | N55: =I55*Facility!$H55 -> 0 | O55: =J55*Facility!$H55 -> 0 | P55: =K55*Facility!$H55 -> 0 | R55: =H55*Facility!$M55 -> 0 | S55: =I55*Facility!$M55 -> 0 | T55: =J55*Facility!$M55 -> 0 | U55: =K55*Facility!$M55 -> 0 | W55: =H55*Facility!$N55 -> 0 | X55: =I55*Facility!$N55 -> 0 | Y55: =J55*Facility!$N55 -> 0 | Z55: =K55*Facility!$N55 -> 0
A56: =Facility!B56 -> 0 | B56: =Facility!C56 -> 0 | C56: =IF(Facility!$F56=C$14,CHOOSE(Facility!$W$4,Facility!$E56,Facility!$E56*Facility!$E$115),0) -> 0 | D56: =IF(Facility!$F56=D$14,CHOOSE(Facility!$W$4,Facility!$E56,Facility!$E56*Facility!$E$115),0) -> 0 | E56: =IF(Facility!$F56=E$14,CHOOSE(Facility!$W$4,Facility!$E56,Facility!$E56*Facility!$E$115),0) -> 0 | F56: =IF(Facility!$F56=F$14,CHOOSE(Facility!$W$4,Facility!$E56,Facility!$E56*Facility!$E$115),0) -> 0 | H56: 0 | I56: 0 | J56: 0 | K56: 0 | M56: =H56*Facility!$H56 -> 0 | N56: =I56*Facility!$H56 -> 0 | O56: =J56*Facility!$H56 -> 0 | P56: =K56*Facility!$H56 -> 0 | R56: =H56*Facility!$M56 -> 0 | S56: =I56*Facility!$M56 -> 0 | T56: =J56*Facility!$M56 -> 0 | U56: =K56*Facility!$M56 -> 0 | W56: =H56*Facility!$N56 -> 0 | X56: =I56*Facility!$N56 -> 0 | Y56: =J56*Facility!$N56 -> 0 | Z56: =K56*Facility!$N56 -> 0
A57: =Facility!B57 -> 0 | B57: =Facility!C57 -> 0 | C57: =IF(Facility!$F57=C$14,CHOOSE(Facility!$W$4,Facility!$E57,Facility!$E57*Facility!$E$115),0) -> 0 | D57: =IF(Facility!$F57=D$14,CHOOSE(Facility!$W$4,Facility!$E57,Facility!$E57*Facility!$E$115),0) -> 0 | E57: =IF(Facility!$F57=E$14,CHOOSE(Facility!$W$4,Facility!$E57,Facility!$E57*Facility!$E$115),0) -> 0 | F57: =IF(Facility!$F57=F$14,CHOOSE(Facility!$W$4,Facility!$E57,Facility!$E57*Facility!$E$115),0) -> 0 | H57: 0 | I57: 0 | J57: 0 | K57: 0 | M57: =H57*Facility!$H57 -> 0 | N57: =I57*Facility!$H57 -> 0 | O57: =J57*Facility!$H57 -> 0 | P57: =K57*Facility!$H57 -> 0 | R57: =H57*Facility!$M57 -> 0 | S57: =I57*Facility!$M57 -> 0 | T57: =J57*Facility!$M57 -> 0 | U57: =K57*Facility!$M57 -> 0 | W57: =H57*Facility!$N57 -> 0 | X57: =I57*Facility!$N57 -> 0 | Y57: =J57*Facility!$N57 -> 0 | Z57: =K57*Facility!$N57 -> 0
A58: =Facility!B58 -> 0 | B58: =Facility!C58 -> 0 | C58: =IF(Facility!$F58=C$14,CHOOSE(Facility!$W$4,Facility!$E58,Facility!$E58*Facility!$E$115),0) -> 0 | D58: =IF(Facility!$F58=D$14,CHOOSE(Facility!$W$4,Facility!$E58,Facility!$E58*Facility!$E$115),0) -> 0 | E58: =IF(Facility!$F58=E$14,CHOOSE(Facility!$W$4,Facility!$E58,Facility!$E58*Facility!$E$115),0) -> 0 | F58: =IF(Facility!$F58=F$14,CHOOSE(Facility!$W$4,Facility!$E58,Facility!$E58*Facility!$E$115),0) -> 0 | H58: 0 | I58: 0 | J58: 0 | K58: 0 | M58: =H58*Facility!$H58 -> 0 | N58: =I58*Facility!$H58 -> 0 | O58: =J58*Facility!$H58 -> 0 | P58: =K58*Facility!$H58 -> 0 | R58: =H58*Facility!$M58 -> 0 | S58: =I58*Facility!$M58 -> 0 | T58: =J58*Facility!$M58 -> 0 | U58: =K58*Facility!$M58 -> 0 | W58: =H58*Facility!$N58 -> 0 | X58: =I58*Facility!$N58 -> 0 | Y58: =J58*Facility!$N58 -> 0 | Z58: =K58*Facility!$N58 -> 0
A59: =Facility!B59 -> 0 | B59: =Facility!C59 -> 0 | C59: =IF(Facility!$F59=C$14,CHOOSE(Facility!$W$4,Facility!$E59,Facility!$E59*Facility!$E$115),0) -> 0 | D59: =IF(Facility!$F59=D$14,CHOOSE(Facility!$W$4,Facility!$E59,Facility!$E59*Facility!$E$115),0) -> 0 | E59: =IF(Facility!$F59=E$14,CHOOSE(Facility!$W$4,Facility!$E59,Facility!$E59*Facility!$E$115),0) -> 0 | F59: =IF(Facility!$F59=F$14,CHOOSE(Facility!$W$4,Facility!$E59,Facility!$E59*Facility!$E$115),0) -> 0 | H59: 0 | I59: 0 | J59: 0 | K59: 0 | M59: =H59*Facility!$H59 -> 0 | N59: =I59*Facility!$H59 -> 0 | O59: =J59*Facility!$H59 -> 0 | P59: =K59*Facility!$H59 -> 0 | R59: =H59*Facility!$M59 -> 0 | S59: =I59*Facility!$M59 -> 0 | T59: =J59*Facility!$M59 -> 0 | U59: =K59*Facility!$M59 -> 0 | W59: =H59*Facility!$N59 -> 0 | X59: =I59*Facility!$N59 -> 0 | Y59: =J59*Facility!$N59 -> 0 | Z59: =K59*Facility!$N59 -> 0
A60: =Facility!B60 -> 0 | B60: =Facility!C60 -> 0 | C60: =IF(Facility!$F60=C$14,CHOOSE(Facility!$W$4,Facility!$E60,Facility!$E60*Facility!$E$115),0) -> 0 | D60: =IF(Facility!$F60=D$14,CHOOSE(Facility!$W$4,Facility!$E60,Facility!$E60*Facility!$E$115),0) -> 0 | E60: =IF(Facility!$F60=E$14,CHOOSE(Facility!$W$4,Facility!$E60,Facility!$E60*Facility!$E$115),0) -> 0 | F60: =IF(Facility!$F60=F$14,CHOOSE(Facility!$W$4,Facility!$E60,Facility!$E60*Facility!$E$115),0) -> 0 | H60: 0 | I60: 0 | J60: 0 | K60: 0 | M60: =H60*Facility!$H60 -> 0 | N60: =I60*Facility!$H60 -> 0 | O60: =J60*Facility!$H60 -> 0 | P60: =K60*Facility!$H60 -> 0 | R60: =H60*Facility!$M60 -> 0 | S60: =I60*Facility!$M60 -> 0 | T60: =J60*Facility!$M60 -> 0 | U60: =K60*Facility!$M60 -> 0 | W60: =H60*Facility!$N60 -> 0 | X60: =I60*Facility!$N60 -> 0 | Y60: =J60*Facility!$N60 -> 0 | Z60: =K60*Facility!$N60 -> 0
A61: =Facility!B61 -> 0 | B61: =Facility!C61 -> 0 | C61: =IF(Facility!$F61=C$14,CHOOSE(Facility!$W$4,Facility!$E61,Facility!$E61*Facility!$E$115),0) -> 0 | D61: =IF(Facility!$F61=D$14,CHOOSE(Facility!$W$4,Facility!$E61,Facility!$E61*Facility!$E$115),0) -> 0 | E61: =IF(Facility!$F61=E$14,CHOOSE(Facility!$W$4,Facility!$E61,Facility!$E61*Facility!$E$115),0) -> 0 | F61: =IF(Facility!$F61=F$14,CHOOSE(Facility!$W$4,Facility!$E61,Facility!$E61*Facility!$E$115),0) -> 0 | H61: 0 | I61: 0 | J61: 0 | K61: 0 | M61: =H61*Facility!$H61 -> 0 | N61: =I61*Facility!$H61 -> 0 | O61: =J61*Facility!$H61 -> 0 | P61: =K61*Facility!$H61 -> 0 | R61: =H61*Facility!$M61 -> 0 | S61: =I61*Facility!$M61 -> 0 | T61: =J61*Facility!$M61 -> 0 | U61: =K61*Facility!$M61 -> 0 | W61: =H61*Facility!$N61 -> 0 | X61: =I61*Facility!$N61 -> 0 | Y61: =J61*Facility!$N61 -> 0 | Z61: =K61*Facility!$N61 -> 0
A62: =Facility!B62 -> 0 | B62: =Facility!C62 -> 0 | C62: =IF(Facility!$F62=C$14,CHOOSE(Facility!$W$4,Facility!$E62,Facility!$E62*Facility!$E$115),0) -> 0 | D62: =IF(Facility!$F62=D$14,CHOOSE(Facility!$W$4,Facility!$E62,Facility!$E62*Facility!$E$115),0) -> 0 | E62: =IF(Facility!$F62=E$14,CHOOSE(Facility!$W$4,Facility!$E62,Facility!$E62*Facility!$E$115),0) -> 0 | F62: =IF(Facility!$F62=F$14,CHOOSE(Facility!$W$4,Facility!$E62,Facility!$E62*Facility!$E$115),0) -> 0 | H62: 0 | I62: 0 | J62: 0 | K62: 0 | M62: =H62*Facility!$H62 -> 0 | N62: =I62*Facility!$H62 -> 0 | O62: =J62*Facility!$H62 -> 0 | P62: =K62*Facility!$H62 -> 0 | R62: =H62*Facility!$M62 -> 0 | S62: =I62*Facility!$M62 -> 0 | T62: =J62*Facility!$M62 -> 0 | U62: =K62*Facility!$M62 -> 0 | W62: =H62*Facility!$N62 -> 0 | X62: =I62*Facility!$N62 -> 0 | Y62: =J62*Facility!$N62 -> 0 | Z62: =K62*Facility!$N62 -> 0
A63: =Facility!B63 -> 0 | B63: =Facility!C63 -> 0 | C63: =IF(Facility!$F63=C$14,CHOOSE(Facility!$W$4,Facility!$E63,Facility!$E63*Facility!$E$115),0) -> 0 | D63: =IF(Facility!$F63=D$14,CHOOSE(Facility!$W$4,Facility!$E63,Facility!$E63*Facility!$E$115),0) -> 0 | E63: =IF(Facility!$F63=E$14,CHOOSE(Facility!$W$4,Facility!$E63,Facility!$E63*Facility!$E$115),0) -> 0 | F63: =IF(Facility!$F63=F$14,CHOOSE(Facility!$W$4,Facility!$E63,Facility!$E63*Facility!$E$115),0) -> 0 | H63: 0 | I63: 0 | J63: 0 | K63: 0 | M63: =H63*Facility!$H63 -> 0 | N63: =I63*Facility!$H63 -> 0 | O63: =J63*Facility!$H63 -> 0 | P63: =K63*Facility!$H63 -> 0 | R63: =H63*Facility!$M63 -> 0 | S63: =I63*Facility!$M63 -> 0 | T63: =J63*Facility!$M63 -> 0 | U63: =K63*Facility!$M63 -> 0 | W63: =H63*Facility!$N63 -> 0 | X63: =I63*Facility!$N63 -> 0 | Y63: =J63*Facility!$N63 -> 0 | Z63: =K63*Facility!$N63 -> 0
A64: =Facility!B64 -> 0 | B64: =Facility!C64 -> 0 | C64: =IF(Facility!$F64=C$14,CHOOSE(Facility!$W$4,Facility!$E64,Facility!$E64*Facility!$E$115),0) -> 0 | D64: =IF(Facility!$F64=D$14,CHOOSE(Facility!$W$4,Facility!$E64,Facility!$E64*Facility!$E$115),0) -> 0 | E64: =IF(Facility!$F64=E$14,CHOOSE(Facility!$W$4,Facility!$E64,Facility!$E64*Facility!$E$115),0) -> 0 | F64: =IF(Facility!$F64=F$14,CHOOSE(Facility!$W$4,Facility!$E64,Facility!$E64*Facility!$E$115),0) -> 0 | H64: 0 | I64: 0 | J64: 0 | K64: 0 | M64: =H64*Facility!$H64 -> 0 | N64: =I64*Facility!$H64 -> 0 | O64: =J64*Facility!$H64 -> 0 | P64: =K64*Facility!$H64 -> 0 | R64: =H64*Facility!$M64 -> 0 | S64: =I64*Facility!$M64 -> 0 | T64: =J64*Facility!$M64 -> 0 | U64: =K64*Facility!$M64 -> 0 | W64: =H64*Facility!$N64 -> 0 | X64: =I64*Facility!$N64 -> 0 | Y64: =J64*Facility!$N64 -> 0 | Z64: =K64*Facility!$N64 -> 0
A65: =Facility!B65 -> 0 | B65: =Facility!C65 -> 0 | C65: =IF(Facility!$F65=C$14,CHOOSE(Facility!$W$4,Facility!$E65,Facility!$E65*Facility!$E$115),0) -> 0 | D65: =IF(Facility!$F65=D$14,CHOOSE(Facility!$W$4,Facility!$E65,Facility!$E65*Facility!$E$115),0) -> 0 | E65: =IF(Facility!$F65=E$14,CHOOSE(Facility!$W$4,Facility!$E65,Facility!$E65*Facility!$E$115),0) -> 0 | F65: =IF(Facility!$F65=F$14,CHOOSE(Facility!$W$4,Facility!$E65,Facility!$E65*Facility!$E$115),0) -> 0 | H65: 0 | I65: 0 | J65: 0 | K65: 0 | M65: =H65*Facility!$H65 -> 0 | N65: =I65*Facility!$H65 -> 0 | O65: =J65*Facility!$H65 -> 0 | P65: =K65*Facility!$H65 -> 0 | R65: =H65*Facility!$M65 -> 0 | S65: =I65*Facility!$M65 -> 0 | T65: =J65*Facility!$M65 -> 0 | U65: =K65*Facility!$M65 -> 0 | W65: =H65*Facility!$N65 -> 0 | X65: =I65*Facility!$N65 -> 0 | Y65: =J65*Facility!$N65 -> 0 | Z65: =K65*Facility!$N65 -> 0
A66: =Facility!B66 -> 0 | B66: =Facility!C66 -> 0 | C66: =IF(Facility!$F66=C$14,CHOOSE(Facility!$W$4,Facility!$E66,Facility!$E66*Facility!$E$115),0) -> 0 | D66: =IF(Facility!$F66=D$14,CHOOSE(Facility!$W$4,Facility!$E66,Facility!$E66*Facility!$E$115),0) -> 0 | E66: =IF(Facility!$F66=E$14,CHOOSE(Facility!$W$4,Facility!$E66,Facility!$E66*Facility!$E$115),0) -> 0 | F66: =IF(Facility!$F66=F$14,CHOOSE(Facility!$W$4,Facility!$E66,Facility!$E66*Facility!$E$115),0) -> 0 | H66: 0 | I66: 0 | J66: 0 | K66: 0 | M66: =H66*Facility!$H66 -> 0 | N66: =I66*Facility!$H66 -> 0 | O66: =J66*Facility!$H66 -> 0 | P66: =K66*Facility!$H66 -> 0 | R66: =H66*Facility!$M66 -> 0 | S66: =I66*Facility!$M66 -> 0 | T66: =J66*Facility!$M66 -> 0 | U66: =K66*Facility!$M66 -> 0 | W66: =H66*Facility!$N66 -> 0 | X66: =I66*Facility!$N66 -> 0 | Y66: =J66*Facility!$N66 -> 0 | Z66: =K66*Facility!$N66 -> 0
A67: =Facility!B67 -> 0 | B67: =Facility!C67 -> 0 | C67: =IF(Facility!$F67=C$14,CHOOSE(Facility!$W$4,Facility!$E67,Facility!$E67*Facility!$E$115),0) -> 0 | D67: =IF(Facility!$F67=D$14,CHOOSE(Facility!$W$4,Facility!$E67,Facility!$E67*Facility!$E$115),0) -> 0 | E67: =IF(Facility!$F67=E$14,CHOOSE(Facility!$W$4,Facility!$E67,Facility!$E67*Facility!$E$115),0) -> 0 | F67: =IF(Facility!$F67=F$14,CHOOSE(Facility!$W$4,Facility!$E67,Facility!$E67*Facility!$E$115),0) -> 0 | H67: 0 | I67: 0 | J67: 0 | K67: 0 | M67: =H67*Facility!$H67 -> 0 | N67: =I67*Facility!$H67 -> 0 | O67: =J67*Facility!$H67 -> 0 | P67: =K67*Facility!$H67 -> 0 | R67: =H67*Facility!$M67 -> 0 | S67: =I67*Facility!$M67 -> 0 | T67: =J67*Facility!$M67 -> 0 | U67: =K67*Facility!$M67 -> 0 | W67: =H67*Facility!$N67 -> 0 | X67: =I67*Facility!$N67 -> 0 | Y67: =J67*Facility!$N67 -> 0 | Z67: =K67*Facility!$N67 -> 0
A68: =Facility!B68 -> 0 | B68: =Facility!C68 -> 0 | C68: =IF(Facility!$F68=C$14,CHOOSE(Facility!$W$4,Facility!$E68,Facility!$E68*Facility!$E$115),0) -> 0 | D68: =IF(Facility!$F68=D$14,CHOOSE(Facility!$W$4,Facility!$E68,Facility!$E68*Facility!$E$115),0) -> 0 | E68: =IF(Facility!$F68=E$14,CHOOSE(Facility!$W$4,Facility!$E68,Facility!$E68*Facility!$E$115),0) -> 0 | F68: =IF(Facility!$F68=F$14,CHOOSE(Facility!$W$4,Facility!$E68,Facility!$E68*Facility!$E$115),0) -> 0 | H68: 0 | I68: 0 | J68: 0 | K68: 0 | M68: =H68*Facility!$H68 -> 0 | N68: =I68*Facility!$H68 -> 0 | O68: =J68*Facility!$H68 -> 0 | P68: =K68*Facility!$H68 -> 0 | R68: =H68*Facility!$M68 -> 0 | S68: =I68*Facility!$M68 -> 0 | T68: =J68*Facility!$M68 -> 0 | U68: =K68*Facility!$M68 -> 0 | W68: =H68*Facility!$N68 -> 0 | X68: =I68*Facility!$N68 -> 0 | Y68: =J68*Facility!$N68 -> 0 | Z68: =K68*Facility!$N68 -> 0
A69: =Facility!B69 -> 0 | B69: =Facility!C69 -> 0 | C69: =IF(Facility!$F69=C$14,CHOOSE(Facility!$W$4,Facility!$E69,Facility!$E69*Facility!$E$115),0) -> 0 | D69: =IF(Facility!$F69=D$14,CHOOSE(Facility!$W$4,Facility!$E69,Facility!$E69*Facility!$E$115),0) -> 0 | E69: =IF(Facility!$F69=E$14,CHOOSE(Facility!$W$4,Facility!$E69,Facility!$E69*Facility!$E$115),0) -> 0 | F69: =IF(Facility!$F69=F$14,CHOOSE(Facility!$W$4,Facility!$E69,Facility!$E69*Facility!$E$115),0) -> 0 | H69: 0 | I69: 0 | J69: 0 | K69: 0 | M69: =H69*Facility!$H69 -> 0 | N69: =I69*Facility!$H69 -> 0 | O69: =J69*Facility!$H69 -> 0 | P69: =K69*Facility!$H69 -> 0 | R69: =H69*Facility!$M69 -> 0 | S69: =I69*Facility!$M69 -> 0 | T69: =J69*Facility!$M69 -> 0 | U69: =K69*Facility!$M69 -> 0 | W69: =H69*Facility!$N69 -> 0 | X69: =I69*Facility!$N69 -> 0 | Y69: =J69*Facility!$N69 -> 0 | Z69: =K69*Facility!$N69 -> 0
A70: =Facility!B70 -> 0 | B70: =Facility!C70 -> 0 | C70: =IF(Facility!$F70=C$14,CHOOSE(Facility!$W$4,Facility!$E70,Facility!$E70*Facility!$E$115),0) -> 0 | D70: =IF(Facility!$F70=D$14,CHOOSE(Facility!$W$4,Facility!$E70,Facility!$E70*Facility!$E$115),0) -> 0 | E70: =IF(Facility!$F70=E$14,CHOOSE(Facility!$W$4,Facility!$E70,Facility!$E70*Facility!$E$115),0) -> 0 | F70: =IF(Facility!$F70=F$14,CHOOSE(Facility!$W$4,Facility!$E70,Facility!$E70*Facility!$E$115),0) -> 0 | H70: 0 | I70: 0 | J70: 0 | K70: 0 | M70: =H70*Facility!$H70 -> 0 | N70: =I70*Facility!$H70 -> 0 | O70: =J70*Facility!$H70 -> 0 | P70: =K70*Facility!$H70 -> 0 | R70: =H70*Facility!$M70 -> 0 | S70: =I70*Facility!$M70 -> 0 | T70: =J70*Facility!$M70 -> 0 | U70: =K70*Facility!$M70 -> 0 | W70: =H70*Facility!$N70 -> 0 | X70: =I70*Facility!$N70 -> 0 | Y70: =J70*Facility!$N70 -> 0 | Z70: =K70*Facility!$N70 -> 0
A71: =Facility!B71 -> 0 | B71: =Facility!C71 -> 0 | C71: =IF(Facility!$F71=C$14,CHOOSE(Facility!$W$4,Facility!$E71,Facility!$E71*Facility!$E$115),0) -> 0 | D71: =IF(Facility!$F71=D$14,CHOOSE(Facility!$W$4,Facility!$E71,Facility!$E71*Facility!$E$115),0) -> 0 | E71: =IF(Facility!$F71=E$14,CHOOSE(Facility!$W$4,Facility!$E71,Facility!$E71*Facility!$E$115),0) -> 0 | F71: =IF(Facility!$F71=F$14,CHOOSE(Facility!$W$4,Facility!$E71,Facility!$E71*Facility!$E$115),0) -> 0 | H71: 0 | I71: 0 | J71: 0 | K71: 0 | M71: =H71*Facility!$H71 -> 0 | N71: =I71*Facility!$H71 -> 0 | O71: =J71*Facility!$H71 -> 0 | P71: =K71*Facility!$H71 -> 0 | R71: =H71*Facility!$M71 -> 0 | S71: =I71*Facility!$M71 -> 0 | T71: =J71*Facility!$M71 -> 0 | U71: =K71*Facility!$M71 -> 0 | W71: =H71*Facility!$N71 -> 0 | X71: =I71*Facility!$N71 -> 0 | Y71: =J71*Facility!$N71 -> 0 | Z71: =K71*Facility!$N71 -> 0
A72: =Facility!B72 -> 0 | B72: =Facility!C72 -> 0 | C72: =IF(Facility!$F72=C$14,CHOOSE(Facility!$W$4,Facility!$E72,Facility!$E72*Facility!$E$115),0) -> 0 | D72: =IF(Facility!$F72=D$14,CHOOSE(Facility!$W$4,Facility!$E72,Facility!$E72*Facility!$E$115),0) -> 0 | E72: =IF(Facility!$F72=E$14,CHOOSE(Facility!$W$4,Facility!$E72,Facility!$E72*Facility!$E$115),0) -> 0 | F72: =IF(Facility!$F72=F$14,CHOOSE(Facility!$W$4,Facility!$E72,Facility!$E72*Facility!$E$115),0) -> 0 | H72: 0 | I72: 0 | J72: 0 | K72: 0 | M72: =H72*Facility!$H72 -> 0 | N72: =I72*Facility!$H72 -> 0 | O72: =J72*Facility!$H72 -> 0 | P72: =K72*Facility!$H72 -> 0 | R72: =H72*Facility!$M72 -> 0 | S72: =I72*Facility!$M72 -> 0 | T72: =J72*Facility!$M72 -> 0 | U72: =K72*Facility!$M72 -> 0 | W72: =H72*Facility!$N72 -> 0 | X72: =I72*Facility!$N72 -> 0 | Y72: =J72*Facility!$N72 -> 0 | Z72: =K72*Facility!$N72 -> 0
A73: =Facility!B73 -> 0 | B73: =Facility!C73 -> 0 | C73: =IF(Facility!$F73=C$14,CHOOSE(Facility!$W$4,Facility!$E73,Facility!$E73*Facility!$E$115),0) -> 0 | D73: =IF(Facility!$F73=D$14,CHOOSE(Facility!$W$4,Facility!$E73,Facility!$E73*Facility!$E$115),0) -> 0 | E73: =IF(Facility!$F73=E$14,CHOOSE(Facility!$W$4,Facility!$E73,Facility!$E73*Facility!$E$115),0) -> 0 | F73: =IF(Facility!$F73=F$14,CHOOSE(Facility!$W$4,Facility!$E73,Facility!$E73*Facility!$E$115),0) -> 0 | H73: 0 | I73: 0 | J73: 0 | K73: 0 | M73: =H73*Facility!$H73 -> 0 | N73: =I73*Facility!$H73 -> 0 | O73: =J73*Facility!$H73 -> 0 | P73: =K73*Facility!$H73 -> 0 | R73: =H73*Facility!$M73 -> 0 | S73: =I73*Facility!$M73 -> 0 | T73: =J73*Facility!$M73 -> 0 | U73: =K73*Facility!$M73 -> 0 | W73: =H73*Facility!$N73 -> 0 | X73: =I73*Facility!$N73 -> 0 | Y73: =J73*Facility!$N73 -> 0 | Z73: =K73*Facility!$N73 -> 0
A74: =Facility!B74 -> 0 | B74: =Facility!C74 -> 0 | C74: =IF(Facility!$F74=C$14,CHOOSE(Facility!$W$4,Facility!$E74,Facility!$E74*Facility!$E$115),0) -> 0 | D74: =IF(Facility!$F74=D$14,CHOOSE(Facility!$W$4,Facility!$E74,Facility!$E74*Facility!$E$115),0) -> 0 | E74: =IF(Facility!$F74=E$14,CHOOSE(Facility!$W$4,Facility!$E74,Facility!$E74*Facility!$E$115),0) -> 0 | F74: =IF(Facility!$F74=F$14,CHOOSE(Facility!$W$4,Facility!$E74,Facility!$E74*Facility!$E$115),0) -> 0 | H74: 0 | I74: 0 | J74: 0 | K74: 0 | M74: =H74*Facility!$H74 -> 0 | N74: =I74*Facility!$H74 -> 0 | O74: =J74*Facility!$H74 -> 0 | P74: =K74*Facility!$H74 -> 0 | R74: =H74*Facility!$M74 -> 0 | S74: =I74*Facility!$M74 -> 0 | T74: =J74*Facility!$M74 -> 0 | U74: =K74*Facility!$M74 -> 0 | W74: =H74*Facility!$N74 -> 0 | X74: =I74*Facility!$N74 -> 0 | Y74: =J74*Facility!$N74 -> 0 | Z74: =K74*Facility!$N74 -> 0
A75: =Facility!B75 -> 0 | B75: =Facility!C75 -> 0 | C75: =IF(Facility!$F75=C$14,CHOOSE(Facility!$W$4,Facility!$E75,Facility!$E75*Facility!$E$115),0) -> 0 | D75: =IF(Facility!$F75=D$14,CHOOSE(Facility!$W$4,Facility!$E75,Facility!$E75*Facility!$E$115),0) -> 0 | E75: =IF(Facility!$F75=E$14,CHOOSE(Facility!$W$4,Facility!$E75,Facility!$E75*Facility!$E$115),0) -> 0 | F75: =IF(Facility!$F75=F$14,CHOOSE(Facility!$W$4,Facility!$E75,Facility!$E75*Facility!$E$115),0) -> 0 | H75: 0 | I75: 0 | J75: 0 | K75: 0 | M75: =H75*Facility!$H75 -> 0 | N75: =I75*Facility!$H75 -> 0 | O75: =J75*Facility!$H75 -> 0 | P75: =K75*Facility!$H75 -> 0 | R75: =H75*Facility!$M75 -> 0 | S75: =I75*Facility!$M75 -> 0 | T75: =J75*Facility!$M75 -> 0 | U75: =K75*Facility!$M75 -> 0 | W75: =H75*Facility!$N75 -> 0 | X75: =I75*Facility!$N75 -> 0 | Y75: =J75*Facility!$N75 -> 0 | Z75: =K75*Facility!$N75 -> 0
A76: =Facility!B76 -> 0 | B76: =Facility!C76 -> 0 | C76: =IF(Facility!$F76=C$14,CHOOSE(Facility!$W$4,Facility!$E76,Facility!$E76*Facility!$E$115),0) -> 0 | D76: =IF(Facility!$F76=D$14,CHOOSE(Facility!$W$4,Facility!$E76,Facility!$E76*Facility!$E$115),0) -> 0 | E76: =IF(Facility!$F76=E$14,CHOOSE(Facility!$W$4,Facility!$E76,Facility!$E76*Facility!$E$115),0) -> 0 | F76: =IF(Facility!$F76=F$14,CHOOSE(Facility!$W$4,Facility!$E76,Facility!$E76*Facility!$E$115),0) -> 0 | H76: 0 | I76: 0 | J76: 0 | K76: 0 | M76: =H76*Facility!$H76 -> 0 | N76: =I76*Facility!$H76 -> 0 | O76: =J76*Facility!$H76 -> 0 | P76: =K76*Facility!$H76 -> 0 | R76: =H76*Facility!$M76 -> 0 | S76: =I76*Facility!$M76 -> 0 | T76: =J76*Facility!$M76 -> 0 | U76: =K76*Facility!$M76 -> 0 | W76: =H76*Facility!$N76 -> 0 | X76: =I76*Facility!$N76 -> 0 | Y76: =J76*Facility!$N76 -> 0 | Z76: =K76*Facility!$N76 -> 0
A77: =Facility!B77 -> 0 | B77: =Facility!C77 -> 0 | C77: =IF(Facility!$F77=C$14,CHOOSE(Facility!$W$4,Facility!$E77,Facility!$E77*Facility!$E$115),0) -> 0 | D77: =IF(Facility!$F77=D$14,CHOOSE(Facility!$W$4,Facility!$E77,Facility!$E77*Facility!$E$115),0) -> 0 | E77: =IF(Facility!$F77=E$14,CHOOSE(Facility!$W$4,Facility!$E77,Facility!$E77*Facility!$E$115),0) -> 0 | F77: =IF(Facility!$F77=F$14,CHOOSE(Facility!$W$4,Facility!$E77,Facility!$E77*Facility!$E$115),0) -> 0 | H77: 0 | I77: 0 | J77: 0 | K77: 0 | M77: =H77*Facility!$H77 -> 0 | N77: =I77*Facility!$H77 -> 0 | O77: =J77*Facility!$H77 -> 0 | P77: =K77*Facility!$H77 -> 0 | R77: =H77*Facility!$M77 -> 0 | S77: =I77*Facility!$M77 -> 0 | T77: =J77*Facility!$M77 -> 0 | U77: =K77*Facility!$M77 -> 0 | W77: =H77*Facility!$N77 -> 0 | X77: =I77*Facility!$N77 -> 0 | Y77: =J77*Facility!$N77 -> 0 | Z77: =K77*Facility!$N77 -> 0
A78: =Facility!B78 -> 0 | B78: =Facility!C78 -> 0 | C78: =IF(Facility!$F78=C$14,CHOOSE(Facility!$W$4,Facility!$E78,Facility!$E78*Facility!$E$115),0) -> 0 | D78: =IF(Facility!$F78=D$14,CHOOSE(Facility!$W$4,Facility!$E78,Facility!$E78*Facility!$E$115),0) -> 0 | E78: =IF(Facility!$F78=E$14,CHOOSE(Facility!$W$4,Facility!$E78,Facility!$E78*Facility!$E$115),0) -> 0 | F78: =IF(Facility!$F78=F$14,CHOOSE(Facility!$W$4,Facility!$E78,Facility!$E78*Facility!$E$115),0) -> 0 | H78: 0 | I78: 0 | J78: 0 | K78: 0 | M78: =H78*Facility!$H78 -> 0 | N78: =I78*Facility!$H78 -> 0 | O78: =J78*Facility!$H78 -> 0 | P78: =K78*Facility!$H78 -> 0 | R78: =H78*Facility!$M78 -> 0 | S78: =I78*Facility!$M78 -> 0 | T78: =J78*Facility!$M78 -> 0 | U78: =K78*Facility!$M78 -> 0 | W78: =H78*Facility!$N78 -> 0 | X78: =I78*Facility!$N78 -> 0 | Y78: =J78*Facility!$N78 -> 0 | Z78: =K78*Facility!$N78 -> 0
A79: =Facility!B79 -> 0 | B79: =Facility!C79 -> 0 | C79: =IF(Facility!$F79=C$14,CHOOSE(Facility!$W$4,Facility!$E79,Facility!$E79*Facility!$E$115),0) -> 0 | D79: =IF(Facility!$F79=D$14,CHOOSE(Facility!$W$4,Facility!$E79,Facility!$E79*Facility!$E$115),0) -> 0 | E79: =IF(Facility!$F79=E$14,CHOOSE(Facility!$W$4,Facility!$E79,Facility!$E79*Facility!$E$115),0) -> 0 | F79: =IF(Facility!$F79=F$14,CHOOSE(Facility!$W$4,Facility!$E79,Facility!$E79*Facility!$E$115),0) -> 0 | H79: =IF(C$114>0,C79/C$114,0) -> 0 | I79: =IF(D$114>0,D79/D$114,0) -> 0 | J79: =IF(E$114>0,E79/E$114,0) -> 0 | K79: =IF(F$114>0,F79/F$114,0) -> 0 | M79: =H79*Facility!$H79 -> 0 | N79: =I79*Facility!$H79 -> 0 | O79: =J79*Facility!$H79 -> 0 | P79: =K79*Facility!$H79 -> 0 | R79: =H79*Facility!$M79 -> 0 | S79: =I79*Facility!$M79 -> 0 | T79: =J79*Facility!$M79 -> 0 | U79: =K79*Facility!$M79 -> 0 | W79: =H79*Facility!$N79 -> 0 | X79: =I79*Facility!$N79 -> 0 | Y79: =J79*Facility!$N79 -> 0 | Z79: =K79*Facility!$N79 -> 0
A80: =Facility!B80 -> 0 | B80: =Facility!C80 -> 0 | C80: =IF(Facility!$F80=C$14,CHOOSE(Facility!$W$4,Facility!$E80,Facility!$E80*Facility!$E$115),0) -> 0 | D80: =IF(Facility!$F80=D$14,CHOOSE(Facility!$W$4,Facility!$E80,Facility!$E80*Facility!$E$115),0) -> 0 | E80: =IF(Facility!$F80=E$14,CHOOSE(Facility!$W$4,Facility!$E80,Facility!$E80*Facility!$E$115),0) -> 0 | F80: =IF(Facility!$F80=F$14,CHOOSE(Facility!$W$4,Facility!$E80,Facility!$E80*Facility!$E$115),0) -> 0 | H80: 0 | I80: 0 | J80: 0 | K80: 0 | M80: =H80*Facility!$H80 -> 0 | N80: =I80*Facility!$H80 -> 0 | O80: =J80*Facility!$H80 -> 0 | P80: =K80*Facility!$H80 -> 0 | R80: =H80*Facility!$M80 -> 0 | S80: =I80*Facility!$M80 -> 0 | T80: =J80*Facility!$M80 -> 0 | U80: =K80*Facility!$M80 -> 0 | W80: =H80*Facility!$N80 -> 0 | X80: =I80*Facility!$N80 -> 0 | Y80: =J80*Facility!$N80 -> 0 | Z80: =K80*Facility!$N80 -> 0
A81: =Facility!B81 -> 0 | B81: =Facility!C81 -> 0 | C81: =IF(Facility!$F81=C$14,CHOOSE(Facility!$W$4,Facility!$E81,Facility!$E81*Facility!$E$115),0) -> 0 | D81: =IF(Facility!$F81=D$14,CHOOSE(Facility!$W$4,Facility!$E81,Facility!$E81*Facility!$E$115),0) -> 0 | E81: =IF(Facility!$F81=E$14,CHOOSE(Facility!$W$4,Facility!$E81,Facility!$E81*Facility!$E$115),0) -> 0 | F81: =IF(Facility!$F81=F$14,CHOOSE(Facility!$W$4,Facility!$E81,Facility!$E81*Facility!$E$115),0) -> 0 | H81: 0 | I81: 0 | J81: 0 | K81: 0 | M81: =H81*Facility!$H81 -> 0 | N81: =I81*Facility!$H81 -> 0 | O81: =J81*Facility!$H81 -> 0 | P81: =K81*Facility!$H81 -> 0 | R81: =H81*Facility!$M81 -> 0 | S81: =I81*Facility!$M81 -> 0 | T81: =J81*Facility!$M81 -> 0 | U81: =K81*Facility!$M81 -> 0 | W81: =H81*Facility!$N81 -> 0 | X81: =I81*Facility!$N81 -> 0 | Y81: =J81*Facility!$N81 -> 0 | Z81: =K81*Facility!$N81 -> 0
A82: =Facility!B82 -> 0 | B82: =Facility!C82 -> 0 | C82: =IF(Facility!$F82=C$14,CHOOSE(Facility!$W$4,Facility!$E82,Facility!$E82*Facility!$E$115),0) -> 0 | D82: =IF(Facility!$F82=D$14,CHOOSE(Facility!$W$4,Facility!$E82,Facility!$E82*Facility!$E$115),0) -> 0 | E82: =IF(Facility!$F82=E$14,CHOOSE(Facility!$W$4,Facility!$E82,Facility!$E82*Facility!$E$115),0) -> 0 | F82: =IF(Facility!$F82=F$14,CHOOSE(Facility!$W$4,Facility!$E82,Facility!$E82*Facility!$E$115),0) -> 0 | H82: 0 | I82: 0 | J82: 0 | K82: 0 | M82: =H82*Facility!$H82 -> 0 | N82: =I82*Facility!$H82 -> 0 | O82: =J82*Facility!$H82 -> 0 | P82: =K82*Facility!$H82 -> 0 | R82: =H82*Facility!$M82 -> 0 | S82: =I82*Facility!$M82 -> 0 | T82: =J82*Facility!$M82 -> 0 | U82: =K82*Facility!$M82 -> 0 | W82: =H82*Facility!$N82 -> 0 | X82: =I82*Facility!$N82 -> 0 | Y82: =J82*Facility!$N82 -> 0 | Z82: =K82*Facility!$N82 -> 0
A83: =Facility!B83 -> 0 | B83: =Facility!C83 -> 0 | C83: =IF(Facility!$F83=C$14,CHOOSE(Facility!$W$4,Facility!$E83,Facility!$E83*Facility!$E$115),0) -> 0 | D83: =IF(Facility!$F83=D$14,CHOOSE(Facility!$W$4,Facility!$E83,Facility!$E83*Facility!$E$115),0) -> 0 | E83: =IF(Facility!$F83=E$14,CHOOSE(Facility!$W$4,Facility!$E83,Facility!$E83*Facility!$E$115),0) -> 0 | F83: =IF(Facility!$F83=F$14,CHOOSE(Facility!$W$4,Facility!$E83,Facility!$E83*Facility!$E$115),0) -> 0 | H83: 0 | I83: 0 | J83: 0 | K83: 0 | M83: =H83*Facility!$H83 -> 0 | N83: =I83*Facility!$H83 -> 0 | O83: =J83*Facility!$H83 -> 0 | P83: =K83*Facility!$H83 -> 0 | R83: =H83*Facility!$M83 -> 0 | S83: =I83*Facility!$M83 -> 0 | T83: =J83*Facility!$M83 -> 0 | U83: =K83*Facility!$M83 -> 0 | W83: =H83*Facility!$N83 -> 0 | X83: =I83*Facility!$N83 -> 0 | Y83: =J83*Facility!$N83 -> 0 | Z83: =K83*Facility!$N83 -> 0
A84: =Facility!B84 -> 0 | B84: =Facility!C84 -> 0 | C84: =IF(Facility!$F84=C$14,CHOOSE(Facility!$W$4,Facility!$E84,Facility!$E84*Facility!$E$115),0) -> 0 | D84: =IF(Facility!$F84=D$14,CHOOSE(Facility!$W$4,Facility!$E84,Facility!$E84*Facility!$E$115),0) -> 0 | E84: =IF(Facility!$F84=E$14,CHOOSE(Facility!$W$4,Facility!$E84,Facility!$E84*Facility!$E$115),0) -> 0 | F84: =IF(Facility!$F84=F$14,CHOOSE(Facility!$W$4,Facility!$E84,Facility!$E84*Facility!$E$115),0) -> 0 | H84: 0 | I84: 0 | J84: 0 | K84: 0 | M84: =H84*Facility!$H84 -> 0 | N84: =I84*Facility!$H84 -> 0 | O84: =J84*Facility!$H84 -> 0 | P84: =K84*Facility!$H84 -> 0 | R84: =H84*Facility!$M84 -> 0 | S84: =I84*Facility!$M84 -> 0 | T84: =J84*Facility!$M84 -> 0 | U84: =K84*Facility!$M84 -> 0 | W84: =H84*Facility!$N84 -> 0 | X84: =I84*Facility!$N84 -> 0 | Y84: =J84*Facility!$N84 -> 0 | Z84: =K84*Facility!$N84 -> 0
A85: =Facility!B85 -> 0 | B85: =Facility!C85 -> 0 | C85: =IF(Facility!$F85=C$14,CHOOSE(Facility!$W$4,Facility!$E85,Facility!$E85*Facility!$E$115),0) -> 0 | D85: =IF(Facility!$F85=D$14,CHOOSE(Facility!$W$4,Facility!$E85,Facility!$E85*Facility!$E$115),0) -> 0 | E85: =IF(Facility!$F85=E$14,CHOOSE(Facility!$W$4,Facility!$E85,Facility!$E85*Facility!$E$115),0) -> 0 | F85: =IF(Facility!$F85=F$14,CHOOSE(Facility!$W$4,Facility!$E85,Facility!$E85*Facility!$E$115),0) -> 0 | H85: 0 | I85: 0 | J85: 0 | K85: 0 | M85: =H85*Facility!$H85 -> 0 | N85: =I85*Facility!$H85 -> 0 | O85: =J85*Facility!$H85 -> 0 | P85: =K85*Facility!$H85 -> 0 | R85: =H85*Facility!$M85 -> 0 | S85: =I85*Facility!$M85 -> 0 | T85: =J85*Facility!$M85 -> 0 | U85: =K85*Facility!$M85 -> 0 | W85: =H85*Facility!$N85 -> 0 | X85: =I85*Facility!$N85 -> 0 | Y85: =J85*Facility!$N85 -> 0 | Z85: =K85*Facility!$N85 -> 0
A86: =Facility!B86 -> 0 | B86: =Facility!C86 -> 0 | C86: =IF(Facility!$F86=C$14,CHOOSE(Facility!$W$4,Facility!$E86,Facility!$E86*Facility!$E$115),0) -> 0 | D86: =IF(Facility!$F86=D$14,CHOOSE(Facility!$W$4,Facility!$E86,Facility!$E86*Facility!$E$115),0) -> 0 | E86: =IF(Facility!$F86=E$14,CHOOSE(Facility!$W$4,Facility!$E86,Facility!$E86*Facility!$E$115),0) -> 0 | F86: =IF(Facility!$F86=F$14,CHOOSE(Facility!$W$4,Facility!$E86,Facility!$E86*Facility!$E$115),0) -> 0 | H86: 0 | I86: 0 | J86: 0 | K86: 0 | M86: =H86*Facility!$H86 -> 0 | N86: =I86*Facility!$H86 -> 0 | O86: =J86*Facility!$H86 -> 0 | P86: =K86*Facility!$H86 -> 0 | R86: =H86*Facility!$M86 -> 0 | S86: =I86*Facility!$M86 -> 0 | T86: =J86*Facility!$M86 -> 0 | U86: =K86*Facility!$M86 -> 0 | W86: =H86*Facility!$N86 -> 0 | X86: =I86*Facility!$N86 -> 0 | Y86: =J86*Facility!$N86 -> 0 | Z86: =K86*Facility!$N86 -> 0
A87: =Facility!B87 -> 0 | B87: =Facility!C87 -> 0 | C87: =IF(Facility!$F87=C$14,CHOOSE(Facility!$W$4,Facility!$E87,Facility!$E87*Facility!$E$115),0) -> 0 | D87: =IF(Facility!$F87=D$14,CHOOSE(Facility!$W$4,Facility!$E87,Facility!$E87*Facility!$E$115),0) -> 0 | E87: =IF(Facility!$F87=E$14,CHOOSE(Facility!$W$4,Facility!$E87,Facility!$E87*Facility!$E$115),0) -> 0 | F87: =IF(Facility!$F87=F$14,CHOOSE(Facility!$W$4,Facility!$E87,Facility!$E87*Facility!$E$115),0) -> 0 | H87: 0 | I87: 0 | J87: 0 | K87: 0 | M87: =H87*Facility!$H87 -> 0 | N87: =I87*Facility!$H87 -> 0 | O87: =J87*Facility!$H87 -> 0 | P87: =K87*Facility!$H87 -> 0 | R87: =H87*Facility!$M87 -> 0 | S87: =I87*Facility!$M87 -> 0 | T87: =J87*Facility!$M87 -> 0 | U87: =K87*Facility!$M87 -> 0 | W87: =H87*Facility!$N87 -> 0 | X87: =I87*Facility!$N87 -> 0 | Y87: =J87*Facility!$N87 -> 0 | Z87: =K87*Facility!$N87 -> 0
A88: =Facility!B88 -> 0 | B88: =Facility!C88 -> 0 | C88: =IF(Facility!$F88=C$14,CHOOSE(Facility!$W$4,Facility!$E88,Facility!$E88*Facility!$E$115),0) -> 0 | D88: =IF(Facility!$F88=D$14,CHOOSE(Facility!$W$4,Facility!$E88,Facility!$E88*Facility!$E$115),0) -> 0 | E88: =IF(Facility!$F88=E$14,CHOOSE(Facility!$W$4,Facility!$E88,Facility!$E88*Facility!$E$115),0) -> 0 | F88: =IF(Facility!$F88=F$14,CHOOSE(Facility!$W$4,Facility!$E88,Facility!$E88*Facility!$E$115),0) -> 0 | H88: 0 | I88: 0 | J88: 0 | K88: 0 | M88: =H88*Facility!$H88 -> 0 | N88: =I88*Facility!$H88 -> 0 | O88: =J88*Facility!$H88 -> 0 | P88: =K88*Facility!$H88 -> 0 | R88: =H88*Facility!$M88 -> 0 | S88: =I88*Facility!$M88 -> 0 | T88: =J88*Facility!$M88 -> 0 | U88: =K88*Facility!$M88 -> 0 | W88: =H88*Facility!$N88 -> 0 | X88: =I88*Facility!$N88 -> 0 | Y88: =J88*Facility!$N88 -> 0 | Z88: =K88*Facility!$N88 -> 0
A89: =Facility!B89 -> 0 | B89: =Facility!C89 -> 0 | C89: =IF(Facility!$F89=C$14,CHOOSE(Facility!$W$4,Facility!$E89,Facility!$E89*Facility!$E$115),0) -> 0 | D89: =IF(Facility!$F89=D$14,CHOOSE(Facility!$W$4,Facility!$E89,Facility!$E89*Facility!$E$115),0) -> 0 | E89: =IF(Facility!$F89=E$14,CHOOSE(Facility!$W$4,Facility!$E89,Facility!$E89*Facility!$E$115),0) -> 0 | F89: =IF(Facility!$F89=F$14,CHOOSE(Facility!$W$4,Facility!$E89,Facility!$E89*Facility!$E$115),0) -> 0 | H89: 0 | I89: 0 | J89: 0 | K89: 0 | M89: =H89*Facility!$H89 -> 0 | N89: =I89*Facility!$H89 -> 0 | O89: =J89*Facility!$H89 -> 0 | P89: =K89*Facility!$H89 -> 0 | R89: =H89*Facility!$M89 -> 0 | S89: =I89*Facility!$M89 -> 0 | T89: =J89*Facility!$M89 -> 0 | U89: =K89*Facility!$M89 -> 0 | W89: =H89*Facility!$N89 -> 0 | X89: =I89*Facility!$N89 -> 0 | Y89: =J89*Facility!$N89 -> 0 | Z89: =K89*Facility!$N89 -> 0
A90: =Facility!B90 -> 0 | B90: =Facility!C90 -> 0 | C90: =IF(Facility!$F90=C$14,CHOOSE(Facility!$W$4,Facility!$E90,Facility!$E90*Facility!$E$115),0) -> 0 | D90: =IF(Facility!$F90=D$14,CHOOSE(Facility!$W$4,Facility!$E90,Facility!$E90*Facility!$E$115),0) -> 0 | E90: =IF(Facility!$F90=E$14,CHOOSE(Facility!$W$4,Facility!$E90,Facility!$E90*Facility!$E$115),0) -> 0 | F90: =IF(Facility!$F90=F$14,CHOOSE(Facility!$W$4,Facility!$E90,Facility!$E90*Facility!$E$115),0) -> 0 | H90: 0 | I90: 0 | J90: 0 | K90: 0 | M90: =H90*Facility!$H90 -> 0 | N90: =I90*Facility!$H90 -> 0 | O90: =J90*Facility!$H90 -> 0 | P90: =K90*Facility!$H90 -> 0 | R90: =H90*Facility!$M90 -> 0 | S90: =I90*Facility!$M90 -> 0 | T90: =J90*Facility!$M90 -> 0 | U90: =K90*Facility!$M90 -> 0 | W90: =H90*Facility!$N90 -> 0 | X90: =I90*Facility!$N90 -> 0 | Y90: =J90*Facility!$N90 -> 0 | Z90: =K90*Facility!$N90 -> 0
A91: =Facility!B91 -> 0 | B91: =Facility!C91 -> 0 | C91: =IF(Facility!$F91=C$14,CHOOSE(Facility!$W$4,Facility!$E91,Facility!$E91*Facility!$E$115),0) -> 0 | D91: =IF(Facility!$F91=D$14,CHOOSE(Facility!$W$4,Facility!$E91,Facility!$E91*Facility!$E$115),0) -> 0 | E91: =IF(Facility!$F91=E$14,CHOOSE(Facility!$W$4,Facility!$E91,Facility!$E91*Facility!$E$115),0) -> 0 | F91: =IF(Facility!$F91=F$14,CHOOSE(Facility!$W$4,Facility!$E91,Facility!$E91*Facility!$E$115),0) -> 0 | H91: 0 | I91: 0 | J91: 0 | K91: 0 | M91: =H91*Facility!$H91 -> 0 | N91: =I91*Facility!$H91 -> 0 | O91: =J91*Facility!$H91 -> 0 | P91: =K91*Facility!$H91 -> 0 | R91: =H91*Facility!$M91 -> 0 | S91: =I91*Facility!$M91 -> 0 | T91: =J91*Facility!$M91 -> 0 | U91: =K91*Facility!$M91 -> 0 | W91: =H91*Facility!$N91 -> 0 | X91: =I91*Facility!$N91 -> 0 | Y91: =J91*Facility!$N91 -> 0 | Z91: =K91*Facility!$N91 -> 0
A92: =Facility!B92 -> 0 | B92: =Facility!C92 -> 0 | C92: =IF(Facility!$F92=C$14,CHOOSE(Facility!$W$4,Facility!$E92,Facility!$E92*Facility!$E$115),0) -> 0 | D92: =IF(Facility!$F92=D$14,CHOOSE(Facility!$W$4,Facility!$E92,Facility!$E92*Facility!$E$115),0) -> 0 | E92: =IF(Facility!$F92=E$14,CHOOSE(Facility!$W$4,Facility!$E92,Facility!$E92*Facility!$E$115),0) -> 0 | F92: =IF(Facility!$F92=F$14,CHOOSE(Facility!$W$4,Facility!$E92,Facility!$E92*Facility!$E$115),0) -> 0 | H92: 0 | I92: 0 | J92: 0 | K92: 0 | M92: =H92*Facility!$H92 -> 0 | N92: =I92*Facility!$H92 -> 0 | O92: =J92*Facility!$H92 -> 0 | P92: =K92*Facility!$H92 -> 0 | R92: =H92*Facility!$M92 -> 0 | S92: =I92*Facility!$M92 -> 0 | T92: =J92*Facility!$M92 -> 0 | U92: =K92*Facility!$M92 -> 0 | W92: =H92*Facility!$N92 -> 0 | X92: =I92*Facility!$N92 -> 0 | Y92: =J92*Facility!$N92 -> 0 | Z92: =K92*Facility!$N92 -> 0
A93: =Facility!B93 -> 0 | B93: =Facility!C93 -> 0 | C93: =IF(Facility!$F93=C$14,CHOOSE(Facility!$W$4,Facility!$E93,Facility!$E93*Facility!$E$115),0) -> 0 | D93: =IF(Facility!$F93=D$14,CHOOSE(Facility!$W$4,Facility!$E93,Facility!$E93*Facility!$E$115),0) -> 0 | E93: =IF(Facility!$F93=E$14,CHOOSE(Facility!$W$4,Facility!$E93,Facility!$E93*Facility!$E$115),0) -> 0 | F93: =IF(Facility!$F93=F$14,CHOOSE(Facility!$W$4,Facility!$E93,Facility!$E93*Facility!$E$115),0) -> 0 | H93: 0 | I93: 0 | J93: 0 | K93: 0 | M93: =H93*Facility!$H93 -> 0 | N93: =I93*Facility!$H93 -> 0 | O93: =J93*Facility!$H93 -> 0 | P93: =K93*Facility!$H93 -> 0 | R93: =H93*Facility!$M93 -> 0 | S93: =I93*Facility!$M93 -> 0 | T93: =J93*Facility!$M93 -> 0 | U93: =K93*Facility!$M93 -> 0 | W93: =H93*Facility!$N93 -> 0 | X93: =I93*Facility!$N93 -> 0 | Y93: =J93*Facility!$N93 -> 0 | Z93: =K93*Facility!$N93 -> 0
A94: =Facility!B94 -> 0 | B94: =Facility!C94 -> 0 | C94: =IF(Facility!$F94=C$14,CHOOSE(Facility!$W$4,Facility!$E94,Facility!$E94*Facility!$E$115),0) -> 0 | D94: =IF(Facility!$F94=D$14,CHOOSE(Facility!$W$4,Facility!$E94,Facility!$E94*Facility!$E$115),0) -> 0 | E94: =IF(Facility!$F94=E$14,CHOOSE(Facility!$W$4,Facility!$E94,Facility!$E94*Facility!$E$115),0) -> 0 | F94: =IF(Facility!$F94=F$14,CHOOSE(Facility!$W$4,Facility!$E94,Facility!$E94*Facility!$E$115),0) -> 0 | H94: 0 | I94: 0 | J94: 0 | K94: 0 | M94: =H94*Facility!$H94 -> 0 | N94: =I94*Facility!$H94 -> 0 | O94: =J94*Facility!$H94 -> 0 | P94: =K94*Facility!$H94 -> 0 | R94: =H94*Facility!$M94 -> 0 | S94: =I94*Facility!$M94 -> 0 | T94: =J94*Facility!$M94 -> 0 | U94: =K94*Facility!$M94 -> 0 | W94: =H94*Facility!$N94 -> 0 | X94: =I94*Facility!$N94 -> 0 | Y94: =J94*Facility!$N94 -> 0 | Z94: =K94*Facility!$N94 -> 0
A95: =Facility!B95 -> 0 | B95: =Facility!C95 -> 0 | C95: =IF(Facility!$F95=C$14,CHOOSE(Facility!$W$4,Facility!$E95,Facility!$E95*Facility!$E$115),0) -> 0 | D95: =IF(Facility!$F95=D$14,CHOOSE(Facility!$W$4,Facility!$E95,Facility!$E95*Facility!$E$115),0) -> 0 | E95: =IF(Facility!$F95=E$14,CHOOSE(Facility!$W$4,Facility!$E95,Facility!$E95*Facility!$E$115),0) -> 0 | F95: =IF(Facility!$F95=F$14,CHOOSE(Facility!$W$4,Facility!$E95,Facility!$E95*Facility!$E$115),0) -> 0 | H95: 0 | I95: 0 | J95: 0 | K95: 0 | M95: =H95*Facility!$H95 -> 0 | N95: =I95*Facility!$H95 -> 0 | O95: =J95*Facility!$H95 -> 0 | P95: =K95*Facility!$H95 -> 0 | R95: =H95*Facility!$M95 -> 0 | S95: =I95*Facility!$M95 -> 0 | T95: =J95*Facility!$M95 -> 0 | U95: =K95*Facility!$M95 -> 0 | W95: =H95*Facility!$N95 -> 0 | X95: =I95*Facility!$N95 -> 0 | Y95: =J95*Facility!$N95 -> 0 | Z95: =K95*Facility!$N95 -> 0
A96: =Facility!B96 -> 0 | B96: =Facility!C96 -> 0 | C96: =IF(Facility!$F96=C$14,CHOOSE(Facility!$W$4,Facility!$E96,Facility!$E96*Facility!$E$115),0) -> 0 | D96: =IF(Facility!$F96=D$14,CHOOSE(Facility!$W$4,Facility!$E96,Facility!$E96*Facility!$E$115),0) -> 0 | E96: =IF(Facility!$F96=E$14,CHOOSE(Facility!$W$4,Facility!$E96,Facility!$E96*Facility!$E$115),0) -> 0 | F96: =IF(Facility!$F96=F$14,CHOOSE(Facility!$W$4,Facility!$E96,Facility!$E96*Facility!$E$115),0) -> 0 | H96: 0 | I96: 0 | J96: 0 | K96: 0 | M96: =H96*Facility!$H96 -> 0 | N96: =I96*Facility!$H96 -> 0 | O96: =J96*Facility!$H96 -> 0 | P96: =K96*Facility!$H96 -> 0 | R96: =H96*Facility!$M96 -> 0 | S96: =I96*Facility!$M96 -> 0 | T96: =J96*Facility!$M96 -> 0 | U96: =K96*Facility!$M96 -> 0 | W96: =H96*Facility!$N96 -> 0 | X96: =I96*Facility!$N96 -> 0 | Y96: =J96*Facility!$N96 -> 0 | Z96: =K96*Facility!$N96 -> 0
A97: =Facility!B97 -> 0 | B97: =Facility!C97 -> 0 | C97: =IF(Facility!$F97=C$14,CHOOSE(Facility!$W$4,Facility!$E97,Facility!$E97*Facility!$E$115),0) -> 0 | D97: =IF(Facility!$F97=D$14,CHOOSE(Facility!$W$4,Facility!$E97,Facility!$E97*Facility!$E$115),0) -> 0 | E97: =IF(Facility!$F97=E$14,CHOOSE(Facility!$W$4,Facility!$E97,Facility!$E97*Facility!$E$115),0) -> 0 | F97: =IF(Facility!$F97=F$14,CHOOSE(Facility!$W$4,Facility!$E97,Facility!$E97*Facility!$E$115),0) -> 0 | H97: 0 | I97: 0 | J97: 0 | K97: 0 | M97: =H97*Facility!$H97 -> 0 | N97: =I97*Facility!$H97 -> 0 | O97: =J97*Facility!$H97 -> 0 | P97: =K97*Facility!$H97 -> 0 | R97: =H97*Facility!$M97 -> 0 | S97: =I97*Facility!$M97 -> 0 | T97: =J97*Facility!$M97 -> 0 | U97: =K97*Facility!$M97 -> 0 | W97: =H97*Facility!$N97 -> 0 | X97: =I97*Facility!$N97 -> 0 | Y97: =J97*Facility!$N97 -> 0 | Z97: =K97*Facility!$N97 -> 0
A98: =Facility!B98 -> 0 | B98: =Facility!C98 -> 0 | C98: =IF(Facility!$F98=C$14,CHOOSE(Facility!$W$4,Facility!$E98,Facility!$E98*Facility!$E$115),0) -> 0 | D98: =IF(Facility!$F98=D$14,CHOOSE(Facility!$W$4,Facility!$E98,Facility!$E98*Facility!$E$115),0) -> 0 | E98: =IF(Facility!$F98=E$14,CHOOSE(Facility!$W$4,Facility!$E98,Facility!$E98*Facility!$E$115),0) -> 0 | F98: =IF(Facility!$F98=F$14,CHOOSE(Facility!$W$4,Facility!$E98,Facility!$E98*Facility!$E$115),0) -> 0 | H98: 0 | I98: 0 | J98: 0 | K98: 0 | M98: =H98*Facility!$H98 -> 0 | N98: =I98*Facility!$H98 -> 0 | O98: =J98*Facility!$H98 -> 0 | P98: =K98*Facility!$H98 -> 0 | R98: =H98*Facility!$M98 -> 0 | S98: =I98*Facility!$M98 -> 0 | T98: =J98*Facility!$M98 -> 0 | U98: =K98*Facility!$M98 -> 0 | W98: =H98*Facility!$N98 -> 0 | X98: =I98*Facility!$N98 -> 0 | Y98: =J98*Facility!$N98 -> 0 | Z98: =K98*Facility!$N98 -> 0
A99: =Facility!B99 -> 0 | B99: =Facility!C99 -> 0 | C99: =IF(Facility!$F99=C$14,CHOOSE(Facility!$W$4,Facility!$E99,Facility!$E99*Facility!$E$115),0) -> 0 | D99: =IF(Facility!$F99=D$14,CHOOSE(Facility!$W$4,Facility!$E99,Facility!$E99*Facility!$E$115),0) -> 0 | E99: =IF(Facility!$F99=E$14,CHOOSE(Facility!$W$4,Facility!$E99,Facility!$E99*Facility!$E$115),0) -> 0 | F99: =IF(Facility!$F99=F$14,CHOOSE(Facility!$W$4,Facility!$E99,Facility!$E99*Facility!$E$115),0) -> 0 | H99: 0 | I99: 0 | J99: 0 | K99: 0 | M99: =H99*Facility!$H99 -> 0 | N99: =I99*Facility!$H99 -> 0 | O99: =J99*Facility!$H99 -> 0 | P99: =K99*Facility!$H99 -> 0 | R99: =H99*Facility!$M99 -> 0 | S99: =I99*Facility!$M99 -> 0 | T99: =J99*Facility!$M99 -> 0 | U99: =K99*Facility!$M99 -> 0 | W99: =H99*Facility!$N99 -> 0 | X99: =I99*Facility!$N99 -> 0 | Y99: =J99*Facility!$N99 -> 0 | Z99: =K99*Facility!$N99 -> 0
A100: =Facility!B100 -> 0 | B100: =Facility!C100 -> 0 | C100: =IF(Facility!$F100=C$14,CHOOSE(Facility!$W$4,Facility!$E100,Facility!$E100*Facility!$E$115),0) -> 0 | D100: =IF(Facility!$F100=D$14,CHOOSE(Facility!$W$4,Facility!$E100,Facility!$E100*Facility!$E$115),0) -> 0 | E100: =IF(Facility!$F100=E$14,CHOOSE(Facility!$W$4,Facility!$E100,Facility!$E100*Facility!$E$115),0) -> 0 | F100: =IF(Facility!$F100=F$14,CHOOSE(Facility!$W$4,Facility!$E100,Facility!$E100*Facility!$E$115),0) -> 0 | H100: 0 | I100: 0 | J100: 0 | K100: 0 | M100: =H100*Facility!$H100 -> 0 | N100: =I100*Facility!$H100 -> 0 | O100: =J100*Facility!$H100 -> 0 | P100: =K100*Facility!$H100 -> 0 | R100: =H100*Facility!$M100 -> 0 | S100: =I100*Facility!$M100 -> 0 | T100: =J100*Facility!$M100 -> 0 | U100: =K100*Facility!$M100 -> 0 | W100: =H100*Facility!$N100 -> 0 | X100: =I100*Facility!$N100 -> 0 | Y100: =J100*Facility!$N100 -> 0 | Z100: =K100*Facility!$N100 -> 0
A101: =Facility!B101 -> 0 | B101: =Facility!C101 -> 0 | C101: =IF(Facility!$F101=C$14,CHOOSE(Facility!$W$4,Facility!$E101,Facility!$E101*Facility!$E$115),0) -> 0 | D101: =IF(Facility!$F101=D$14,CHOOSE(Facility!$W$4,Facility!$E101,Facility!$E101*Facility!$E$115),0) -> 0 | E101: =IF(Facility!$F101=E$14,CHOOSE(Facility!$W$4,Facility!$E101,Facility!$E101*Facility!$E$115),0) -> 0 | F101: =IF(Facility!$F101=F$14,CHOOSE(Facility!$W$4,Facility!$E101,Facility!$E101*Facility!$E$115),0) -> 0 | H101: 0 | I101: 0 | J101: 0 | K101: 0 | M101: =H101*Facility!$H101 -> 0 | N101: =I101*Facility!$H101 -> 0 | O101: =J101*Facility!$H101 -> 0 | P101: =K101*Facility!$H101 -> 0 | R101: =H101*Facility!$M101 -> 0 | S101: =I101*Facility!$M101 -> 0 | T101: =J101*Facility!$M101 -> 0 | U101: =K101*Facility!$M101 -> 0 | W101: =H101*Facility!$N101 -> 0 | X101: =I101*Facility!$N101 -> 0 | Y101: =J101*Facility!$N101 -> 0 | Z101: =K101*Facility!$N101 -> 0
A102: =Facility!B102 -> 0 | B102: =Facility!C102 -> 0 | C102: =IF(Facility!$F102=C$14,CHOOSE(Facility!$W$4,Facility!$E102,Facility!$E102*Facility!$E$115),0) -> 0 | D102: =IF(Facility!$F102=D$14,CHOOSE(Facility!$W$4,Facility!$E102,Facility!$E102*Facility!$E$115),0) -> 0 | E102: =IF(Facility!$F102=E$14,CHOOSE(Facility!$W$4,Facility!$E102,Facility!$E102*Facility!$E$115),0) -> 0 | F102: =IF(Facility!$F102=F$14,CHOOSE(Facility!$W$4,Facility!$E102,Facility!$E102*Facility!$E$115),0) -> 0 | H102: 0 | I102: 0 | J102: 0 | K102: 0 | M102: =H102*Facility!$H102 -> 0 | N102: =I102*Facility!$H102 -> 0 | O102: =J102*Facility!$H102 -> 0 | P102: =K102*Facility!$H102 -> 0 | R102: =H102*Facility!$M102 -> 0 | S102: =I102*Facility!$M102 -> 0 | T102: =J102*Facility!$M102 -> 0 | U102: =K102*Facility!$M102 -> 0 | W102: =H102*Facility!$N102 -> 0 | X102: =I102*Facility!$N102 -> 0 | Y102: =J102*Facility!$N102 -> 0 | Z102: =K102*Facility!$N102 -> 0
A103: =Facility!B103 -> 0 | B103: =Facility!C103 -> 0 | C103: =IF(Facility!$F103=C$14,CHOOSE(Facility!$W$4,Facility!$E103,Facility!$E103*Facility!$E$115),0) -> 0 | D103: =IF(Facility!$F103=D$14,CHOOSE(Facility!$W$4,Facility!$E103,Facility!$E103*Facility!$E$115),0) -> 0 | E103: =IF(Facility!$F103=E$14,CHOOSE(Facility!$W$4,Facility!$E103,Facility!$E103*Facility!$E$115),0) -> 0 | F103: =IF(Facility!$F103=F$14,CHOOSE(Facility!$W$4,Facility!$E103,Facility!$E103*Facility!$E$115),0) -> 0 | H103: 0 | I103: 0 | J103: 0 | K103: 0 | M103: =H103*Facility!$H103 -> 0 | N103: =I103*Facility!$H103 -> 0 | O103: =J103*Facility!$H103 -> 0 | P103: =K103*Facility!$H103 -> 0 | R103: =H103*Facility!$M103 -> 0 | S103: =I103*Facility!$M103 -> 0 | T103: =J103*Facility!$M103 -> 0 | U103: =K103*Facility!$M103 -> 0 | W103: =H103*Facility!$N103 -> 0 | X103: =I103*Facility!$N103 -> 0 | Y103: =J103*Facility!$N103 -> 0 | Z103: =K103*Facility!$N103 -> 0
A104: =Facility!B104 -> 0 | B104: =Facility!C104 -> 0 | C104: =IF(Facility!$F104=C$14,CHOOSE(Facility!$W$4,Facility!$E104,Facility!$E104*Facility!$E$115),0) -> 0 | D104: =IF(Facility!$F104=D$14,CHOOSE(Facility!$W$4,Facility!$E104,Facility!$E104*Facility!$E$115),0) -> 0 | E104: =IF(Facility!$F104=E$14,CHOOSE(Facility!$W$4,Facility!$E104,Facility!$E104*Facility!$E$115),0) -> 0 | F104: =IF(Facility!$F104=F$14,CHOOSE(Facility!$W$4,Facility!$E104,Facility!$E104*Facility!$E$115),0) -> 0 | H104: 0 | I104: 0 | J104: 0 | K104: 0 | M104: =H104*Facility!$H104 -> 0 | N104: =I104*Facility!$H104 -> 0 | O104: =J104*Facility!$H104 -> 0 | P104: =K104*Facility!$H104 -> 0 | R104: =H104*Facility!$M104 -> 0 | S104: =I104*Facility!$M104 -> 0 | T104: =J104*Facility!$M104 -> 0 | U104: =K104*Facility!$M104 -> 0 | W104: =H104*Facility!$N104 -> 0 | X104: =I104*Facility!$N104 -> 0 | Y104: =J104*Facility!$N104 -> 0 | Z104: =K104*Facility!$N104 -> 0
A105: =Facility!B105 -> 0 | B105: =Facility!C105 -> 0 | C105: =IF(Facility!$F105=C$14,CHOOSE(Facility!$W$4,Facility!$E105,Facility!$E105*Facility!$E$115),0) -> 0 | D105: =IF(Facility!$F105=D$14,CHOOSE(Facility!$W$4,Facility!$E105,Facility!$E105*Facility!$E$115),0) -> 0 | E105: =IF(Facility!$F105=E$14,CHOOSE(Facility!$W$4,Facility!$E105,Facility!$E105*Facility!$E$115),0) -> 0 | F105: =IF(Facility!$F105=F$14,CHOOSE(Facility!$W$4,Facility!$E105,Facility!$E105*Facility!$E$115),0) -> 0 | H105: 0 | I105: 0 | J105: 0 | K105: 0 | M105: =H105*Facility!$H105 -> 0 | N105: =I105*Facility!$H105 -> 0 | O105: =J105*Facility!$H105 -> 0 | P105: =K105*Facility!$H105 -> 0 | R105: =H105*Facility!$M105 -> 0 | S105: =I105*Facility!$M105 -> 0 | T105: =J105*Facility!$M105 -> 0 | U105: =K105*Facility!$M105 -> 0 | W105: =H105*Facility!$N105 -> 0 | X105: =I105*Facility!$N105 -> 0 | Y105: =J105*Facility!$N105 -> 0 | Z105: =K105*Facility!$N105 -> 0
A106: =Facility!B106 -> 0 | B106: =Facility!C106 -> 0 | C106: =IF(Facility!$F106=C$14,CHOOSE(Facility!$W$4,Facility!$E106,Facility!$E106*Facility!$E$115),0) -> 0 | D106: =IF(Facility!$F106=D$14,CHOOSE(Facility!$W$4,Facility!$E106,Facility!$E106*Facility!$E$115),0) -> 0 | E106: =IF(Facility!$F106=E$14,CHOOSE(Facility!$W$4,Facility!$E106,Facility!$E106*Facility!$E$115),0) -> 0 | F106: =IF(Facility!$F106=F$14,CHOOSE(Facility!$W$4,Facility!$E106,Facility!$E106*Facility!$E$115),0) -> 0 | H106: 0 | I106: 0 | J106: 0 | K106: 0 | M106: =H106*Facility!$H106 -> 0 | N106: =I106*Facility!$H106 -> 0 | O106: =J106*Facility!$H106 -> 0 | P106: =K106*Facility!$H106 -> 0 | R106: =H106*Facility!$M106 -> 0 | S106: =I106*Facility!$M106 -> 0 | T106: =J106*Facility!$M106 -> 0 | U106: =K106*Facility!$M106 -> 0 | W106: =H106*Facility!$N106 -> 0 | X106: =I106*Facility!$N106 -> 0 | Y106: =J106*Facility!$N106 -> 0 | Z106: =K106*Facility!$N106 -> 0
A107: =Facility!B107 -> 0 | B107: =Facility!C107 -> 0 | C107: =IF(Facility!$F107=C$14,CHOOSE(Facility!$W$4,Facility!$E107,Facility!$E107*Facility!$E$115),0) -> 0 | D107: =IF(Facility!$F107=D$14,CHOOSE(Facility!$W$4,Facility!$E107,Facility!$E107*Facility!$E$115),0) -> 0 | E107: =IF(Facility!$F107=E$14,CHOOSE(Facility!$W$4,Facility!$E107,Facility!$E107*Facility!$E$115),0) -> 0 | F107: =IF(Facility!$F107=F$14,CHOOSE(Facility!$W$4,Facility!$E107,Facility!$E107*Facility!$E$115),0) -> 0 | H107: 0 | I107: 0 | J107: 0 | K107: 0 | M107: =H107*Facility!$H107 -> 0 | N107: =I107*Facility!$H107 -> 0 | O107: =J107*Facility!$H107 -> 0 | P107: =K107*Facility!$H107 -> 0 | R107: =H107*Facility!$M107 -> 0 | S107: =I107*Facility!$M107 -> 0 | T107: =J107*Facility!$M107 -> 0 | U107: =K107*Facility!$M107 -> 0 | W107: =H107*Facility!$N107 -> 0 | X107: =I107*Facility!$N107 -> 0 | Y107: =J107*Facility!$N107 -> 0 | Z107: =K107*Facility!$N107 -> 0
A108: =Facility!B108 -> 0 | B108: =Facility!C108 -> 0 | C108: =IF(Facility!$F108=C$14,CHOOSE(Facility!$W$4,Facility!$E108,Facility!$E108*Facility!$E$115),0) -> 0 | D108: =IF(Facility!$F108=D$14,CHOOSE(Facility!$W$4,Facility!$E108,Facility!$E108*Facility!$E$115),0) -> 0 | E108: =IF(Facility!$F108=E$14,CHOOSE(Facility!$W$4,Facility!$E108,Facility!$E108*Facility!$E$115),0) -> 0 | F108: =IF(Facility!$F108=F$14,CHOOSE(Facility!$W$4,Facility!$E108,Facility!$E108*Facility!$E$115),0) -> 0 | H108: 0 | I108: 0 | J108: 0 | K108: 0 | M108: =H108*Facility!$H108 -> 0 | N108: =I108*Facility!$H108 -> 0 | O108: =J108*Facility!$H108 -> 0 | P108: =K108*Facility!$H108 -> 0 | R108: =H108*Facility!$M108 -> 0 | S108: =I108*Facility!$M108 -> 0 | T108: =J108*Facility!$M108 -> 0 | U108: =K108*Facility!$M108 -> 0 | W108: =H108*Facility!$N108 -> 0 | X108: =I108*Facility!$N108 -> 0 | Y108: =J108*Facility!$N108 -> 0 | Z108: =K108*Facility!$N108 -> 0
A109: =Facility!B109 -> 0 | B109: =Facility!C109 -> 0 | C109: =IF(Facility!$F109=C$14,CHOOSE(Facility!$W$4,Facility!$E109,Facility!$E109*Facility!$E$115),0) -> 0 | D109: =IF(Facility!$F109=D$14,CHOOSE(Facility!$W$4,Facility!$E109,Facility!$E109*Facility!$E$115),0) -> 0 | E109: =IF(Facility!$F109=E$14,CHOOSE(Facility!$W$4,Facility!$E109,Facility!$E109*Facility!$E$115),0) -> 0 | F109: =IF(Facility!$F109=F$14,CHOOSE(Facility!$W$4,Facility!$E109,Facility!$E109*Facility!$E$115),0) -> 0 | H109: 0 | I109: 0 | J109: 0 | K109: 0 | M109: =H109*Facility!$H109 -> 0 | N109: =I109*Facility!$H109 -> 0 | O109: =J109*Facility!$H109 -> 0 | P109: =K109*Facility!$H109 -> 0 | R109: =H109*Facility!$M109 -> 0 | S109: =I109*Facility!$M109 -> 0 | T109: =J109*Facility!$M109 -> 0 | U109: =K109*Facility!$M109 -> 0 | W109: =H109*Facility!$N109 -> 0 | X109: =I109*Facility!$N109 -> 0 | Y109: =J109*Facility!$N109 -> 0 | Z109: =K109*Facility!$N109 -> 0
A110: =Facility!B110 -> 0 | B110: =Facility!C110 -> 0 | C110: =IF(Facility!$F110=C$14,CHOOSE(Facility!$W$4,Facility!$E110,Facility!$E110*Facility!$E$115),0) -> 0 | D110: =IF(Facility!$F110=D$14,CHOOSE(Facility!$W$4,Facility!$E110,Facility!$E110*Facility!$E$115),0) -> 0 | E110: =IF(Facility!$F110=E$14,CHOOSE(Facility!$W$4,Facility!$E110,Facility!$E110*Facility!$E$115),0) -> 0 | F110: =IF(Facility!$F110=F$14,CHOOSE(Facility!$W$4,Facility!$E110,Facility!$E110*Facility!$E$115),0) -> 0 | H110: 0 | I110: 0 | J110: 0 | K110: 0 | M110: =H110*Facility!$H110 -> 0 | N110: =I110*Facility!$H110 -> 0 | O110: =J110*Facility!$H110 -> 0 | P110: =K110*Facility!$H110 -> 0 | R110: =H110*Facility!$M110 -> 0 | S110: =I110*Facility!$M110 -> 0 | T110: =J110*Facility!$M110 -> 0 | U110: =K110*Facility!$M110 -> 0 | W110: =H110*Facility!$N110 -> 0 | X110: =I110*Facility!$N110 -> 0 | Y110: =J110*Facility!$N110 -> 0 | Z110: =K110*Facility!$N110 -> 0
A111: =Facility!B111 -> 0 | B111: =Facility!C111 -> 0 | C111: =IF(Facility!$F111=C$14,CHOOSE(Facility!$W$4,Facility!$E111,Facility!$E111*Facility!$E$115),0) -> 0 | D111: =IF(Facility!$F111=D$14,CHOOSE(Facility!$W$4,Facility!$E111,Facility!$E111*Facility!$E$115),0) -> 0 | E111: =IF(Facility!$F111=E$14,CHOOSE(Facility!$W$4,Facility!$E111,Facility!$E111*Facility!$E$115),0) -> 0 | F111: =IF(Facility!$F111=F$14,CHOOSE(Facility!$W$4,Facility!$E111,Facility!$E111*Facility!$E$115),0) -> 0 | H111: 0 | I111: 0 | J111: 0 | K111: 0 | M111: =H111*Facility!$H111 -> 0 | N111: =I111*Facility!$H111 -> 0 | O111: =J111*Facility!$H111 -> 0 | P111: =K111*Facility!$H111 -> 0 | R111: =H111*Facility!$M111 -> 0 | S111: =I111*Facility!$M111 -> 0 | T111: =J111*Facility!$M111 -> 0 | U111: =K111*Facility!$M111 -> 0 | W111: =H111*Facility!$N111 -> 0 | X111: =I111*Facility!$N111 -> 0 | Y111: =J111*Facility!$N111 -> 0 | Z111: =K111*Facility!$N111 -> 0
A112: =Facility!B112 -> 0 | B112: =Facility!C112 -> 0 | C112: =IF(Facility!$F112=C$14,CHOOSE(Facility!$W$4,Facility!$E112,Facility!$E112*Facility!$E$115),0) -> 0 | D112: =IF(Facility!$F112=D$14,CHOOSE(Facility!$W$4,Facility!$E112,Facility!$E112*Facility!$E$115),0) -> 0 | E112: =IF(Facility!$F112=E$14,CHOOSE(Facility!$W$4,Facility!$E112,Facility!$E112*Facility!$E$115),0) -> 0 | F112: =IF(Facility!$F112=F$14,CHOOSE(Facility!$W$4,Facility!$E112,Facility!$E112*Facility!$E$115),0) -> 0 | H112: 0 | I112: 0 | J112: 0 | K112: 0 | M112: =H112*Facility!$H112 -> 0 | N112: =I112*Facility!$H112 -> 0 | O112: =J112*Facility!$H112 -> 0 | P112: =K112*Facility!$H112 -> 0 | R112: =H112*Facility!$M112 -> 0 | S112: =I112*Facility!$M112 -> 0 | T112: =J112*Facility!$M112 -> 0 | U112: =K112*Facility!$M112 -> 0 | W112: =H112*Facility!$N112 -> 0 | X112: =I112*Facility!$N112 -> 0 | Y112: =J112*Facility!$N112 -> 0 | Z112: =K112*Facility!$N112 -> 0
A113: =Facility!B113 -> 0 | B113: =Facility!C113 -> 0 | C113: =IF(Facility!$F113=C$14,CHOOSE(Facility!$W$4,Facility!$E113,Facility!$E113*Facility!$E$115),0) -> 0 | D113: =IF(Facility!$F113=D$14,CHOOSE(Facility!$W$4,Facility!$E113,Facility!$E113*Facility!$E$115),0) -> 0 | E113: =IF(Facility!$F113=E$14,CHOOSE(Facility!$W$4,Facility!$E113,Facility!$E113*Facility!$E$115),0) -> 0 | F113: =IF(Facility!$F113=F$14,CHOOSE(Facility!$W$4,Facility!$E113,Facility!$E113*Facility!$E$115),0) -> 0 | H113: 0 | I113: 0 | J113: 0 | K113: 0 | M113: =H113*Facility!$H113 -> 0 | N113: =I113*Facility!$H113 -> 0 | O113: =J113*Facility!$H113 -> 0 | P113: =K113*Facility!$H113 -> 0 | R113: =H113*Facility!$M113 -> 0 | S113: =I113*Facility!$M113 -> 0 | T113: =J113*Facility!$M113 -> 0 | U113: =K113*Facility!$M113 -> 0 | W113: =H113*Facility!$N113 -> 0 | X113: =I113*Facility!$N113 -> 0 | Y113: =J113*Facility!$N113 -> 0 | Z113: =K113*Facility!$N113 -> 0
A114: Facility | C114: =SUM(C15:C113) -> 55 | D114: =SUM(D15:D113) -> 360 | E114: =SUM(E15:E113) -> 250 | F114: =SUM(F15:F113) -> 175 | H114: =SUM(H15:H113) -> 1 | I114: =SUM(I15:I113) -> 1 | J114: =SUM(J15:J113) -> 1 | K114: =SUM(K15:K113) -> 1 | M114: =SUM(M15:M113) -> 0.95 | N114: =SUM(N15:N113) -> 0.4944444444 | O114: =SUM(O15:O113) -> 0.4 | P114: =SUM(P15:P113) -> 0.3 | R114: =SUM(R15:R113) -> 8 | S114: =SUM(S15:S113) -> 5.777777778 | T114: =SUM(T15:T113) -> 3 | U114: =SUM(U15:U113) -> 3 | W114: =SUM(W15:W113) -> 12.8 | X114: =SUM(X15:X113) -> 50.31111111 | Y114: =SUM(Y15:Y113) -> 5 | Z114: =SUM(Z15:Z113) -> 2.5 | AA114: wAverage METs by age group
C115: =SUM(C114:F114) -> 840 | H115: =IF(C114>0,C114/$C$115,0) -> 0.06547619048 | I115: =IF(D114>0,D114/$C$115,0) -> 0.4285714286 | J115: 0.2976190476 | K115: 0.2083333333 | M115: =SUMPRODUCT(M114:P114,$H$115:$K$115) -> 0.4556547619 | R115: =SUMPRODUCT(R114:U114,$H$115:$K$115) -> 4.517857143 | W115: =SUMPRODUCT(W114:Z114,$H$115:$K$115) -> 24.40892857 | AA115: wAverage METS across all age groups
H116: =SUM(H115:K115) -> 1 | R116: =W115-R115 -> 19.89107143 | AA116: wAverage gain in METs across all age groups

Sheet Facility PSA simulations (hidden)
D1: Relative RR | L1: Events, No intervention | T1: NHS, NO INTERVENTION | W1: Events, With intervention | AE1: NHS, WITH INTERVENTION | AH1: Net dCosts | AP1: Net dQALYs | AX1: Net dDALYs | BF1: PROGRAMME NET | BN1: Probabilistic cost-effectiveness scatterplot
B2: Age | C2: Cum. Prog Cost | D2: Type 2 Diabetes | E2: Coronary Heart Disease | F2: Cerebrovascular disease (Stroke) | G2: Breast Cancer | H2: Colorectal Cancer | I2: Dementia | J2: Depression | K2: Hip fracture | L2: Type 2 Diabetes | M2: Coronary Heart Disease | N2: Cerebrovascular disease (Stroke) | O2: Breast Cancer | P2: Colorectal Cancer | Q2: Dementia | R2: Depression | S2: Hip fracture | T2: Expected costs | U2: dQALYs lost | V2: dDALYs | W2: Type 2 Diabetes | X2: Coronary Heart Disease | Y2: Cerebrovascular disease (Stroke) | Z2: Breast Cancer | AA2: Colorectal Cancer | AB2: Dementia | AC2: Depression | AD2: Hip fracture | AE2: Expected costs | AF2: QALYs lost | AG2: dDALYs | AH2: Type 2 Diabetes | AI2: Coronary Heart Disease | AJ2: Cerebrovascular disease (Stroke) | AK2: Breast Cancer | AL2: Colorectal Cancer | AM2: Dementia | AN2: Depression | AO2: Hip fracture | AP2: Type 2 Diabetes | AQ2: Coronary Heart Disease | AR2: Cerebrovascular disease (Stroke) | AS2: Breast Cancer | AT2: Colorectal Cancer | AU2: Dementia | AV2: Depression | AW2: Hip fracture | AX2: Type 2 Diabetes | AY2: Coronary Heart Disease | AZ2: Cerebrovascular disease (Stroke) | BA2: Breast Cancer | BB2: Colorectal Cancer | BC2: Dementia | BD2: Depression | BE2: Hip fracture | BF2: NET COST | BG2: NET QALYs | BH2: NET DALYs | BI2: NMB | BJ2: Financial ROI | BK2: QALY ROI
A3: Active | B3: =Inputs!$P$10 -> 68 | C3: =ProgCost -> 1021231.546 | D3: =Engine!D53 -> 0.953911492 | E3: =Engine!E53 -> 0.8884286957 | F3: =Engine!F53 -> 0.8778693079 | G3: =Engine!G53 -> 0.9768421107 | H3: =Engine!H53 -> 0.9408816376 | I3: =Engine!I53 -> 0.9122891785 | J3: =Engine!J53 -> 0.7236393502 | K3: =Engine!K53 -> 0.4361886084 | L3: =TRANSPOSE('Health Outcomes'!$AK$59:$AK$66) -> 845.1471956 | M3: 1263.807349 | N3: 465.3966199 | O3: 460.8104304 | P3: 215.551896 | Q3: 3504.901571 | R3: 135.9699388 | S3: 974.9001631 | T3: ='Cost Outcomes'!$AG$61 -> 176648236.2 | U3: ='Health Outcomes'!$AK$131 -> -28736.14287 | V3: ='Health Outcomes'!AK159 -> 29518.29295 | W3: =TRANSPOSE('Health Outcomes'!$AK$109:$AK$116) -> 829.0765909 | X3: 1208.562045 | Y3: 440.8188527 | Z3: 456.2041081 | AA3: 209.8986727 | AB3: 3435.078704 | AC3: 119.1379349 | AD3: 745.831623 | AE3: ='Cost Outcomes'!$AG$87 -> 169481055.5 | AF3: ='Health Outcomes'!$AK$144 -> -27207.37259 | AG3: ='Health Outcomes'!$AK$171 -> 27836.455 | AH3: =TRANSPOSE('Cost Outcomes'!AI93:AI100) -> -76909.24803 | AI3: -652413.4892 | AJ3: -549759.1552 | AK3: -390915.131 | AL3: -298394.3096 | AM3: -3054638.477 | AN3: -164913.7255 | AO3: -1979237.238 | AP3: =TRANSPOSE('Health Outcomes'!$AM$135:$AM$142) -> 59.39262852 | AQ3: 304.1638681 | AR3: 81.0715401 | AS3: 12.12764934 | AT3: 25.35986216 | AU3: 592.4620208 | AV3: 44.83743637 | AW3: 409.3552718 | AX3: =TRANSPOSE('Health Outcomes'!$AM$162:$AM$169) -> -29.34809552 | AY3: -264.2903108 | AZ3: -76.7933979 | BA3: -7.948742409 | BB3: -27.0844619 | BC3: -683.1489179 | BD3: -53.71360224 | BE3: -539.5104283 | BF3: =AE3-T3+ProgCost -> -6145949.227 | BG3: =AF3-U3 -> 1528.770277 | BH3: =AG3-V3 -> -1681.837957 | BI3: =($BG3*QALYWTP)-BF3 -> 36721354.77 | BJ3: =(T3-AE3)/ProgCost -> 7.018174086 | BK3: =$BG3*QALYWTP/ProgCost -> 29.9397386
A4: Average | B4: =IF(SUM(B11:B4010)>0,AVERAGE(B11:B4010),0) -> 47.55055055 | C4: =SUM(C11:C4010)/COUNTIF(C11:C4010,">0") -> 545519.7495 | D4: 0.9300335056 | E4: 0.9017816964 | F4: 0.9069951735 | G4: 0.9802129778 | H4: 0.9345727842 | I4: 0.9165006 | J4: 0.7914694971 | K4: 0.6568843104 | L4: =IF(SUM(L11:L4010)>0,AVERAGE(L11:L4010),0) -> 24.04344079 | M4: 16.99797729 | N4: 5.94704192 | O4: 11.62585137 | P4: 2.803095099 | Q4: 34.32035103 | R4: 180.3194341 | S4: 12.5295218 | T4: =AVERAGE(T11:T4010) -> 3614061.401 | U4: =AVERAGE(U11:U4010) -> -939.0667941 | V4: =AVERAGE(V11:V4010) -> 1024.143249 | W4: =IF(SUM(W11:W4010)>0,AVERAGE(W11:W4010),0) -> 23.75846123 | X4: 16.84403388 | Y4: 5.874395863 | Z4: 11.57329446 | AA4: 2.786720655 | AB4: 34.25731401 | AC4: 172.1490519 | AD4: 12.32631913 | AE4: =AVERAGE(AE11:AE4010) -> 3483748.014 | AF4: -867.4254902 | AG4: 939.8492547 | AH4: -1522.517213 | AI4: -1740.585837 | AJ4: -1899.666095 | AK4: -5212.882527 | AL4: -914.9913487 | AM4: -1988.250353 | AN4: -115386.6649 | AO4: -1647.8285 | AP4: 1.554649255 | AQ4: 1.175872607 | AR4: 0.352301968 | AS4: 0.207775416 | AT4: 0.1165317999 | AU4: 0.4576723991 | AV4: 67.28281131 | AW4: 0.4936891189 | AX4: -0.8701945264 | AY4: -1.066872332 | AZ4: -0.3369507495 | BA4: -0.1422725961 | BB4: -0.125401937 | BC4: -0.5280479574 | BD4: -80.56855212 | BE4: -0.6557025038 | BF4: 415206.3627 | BG4: 71.64130387 | BH4: -84.29399472 | BI4: 1017619.715 | BJ4: 0.1868773774 | BK4: 2.043017518
A5: L95CI | B5: =_xlfn.PERCENTILE.INC(B$11:B$4010,2.5%) -> 20 | C5: 111691.6926 | D5: 0.7958474683 | E5: 0.5599512473 | F5: 0.6179936553 | G5: 0.9333491479 | H5: 0.6629557858 | I5: 0.6784404447 | J5: 0.3798372751 | K5: 0.07162668078 | L5: 1.472132419 | M5: 0.518360027 | N5: 0.0956021109 | O5: 0.04203131189 | P5: 0.02856828839 | Q5: 0.1322376273 | R5: 38.27510806 | S5: 0 | T5: 280810.6087 | U5: -1415.184125 | V5: 148.3882361 | W5: 1.466805627 | X5: 0.5153393153 | Y5: 0.0940287616 | Z5: 0.04193887396 | AA5: 0.02853179353 | AB5: 0.1310380661 | AC5: 37.72554147 | AD5: 0 | AE5: 273233.3104 | AF5: -1415.184125 | AG5: 143.6867386 | AH5: =_xlfn.PERCENTILE.INC(AH$11:AH$4010,2.5%) -> -6097.92175 | AI5: -8203.04897 | AJ5: -8940.686965 | AK5: -22704.21397 | AL5: -5150.061905 | AM5: -8037.47732 | AN5: -495391.6369 | AO5: -10761.56994 | AP5: 0 | AQ5: 0 | AR5: 0 | AS5: 0 | AT5: 0 | AU5: 0 | AV5: 0 | AW5: 0 | AX5: -3.377012296 | AY5: -4.458484543 | AZ5: -1.537986512 | BA5: -0.5537904685 | BB5: -0.6447421692 | BC5: -1.907765823 | BD5: -261.267199 | BE5: -3.449592473 | BF5: 103675.9795 | BG5: 0 | BH5: -266.6682384 | BI5: -355382.6584 | BJ5: 0 | BK5: 0
A6: U95CI | B6: =_xlfn.PERCENTILE.INC(B$11:B$4010,97.5%) -> 73 | C6: 731072.8973 | D6: 1 | E6: 1 | F6: 1 | G6: 1 | H6: 1 | I6: 1 | J6: 1 | K6: 1 | L6: 44.64967019 | M6: 50.63177765 | N6: 19.57855476 | O6: 19.13138732 | P6: 9.128367932 | Q6: 133.9975965 | R6: 290.0421435 | S6: 39.10478771 | T6: 7593057.803 | U6: -127.3767709 | V6: 1474.139082 | W6: 44.59301206 | X6: 50.63177765 | Y6: 19.57855476 | Z6: 19.11493264 | AA6: 9.128367932 | AB6: 133.9975965 | AC6: 278.1208985 | AD6: 39.10478771 | AE6: 7593057.803 | AF6: -123.7785292 | AG6: 1474.139082 | AH6: =_xlfn.PERCENTILE.INC(AH$11:AH$4010,97.5%) -> 0 | AI6: 0 | AJ6: 0 | AK6: 0 | AL6: 0 | AM6: 0 | AN6: 0 | AO6: 0 | AP6: 4.76025626 | AQ6: 4.683891161 | AR6: 1.555830608 | AS6: 0.7324758713 | AT6: 0.5857381082 | AU6: 1.620837208 | AV6: 218.2595014 | AW6: 2.669099038 | AX6: 0 | AY6: 0 | AZ6: 0 | BA6: 0 | BB6: 0 | BC6: 0 | BD6: 0 | BE6: 0 | BF6: 633195.1511 | BG6: 226.0762087 | BH6: 0 | BI6: 4233729.511 | BJ6: 0.7112 | BK6: 6.184755
A7: =COUNTA(3:3)-1 -> 62 | BF7: =COUNTIF(BF$11:BF$1010,"<0")/1000 -> 0.002 | BG7: =COUNTIF(BG$11:BG$1010,">0")/1000 -> 0.791 | BH7: =COUNTIF(BH$11:BH$1010,"<0")/1000 -> 0.791 | BI7: =COUNTIF(BI$11:BI$1010,">0")/1000 -> 0.436 | BJ7: =COUNTIF(BJ$11:BJ$1010,">1")/1000 -> 0.002 | BK7: =COUNTIF(BK$11:BK$1010,">1")/1000 -> 0.427
BZ8: λ | CA8: 0 | CB8: 1000 | CC8: 2000 | CD8: 3000 | CE8: 4000 | CF8: 5000 | CG8: 6000 | CH8: 7000 | CI8: 8000 | CJ8: 9000 | CK8: 10000 | CL8: 11000 | CM8: 12000 | CN8: 13000 | CO8: 14000 | CP8: 15000 | CQ8: 16000 | CR8: 17000 | CS8: 18000 | CT8: 19000 | CU8: 20000 | CV8: 21000 | CW8: 22000 | CX8: 23000 | CY8: 24000 | CZ8: 25000 | DA8: 26000 | DB8: 27000 | DC8: 28000 | DD8: 29000 | DE8: 30000
D9: Relative RR | L9: Events, No intervention | T9: NHS, NO INTERVENTION | W9: Events, No intervention | AE9: NHS, WITH INTERVENTION | AH9: Net events | AP9: Net events | AX9: Net events | BF9: PROGRAMME NET | BZ9: Pr(NMB>0) | CA9: =COUNTIF(CA$11:CA$1010,">0")/COUNT(CA$11:CA$1010) -> 0.002 | CB9: =COUNTIF(CB$11:CB$1010,">0")/COUNT(CB$11:CB$1010) -> 0.019 | CC9: 0.109 | CD9: 0.231 | CE9: 0.319 | CF9: 0.367 | CG9: 0.386 | CH9: 0.404 | CI9: 0.412 | CJ9: 0.414 | CK9: 0.417 | CL9: 0.417 | CM9: 0.418 | CN9: 0.419 | CO9: 0.421 | CP9: 0.421 | CQ9: 0.421 | CR9: 0.422 | CS9: 0.426 | CT9: 0.429 | CU9: 0.436 | CV9: 0.439 | CW9: 0.443 | CX9: 0.453 | CY9: 0.46 | CZ9: 0.465 | DA9: 0.474 | DB9: 0.479 | DC9: 0.493 | DD9: 0.507 | DE9: 0.518
A10: Iteration | B10: Age | C10: Cum. Prog Cost | D10: Type 2 Diabetes | E10: Coronary Heart Disease | F10: Cerebrovascular disease (Stroke) | G10: Breast Cancer | H10: Colorectal Cancer | I10: Dementia | J10: Depression | K10: Hip fracture | L10: Type 2 Diabetes | M10: Coronary Heart Disease | N10: Cerebrovascular disease (Stroke) | O10: Breast Cancer | P10: Colorectal Cancer | Q10: Dementia | R10: Depression | S10: Hip fracture | T10: Expected costs | U10: dQALYs lost | V10: dDALYs | W10: Type 2 Diabetes | X10: Coronary Heart Disease | Y10: Cerebrovascular disease (Stroke) | Z10: Breast Cancer | AA10: Colorectal Cancer | AB10: Dementia | AC10: Depression | AD10: Hip fracture | AE10: Expected costs | AF10: dQALYs lost | AG10: dDALYs | AH10: Type 2 Diabetes | AI10: Coronary Heart Disease | AJ10: Cerebrovascular disease (Stroke) | AK10: Breast Cancer | AL10: Colorectal Cancer | AM10: Dementia | AN10: Depression | AO10: Hip fracture | AP10: Type 2 Diabetes | AQ10: Coronary Heart Disease | AR10: Cerebrovascular disease (Stroke) | AS10: Breast Cancer | AT10: Colorectal Cancer | AU10: Dementia | AV10: Depression | AW10: Hip fracture | AX10: Type 2 Diabetes | AY10: Coronary Heart Disease | AZ10: Cerebrovascular disease (Stroke) | BA10: Breast Cancer | BB10: Colorectal Cancer | BC10: Dementia | BD10: Depression | BE10: Hip fracture | BF10: NET COST | BG10: NET QALYs | BH10: NET DALYs | BI10: NMB | BJ10: Financial ROI | BK10: QALY ROI | BZ10: =HLOOKUP(QALYWTP,$CA$8:$DE$9,2,TRUE) -> 0.436 | CA10: ="NMB|λ=" & DOLLAR(CA$8,0) -> NMB|λ=£0 | CB10: ="NMB|λ=" & DOLLAR(CB$8,0) -> NMB|λ=£1,000 | CC10: ="NMB|λ=" & DOLLAR(CC$8,0) -> NMB|λ=£2,000 | CD10: NMB|λ=£3,000 | CE10: NMB|λ=£4,000 | CF10: NMB|λ=£5,000 | CG10: NMB|λ=£6,000 | CH10: NMB|λ=£7,000 | CI10: NMB|λ=£8,000 | CJ10: NMB|λ=£9,000 | CK10: NMB|λ=£10,000 | CL10: NMB|λ=£11,000 | CM10: NMB|λ=£12,000 | CN10: NMB|λ=£13,000 | CO10: NMB|λ=£14,000 | CP10: NMB|λ=£15,000 | CQ10: NMB|λ=£16,000 | CR10: NMB|λ=£17,000 | CS10: NMB|λ=£18,000 | CT10: NMB|λ=£19,000 | CU10: NMB|λ=£20,000 | CV10: NMB|λ=£21,000 | CW10: NMB|λ=£22,000 | CX10: NMB|λ=£23,000 | CY10: NMB|λ=£24,000 | CZ10: NMB|λ=£25,000 | DA10: NMB|λ=£26,000 | DB10: NMB|λ=£27,000 | DC10: NMB|λ=£28,000 | DD10: NMB|λ=£29,000 | DE10: NMB|λ=£30,000
A11: 1 | B11: 20 | C11: 111691.6926 | D11: 0.9884074051 | E11: 0.9881740706 | F11: 1 | G11: 0.9945097137 | H11: 0.9837596542 | I11: 0.9597454543 | J11: 0.904420828 | K11: 0.9712391814 | L11: 1.471961305 | M11: 0.5467973593 | N11: 0.09713324088 | O11: 0.04318583105 | P11: 0.03063637464 | Q11: 0.02538270611 | R11: 38.26513241 | S11: 0 | T11: 310760.4922 | U11: -126.5368846 | V11: 146.5052279 | W11: 1.466894431 | X11: 0.5448613941 | Y11: 0.09713324088 | Z11: 0.04311453153 | AA11: 0.03048674044 | AB11: 0.02507539972 | AC11: 37.66993871 | AD11: 0 | AE11: 303544.2655 | AF11: -122.2571461 | AG11: 141.4260912 | AH11: -23.3319 | AI11: -17.4879 | AJ11: 0 | AK11: -5.1819 | AL11: -8.728 | AM11: -14.5 | AN11: -7146.9969 | AO11: 0 | AP11: 0.026340095 | AQ11: 0.01521761576 | AR11: 0 | AS11: 0.0002412024272 | AT11: 0.001013829721 | AU11: 0.002087581744 | AV11: 4.234838168 | AW11: 0 | AX11: -0.0132228983 | AY11: -0.01424239051 | AZ11: 0 | BA11: -0.0001516661582 | BB11: -0.00110015129 | BC11: -0.00246580566 | BD11: -5.047953748 | BE11: 0 | BF11: 104475.466 | BG11: 4.279738493 | BH11: -5.07913666 | BI11: -18880.6961 | BJ11: 0.0646 | BK11: 0.7663 | CA11: =($BG11*CA$8)-$BF11 -> -104475.466 | CB11: -100195.7275 | CC11: -95915.98901 | CD11: -91636.25052 | CE11: -87356.51203 | CF11: -83076.77354 | CG11: -78797.03504 | CH11: -74517.29655 | CI11: -70237.55806 | CJ11: -65957.81956 | CK11: -61678.08107 | CL11: -57398.34258 | CM11: -53118.60409 | CN11: -48838.86559 | CO11: -44559.1271 | CP11: -40279.38861 | CQ11: =($BG11*CQ$8)-$BF11 -> -35999.65011 | CR11: -31719.91162 | CS11: -27440.17313 | CT11: -23160.43463 | CU11: -18880.69614 | CV11: -14600.95765 | CW11: -10321.21916 | CX11: -6041.480663 | CY11: -1761.74217 | CZ11: 2517.996323 | DA11: 6797.734816 | DB11: 11077.47331 | DC11: 15357.2118 | DD11: 19636.95029 | DE11: 23916.68879
A12: 2 | B12: 16 | C12: 111691.6926 | D12: 0.988898359 | E12: 0.9572133998 | F12: 0.964780081 | G12: 0.9922890679 | H12: 0.9614745462 | I12: 0.9709839575 | J12: 0.919100599 | K12: 1 | L12: 1.403643846 | M12: 0.4631512598 | N12: 0.1201256869 | O12: 0.04203167613 | P12: 0.0479246317 | Q12: 0.5144991274 | R12: 38.56046475 | S12: 0 | T12: 375512.2313 | U12: -127.4616305 | V12: 149.2419267 | W12: 1.399019982 | X12: 0.4572215465 | Y12: 0.118855936 | Z12: 0.0419343409 | AA12: 0.04737016895 | AB12: 0.5100341034 | AC12: 38.05960888 | AD12: 0 | AE12: 368101.559 | AF12: -123.7920639 | AG12: 144.8504166 | AH12: -24.9849 | AI12: -125.9204 | AJ12: -30.8939 | AK12: -7.997 | AL12: -27.0292 | AM12: -99.2292 | AN12: -7094.6178 | AO12: 0 | AP12: 0.02117821792 | AQ12: 0.04442422786 | AR12: 0.005878132337 | AS12: 0.0003175305686 | AT12: 0.004018361077 | AU12: 0.03505861207 | AV12: 3.558691472 | AW12: 0 | AX12: -0.007073068849 | AY12: -0.03821182085 | AZ12: -0.00544953827 | BA12: -0.0001729770761 | BB12: -0.004320798876 | BC12: -0.03937499226 | BD12: -4.29690696 | BE12: 0 | BF12: 104281.0203 | BG12: 3.669566553 | BH12: -4.391510156 | BI12: -30889.6892 | BJ12: 0.0663 | BK12: 0.6571 | CA12: -104281.0203 | CB12: -100611.4537 | CC12: -96941.88719 | CD12: -93272.32064 | CE12: -89602.75409 | CF12: -85933.18753 | CG12: -82263.62098 | CH12: -78594.05443 | CI12: -74924.48787 | CJ12: -71254.92132 | CK12: -67585.35477 | CL12: -63915.78821 | CM12: -60246.22166 | CN12: -56576.65511 | CO12: -52907.08855 | CP12: -49237.522 | CQ12: -45567.95544 | CR12: -41898.38889 | CS12: -38228.82234 | CT12: -34559.25578 | CU12: -30889.68923 | CV12: -27220.12268 | CW12: -23550.55612 | CX12: -19880.98957 | CY12: -16211.42302 | CZ12: -12541.85646 | DA12: -8872.28991 | DB12: -5202.723357 | DC12: -1533.156803 | DD12: 2136.40975 | DE12: 5805.976304
A13: 3 | B13: 16 | C13: 111691.6926 | D13: 0.9873985903 | E13: 0.9513325524 | F13: 0.9487733436 | G13: 0.9947769253 | H13: 0.9974665105 | I13: 0.9830670649 | J13: 0.9702578564 | K13: 0.8201683002 | L13: 1.504588607 | M13: 0.7598355692 | N13: 0.09839100276 | O13: 0.03937810038 | P13: 0.02524594646 | Q13: 0.2877159786 | R13: 38.04071131 | S13: 0 | T13: 412873.3457 | U13: -128.7221049 | V13: 148.3893639 | W13: 1.49896749 | X13: 0.7487984254 | Y13: 0.09687798155 | Z13: 0.03931632814 | AA13: 0.02522673428 | AB13: 0.2862559242 | AC13: 37.8574049 | AD13: 0 | AE13: 409722.9082 | AF13: -127.2749841 | AG13: 146.7176039 | AH13: -39.2487 | AI13: -108.5367 | AJ13: -49.4893 | AK13: -8.2281 | AL13: -1.4835 | AM13: -57.3742 | AN13: -2886.0769 | AO13: 0 | AP13: 0.03131268135 | AQ13: 0.09105362635 | AR13: 0.006555783716 | AS13: 0.0002655573476 | AT13: 0.0001416138647 | AU13: 0.01168567032 | AV13: 1.306105874 | AW13: 0 | AX13: -0.01765239249 | AY13: -0.08399962314 | AZ13: -0.005896999004 | BA13: -0.0002043045687 | BB13: -0.0001526600193 | BC13: -0.01309416898 | BD13: -1.550759813 | BE13: 0 | BF13: 108541.2551 | BG13: 1.447120807 | BH13: -1.671759961 | BI13: -79598.839 | BJ13: 0.0282 | BK13: 0.2591 | CA13: -108541.2551 | CB13: -107094.1343 | CC13: -105647.0135 | CD13: -104199.8927 | CE13: -102752.7719 | CF13: -101305.6511 | CG13: -99858.53026 | CH13: -98411.40945 | CI13: -96964.28865 | CJ13: -95517.16784 | CK13: -94070.04703 | CL13: -92622.92623 | CM13: -91175.80542 | CN13: -89728.68461 | CO13: -88281.5638 | CP13: -86834.443 | CQ13: -85387.32219 | CR13: -83940.20138 | CS13: -82493.08058 | CT13: -81045.95977 | CU13: -79598.83896 | CV13: -78151.71816 | CW13: -76704.59735 | CX13: -75257.47654 | CY13: -73810.35574 | CZ13: -72363.23493 | DA13: -70916.11412 | DB13: -69468.99332 | DC13: -68021.87251 | DD13: -66574.7517 | DE13: -65127.6309
A14: 4 | B14: 21 | C14: 111691.6926 | D14: 0.9863493346 | E14: 0.9493592236 | F14: 0.9658904166 | G14: 0.9953603831 | H14: 0.9864326371 | I14: 0.977777997 | J14: 0.9503836442 | K14: 0.9180385674 | L14: 1.775614496 | M14: 0.8530127818 | N14: 0.1905648585 | O14: 0.04961609775 | P14: 0.02576149434 | Q14: 0.3828547445 | R14: 38.79276563 | S14: 0 | T14: 291047.4413 | U14: -134.0407501 | V14: 152.6233983 | W14: 1.76843514 | X14: 0.8401107488 | Y14: 0.188612227 | Z14: 0.04954686134 | AA14: 0.02565634975 | AB14: 0.3803032944 | AC14: 38.48755999 | AD14: 0 | AE14: 287480.0232 | AF14: -131.6420905 | AG14: 149.8493032 | AH14: -24.958 | AI14: -124.48 | AJ14: -54.8025 | AK14: -7.7258 | AL14: -9.3749 | AM14: -54.536 | AN14: -3291.541 | AO14: 0 | AP14: 0.03608894028 | AQ14: 0.0971908805 | AR14: 0.009170010691 | AS14: 0.0003242809476 | AT14: 0.0007604312944 | AU14: 0.02181685323 | AV14: 2.233308176 | AW14: 0 | AX14: -0.01690704587 | AY14: -0.08426266599 | AZ14: -0.008729229689 | BA14: -0.0002564745704 | BB14: -0.0008065562841 | BC14: -0.02488137605 | BD14: -2.638251759 | BE14: 0 | BF14: 108124.2746 | BG14: 2.398659573 | BH14: -2.774095108 | BI14: -60151.0831 | BJ14: 0.0319 | BK14: 0.4295 | CA14: -108124.2746 | CB14: -105725.615 | CC14: -103326.9555 | CD14: -100928.2959 | CE14: -98529.63631 | CF14: -96130.97674 | CG14: -93732.31716 | CH14: -91333.65759 | CI14: -88934.99802 | CJ14: -86536.33845 | CK14: -84137.67887 | CL14: -81739.0193 | CM14: -79340.35973 | CN14: -76941.70016 | CO14: -74543.04058 | CP14: -72144.38101 | CQ14: -69745.72144 | CR14: -67347.06187 | CS14: -64948.40229 | CT14: -62549.74272 | CU14: -60151.08315 | CV14: -57752.42358 | CW14: -55353.764 | CX14: -52955.10443 | CY14: -50556.44486 | CZ14: -48157.78529 | DA14: -45759.12571 | DB14: -43360.46614 | DC14: -40961.80657 | DD14: -38563.147 | DE14: -36164.48742
A15: 5 | B15: 19 | C15: 111691.6926 | D15: 0.984166147 | E15: 0.9747520807 | F15: 0.9603699504 | G15: 0.9938471968 | H15: 0.9858363898 | I15: 0.9719892172 | J15: 0.9340130988 | K15: 0.9309995972 | L15: 1.402858211 | M15: 0.5314253345 | N15: 0.1213667917 | O15: 0.0811789778 | P15: 0.01485143039 | Q15: 0.008956110614 | R15: 39.32851252 | S15: 0 | T15: 442049.6501 | U15: -132.7089619 | V15: 151.6723877 | W15: 1.396260661 | X15: 0.5274091518 | Y15: 0.119921931 | Z15: 0.08102888286 | AA15: 0.01478818293 | AB15: 0.008880676478 | AC15: 38.92389562 | AD15: 0 | AE15: 435018.83 | AF15: -129.595213 | AG15: 148.0568841 | AH15: -54.2702 | AI15: -34.0132 | AJ15: -34.3447 | AK15: -19.3948 | AL15: -2.5377 | AM15: -2.8942 | AN15: -6883.3654 | AO15: 0 | AP15: 0.03410489115 | AQ15: 0.03219944268 | AR15: 0.006593013834 | AS15: 0.0004440978611 | AT15: 0.0005035747108 | AU15: 0.000544561063 | AV15: 3.039359372 | AW15: 0 | AX15: -0.0165406079 | AY15: -0.03081164913 | AZ15: -0.006238499244 | BA15: -0.0002342669761 | BB15: -0.0005440104918 | BC15: -0.0006223685592 | BD15: -3.560512247 | BE15: 0 | BF15: 104660.8725 | BG15: 3.113748954 | BH15: -3.615503649 | BI15: -42385.8934 | BJ15: 0.0629 | BK15: 0.5576 | CA15: -104660.8725 | CB15: -101547.1235 | CC15: -98433.37459 | CD15: -95319.62564 | CE15: -92205.87668 | CF15: -89092.12773 | CG15: -85978.37878 | CH15: -82864.62982 | CI15: -79750.88087 | CJ15: -76637.13192 | CK15: -73523.38296 | CL15: -70409.63401 | CM15: -67295.88505 | CN15: -64182.1361 | CO15: -61068.38715 | CP15: -57954.63819 | CQ15: -54840.88924 | CR15: -51727.14029 | CS15: -48613.39133 | CT15: -45499.64238 | CU15: -42385.89342 | CV15: -39272.14447 | CW15: -36158.39552 | CX15: -33044.64656 | CY15: -29930.89761 | CZ15: -26817.14866 | DA15: -23703.3997 | DB15: -20589.65075 | DC15: -17475.90179 | DD15: -14362.15284 | DE15: -11248.40389
A16: 6 | B16: 30 | C16: 111691.6926 | D16: 0.9875968917 | E16: 0.9695346945 | F16: 0.9726812473 | G16: 0.9943185064 | H16: 0.9655293583 | I16: 0.9548716907 | J16: 0.9278440503 | K16: 0.8013955328 | L16: 1.368198512 | M16: 0.6639209677 | N16: 0.1424658067 | O16: 0.05759088351 | P16: 0.01807717503 | Q16: 0.4965583984 | R16: 37.67486169 | S16: 0 | T16: 439415.9646 | U16: -125.9244132 | V16: 147.5905898 | W16: 1.363129644 | X16: 0.6578412311 | Y16: 0.1412906136 | Z16: 0.05749201173 | AA16: 0.01788881611 | AB16: 0.489812702 | AC16: 37.22336832 | AD16: 0 | AE16: 431437.6446 | AF16: -122.6809159 | AG16: 143.7213174 | AH16: -12.7172 | AI16: -76.2578 | AJ16: -30.8674 | AK16: -11.6855 | AL16: -19.3786 | AM16: -464.6447 | AN16: -7362.769 | AO16: 0 | AP16: 0.03154181287 | AQ16: 0.04941090598 | AR16: 0.006526720025 | AS16: 0.0004312215646 | AT16: 0.001261971504 | AU16: 0.04413294461 | AV16: 3.110191729 | AW16: 0 | AX16: -0.02187811097 | AY16: -0.04677239922 | AZ16: -0.006475522784 | BA16: -0.0003574395739 | BB16: -0.001319013834 | BC16: -0.05222430824 | BD16: -3.740245569 | BE16: 0 | BF16: 103713.3726 | BG16: 3.243497306 | BH16: -3.869272363 | BI16: -38843.4265 | BJ16: 0.0714 | BK16: 0.5808 | CA16: -103713.3726 | CB16: -100469.8753 | CC16: -97226.37799 | CD16: -93982.88068 | CE16: -90739.38338 | CF16: -87495.88607 | CG16: -84252.38877 | CH16: -81008.89146 | CI16: -77765.39416 | CJ16: -74521.89685 | CK16: -71278.39954 | CL16: -68034.90224 | CM16: -64791.40493 | CN16: -61547.90763 | CO16: -58304.41032 | CP16: -55060.91302 | CQ16: -51817.41571 | CR16: -48573.9184 | CS16: -45330.4211 | CT16: -42086.92379 | CU16: -38843.42649 | CV16: -35599.92918 | CW16: -32356.43188 | CX16: -29112.93457 | CY16: -25869.43727 | CZ16: -22625.93996 | DA16: -19382.44265 | DB16: -16138.94535 | DC16: -12895.44804 | DD16: -9651.950738 | DE16: -6408.453432
A17: 7 | B17: 20 | C17: 111691.6926 | D17: 0.9885745828 | E17: 0.9758841511 | F17: 0.9586866951 | G17: 0.9932479963 | H17: 0.9838732812 | I17: 0.961940573 | J17: 0.8736250885 | K17: 0.7598002108 | L17: 1.461404588 | M17: 0.6956621648 | N17: 0.1438737299 | O17: 0.02749077165 | P17: 0.04408291546 | Q17: 0.2513892489 | R17: 39.0573727 | S17: 0 | T17: 330325.9111 | U17: -129.2504436 | V17: 152.0153853 | W17: 1.456446742 | X17: 0.6906465688 | Y17: 0.1420880992 | Z17: 0.0274349535 | AA17: 0.04386916365 | AB17: 0.2485176494 | AC17: 38.27157748 | AD17: 0 | AE17: 320254.8894 | AF17: -123.5213691 | AG17: 145.1088194 | AH17: -6.3133 | AI17: -67.7339 | AJ17: -88.5035 | AK17: -3.0377 | AL17: -13.162 | AM17: -83.5567 | AN17: -9808.7146 | AO17: 0 | AP17: 0.02556133523 | AQ17: 0.0364183786 | AR17: 0.007881662358 | AS17: 0.0002371990069 | AT17: 0.00160623058 | AU17: 0.02159315052 | AV17: 5.635776581 | AW17: 0 | AX17: -0.01231809757 | AY17: -0.03277671488 | AZ17: -0.007294836615 | BA17: -0.0001711027248 | BB17: -0.001718037557 | BC17: -0.02502083749 | BD17: -6.827266214 | BE17: 0 | BF17: 101620.671 | BG17: 5.729074538 | BH17: -6.906565841 | BI17: 12960.8198 | BJ17: 0.0902 | BK17: 1.0259 | CA17: -101620.671 | CB17: -95891.59646 | CC17: -90162.52192 | CD17: -84433.44739 | CE17: -78704.37285 | CF17: -72975.29831 | CG17: -67246.22377 | CH17: -61517.14924 | CI17: -55788.0747 | CJ17: -50059.00016 | CK17: -44329.92562 | CL17: -38600.85109 | CM17: -32871.77655 | CN17: -27142.70201 | CO17: -21413.62747 | CP17: -15684.55294 | CQ17: -9955.478398 | CR17: -4226.403861 | CS17: 1502.670677 | CT17: 7231.745215 | CU17: 12960.81975 | CV17: 18689.89429 | CW17: 24418.96883 | CX17: 30148.04337 | CY17: 35877.1179 | CZ17: 41606.19244 | DA17: 47335.26698 | DB17: 53064.34152 | DC17: 58793.41605 | DD17: 64522.49059 | DE17: 70251.56513
A18: 8 | B18: 30 | C18: 111691.6926 | D18: 0.9879513176 | E18: 0.968044397 | F18: 0.9652877346 | G18: 0.9895091741 | H18: 1 | I18: 0.9735963524 | J18: 0.9439784905 | K18: 0.4751596093 | L18: 1.408082524 | M18: 0.5838428766 | N18: 0.1078969752 | O18: 0.05537702373 | P18: 0.06006120146 | Q18: 0.2826967554 | R18: 37.7867307 | S18: 0 | T18: 293919.1566 | U18: -128.114365 | V18: 145.8092372 | W18: 1.403018294 | X18: 0.5782326275 | Y18: 0.1067660552 | Z18: 0.05520152465 | AA18: 0.06006120146 | AB18: 0.2804463367 | AC18: 37.43752492 | AD18: 0 | AE18: 289858.1142 | AF18: -125.5357664 | AG18: 142.8225536 | AH18: -40.9727 | AI18: -57.1419 | AJ18: -30.3221 | AK18: -10.6301 | AL18: 0 | AM18: -91.9135 | AN18: -3830.062 | AO18: 0 | AP18: 0.02779741081 | AQ18: 0.04320785029 | AR18: 0.005025873783 | AS18: 0.0006208475986 | AT18: 0 | AU18: 0.01757526593 | AV18: 2.484371349 | AW18: 0 | AX18: -0.01559149099 | AY18: -0.03973913044 | AZ18: -0.004875501822 | BA18: -0.0003913804901 | BB18: 0 | BC18: -0.01963161493 | BD18: -2.906454461 | BE18: 0 | BF18: 107630.6503 | BG18: 2.578598598 | BH18: -2.98668358 | BI18: -56058.6783 | BJ18: 0.0364 | BK18: 0.4617 | CA18: -107630.6503 | CB18: -105052.0517 | CC18: -102473.4531 | CD18: -99894.85451 | CE18: -97316.25591 | CF18: -94737.65731 | CG18: -92159.05871 | CH18: -89580.46012 | CI18: -87001.86152 | CJ18: -84423.26292 | CK18: -81844.66432 | CL18: -79266.06572 | CM18: -76687.46713 | CN18: -74108.86853 | CO18: -71530.26993 | CP18: -68951.67133 | CQ18: -66373.07273 | CR18: -63794.47414 | CS18: -61215.87554 | CT18: -58637.27694 | CU18: -56058.67834 | CV18: -53480.07975 | CW18: -50901.48115 | CX18: -48322.88255 | CY18: -45744.28395 | CZ18: -43165.68535 | DA18: -40587.08676 | DB18: -38008.48816 | DC18: -35429.88956 | DD18: -32851.29096 | DE18: -30272.69236
A19: 9 | B19: 23 | C19: 111691.6926 | D19: 0.9873412701 | E19: 0.9632340238 | F19: 0.9426149145 | G19: 0.9963026238 | H19: 0.9920432813 | I19: 0.9601799255 | J19: 0.8653563699 | K19: 1 | L19: 1.509242308 | M19: 0.6191265335 | N19: 0.1353773142 | O19: 0.04931681156 | P19: 0.0473876078 | Q19: 0.4390022329 | R19: 38.56910635 | S19: 0 | T19: 391062.8875 | U19: -124.4237857 | V19: 150.8838397 | W19: 1.503565153 | X19: 0.6123084243 | Y19: 0.1330405468 | Z19: 0.04926192352 | AA19: 0.04727410792 | AB19: 0.4337578789 | AC19: 37.72623753 | AD19: 0 | AE19: 378164.1774 | AF19: -118.5433091 | AG19: 143.558424 | AH19: -14.553 | AI19: -26.9329 | AJ19: -64.0627 | AK19: -4.9611 | AL19: -5.0601 | AM19: -151.8148 | AN19: -12631.3254 | AO19: 0 | AP19: 0.02786985828 | AQ19: 0.05826105083 | AR19: 0.01284957056 | AS19: 0.0001630497178 | AT19: 0.0008582387569 | AU19: 0.04375184121 | AV19: 5.736723005 | AW19: 0 | AX19: -0.01181895772 | AY19: -0.05545596535 | AZ19: -0.01274630774 | BA19: -9.233337519e-05 | BB19: -0.0009109787845 | BC19: -0.04964389972 | BD19: -7.194747257 | BE19: 0 | BF19: 98792.9826 | BG19: 5.880476614 | BH19: -7.325415699 | BI19: 18816.5497 | BJ19: 0.1155 | BK19: 1.053 | CA19: -98792.9826 | CB19: -92912.50599 | CC19: -87032.02937 | CD19: -81151.55276 | CE19: -75271.07614 | CF19: -69390.59953 | CG19: -63510.12291 | CH19: -57629.6463 | CI19: -51749.16968 | CJ19: -45868.69307 | CK19: -39988.21646 | CL19: -34107.73984 | CM19: -28227.26323 | CN19: -22346.78661 | CO19: -16466.31 | CP19: -10585.83338 | CQ19: -4705.35677 | CR19: 1175.119845 | CS19: 7055.596459 | CT19: 12936.07307 | CU19: 18816.54969 | CV19: 24697.0263 | CW19: 30577.50292 | CX19: 36457.97953 | CY19: 42338.45615 | CZ19: 48218.93276 | DA19: 54099.40937 | DB19: 59979.88599 | DC19: 65860.3626 | DD19: 71740.83922 | DE19: 77621.31583
A20: 10 | B20: 24 | C20: 111691.6926 | D20: 0.9901580349 | E20: 0.958939306 | F20: 0.967574465 | G20: 0.9934366464 | H20: 0.9774620722 | I20: 0.9777478984 | J20: 0.8764491371 | K20: 0.8822300435 | L20: 1.363557276 | M20: 0.670373456 | N20: 0.1048191251 | O20: 0.04273083971 | P20: 0.0257519804 | Q20: 0.08216454067 | R20: 38.92509633 | S20: 0 | T20: 108945.3201 | U20: -133.6057208 | V20: 152.4243843 | W20: 1.359562961 | X20: 0.6621295716 | Y20: 0.1037961817 | Z20: 0.04264638508 | AA20: 0.02557717874 | AB20: 0.08161415934 | AC20: 38.15539349 | AD20: 0 | AE20: 105888.2467 | AF20: -127.7950413 | AG20: 145.6869783 | AH20: -11.8773 | AI20: -96.6844 | AJ20: -36.0466 | AK20: -4.4999 | AL20: -12.9364 | AM20: -26.8658 | AN20: -2868.163 | AO20: 0 | AP20: 0.02764574761 | AQ20: 0.06241199562 | AR20: 0.004274207655 | AS20: 0.0003397756989 | AT20: 0.001057866295 | AU20: 0.003865503171 | AV20: 5.711084382 | AW20: 0 | AX20: -0.02185521041 | AY20: -0.05723034207 | AZ20: -0.003876733685 | BA20: -0.0002413253768 | BB20: -0.001103865937 | BC20: -0.004561678776 | BD20: -6.648536765 | BE20: 0 | BF20: 108634.6192 | BG20: 5.810679478 | BH20: -6.737405922 | BI20: 7578.9703 | BJ20: 0.0274 | BK20: 1.0405 | CA20: -108634.6192 | CB20: -102823.9397 | CC20: -97013.26024 | CD20: -91202.58077 | CE20: -85391.90129 | CF20: -79581.22181 | CG20: -73770.54233 | CH20: -67959.86286 | CI20: -62149.18338 | CJ20: -56338.5039 | CK20: -50527.82442 | CL20: -44717.14495 | CM20: -38906.46547 | CN20: -33095.78599 | CO20: -27285.10651 | CP20: -21474.42704 | CQ20: -15663.74756 | CR20: -9853.068082 | CS20: -4042.388604 | CT20: 1768.290873 | CU20: 7578.970351 | CV20: 13389.64983 | CW20: 19200.32931 | CX20: 25011.00878 | CY20: 30821.68826 | CZ20: 36632.36774 | DA20: 42443.04722 | DB20: 48253.72669 | DC20: 54064.40617 | DD20: 59875.08565 | DE20: 65685.76513
A21: 11 | B21: 18 | C21: 111691.6926 | D21: 0.9839229569 | E21: 0.9683052101 | F21: 0.9734205327 | G21: 0.9924925941 | H21: 0.9875639256 | I21: 0.9848663182 | J21: 0.9070321638 | K21: 0.901740848 | L21: 1.472141425 | M21: 0.568928571 | N21: 0.08902932123 | O21: 0.04423646212 | P21: 0.02192936946 | Q21: 0.6290423966 | R21: 38.74168797 | S21: 0 | T21: 193171.0245 | U21: -128.9236363 | V21: 152.7352953 | W21: 1.465118345 | X21: 0.5635345684 | Y21: 0.08831850137 | Z21: 0.04413666494 | AA21: 0.02184740189 | AB21: 0.6261962989 | AC21: 38.16555227 | AD21: 0 | AE21: 189256.3421 | AF21: -124.7451078 | AG21: 147.6787746 | AH21: -36.6763 | AI21: -54.1015 | AJ21: -9.6567 | AK21: -5.5992 | AL21: -8.5775 | AM21: -144.1802 | AN21: -3655.8909 | AO21: 0 | AP21: 0.03819823763 | AQ21: 0.04085615016 | AR21: 0.003817870374 | AS21: 0.0005987234833 | AT21: 0.0004824422177 | AU21: 0.02281498022 | AV21: 4.07176007 | AW21: 0 | AX21: -0.0213017781 | AY21: -0.03859337042 | AZ21: -0.003718270187 | BA21: -0.0005415375278 | BB21: -0.0005301588207 | BC21: -0.02632457235 | BD21: -4.965510919 | BE21: 0 | BF21: 107777.0103 | BG21: 4.178528474 | BH21: -5.056520606 | BI21: -24206.4408 | BJ21: 0.035 | BK21: 0.7482 | CA21: -107777.0103 | CB21: -103598.4818 | CC21: -99419.95335 | CD21: -95241.42488 | CE21: -91062.89641 | CF21: -86884.36793 | CG21: -82705.83946 | CH21: -78527.31098 | CI21: -74348.78251 | CJ21: -70170.25404 | CK21: -65991.72556 | CL21: -61813.19709 | CM21: -57634.66862 | CN21: -53456.14014 | CO21: -49277.61167 | CP21: -45099.08319 | CQ21: -40920.55472 | CR21: -36742.02625 | CS21: -32563.49777 | CT21: -28384.9693 | CU21: -24206.44083 | CV21: -20027.91235 | CW21: -15849.38388 | CX21: -11670.85541 | CY21: -7492.326932 | CZ21: -3313.798458 | DA21: 864.7300153 | DB21: 5043.258489 | DC21: 9221.786963 | DD21: 13400.31544 | DE21: 17578.84391
A22: 12 | B22: 23 | C22: 111691.6926 | D22: 0.9856219219 | E22: 0.9693506805 | F22: 0.9613426748 | G22: 0.9945130512 | H22: 0.9949113684 | I22: 0.9693137445 | J22: 0.8901332925 | K22: 0.7300865062 | L22: 1.50511381 | M22: 0.5854593149 | N22: 0.1425038645 | O22: 0.03599574443 | P22: 0.01278024135 | Q22: 0.3714177688 | R22: 38.39223436 | S22: 0 | T22: 345254.548 | U22: -129.603006 | V22: 149.6187885 | W22: 1.49868494 | X22: 0.5800847458 | Y22: 0.1408474727 | Z22: 0.03593630353 | AA22: 0.01276066502 | AB22: 0.3679976187 | AC22: 37.70658183 | AD22: 0 | AE22: 336195.7227 | AF22: -124.5748772 | AG22: 143.693492 | AH22: -45.42 | AI22: -74.3578 | AJ22: -49.9668 | AK22: -3.0432 | AL22: -0.6173 | AM22: -222.9633 | AN22: -8662.4569 | AO22: 0 | AP22: 0.03512841578 | AQ22: 0.04527691531 | AR22: 0.007214698734 | AS22: 0.0003773561124 | AT22: 0.0001549042378 | AU22: 0.02114044298 | AV22: 4.918836 | AW22: 0 | AX22: -0.01944350578 | AY22: -0.0436245363 | AZ22: -0.006724050932 | BA22: -0.0003586805902 | BB22: -0.0001713786603 | BC22: -0.02595170523 | BD22: -5.829022684 | BE22: 0 | BF22: 102632.8673 | BG22: 5.028128734 | BH22: -5.925296542 | BI22: -2070.2927 | BJ22: 0.0811 | BK22: 0.9004 | CA22: -102632.8673 | CB22: -97604.73857 | CC22: -92576.60983 | CD22: -87548.4811 | CE22: -82520.35237 | CF22: -77492.22363 | CG22: -72464.0949 | CH22: -67435.96616 | CI22: -62407.83743 | CJ22: -57379.7087 | CK22: -52351.57996 | CL22: -47323.45123 | CM22: -42295.3225 | CN22: -37267.19376 | CO22: -32239.06503 | CP22: -27210.9363 | CQ22: -22182.80756 | CR22: -17154.67883 | CS22: -12126.5501 | CT22: -7098.421362 | CU22: -2070.292628 | CV22: 2957.836106 | CW22: 7985.964839 | CX22: 13014.09357 | CY22: 18042.22231 | CZ22: 23070.35104 | DA22: 28098.47977 | DB22: 33126.60851 | DC22: 38154.73724 | DD22: 43182.86597 | DE22: 48210.99471
A23: 13 | B23: 16 | C23: 111691.6926 | D23: 0.9893690832 | E23: 0.983584513 | F23: 0.9641190611 | G23: 0.9933747311 | H23: 0.9891600823 | I23: 0.9736155174 | J23: 0.8993517678 | K23: 0.7585107676 | L23: 1.687244674 | M23: 0.4719330461 | N23: 0.1138415899 | O23: 0.0528544468 | P23: 0.08906655338 | Q23: 0.09484674953 | R23: 38.9391343 | S23: 0 | T23: 416041.5571 | U23: -130.7751378 | V23: 150.1610271 | W23: 1.681934559 | X23: 0.4696146193 | Y23: 0.1126153206 | Z23: 0.05274926668 | AA23: 0.08877665057 | AB23: 0.09409536445 | AC23: 38.31589979 | AD23: 0 | AE23: 406004.2551 | AF23: -126.1599113 | AG23: 144.7099403 | AH23: -44.2978 | AI23: -23.7475 | AJ23: -22.773 | AK23: -10.129 | AL23: -17.7942 | AM23: -16.8467 | AN23: -9901.7138 | AO23: 0 | AP23: 0.02477705961 | AQ23: 0.0194565348 | AR23: 0.00702269275 | AS23: 0.000314886004 | AT23: 0.002187655604 | AU23: 0.006320917772 | AV23: 4.555146697 | AW23: 0 | AX23: -0.009269720243 | AY23: -0.01855932174 | AZ23: -0.007003183482 | BA23: -0.00015354357 | BB23: -0.002390947747 | BC23: -0.007204515436 | BD23: -5.406505562 | BE23: 0 | BF23: 101654.3906 | BG23: 4.615226443 | BH23: -5.451086794 | BI23: -9349.8618 | BJ23: 0.0899 | BK23: 0.8264 | CA23: -101654.3906 | CB23: -97039.16416 | CC23: -92423.93771 | CD23: -87808.71127 | CE23: -83193.48483 | CF23: -78578.25838 | CG23: -73963.03194 | CH23: -69347.8055 | CI23: -64732.57906 | CJ23: -60117.35261 | CK23: -55502.12617 | CL23: -50886.89973 | CM23: -46271.67328 | CN23: -41656.44684 | CO23: -37041.2204 | CP23: -32425.99395 | CQ23: -27810.76751 | CR23: -23195.54107 | CS23: -18580.31462 | CT23: -13965.08818 | CU23: -9349.861738 | CV23: -4734.635295 | CW23: -119.4088516 | CX23: 4495.817592 | CY23: 9111.044035 | CZ23: 13726.27048 | DA23: 18341.49692 | DB23: 22956.72336 | DC23: 27571.94981 | DD23: 32187.17625 | DE23: 36802.40269
A24: 14 | B24: 20 | C24: 111691.6926 | D24: 0.9876112061 | E24: 0.946376288 | F24: 0.9753154442 | G24: 0.9953445681 | H24: 0.9747619113 | I24: 0.9751134062 | J24: 0.9040376434 | K24: 0.7114494469 | L24: 1.444239187 | M24: 0.2634198087 | N24: 0.1377607365 | O24: 0.05792076865 | P24: 0.01523371022 | Q24: 1.158134183 | R24: 39.19072279 | S24: 0 | T24: 354104.3398 | U24: -130.6840344 | V24: 154.3459155 | W24: 1.438924897 | X24: 0.2591800822 | Y24: 0.1367389741 | Z24: 0.05783969247 | AA24: 0.01511806619 | AB24: 1.14955138 | AC24: 38.59807158 | AD24: 0 | AE24: 346319.7426 | AF24: -126.3008707 | AG24: 149.0597848 | AH24: -54.1914 | AI24: -98.7283 | AJ24: -26.7162 | AK24: -4.6954 | AL24: -2.9916 | AM24: -335.6654 | AN24: -7261.6089 | AO24: 0 | AP24: 0.02407630094 | AQ24: 0.02821270012 | AR24: 0.005408981407 | AS24: 0.0003691629708 | AT24: 0.0008878468262 | AU24: 0.05703760343 | AV24: 4.267171044 | AW24: 0 | AX24: -0.008259021128 | AY24: -0.02311421205 | AZ24: -0.00523907041 | BA24: -0.0002844542209 | BB24: -0.0009678864021 | BC24: -0.06799716386 | BD24: -5.180268957 | BE24: 0 | BF24: 103907.0954 | BG24: 4.38316364 | BH24: -5.286130765 | BI24: -16243.8226 | BJ24: 0.0697 | BK24: 0.7849 | CA24: -103907.0954 | CB24: -99523.93176 | CC24: -95140.76812 | CD24: -90757.60448 | CE24: -86374.44084 | CF24: -81991.2772 | CG24: -77608.11356 | CH24: -73224.94992 | CI24: -68841.78628 | CJ24: -64458.62264 | CK24: -60075.459 | CL24: -55692.29536 | CM24: -51309.13172 | CN24: -46925.96808 | CO24: -42542.80444 | CP24: -38159.6408 | CQ24: -33776.47716 | CR24: -29393.31352 | CS24: -25010.14988 | CT24: -20626.98624 | CU24: -16243.8226 | CV24: -11860.65896 | CW24: -7477.495324 | CX24: -3094.331684 | CY24: 1288.831955 | CZ24: 5671.995595 | DA24: 10055.15924 | DB24: 14438.32287 | DC24: 18821.48651 | DD24: 23204.65015 | DE24: 27587.81379
A25: 15 | B25: 21 | C25: 111691.6926 | D25: 0.9922077336 | E25: 0.9490895718 | F25: 0.9681885954 | G25: 0.9935393267 | H25: 0.9797382821 | I25: 0.9728153887 | J25: 0.8733351922 | K25: 0.8072434531 | L25: 1.667302847 | M25: 0.4698783739 | N25: 0.05391137164 | O25: 0.03469765944 | P25: 0.04536450227 | Q25: 0.2721037092 | R25: 36.65730113 | S25: 0 | T25: 46935.0886 | U25: -121.6554161 | V25: 139.5670961 | W25: 1.663451014 | X25: 0.4627096993 | Y25: 0.05339558381 | Z25: 0.03463022883 | AA25: 0.04508804256 | AB25: 0.2698832557 | AC25: 35.85761887 | AD25: 0 | AE25: 45803.7851 | AF25: -116.1102541 | AG25: 133.035431 | AH25: -16.314 | AI25: -70.1721 | AJ25: -13.4392 | AK25: -7.0722 | AL25: -19.7877 | AM25: -48.34 | AN25: -956.1782 | AO25: 0 | AP25: 0.01981778505 | AQ25: 0.05173997748 | AR25: 0.002605274847 | AS25: 0.0003016116675 | AT25: 0.001913895878 | AU25: 0.01611998992 | AV25: 5.452663423 | AW25: 0 | AX25: -0.009709465324 | AY25: -0.04749747747 | AZ25: -0.002508919908 | BA25: -0.0002175256545 | BB25: -0.002007019164 | BC25: -0.01855097321 | BD25: -6.451173759 | BE25: 0 | BF25: 110560.3891 | BG25: 5.545161958 | BH25: -6.53166514 | BI25: 342.85 | BJ25: 0.0101 | BK25: 0.9929 | CA25: -110560.3891 | CB25: -105015.2271 | CC25: -99470.06518 | CD25: -93924.90323 | CE25: -88379.74127 | CF25: -82834.57931 | CG25: -77289.41735 | CH25: -71744.25539 | CI25: -66199.09343 | CJ25: -60653.93148 | CK25: -55108.76952 | CL25: -49563.60756 | CM25: -44018.4456 | CN25: -38473.28364 | CO25: -32928.12169 | CP25: -27382.95973 | CQ25: -21837.79777 | CR25: -16292.63581 | CS25: -10747.47385 | CT25: -5202.311895 | CU25: 342.8500633 | CV25: 5888.012021 | CW25: 11433.17398 | CX25: 16978.33594 | CY25: 22523.4979 | CZ25: 28068.65985 | DA25: 33613.82181 | DB25: 39158.98377 | DC25: 44704.14573 | DD25: 50249.30769 | DE25: 55794.46964
A26: 16 | B26: 27 | C26: 111691.6926 | D26: 0.9841439082 | E26: 0.9488695658 | F26: 0.9496263019 | G26: 0.9945671941 | H26: 0.9842994279 | I26: 0.9790170641 | J26: 0.923179898 | K26: 0.8112412799 | L26: 1.609289677 | M26: 0.4900337361 | N26: 0.1194596566 | O26: 0.0399740332 | P26: 0.07342906031 | Q26: 0.07088705926 | R26: 38.05413791 | S26: 0 | T26: 344605.4747 | U26: -126.2849235 | V26: 147.3126428 | W26: 1.601698802 | X26: 0.4825052787 | Y26: 0.1176457359 | Z26: 0.03990852575 | AA26: 0.07308140722 | AB26: 0.0704385144 | AC26: 37.57523274 | AD26: 0 | AE26: 338066.6249 | AF26: -122.8049325 | AG26: 143.181978 | AH26: -54.839 | AI26: -42.4854 | AJ26: -33.7902 | AK26: -6.402 | AL26: -23.4667 | AM26: -4.5153 | AN26: -6373.3513 | AO26: 0 | AP26: 0.04586553921 | AQ26: 0.06345277342 | AR26: 0.008023723623 | AS26: 0.0002277960896 | AT26: 0.002467212229 | AU26: 0.003401433581 | AV26: 3.35655249 | AW26: 0 | AX26: -0.03045265771 | AY26: -0.06247805665 | AZ26: -0.007526921251 | BA26: -0.0001197367439 | BB26: -0.002615414169 | BC26: -0.003929816591 | BD26: -4.023542256 | BE26: 0 | BF26: 105152.8428 | BG26: 3.479990968 | BH26: -4.130664859 | BI26: -35553.0234 | BJ26: 0.0585 | BK26: 0.6231 | CA26: -105152.8428 | CB26: -101672.8518 | CC26: -98192.86086 | CD26: -94712.8699 | CE26: -91232.87893 | CF26: -87752.88796 | CG26: -84272.89699 | CH26: -80792.90602 | CI26: -77312.91506 | CJ26: -73832.92409 | CK26: -70352.93312 | CL26: -66872.94215 | CM26: -63392.95119 | CN26: -59912.96022 | CO26: -56432.96925 | CP26: =($BG26*CP$8)-$BF26 -> -52952.97828 | CQ26: -49472.98731 | CR26: -45992.99635 | CS26: -42513.00538 | CT26: -39033.01441 | CU26: -35553.02344 | CV26: -32073.03247 | CW26: -28593.04151 | CX26: -25113.05054 | CY26: -21633.05957 | CZ26: -18153.0686 | DA26: -14673.07763 | DB26: -11193.08667 | DC26: -7713.095699 | DD26: -4233.104731 | DE26: -753.1137633
A27: 17 | B27: 16 | C27: 111691.6926 | D27: 0.9888650274 | E27: 0.9582073259 | F27: 0.9624468817 | G27: 0.9943533146 | H27: 0.9888235484 | I27: 0.9630675326 | J27: 0.9409926647 | K27: 0.703889041 | L27: 1.801128286 | M27: 0.6020248006 | N27: 0.1342052668 | O27: 0.03403034743 | P27: 0.04102869159 | Q27: 0.4154930283 | R27: 39.7753459 | S27: 0 | T27: 340233.5315 | U27: -136.7417298 | V27: 159.3359511 | W27: 1.795198659 | X27: 0.5945054786 | Y27: 0.1326929428 | Z27: 0.03397263566 | AA27: 0.04089098025 | AB27: 0.4108995659 | AC27: 39.41615556 | AD27: 0 | AE27: 335415.9502 | AF27: -133.9137554 | AG27: 155.9820228 | AH27: -30.1846 | AI27: -54.5517 | AJ27: -35.4027 | AK27: -8.2812 | AL27: -12.583 | AM27: -160.6207 | AN27: -4515.9573 | AO27: 0 | AP27: 0.03710229976 | AQ27: 0.06709649155 | AR27: 0.008751147044 | AS27: 0.0002052603839 | AT27: 0.0009714729578 | AU27: 0.03165733615 | AV27: 2.682190392 | AW27: 0 | AX27: -0.02525879761 | AY27: -0.06696943515 | AZ27: -0.008848398667 | BA27: -0.0001100455395 | BB27: -0.001040484797 | BC27: -0.03714017924 | BD27: -3.214560933 | BE27: 0 | BF27: 106874.1114 | BG27: 2.8279744 | BH27: -3.353928274 | BI27: -50314.6234 | BJ27: 0.0431 | BK27: 0.5064 | CA27: =($BG27*CA$8)-$BF27 -> -106874.1114 | CB27: -104046.137 | CC27: -101218.1626 | CD27: -98390.1882 | CE27: -95562.2138 | CF27: -92734.2394 | CG27: -89906.265 | CH27: -87078.2906 | CI27: -84250.3162 | CJ27: -81422.3418 | CK27: -78594.3674 | CL27: -75766.393 | CM27: -72938.4186 | CN27: -70110.4442 | CO27: -67282.4698 | CP27: -64454.4954 | CQ27: -61626.52099 | CR27: -58798.54659 | CS27: -55970.57219 | CT27: -53142.59779 | CU27: -50314.62339 | CV27: -47486.64899 | CW27: -44658.67459 | CX27: -41830.70019 | CY27: -39002.72579 | CZ27: -36174.75139 | DA27: =($BG27*DA$8)-$BF27 -> -33346.77699 | DB27: -30518.80259 | DC27: -27690.82819 | DD27: -24862.85379 | DE27: -22034.87939
A28: 18 | B28: 23 | C28: 111691.6926 | D28: 0.9863892978 | E28: 0.9829749843 | F28: 0.9581509844 | G28: 0.9944678269 | H28: 0.9677560856 | I28: 0.9789913923 | J28: 0.9639740668 | K28: 1 | L28: 1.686967747 | M28: 0.6737497678 | N28: 0.0845369138 | O28: 0.04849150633 | P28: 0.1117704262 | Q28: 0.4671300598 | R28: 38.58167512 | S28: 0 | T28: 197254.4224 | U28: -129.8339866 | V28: 150.090576 | W28: 1.680155815 | X28: 0.6703158027 | Y28: 0.08347231957 | Z28: 0.04841075548 | AA28: 0.1106861904 | AB28: 0.4641867515 | AC28: 38.35996726 | AD28: 0 | AE28: 195499.5059 | AF28: -128.1582704 | AG28: 148.1176136 | AH28: -32.8518 | AI28: -31.9167 | AJ28: -18.4928 | AK28: -10.7058 | AL28: -70.3142 | AM28: -105.0534 | AN28: -1485.5818 | AO28: 0 | AP28: 0.02954869675 | AQ28: 0.02703828097 | AR28: 0.004501819666 | AS28: 0.0003052912664 | AT28: 0.007679781516 | AU28: 0.02242670202 | AV28: 1.584215632 | AW28: 0 | AX28: -0.007798500744 | AY28: -0.02487536405 | AZ28: -0.004167391938 | BA28: -0.0002017173865 | BB28: -0.00813736357 | BC28: -0.0252702511 | BD28: -1.90251181 | BE28: 0 | BF28: 109936.7761 | BG28: 1.675716204 | BH28: -1.972962398 | BI28: -76422.452 | BJ28: 0.0157 | BK28: 0.3001 | CA28: -109936.7761 | CB28: -108261.0599 | CC28: -106585.3437 | CD28: -104909.6275 | CE28: -103233.9113 | CF28: -101558.1951 | CG28: -99882.47887 | CH28: -98206.76267 | CI28: -96531.04647 | CJ28: -94855.33026 | CK28: -93179.61406 | CL28: -91503.89785 | CM28: -89828.18165 | CN28: -88152.46544 | CO28: -86476.74924 | CP28: -84801.03303 | CQ28: -83125.31683 | CR28: -81449.60063 | CS28: -79773.88442 | CT28: -78098.16822 | CU28: -76422.45201 | CV28: -74746.73581 | CW28: -73071.0196 | CX28: -71395.3034 | CY28: -69719.5872 | CZ28: -68043.87099 | DA28: -66368.15479 | DB28: -64692.43858 | DC28: -63016.72238 | DD28: -61341.00617 | DE28: -59665.28997
A29: 19 | B29: 21 | C29: 111691.6926 | D29: 0.9850974925 | E29: 0.9809848048 | F29: 0.9410758858 | G29: 0.9939711023 | H29: 0.9717291302 | I29: 0.9775674338 | J29: 0.961108544 | K29: 0.780400781 | L29: 1.493442944 | M29: 0.5776567972 | N29: 0.09576554846 | O29: 0.04487671834 | P29: 0.05104417357 | Q29: 0.04400212251 | R29: 38.08860973 | S29: 0 | T29: 189128.1748 | U29: -127.5218413 | V29: 145.7909965 | W29: 1.486833943 | X29: 0.5743683112 | Y29: 0.09406901735 | Z29: 0.04479534058 | AA29: 0.05061015333 | AB29: 0.04370522713 | AC29: 37.84836312 | AD29: 0 | AE29: 187268.9466 | AF29: -125.7234613 | AG29: 143.7055657 | AH29: -31.4609 | AI29: -10.572 | AJ29: -47.9641 | AK29: -4.9107 | AL29: -33.6727 | AM29: -5.1341 | AN29: -1725.5137 | AO29: 0 | AP29: 0.03292691937 | AQ29: 0.02723144603 | AR29: 0.008612847195 | AS29: 0.0002773080734 | AT29: 0.003006816098 | AU29: 0.002388637536 | AV29: 1.723936042 | AW29: 0 | AX29: -0.01399526195 | AY29: -0.02570371663 | AZ29: -0.008288514326 | BA29: -0.0002061853429 | BB29: -0.003221739632 | BC29: -0.002714608521 | BD29: -2.031300763 | BE29: 0 | BF29: 109832.4645 | BG29: 1.798380017 | BH29: -2.08543079 | BI29: -73864.8641 | BJ29: 0.0166 | BK29: 0.322 | CA29: -109832.4645 | CB29: -108034.0845 | CC29: -106235.7045 | CD29: -104437.3245 | CE29: -102638.9444 | CF29: -100840.5644 | CG29: -99042.1844 | CH29: -97243.80438 | CI29: -95445.42437 | CJ29: -93647.04435 | CK29: -91848.66433 | CL29: -90050.28432 | CM29: -88251.9043 | CN29: -86453.52428 | CO29: -84655.14427 | CP29: -82856.76425 | CQ29: -81058.38423 | CR29: -79260.00422 | CS29: -77461.6242 | CT29: -75663.24419 | CU29: -73864.86417 | CV29: -72066.48415 | CW29: -70268.10414 | CX29: -68469.72412 | CY29: -66671.3441 | CZ29: -64872.96409 | DA29: -63074.58407 | DB29: -61276.20405 | DC29: -59477.82404 | DD29: -57679.44402 | DE29: -55881.064
A30: 20 | B30: 24 | C30: 111691.6926 | D30: 0.9863703056 | E30: 0.9583334885 | F30: 0.9650259436 | G30: 0.9959045937 | H30: 0.9619734236 | I30: 0.9705629341 | J30: 0.9019637818 | K30: 0.8343164749 | L30: 1.449849513 | M30: 0.6004001851 | N30: 0.09481315305 | O30: 0.04182115362 | P30: 0.02631121175 | Q30: 0.6963180576 | R30: 38.04407364 | S30: 0 | T30: 566552.4912 | U30: -126.5567523 | V30: 148.3398742 | W30: 1.443971038 | X30: 0.5929015648 | Y30: 0.09381482163 | Z30: 0.04176956536 | AA30: 0.02600981007 | AB30: 0.6901792801 | AC30: 37.43141898 | AD30: 0 | AE30: 552919.8616 | AF30: -122.1516501 | AG30: 143.073312 | AH30: -36.4044 | AI30: -134.539 | AJ30: -21.6726 | AK30: -9.5342 | AL30: -11.5791 | AM30: -203.4312 | AN30: -13215.4691 | AO30: 0 | AP30: 0.03049266285 | AQ30: 0.05503832371 | AR30: 0.005625557806 | AS30: 0.0002137057928 | AT30: 0.002465322401 | AU30: 0.04148557037 | AV30: 4.269781084 | AW30: 0 | AX30: -0.0155015777 | AY30: -0.04589667039 | AZ30: -0.00543919496 | BA30: -0.0001495921055 | BB30: -0.002687226753 | BC30: -0.04787716264 | BD30: -5.149010739 | BE30: 0 | BF30: 98059.063 | BG30: 4.405102227 | BH30: -5.266562164 | BI30: -9957.0184 | BJ30: 0.1221 | BK30: 0.7888 | CA30: -98059.063 | CB30: -93653.96077 | CC30: -89248.85855 | CD30: -84843.75632 | CE30: -80438.65409 | CF30: -76033.55187 | CG30: -71628.44964 | CH30: -67223.34741 | CI30: -62818.24519 | CJ30: -58413.14296 | CK30: -54008.04073 | CL30: -49602.93851 | CM30: -45197.83628 | CN30: -40792.73405 | CO30: -36387.63183 | CP30: -31982.5296 | CQ30: -27577.42737 | CR30: -23172.32515 | CS30: -18767.22292 | CT30: -14362.12069 | CU30: -9957.018468 | CV30: -5551.916241 | CW30: -1146.814015 | CX30: 3258.288212 | CY30: 7663.390438 | CZ30: 12068.49266 | DA30: 16473.59489 | DB30: 20878.69712 | DC30: 25283.79934 | DD30: 29688.90157 | DE30: 34094.0038
A31: 21 | B31: 20 | C31: 111691.6926 | D31: 0.9841671989 | E31: 0.9698848539 | F31: 0.9509912995 | G31: 0.9936048063 | H31: 1 | I31: 0.9725164353 | J31: 0.881338467 | K31: 0.7617700968 | L31: 1.754024382 | M31: 0.4467974774 | N31: 0.150874628 | O31: 0.03968094988 | P31: 0.01768571278 | Q31: 0.2580811081 | R31: 38.51373339 | S31: 0 | T31: 522886.3729 | U31: -130.0378517 | V31: 150.3066884 | W31: 1.745799808 | X31: 0.4427658971 | Y31: 0.1486534083 | Z31: 0.03960464497 | AA31: 0.01768571278 | AB31: 0.2559523672 | AC31: 37.77347536 | AD31: 0 | AE31: 507642.1312 | AF31: -124.6228839 | AG31: 143.892477 | AH31: -42.4085 | AI31: -32.8078 | AJ31: -46.5766 | AK31: -9.2754 | AL31: 0 | AM31: -85.4786 | AN31: -15027.6948 | AO31: 0 | AP31: 0.04918953094 | AQ31: 0.03103750191 | AR31: 0.01248030975 | AS31: 0.0003083075876 | AT31: 0 | AU31: 0.01608786615 | AV31: 5.305864341 | AW31: 0 | AX31: -0.03125667039 | AY31: -0.02960236852 | AZ31: -0.01257626586 | BA31: -0.0002298895192 | BB31: 0 | BC31: -0.01806249261 | BD31: -6.322483624 | BE31: 0 | BF31: 96447.451 | BG31: 5.414967858 | BH31: -6.414211311 | BI31: 11851.9061 | BJ31: 0.1365 | BK31: 0.9696 | BN31: ICER = | BO31: =IF(AND(BF4>0,BG4>0),DOLLAR($BF$4/$BG$4,0)&" per QALY gained",IF(AND(BF4<0,BG4>0),"Cost saving","Undefined")) -> £5,796 per QALY gained | BV31: 2016-10-17T19:15:04 | CA31: -96447.451 | CB31: -91032.48314 | CC31: -85617.51528 | CD31: -80202.54743 | CE31: -74787.57957 | CF31: -69372.61171 | CG31: -63957.64385 | CH31: -58542.676 | CI31: -53127.70814 | CJ31: -47712.74028 | CK31: -42297.77242 | CL31: -36882.80457 | CM31: -31467.83671 | CN31: -26052.86885 | CO31: -20637.90099 | CP31: -15222.93313 | CQ31: -9807.965277 | CR31: -4392.997419 | CS31: 1021.970438 | CT31: 6436.938296 | CU31: 11851.90615 | CV31: 17266.87401 | CW31: 22681.84187 | CX31: 28096.80973 | CY31: 33511.77758 | CZ31: 38926.74544 | DA31: 44341.7133 | DB31: 49756.68116 | DC31: 55171.64902 | DD31: 60586.61687 | DE31: 66001.58473
A32: 22 | B32: 18 | C32: 111691.6926 | D32: 0.9860504841 | E32: 0.9817604559 | F32: 0.9703471716 | G32: 0.9960240584 | H32: 0.9795346778 | I32: 0.9859031633 | J32: 0.8947844735 | K32: 0.905189524 | L32: 1.695783599 | M32: 0.5050609122 | N32: 0.05792130021 | O32: 0.03882918248 | P32: 0.03585544558 | Q32: 0.02465793635 | R32: 38.51941847 | S32: 0 | T32: 528871.0159 | U32: -127.1979735 | V32: 148.6799453 | W32: 1.688779939 | X32: 0.5023043974 | Y32: 0.05740535414 | Z32: 0.03878279841 | AA32: 0.03563497215 | AB32: 0.02455348766 | AC32: 37.86502056 | AD32: 0 | AE32: 515126.2081 | AF32: -122.4787734 | AG32: 143.0311242 | AH32: -26.3421 | AI32: -39.4232 | AJ32: -15.9403 | AK32: -4.6823 | AL32: -6.546 | AM32: -2.6476 | AN32: -13649.2265 | AO32: 0 | AP32: 0.03963244077 | AQ32: 0.02330186033 | AR32: 0.002620726935 | AS32: 0.0002069520851 | AT32: 0.001704219952 | AU32: 0.0007727246725 | AV32: 4.650961173 | AW32: 0 | AX32: -0.02262609134 | AY32: -0.02170837495 | AZ32: -0.002557459208 | BA32: -0.0001606483871 | BB32: -0.001819256244 | BC32: -0.0008790860362 | BD32: -5.599070092 | BE32: 0 | BF32: 97946.8848 | BG32: 4.719200097 | BH32: -5.648821009 | BI32: -3562.8828 | BJ32: 0.1231 | BK32: 0.845 | CA32: -97946.8848 | CB32: -93227.6847 | CC32: -88508.48461 | CD32: -83789.28451 | CE32: -79070.08441 | CF32: -74350.88431 | CG32: -69631.68422 | CH32: -64912.48412 | CI32: -60193.28402 | CJ32: -55474.08392 | CK32: -50754.88383 | CL32: -46035.68373 | CM32: -41316.48363 | CN32: -36597.28353 | CO32: -31878.08344 | CP32: -27158.88334 | CQ32: -22439.68324 | CR32: -17720.48314 | CS32: -13001.28305 | CT32: -8282.08295 | CU32: -3562.882852 | CV32: 1156.317245 | CW32: 5875.517342 | CX32: 10594.71744 | CY32: 15313.91754 | CZ32: 20033.11763 | DA32: 24752.31773 | DB32: 29471.51783 | DC32: 34190.71793 | DD32: 38909.91802 | DE32: 43629.11812
A33: 23 | B33: 17 | C33: 111691.6926 | D33: 0.9863585704 | E33: 0.9698230389 | F33: 0.9738827979 | G33: 0.9927140453 | H33: 0.9859533509 | I33: 0.9713169211 | J33: 0.9358578561 | K33: 0.7002187415 | L33: 1.259442052 | M33: 0.6501663984 | N33: 0.05833053627 | O33: 0.04096425023 | P33: 0.02911982225 | Q33: 0.1634935704 | R33: 38.76752829 | S33: 0 | T33: 369122.2872 | U33: -128.6514296 | V33: 150.8134685 | W33: 1.25433445 | X33: 0.6443017869 | Y33: 0.05787281359 | Z33: 0.04087456192 | AA33: 0.02899689423 | AB33: 0.1620858703 | AC33: 38.37215121 | AD33: 0 | AE33: 363355.8242 | AF33: -125.7147647 | AG33: 147.317776 | AH33: -29.9445 | AI33: -105.0238 | AJ33: -8.9639 | AK33: -7.9782 | AL33: -12.6341 | AM33: -38.2517 | AN33: -5563.6668 | AO33: 0 | AP33: 0.03055065469 | AQ33: 0.04741534713 | AR33: 0.002030110029 | AS33: 0.0003802403942 | AT33: 0.0008049808375 | AU33: 0.009649644485 | AV33: 2.8458339 | AW33: 0 | AX33: -0.01987251617 | AY33: -0.04551311167 | AZ33: -0.001937150466 | BA33: -0.0002185127084 | BB33: -0.0008536443648 | BC33: -0.01143925715 | BD33: -3.415858263 | BE33: 0 | BF33: 105925.2296 | BG33: 2.936664878 | BH33: -3.495692455 | BI33: -47191.9321 | BJ33: 0.0516 | BK33: 0.5259 | CA33: -105925.2296 | CB33: -102988.5647 | CC33: -100051.8998 | CD33: -97115.23497 | CE33: -94178.57009 | CF33: -91241.90521 | CG33: -88305.24033 | CH33: -85368.57546 | CI33: -82431.91058 | CJ33: -79495.2457 | CK33: -76558.58082 | CL33: -73621.91594 | CM33: -70685.25107 | CN33: -67748.58619 | CO33: -64811.92131 | CP33: -61875.25643 | CQ33: -58938.59156 | CR33: -56001.92668 | CS33: -53065.2618 | CT33: -50128.59692 | CU33: -47191.93204 | CV33: -44255.26717 | CW33: -41318.60229 | CX33: -38381.93741 | CY33: -35445.27253 | CZ33: -32508.60766 | DA33: -29571.94278 | DB33: -26635.2779 | DC33: -23698.61302 | DD33: -20761.94815 | DE33: -17825.28327
A34: 24 | B34: 19 | C34: 111691.6926 | D34: 0.9882962906 | E34: 0.9842908335 | F34: 0.9597673496 | G34: 0.9934960882 | H34: 0.9877324362 | I34: 0.9768448447 | J34: 0.8958928728 | K34: 0.8330792572 | L34: 1.725072327 | M34: 0.6563800809 | N34: 0.1285222641 | O34: 0.06122692253 | P34: 0.03642621678 | Q34: 0.1882192965 | R34: 37.61083199 | S34: 0 | T34: 171807.3616 | U34: -126.2469931 | V34: 146.417214 | W34: 1.719093703 | X34: 0.6532974312 | Y34: 0.126969217 | Z34: 0.06110724985 | AA34: 0.03629189561 | AB34: 0.1869109839 | AC34: 36.95886655 | AD34: 0 | AE34: 167695.631 | AF34: -121.6467073 | AG34: 140.9355723 | AH34: -34.2259 | AI34: -63.4754 | AJ34: -31.6172 | AK34: -7.8772 | AL34: -8.5661 | AM34: -14.9725 | AN34: -3950.9962 | AO34: 0 | AP34: 0.03936183677 | AQ34: 0.020930878 | AR34: 0.006957393922 | AS34: 0.0005303642195 | AT34: 0.0009709961326 | AU34: 0.009717171496 | AV34: 4.521817107 | AW34: 0 | AX34: -0.02868901613 | AY34: -0.01580007393 | AZ34: -0.006589545053 | BA34: -0.0004334637473 | BB34: -0.001038879239 | BC34: -0.01124787237 | BD34: -5.417842826 | BE34: 0 | BF34: 107579.9621 | BG34: 4.600285748 | BH34: -5.481641676 | BI34: -15574.2471 | BJ34: 0.0368 | BK34: 0.8237 | BN34: Cost-effectiveness acceptability curve | CA34: -107579.9621 | CB34: -102979.6764 | CC34: -98379.3906 | CD34: -93779.10486 | CE34: -89178.81911 | CF34: -84578.53336 | CG34: -79978.24761 | CH34: -75377.96187 | CI34: -70777.67612 | CJ34: -66177.39037 | CK34: -61577.10462 | CL34: -56976.81888 | CM34: -52376.53313 | CN34: -47776.24738 | CO34: -43175.96163 | CP34: -38575.67588 | CQ34: -33975.39014 | CR34: -29375.10439 | CS34: -24774.81864 | CT34: -20174.53289 | CU34: -15574.24715 | CV34: -10973.9614 | CW34: -6373.67565 | CX34: -1773.389902 | CY34: 2826.895845 | CZ34: 7427.181593 | DA34: 12027.46734 | DB34: 16627.75309 | DC34: 21228.03884 | DD34: 25828.32458 | DE34: 30428.61033
A35: 25 | B35: 16 | C35: 111691.6926 | D35: 0.9820488209 | E35: 0.9784478211 | F35: 0.9424658336 | G35: 0.9934737469 | H35: 0.9697409647 | I35: 0.9700661909 | J35: 0.9804031467 | K35: 0.8993071036 | L35: 1.518330518 | M35: 0.4749337303 | N35: 0.09187189636 | O35: 0.05270173744 | P35: 0.0484557623 | Q35: 0.1672639992 | R35: 38.22126205 | S35: 0 | T35: 214724.6877 | U35: -128.048008 | V35: 147.4584606 | W35: 1.510251078 | X35: 0.4718712878 | Y35: 0.09028514982 | Z35: 0.05259845389 | AA35: 0.04801545065 | AB35: 0.165761976 | AC35: 38.10085269 | AD35: 0 | AE35: 213565.1511 | AF35: -127.0895103 | AG35: 146.3613753 | AH35: -55.097 | AI35: -17.1841 | AJ35: -48.7234 | AK35: -8.6069 | AL35: -36.7673 | AM35: -33.9016 | AN35: -959.2564 | AO35: 0 | AP35: 0.04655398521 | AQ35: 0.0219419402 | AR35: 0.007608777282 | AS35: 0.000321729772 | AT35: 0.002872985159 | AU35: 0.0117778646 | AV35: 0.8674204954 | AW35: 0 | AX35: -0.02896953755 | AY35: -0.01926457142 | AZ35: -0.007162682104 | BA35: -0.0001704755808 | BB35: -0.003039901578 | BC35: -0.01355025921 | BD35: -1.024927914 | BE35: 0 | BF35: 110532.156 | BG35: 0.9584977776 | BH35: -1.097085341 | BI35: -91362.2004 | BJ35: 0.0104 | BK35: 0.1716 | CA35: -110532.156 | CB35: -109573.6582 | CC35: -108615.1604 | CD35: -107656.6627 | CE35: -106698.1649 | CF35: -105739.6671 | CG35: -104781.1693 | CH35: -103822.6716 | CI35: -102864.1738 | CJ35: -101905.676 | CK35: -100947.1782 | CL35: -99988.68045 | CM35: -99030.18267 | CN35: -98071.68489 | CO35: -97113.18711 | CP35: -96154.68934 | CQ35: -95196.19156 | CR35: -94237.69378 | CS35: -93279.196 | CT35: -92320.69823 | CU35: -91362.20045 | CV35: -90403.70267 | CW35: -89445.20489 | CX35: -88486.70712 | CY35: -87528.20934 | CZ35: -86569.71156 | DA35: -85611.21378 | DB35: -84652.716 | DC35: -83694.21823 | DD35: -82735.72045 | DE35: -81777.22267
A36: 26 | B36: 26 | C36: 111691.6926 | D36: 0.9852351921 | E36: 0.9613947687 | F36: 0.9646889806 | G36: 0.9934547146 | H36: 0.9794453499 | I36: 0.992073943 | J36: 0.8576823665 | K36: 0.7659674668 | L36: 1.653518928 | M36: 0.6940716687 | N36: 0.06645622631 | O36: 0.04380926661 | P36: 0.01605064113 | Q36: 0.1337364287 | R36: 38.96186058 | S36: 0 | T36: 585100.8774 | U36: -133.6696375 | V36: 151.3066505 | W36: 1.646264243 | X36: 0.6860407643 | Y36: 0.06574904468 | Z36: 0.04372283686 | AA36: 0.01595117471 | AB36: 0.1334171757 | AC36: 38.0716335 | AD36: 0 | AE36: 564689.5015 | AF36: -126.9590554 | AG36: 143.5455419 | AH36: -34.3732 | AI36: -91.1445 | AJ36: -14.6157 | AK36: -8.677 | AL36: -7.1597 | AM36: -19.0078 | AN36: -20236.3981 | AO36: 0 | AP36: 0.04075628324 | AQ36: 0.05684576562 | AR36: 0.003392720346 | AS36: 0.0003213258386 | AT36: 0.0007523004965 | AU36: 0.002367944179 | AV36: 6.606145706 | AW36: 0 | AX36: -0.02385661962 | AY36: -0.04955315806 | AZ36: -0.003256204921 | BA36: -0.0002048074387 | BB36: -0.0008019690147 | BC36: -0.0027196051 | BD36: -7.680716301 | BE36: 0 | BF36: 91280.3167 | BG36: 6.710582046 | BH36: -7.761108665 | BI36: 42931.3242 | BJ36: 0.1827 | BK36: 1.2016 | CA36: -91280.3167 | CB36: -84569.73465 | CC36: -77859.15261 | CD36: -71148.57056 | CE36: -64437.98852 | CF36: -57727.40647 | CG36: -51016.82442 | CH36: -44306.24238 | CI36: -37595.66033 | CJ36: -30885.07828 | CK36: -24174.49624 | CL36: -17463.91419 | CM36: -10753.33215 | CN36: -4042.750101 | CO36: 2667.831946 | CP36: 9378.413992 | CQ36: 16088.99604 | CR36: 22799.57808 | CS36: 29510.16013 | CT36: 36220.74218 | CU36: 42931.32422 | CV36: 49641.90627 | CW36: 56352.48831 | CX36: 63063.07036 | CY36: 69773.65241 | CZ36: 76484.23445 | DA36: 83194.8165 | DB36: 89905.39855 | DC36: 96615.98059 | DD36: 103326.5626 | DE36: 110037.1447
A37: 27 | B37: 26 | C37: 111691.6926 | D37: 0.9871499083 | E37: 0.9714308362 | F37: 0.9640777919 | G37: 0.9938807202 | H37: 0.9961475443 | I37: 0.9819845067 | J37: 0.922870826 | K37: 0.8217599104 | L37: 1.243229087 | M37: 0.4390907739 | N37: 0.1483353117 | O37: 0.04465988437 | P37: 0.0286245983 | Q37: 0.4011767827 | R37: 38.1924843 | S37: 0 | T37: 203828.6692 | U37: -126.7801056 | V37: 147.9385316 | W37: 1.23846417 | X37: 0.4353224395 | Y37: 0.1467305666 | Z37: 0.04457750764 | AA37: 0.02859135346 | AB37: 0.3990049886 | AC37: 37.71231623 | AD37: 0 | AE37: 200185.9907 | AF37: -123.3050941 | AG37: 143.8144283 | AH37: -21.34 | AI37: -65.244 | AJ37: -34.7112 | AK37: -10.7201 | AL37: -1.7026 | AM37: -101.4879 | AN37: -3407.4727 | AO37: 0 | AP37: 0.02805165025 | AQ37: 0.02922750257 | AR37: 0.007580516395 | AS37: 0.0003449925897 | AT37: 0.0001932191744 | AU37: 0.01577279174 | AV37: 3.393840808 | AW37: 0 | AX37: -0.01776353856 | AY37: -0.02670139783 | AZ37: -0.007059392083 | BA37: -0.0002377430907 | BB37: -0.0002065305285 | BC37: -0.01784022339 | BD37: -4.054294433 | BE37: 0 | BF37: 108049.0141 | BG37: 3.475011481 | BH37: -4.124103258 | BI37: -38548.7845 | BJ37: 0.0326 | BK37: 0.6223 | CA37: -108049.0141 | CB37: -104574.0026 | CC37: -101098.9911 | CD37: -97623.97966 | CE37: -94148.96818 | CF37: -90673.9567 | CG37: -87198.94521 | CH37: -83723.93373 | CI37: -80248.92225 | CJ37: -76773.91077 | CK37: -73298.89929 | CL37: -69823.88781 | CM37: -66348.87633 | CN37: -62873.86485 | CO37: -59398.85337 | CP37: -55923.84189 | CQ37: -52448.8304 | CR37: -48973.81892 | CS37: -45498.80744 | CT37: -42023.79596 | CU37: -38548.78448 | CV37: -35073.773 | CW37: -31598.76152 | CX37: -28123.75004 | CY37: -24648.73856 | CZ37: -21173.72708 | DA37: -17698.71559 | DB37: -14223.70411 | DC37: -10748.69263 | DD37: -7273.681151 | DE37: -3798.66967
A38: 28 | B38: 22 | C38: 111691.6926 | D38: 0.9849009934 | E38: 0.9714216148 | F38: 0.9508044532 | G38: 0.9912562898 | H38: 0.9760109824 | I38: 0.9750134748 | J38: 0.8933633973 | K38: 1 | L38: 1.258263853 | M38: 0.6204553589 | N38: 0.06920445114 | O38: 0.02781176841 | P38: 0.04039436197 | Q38: 0.09753192353 | R38: 38.57139312 | S38: 0 | T38: 237920.2817 | U38: -123.0940223 | V38: 147.3448156 | W38: 1.252608844 | X38: 0.6151474099 | Y38: 0.06818038675 | Z38: 0.02773859633 | AA38: 0.04010281583 | AB38: 0.09679907964 | AC38: 37.90721773 | AD38: 0 | AE38: 231807.2897 | AF38: -118.4095116 | AG38: 141.6067572 | AH38: -33.213 | AI38: -58.9541 | AJ38: -37.2809 | AK38: -12.5499 | AL38: -10.7922 | AM38: -15.4736 | AN38: -5944.7282 | AO38: 0 | AP38: 0.02535257119 | AQ38: 0.04151499974 | AR38: 0.004423136438 | AS38: 0.0002528566804 | AT38: 0.002192638633 | AU38: 0.005653922541 | AV38: 4.605120511 | AW38: 0 | AX38: -0.00754855449 | AY38: -0.03767145959 | AZ38: -0.004050268717 | BA38: -0.000147258834 | BB38: -0.002314101278 | BC38: -0.006381077343 | BD38: -5.679945748 | BE38: 0 | BF38: 105578.7007 | BG38: 4.684510636 | BH38: -5.738058468 | BI38: -11888.4879 | BJ38: 0.0547 | BK38: 0.8388 | CA38: -105578.7007 | CB38: -100894.1901 | CC38: -96209.67943 | CD38: -91525.16879 | CE38: -86840.65815 | CF38: -82156.14752 | CG38: -77471.63688 | CH38: -72787.12625 | CI38: -68102.61561 | CJ38: -63418.10497 | CK38: -58733.59434 | CL38: -54049.0837 | CM38: -49364.57306 | CN38: -44680.06243 | CO38: -39995.55179 | CP38: -35311.04116 | CQ38: -30626.53052 | CR38: -25942.01988 | CS38: -21257.50925 | CT38: -16572.99861 | CU38: -11888.48797 | CV38: -7203.977338 | CW38: -2519.466702 | CX38: 2165.043935 | CY38: 6849.554571 | CZ38: 11534.06521 | DA38: 16218.57584 | DB38: 20903.08648 | DC38: 25587.59712 | DD38: 30272.10775 | DE38: 34956.61839
A39: 29 | B39: 30 | C39: 111691.6926 | D39: 0.9913389514 | E39: 0.9647064378 | F39: 0.9681539867 | G39: 0.9926911319 | H39: 0.9770641948 | I39: 0.9765175067 | J39: 0.9306398912 | K39: 0.6969447687 | L39: 1.509811541 | M39: 0.5364438703 | N39: 0.1100943904 | O39: 0.04360140753 | P39: 0.02540454988 | Q39: 0.1777442062 | R39: 38.01855329 | S39: 0 | T39: 445064.9188 | U39: -122.8935145 | V39: 144.9072168 | W39: 1.505910183 | X39: 0.5307459046 | Y39: 0.1090353074 | Z39: 0.04350508914 | AA39: 0.02522841176 | AB39: 0.1764841411 | AC39: 37.58574051 | AD39: 0 | AE39: 437348.673 | AF39: -119.8466656 | AG39: 141.2195463 | AH39: -10.0644 | AI39: -49.6371 | AJ39: -30.3844 | AK39: -12.2456 | AL39: -9.4087 | AM39: -20.7361 | AN39: -7583.7694 | AO39: 0 | AP39: 0.01762448269 | AQ39: 0.04287943943 | AR39: 0.005279950894 | AS39: 0.0003377258538 | AT39: 0.001256959046 | AU39: 0.01013798801 | AV39: 2.969332309 | AW39: 0 | AX39: -0.006012570213 | AY39: -0.03955775664 | AZ39: -0.005119537294 | BA39: -0.0001841130394 | BB39: -0.001363576045 | BC39: -0.01143018385 | BD39: -3.624002775 | BE39: 0 | BF39: 103975.4468 | BG39: 3.046848855 | BH39: -3.687670512 | BI39: -43038.4697 | BJ39: 0.0691 | BK39: 0.5456 | CA39: -103975.4468 | CB39: -100928.5979 | CC39: -97881.74909 | CD39: -94834.90023 | CE39: -91788.05138 | CF39: -88741.20252 | CG39: -85694.35367 | CH39: -82647.50481 | CI39: -79600.65596 | CJ39: -76553.8071 | CK39: -73506.95825 | CL39: -70460.10939 | CM39: -67413.26054 | CN39: -64366.41168 | CO39: -61319.56282 | CP39: -58272.71397 | CQ39: -55225.86511 | CR39: -52179.01626 | CS39: -49132.1674 | CT39: -46085.31855 | CU39: -43038.46969 | CV39: -39991.62084 | CW39: -36944.77198 | CX39: -33897.92313 | CY39: -30851.07427 | CZ39: -27804.22541 | DA39: -24757.37656 | DB39: -21710.5277 | DC39: -18663.67885 | DD39: -15616.82999 | DE39: -12569.98114
A40: 30 | B40: 18 | C40: 111691.6926 | D40: 0.9848302312 | E40: 0.9941203215 | F40: 0.9721849249 | G40: 0.9945626102 | H40: 0.9998960739 | I40: 0.9576685173 | J40: 0.8792738195 | K40: 0.836012453 | L40: 1.494396271 | M40: 0.6960935732 | N40: 0.095643635 | O40: 0.0430189264 | P40: 0.04186020712 | Q40: 0.1227529271 | R40: 38.56069435 | S40: 0 | T40: 273296.6671 | U40: -124.0437501 | V40: 149.4781701 | W40: 1.487670364 | X40: 0.6948706323 | Y40: 0.09484450982 | Z40: 0.0429486312 | AA40: 0.04185889973 | AB40: 0.1211923917 | AC40: 37.80781222 | AD40: 0 | AE40: 265521.8685 | AF40: -118.7921992 | AG40: 142.9875344 | AH40: -50.8684 | AI40: -18.4302 | AJ40: -28.3861 | AK40: -6.3931 | AL40: -0.0348 | AM40: -53.6158 | AN40: -7617.0702 | AO40: 0 | AP40: 0.03873097185 | AQ40: 0.008321485353 | AR40: 0.003602672983 | AS40: 0.0003681782408 | AT40: 9.627323364e-06 | AU40: 0.01150634903 | AV40: 5.189011591 | AW40: 0 | AX40: -0.02392579312 | AY40: -0.007271142146 | AZ40: -0.0033959758 | BA40: -0.0003016347609 | BB40: -1.015766216e-05 | BC40: -0.01337035082 | BD40: -6.442360649 | BE40: 0 | BF40: 103916.8941 | BG40: 5.251550876 | BH40: -6.490635703 | BI40: 1114.1234 | BJ40: 0.0696 | BK40: 0.9404 | CA40: -103916.8941 | CB40: -98665.34322 | CC40: -93413.79235 | CD40: -88162.24147 | CE40: -82910.6906 | CF40: -77659.13972 | CG40: -72407.58885 | CH40: -67156.03797 | CI40: -61904.48709 | CJ40: -56652.93622 | CK40: -51401.38534 | CL40: -46149.83447 | CM40: -40898.28359 | CN40: -35646.73271 | CO40: -30395.18184 | CP40: -25143.63096 | CQ40: -19892.08009 | CR40: -14640.52921 | CS40: -9388.978336 | CT40: -4137.42746 | CU40: 1114.123416 | CV40: 6365.674291 | CW40: 11617.22517 | CX40: 16868.77604 | CY40: 22120.32692 | CZ40: 27371.87779 | DA40: 32623.42867 | DB40: 37874.97955 | DC40: 43126.53042 | DD40: 48378.0813 | DE40: 53629.63217
A41: 31 | B41: 30 | C41: 111691.6926 | D41: 0.9880273117 | E41: 0.9498113374 | F41: 0.971269509 | G41: 0.9899170191 | H41: 0.9846219412 | I41: 0.9786209521 | J41: 0.9120633002 | K41: 0.7952338096 | L41: 1.825450005 | M41: 0.8754265247 | N41: 0.1325145426 | O41: 0.04987049897 | P41: 0.006119163689 | Q41: 0.6393675716 | R41: 37.90496748 | S41: 0 | T41: 425444.5178 | U41: -130.0663489 | V41: 149.1183232 | W41: 1.818947911 | X41: 0.8622424935 | Y41: 0.1313647212 | Z41: 0.04971852593 | AA41: 0.006090712993 | AB41: 0.6352576155 | AC41: 37.35402489 | AD41: 0 | AE41: 416366.2184 | AF41: -126.0367057 | AG41: 144.3780909 | AH41: -36.2608 | AI41: -100.9534 | AJ41: -18.3842 | AK41: -21.048 | AL41: -2.4946 | AM41: -167.7709 | AN41: -8731.3874 | AO41: 0 | AP41: 0.03259275624 | AQ41: 0.1008573069 | AR41: 0.007020233989 | AS41: 0.0004956239022 | AT41: 0.0001873739644 | AU41: 0.03097254571 | AV41: 3.857517347 | AW41: 0 | AX41: -0.014932827 | AY41: -0.08999321575 | AZ41: -0.007045920619 | BA41: -0.000230136609 | BB41: -0.0002001550378 | BC41: -0.03564735156 | BD41: -4.59218278 | BE41: 0 | BF41: 102613.3933 | BG41: 4.029643187 | BH41: -4.740232387 | BI41: -22020.5295 | BJ41: 0.0813 | BK41: 0.7216 | CA41: -102613.3933 | CB41: -98583.75011 | CC41: -94554.10693 | CD41: -90524.46374 | CE41: -86494.82055 | CF41: -82465.17736 | CG41: -78435.53418 | CH41: -74405.89099 | CI41: -70376.2478 | CJ41: -66346.60462 | CK41: -62316.96143 | CL41: -58287.31824 | CM41: -54257.67505 | CN41: -50228.03187 | CO41: -46198.38868 | CP41: -42168.74549 | CQ41: -38139.1023 | CR41: -34109.45912 | CS41: -30079.81593 | CT41: -26050.17274 | CU41: -22020.52956 | CV41: -17990.88637 | CW41: -13961.24318 | CX41: -9931.599994 | CY41: -5901.956807 | CZ41: -1872.31362 | DA41: 2157.329567 | DB41: 6186.972755 | DC41: 10216.61594 | DD41: 14246.25913 | DE41: 18275.90232
A42: 32 | B42: 25 | C42: 111691.6926 | D42: 0.9904529795 | E42: 0.9722539243 | F42: 0.9772950085 | G42: 0.9932647901 | H42: 0.9582348051 | I42: 0.9766512096 | J42: 0.9226376355 | K42: 0.8803267144 | L42: 1.61605008 | M42: 0.4293810661 | N42: 0.119493959 | O42: 0.04202439118 | P42: 0.05687554594 | Q42: 0.576001911 | R42: 38.41833018 | S42: 0 | T42: 196659.1628 | U42: -132.0907068 | V42: 149.8256252 | W42: 1.611465988 | X42: 0.4258036501 | Y42: 0.118677069 | Z42: 0.04193911254 | AA42: 0.05615994027 | AB42: 0.5719686785 | AC42: 37.93778522 | AD42: 0 | AE42: 193181.913 | AF42: -128.4908288 | AG42: 145.6555825 | AH42: -42.0629 | AI42: -66.4694 | AJ42: -25.3726 | AK42: -17.9214 | AL42: -28.0296 | AM42: -44.6725 | AN42: -3252.7215 | AO42: 0 | AP42: 0.02398443994 | AQ42: 0.02489627124 | AR42: 0.00361741148 | AS42: 0.0002631653544 | AT42: 0.005688064482 | AU42: 0.03274133157 | AV42: 3.508687315 | AW42: 0 | AX42: -0.0118278094 | AY42: -0.02147220772 | AZ42: -0.003407056624 | BA42: -0.0001075483969 | BB42: -0.006215147791 | BC42: -0.03778868039 | BD42: -4.089224285 | BE42: 0 | BF42: 108214.4428 | BG42: 3.599877999 | BH42: -4.170042735 | BI42: -36216.8828 | BJ42: 0.0311 | BK42: 0.6446 | CA42: -108214.4428 | CB42: -104614.5648 | CC42: -101014.6868 | CD42: -97414.8088 | CE42: -93814.9308 | CF42: -90215.0528 | CG42: -86615.1748 | CH42: -83015.29681 | CI42: -79415.41881 | CJ42: -75815.54081 | CK42: -72215.66281 | CL42: -68615.78481 | CM42: -65015.90681 | CN42: -61416.02881 | CO42: -57816.15081 | CP42: -54216.27281 | CQ42: =($BG42*CQ$8)-$BF42 -> -50616.39481 | CR42: -47016.51681 | CS42: -43416.63881 | CT42: -39816.76081 | CU42: -36216.88282 | CV42: -32617.00482 | CW42: -29017.12682 | CX42: -25417.24882 | CY42: -21817.37082 | CZ42: -18217.49282 | DA42: -14617.61482 | DB42: -11017.73682 | DC42: -7417.858822 | DD42: -3817.980823 | DE42: -218.1028236
A43: 33 | B43: 18 | C43: 111691.6926 | D43: 0.9857345315 | E43: 0.9485220713 | F43: 0.9756256812 | G43: 0.9949040327 | H43: 0.9859785269 | I43: 0.9725327036 | J43: 0.98591723 | K43: 0.7284354985 | L43: 1.533786641 | M43: 0.5475629164 | N43: 0.1488089735 | O43: 0.04305652506 | P43: 0.06580847335 | Q43: 0.05698831377 | R43: 38.46562482 | S43: 0 | T43: 361068.655 | U43: -125.3671319 | V43: 146.8662246 | W43: 1.527298349 | X43: 0.5391302437 | Y43: 0.1477201246 | Z43: 0.0429905971 | AA43: 0.06553127292 | AB43: 0.0565180361 | AC43: 38.37934608 | AD43: 0 | AE43: 359684.7451 | AF43: -124.6505645 | AG43: 146.0464683 | AH43: -41.9095 | AI43: -72.3975 | AJ43: -40.0998 | AK43: -6.4713 | AL43: -13.9113 | AM43: -8.4438 | AN43: -1200.6767 | AO43: 0 | AP43: 0.0282009736 | AQ43: 0.06600142981 | AR43: 0.005115491329 | AS43: 0.0002405099053 | AT43: 0.002066525062 | AU43: 0.003611834147 | AV43: 0.6113306976 | AW43: 0 | AX43: -0.007568465513 | AY43: -0.06078058121 | AZ43: -0.00468974263 | BA43: -0.000137976498 | BB43: -0.002259028866 | BC43: -0.004134565849 | BD43: -0.7401859797 | BE43: 0 | BF43: 110307.7827 | BG43: 0.7165674615 | BH43: -0.8197563403 | BI43: -95976.4335 | BJ43: 0.0124 | BK43: 0.1283 | CA43: =($BG43*CA$8)-$BF43 -> -110307.7827 | CB43: -109591.2152 | CC43: -108874.6478 | CD43: -108158.0803 | CE43: -107441.5129 | CF43: -106724.9454 | CG43: -106008.3779 | CH43: -105291.8105 | CI43: -104575.243 | CJ43: -103858.6755 | CK43: -103142.1081 | CL43: -102425.5406 | CM43: -101708.9732 | CN43: -100992.4057 | CO43: -100275.8382 | CP43: -99559.27078 | CQ43: -98842.70332 | CR43: -98126.13586 | CS43: -97409.56839 | CT43: -96693.00093 | CU43: -95976.43347 | CV43: -95259.86601 | CW43: -94543.29855 | CX43: -93826.73109 | CY43: -93110.16363 | CZ43: -92393.59616 | DA43: -91677.0287 | DB43: -90960.46124 | DC43: -90243.89378 | DD43: -89527.32632 | DE43: -88810.75886
A44: 34 | B44: 20 | C44: 111691.6926 | D44: 0.9899701615 | E44: 0.9759430465 | F44: 0.9776164843 | G44: 0.9933754261 | H44: 0.9635717777 | I44: 0.9906840731 | J44: 0.919814314 | K44: 0.751894475 | L44: 1.411225828 | M44: 0.6304870417 | N44: 0.06131617705 | O44: 0.06873760045 | P44: 0.01940422997 | Q44: 0.1116116664 | R44: 38.89657677 | S44: 0 | T44: 143242.3549 | U44: -129.5362822 | V44: 151.4263006 | W44: 1.407020107 | X44: 0.6259487361 | Y44: 0.06090347275 | Z44: 0.06860068301 | AA44: 0.01919159812 | AB44: 0.1112991449 | AC44: 38.40127691 | AD44: 0 | AE44: 140575.384 | AF44: -125.8908112 | AG44: 147.0805684 | AH44: -13.7836 | AI44: -74.7341 | AJ44: -9.822 | AK44: -3.6593 | AL44: -11.8816 | AM44: -11.0213 | AN44: -2542.0691 | AO44: 0 | AP44: 0.02635663202 | AQ44: 0.0339330001 | AR44: 0.001974289643 | AS44: 0.0004866755699 | AT44: 0.001365469044 | AU44: 0.002395798451 | AV44: 3.578959179 | AW44: 0 | AX44: -0.01816745021 | AY44: -0.03068406703 | AZ44: -0.001836682567 | BA44: -0.0003056122558 | BB44: -0.001499602875 | BC44: -0.00277354942 | BD44: -4.290465232 | BE44: 0 | BF44: 109024.7217 | BG44: 3.645471044 | BH44: -4.345732196 | BI44: -36115.3009 | BJ44: 0.0239 | BK44: 0.6528 | CA44: -109024.7217 | CB44: -105379.2507 | CC44: -101733.7796 | CD44: -98088.30857 | CE44: -94442.83752 | CF44: -90797.36648 | CG44: -87151.89543 | CH44: -83506.42439 | CI44: -79860.95335 | CJ44: -76215.4823 | CK44: -72570.01126 | CL44: -68924.54021 | CM44: -65279.06917 | CN44: -61633.59812 | CO44: -57988.12708 | CP44: -54342.65604 | CQ44: -50697.18499 | CR44: -47051.71395 | CS44: -43406.2429 | CT44: -39760.77186 | CU44: -36115.30082 | CV44: -32469.82977 | CW44: -28824.35873 | CX44: -25178.88768 | CY44: -21533.41664 | CZ44: -17887.94559 | DA44: -14242.47455 | DB44: -10597.00351 | DC44: -6951.532461 | DD44: -3306.061417 | DE44: 339.4096273
A45: 35 | B45: 20 | C45: 111691.6926 | D45: 0.9855446866 | E45: 0.9831307842 | F45: 0.9605499528 | G45: 0.9945234444 | H45: 0.9895435003 | I45: 0.9765286799 | J45: 0.8802586012 | K45: 0.6884528728 | L45: 1.407738107 | M45: 0.5992747251 | N45: 0.1563122323 | O45: 0.03433739107 | P45: 0.01073825073 | Q45: 0.3187502401 | R45: 39.35176582 | S45: 0 | T45: 166825.8109 | U45: -135.3949223 | V45: 154.9445016 | W45: 1.401692386 | X45: 0.5962496248 | Y45: 0.1544597767 | Z45: 0.03428084026 | AA45: 0.01070447745 | AB45: 0.3165059555 | AC45: 38.61029796 | AD45: 0 | AE45: 162230.8381 | AF45: -129.7469162 | AG45: 148.3588642 | AH45: -15.5873 | AI45: -25.1291 | AJ45: -26.3688 | AK45: -7.8523 | AL45: -1.5731 | AM45: -60.9636 | AN45: -4457.4987 | AO45: 0 | AP45: 0.0364799703 | AQ45: 0.02395876665 | AR45: 0.01148925218 | AS45: 0.0001850446538 | AT45: 0.0002742357078 | AU45: 0.01705210136 | AV45: 5.558566776 | AW45: 0 | AX45: -0.02375724528 | AY45: -0.02231034465 | AZ45: -0.01151992757 | BA45: -0.0001070679548 | BB45: -0.0002946157237 | BC45: -0.01967458099 | BD45: -6.507973579 | BE45: 0 | BF45: 107096.7198 | BG45: 5.648006147 | BH45: -6.585637362 | BI45: 5863.4032 | BJ45: 0.0411 | BK45: 1.0114 | CA45: -107096.7198 | CB45: -101448.7137 | CC45: -95800.70751 | CD45: -90152.70136 | CE45: -84504.69521 | CF45: -78856.68906 | CG45: -73208.68292 | CH45: -67560.67677 | CI45: -61912.67062 | CJ45: -56264.66448 | CK45: -50616.65833 | CL45: -44968.65218 | CM45: -39320.64603 | CN45: -33672.63989 | CO45: -28024.63374 | CP45: -22376.62759 | CQ45: -16728.62144 | CR45: -11080.6153 | CS45: -5432.60915 | CT45: 215.3969969 | CU45: 5863.403144 | CV45: 11511.40929 | CW45: 17159.41544 | CX45: 22807.42159 | CY45: 28455.42773 | CZ45: 34103.43388 | DA45: 39751.44003 | DB45: 45399.44617 | DC45: 51047.45232 | DD45: 56695.45847 | DE45: 62343.46462
A46: 36 | B46: 23 | C46: 111691.6926 | D46: 0.9849075231 | E46: 0.9500751807 | F46: 0.9362441292 | G46: 0.9934966552 | H46: 0.9692614849 | I46: 0.9808380308 | J46: 0.9028801665 | K46: 1 | L46: 1.617227616 | M46: 0.5662294721 | N46: 0.08401839804 | O46: 0.05309854819 | P46: 0.02382070589 | Q46: 0.1018099488 | R46: 38.68531781 | S46: 0 | T46: 453339.4037 | U46: -130.7798051 | V46: 150.7196776 | W46: 1.609981445 | X46: 0.5577578146 | Y46: 0.08240638352 | Z46: 0.05299460271 | AA46: 0.02360024316 | AB46: 0.1012229552 | AC46: 38.08170916 | AD46: 0 | AE46: 442450.0958 | AF46: -126.2746055 | AG46: 145.4271785 | AH46: -31.8498 | AI46: -65.6722 | AJ46: -36.8597 | AK46: -7.3611 | AL46: -10.7547 | AM46: -12.7776 | AN46: -10724.0328 | AO46: 0 | AP46: 0.04305830799 | AQ46: 0.07242471412 | AR46: 0.007386460205 | AS46: 0.0004494649012 | AT46: 0.001540359388 | AU46: 0.004993605416 | AV46: 4.375346764 | AW46: 0 | AX46: -0.02792475321 | AY46: -0.07029353878 | AZ46: -0.006661819343 | BA46: -0.0003268673889 | BB46: -0.001647782242 | BC46: -0.005613389429 | BD46: -5.180030879 | BE46: 0 | BF46: 100802.3847 | BG46: 4.505199676 | BH46: -5.292499029 | BI46: -10698.3911 | BJ46: 0.0975 | BK46: 0.8067 | CA46: -100802.3847 | CB46: -96297.18502 | CC46: -91791.98535 | CD46: -87286.78567 | CE46: -82781.586 | CF46: -78276.38632 | CG46: -73771.18664 | CH46: -69265.98697 | CI46: -64760.78729 | CJ46: -60255.58762 | CK46: -55750.38794 | CL46: -51245.18826 | CM46: -46739.98859 | CN46: -42234.78891 | CO46: -37729.58924 | CP46: -33224.38956 | CQ46: -28719.18988 | CR46: -24213.99021 | CS46: -19708.79053 | CT46: -15203.59086 | CU46: -10698.39118 | CV46: -6193.191505 | CW46: -1687.991829 | CX46: 2817.207847 | CY46: 7322.407523 | CZ46: 11827.6072 | DA46: 16332.80688 | DB46: 20838.00655 | DC46: 25343.20623 | DD46: 29848.4059 | DE46: 34353.60558
A47: 37 | B47: 25 | C47: 111691.6926 | D47: 0.9880264497 | E47: 0.9624662969 | F47: 0.9373650594 | G47: 0.9916784721 | H47: 0.9779224664 | I47: 0.9653460823 | J47: 0.9274615181 | K47: 0.9651779015 | L47: 1.420560198 | M47: 0.4554019797 | N47: 0.09584772246 | O47: 0.0256576937 | P47: 0.08907577257 | Q47: 0.04639037542 | R47: 38.62782447 | S47: 0 | T47: 401340.4712 | U47: -127.6830366 | V47: 148.2599148 | W47: 1.415498226 | X47: 0.4502711687 | Y47: 0.09404002159 | Z47: 0.02559336442 | AA47: 0.0884835847 | AB47: 0.04590610138 | AC47: 38.17841207 | AD47: 0 | AE47: 394125.1984 | AF47: -124.3655811 | AG47: 144.3405845 | AH47: -19.4065 | AI47: -65.3035 | AJ47: -44.3026 | AK47: -6.8737 | AL47: -17.1493 | AM47: -21.1333 | AN47: -7041.1038 | AO47: 0 | AP47: 0.02654510153 | AQ47: 0.0415384179 | AR47: 0.007572090364 | AS47: 0.0002824353293 | AT47: 0.003829092168 | AU47: 0.003050333351 | AV47: 3.234637977 | AW47: 0 | AX47: -0.01432840593 | AY47: -0.03888649035 | AZ47: -0.007082523041 | BA47: -0.0002029492434 | BB47: -0.0040682126 | BC47: -0.003663955158 | BD47: -3.851097789 | BE47: 0 | BF47: 104476.4199 | BG47: 3.317455448 | BH47: -3.919330325 | BI47: -38127.3109 | BJ47: 0.0646 | BK47: 0.594 | CA47: -104476.4199 | CB47: -101158.9645 | CC47: -97841.509 | CD47: -94524.05356 | CE47: -91206.59811 | CF47: -87889.14266 | CG47: -84571.68721 | CH47: -81254.23177 | CI47: -77936.77632 | CJ47: -74619.32087 | CK47: -71301.86542 | CL47: -67984.40998 | CM47: -64666.95453 | CN47: -61349.49908 | CO47: -58032.04363 | CP47: -54714.58819 | CQ47: -51397.13274 | CR47: -48079.67729 | CS47: -44762.22184 | CT47: -41444.7664 | CU47: -38127.31095 | CV47: -34809.8555 | CW47: -31492.40005 | CX47: -28174.94461 | CY47: -24857.48916 | CZ47: -21540.03371 | DA47: -18222.57826 | DB47: -14905.12282 | DC47: -11587.66737 | DD47: -8270.21192 | DE47: -4952.756473
A48: 38 | B48: 19 | C48: 111691.6926 | D48: 0.989950731 | E48: 0.962357015 | F48: 0.9730623381 | G48: 0.9930770024 | H48: 0.9779882444 | I48: 0.979220681 | J48: 0.915911157 | K48: 0.708555887 | L48: 1.376039892 | M48: 0.4715290649 | N48: 0.08638712079 | O48: 0.0402862182 | P48: 0.04588934516 | Q48: 0.3757010674 | R48: 39.1800521 | S48: 0 | T48: 424818.1747 | U48: -129.6055184 | V48: 154.0199818 | W48: 1.371931438 | X48: 0.4662127912 | Y48: 0.08568780179 | Z48: 0.04020237075 | AA48: 0.04558568679 | AB48: 0.3733609152 | AC48: 38.66182688 | AD48: 0 | AE48: 416240.0489 | AF48: -125.7915532 | AG48: 149.4059939 | AH48: -11.8037 | AI48: -69.652 | AJ48: -9.3262 | AK48: -6.6294 | AL48: -24.4903 | AM48: -114.7601 | AN48: -8341.4641 | AO48: 0 | AP48: 0.02640340552 | AQ48: 0.03992426583 | AR48: 0.004666841624 | AS48: 0.0004589703152 | AT48: 0.002216931154 | AU48: 0.01699802788 | AV48: 3.723296776 | AW48: 0 | AX48: -0.01857172361 | AY48: -0.03556327843 | AZ48: -0.004802932818 | BA48: -0.0004004781141 | BB48: -0.002422499277 | BC48: -0.02030598117 | BD48: -4.531920949 | BE48: 0 | BF48: 103113.5668 | BG48: 3.813965219 | BH48: -4.613987843 | BI48: -26834.2625 | BJ48: 0.0768 | BK48: 0.6829 | CA48: -103113.5668 | CB48: -99299.60158 | CC48: -95485.63636 | CD48: -91671.67114 | CE48: -87857.70593 | CF48: -84043.74071 | CG48: -80229.77549 | CH48: -76415.81027 | CI48: -72601.84505 | CJ48: -68787.87983 | CK48: -64973.91461 | CL48: -61159.94939 | CM48: -57345.98418 | CN48: -53532.01896 | CO48: -49718.05374 | CP48: -45904.08852 | CQ48: -42090.1233 | CR48: -38276.15808 | CS48: -34462.19286 | CT48: -30648.22764 | CU48: -26834.26243 | CV48: -23020.29721 | CW48: -19206.33199 | CX48: -15392.36677 | CY48: -11578.40155 | CZ48: -7764.436333 | DA48: -3950.471114 | DB48: -136.5058951 | DC48: 3677.459324 | DD48: 7491.424542 | DE48: 11305.38976
A49: 39 | B49: 27 | C49: 111691.6926 | D49: 0.9883096381 | E49: 0.9687977996 | F49: 0.9648998527 | G49: 0.9952708765 | H49: 0.9831867183 | I49: 0.9704897105 | J49: 0.9249831364 | K49: 0.8487977886 | L49: 1.838363215 | M49: 0.472032312 | N49: 0.07472194932 | O49: 0.07003678486 | P49: 0.0315052338 | Q49: 0.132736822 | R49: 37.54490309 | S49: 0 | T49: 330906.2621 | U49: -124.7073161 | V49: 143.8281985 | W49: 1.831983522 | X49: 0.4676064398 | Y49: 0.07393108836 | Z49: 0.06993690794 | AA49: 0.03134544739 | AB49: 0.1315562595 | AC49: 37.07573654 | AD49: 0 | AE49: 324707.6656 | AF49: -121.3734173 | AG49: 139.8805358 | AH49: -19.3404 | AI49: -29.208 | AJ49: -11.6313 | AK49: -6.9839 | AL49: -5.6202 | AM49: -25.778 | AN49: -6100.0347 | AO49: 0 | AP49: 0.03393348831 | AQ49: 0.03710790976 | AR49: 0.004069122627 | AS49: 0.0004943485978 | AT49: 0.001188451573 | AU49: 0.008357827665 | AV49: 3.248747683 | AW49: 0 | AX49: -0.01647229661 | AY49: -0.03573408512 | AZ49: -0.003966058034 | BA49: -0.0004112779308 | BB49: -0.001270078837 | BC49: -0.009715820524 | BD49: -3.880093053 | BE49: 0 | BF49: 105493.0962 | BG49: 3.333898831 | BH49: -3.94766267 | BI49: -38815.1195 | BJ49: 0.0555 | BK49: 0.597 | CA49: -105493.0962 | CB49: -102159.1974 | CC49: -98825.29854 | CD49: -95491.39971 | CE49: -92157.50088 | CF49: -88823.60204 | CG49: -85489.70321 | CH49: -82155.80438 | CI49: -78821.90555 | CJ49: -75488.00672 | CK49: -72154.10789 | CL49: -68820.20906 | CM49: -65486.31023 | CN49: -62152.41139 | CO49: -58818.51256 | CP49: -55484.61373 | CQ49: -52150.7149 | CR49: -48816.81607 | CS49: -45482.91724 | CT49: -42149.01841 | CU49: -38815.11958 | CV49: -35481.22075 | CW49: -32147.32191 | CX49: -28813.42308 | CY49: -25479.52425 | CZ49: -22145.62542 | DA49: -18811.72659 | DB49: -15477.82776 | DC49: -12143.92893 | DD49: -8810.030096 | DE49: -5476.131265
A50: 40 | B50: 22 | C50: 111691.6926 | D50: 0.9875130584 | E50: 0.9781997252 | F50: 0.9832151691 | G50: 0.9950022667 | H50: 0.9893276172 | I50: 0.9757616449 | J50: 0.8939018799 | K50: 0.7256444806 | L50: 1.418279273 | M50: 0.8173398944 | N50: 0.1324845733 | O50: 0.06616544323 | P50: 0.03558714537 | Q50: 0.4311176261 | R50: 38.78908132 | S50: 0 | T50: 164372.2989 | U50: -132.0078415 | V50: 152.2897093 | W50: 1.413015685 | X50: 0.8120155972 | Y50: 0.1318160983 | Z50: 0.06606598126 | AA50: 0.03547287769 | AB50: 0.4279845416 | AC50: 38.12972108 | AD50: 0 | AE50: 160559.7047 | AF50: -127.125134 | AG50: 146.5271175 | AH50: -38.0237 | AI50: -48.7824 | AJ50: -10.2819 | AK50: -9.8564 | AL50: -1.9863 | AM50: -119.2223 | AN50: -3584.4412 | AO50: 0 | AP50: 0.02751043573 | AQ50: 0.04134315347 | AR50: 0.003223271894 | AS50: 0.0003299740565 | AT50: 0.0008707618103 | AU50: 0.02369137197 | AV50: 4.785738554 | AW50: 0 | AX50: -0.01381888131 | AY50: -0.03734708074 | AZ50: -0.003024773459 | BA50: -0.0001930686075 | BB50: -0.0009431152909 | BC50: -0.02696433469 | BD50: -5.68030055 | BE50: 0 | BF50: 107879.0984 | BG50: 4.882707523 | BH50: -5.762591804 | BI50: -10224.9479 | BJ50: 0.0341 | BK50: 0.8743 | CA50: -107879.0984 | CB50: -102996.3909 | CC50: -98113.68335 | CD50: -93230.97583 | CE50: -88348.26831 | CF50: -83465.56078 | CG50: -78582.85326 | CH50: -73700.14574 | CI50: -68817.43822 | CJ50: -63934.73069 | CK50: -59052.02317 | CL50: -54169.31565 | CM50: -49286.60812 | CN50: -44403.9006 | CO50: -39521.19308 | CP50: -34638.48555 | CQ50: -29755.77803 | CR50: -24873.07051 | CS50: -19990.36298 | CT50: -15107.65546 | CU50: -10224.94794 | CV50: -5342.240415 | CW50: -459.5328915 | CX50: 4423.174632 | CY50: 9305.882155 | CZ50: 14188.58968 | DA50: 19071.2972 | DB50: 23954.00472 | DC50: 28836.71225 | DD50: 33719.41977 | DE50: 38602.12729
A51: 41 | B51: 20 | C51: 111691.6926 | D51: 0.989346499 | E51: 0.9525357197 | F51: 0.983985283 | G51: 0.9940159876 | H51: 0.9666332992 | I51: 0.9839393388 | J51: 0.898970306 | K51: 0.7096912285 | L51: 1.684635292 | M51: 0.5175859009 | N51: 0.1314564459 | O51: 0.03663633337 | P51: 0.04164382091 | Q51: 0.02173998184 | R51: 38.14681676 | S51: 0 | T51: 52228.8691 | U51: -124.9693016 | V51: 146.3295839 | W51: 1.679315588 | X51: 0.5102275976 | Y51: 0.1308237734 | Z51: 0.03657039467 | AA51: 0.04122591158 | AB51: 0.02163495139 | AC51: 37.51661956 | AD51: 0 | AE51: 51088.6163 | AF51: -120.465991 | AG51: 140.9262657 | AH51: -15.4782 | AI51: -103.0361 | AJ51: -17.7351 | AK51: -4.5092 | AL51: -9.5042 | AM51: -2.665 | AN51: -987.3251 | AO51: 0 | AP51: 0.02718723927 | AQ51: 0.06189125035 | AR51: 0.003126634571 | AS51: 0.0002103007752 | AT51: 0.002956288797 | AU51: 0.0008278493249 | AV51: 4.407111035 | AW51: 0 | AX51: -0.01296286079 | AY51: -0.0592355606 | AZ51: -0.003040139961 | BA51: -9.988234216e-05 | BB51: -0.003163247299 | BC51: -0.0009238962355 | BD51: -5.323892644 | BE51: 0 | BF51: 110551.4398 | BG51: 4.503310598 | BH51: -5.403318231 | BI51: -20485.2279 | BJ51: 0.0102 | BK51: 0.8064 | CA51: -110551.4398 | CB51: -106048.1292 | CC51: -101544.8186 | CD51: -97041.50801 | CE51: -92538.19741 | CF51: -88034.88681 | CG51: -83531.57621 | CH51: -79028.26561 | CI51: -74524.95502 | CJ51: -70021.64442 | CK51: -65518.33382 | CL51: -61015.02322 | CM51: -56511.71262 | CN51: -52008.40203 | CO51: -47505.09143 | CP51: -43001.78083 | CQ51: -38498.47023 | CR51: -33995.15963 | CS51: -29491.84904 | CT51: -24988.53844 | CU51: -20485.22784 | CV51: -15981.91724 | CW51: -11478.60664 | CX51: -6975.296047 | CY51: -2471.985449 | CZ51: 2031.325149 | DA51: 6534.635747 | DB51: 11037.94634 | DC51: 15541.25694 | DD51: 20044.56754 | DE51: 24547.87814
A52: 42 | B52: 28 | C52: 111691.6926 | D52: 0.9887532782 | E52: 0.966541369 | F52: 0.9515543593 | G52: 0.9955059053 | H52: 0.9667004397 | I52: 0.988546032 | J52: 0.9001554273 | K52: 0.7559264755 | L52: 1.524947655 | M52: 0.4491749435 | N52: 0.06367312415 | O52: 0.04208545835 | P52: 0.04904803944 | Q52: 0.2836469133 | R52: 38.14071764 | S52: 0 | T52: 510762.7487 | U52: -125.1600458 | V52: 146.8179366 | W52: 1.519840183 | X52: 0.4446562718 | Y52: 0.06274254442 | Z52: 0.04202838995 | AA52: 0.04855525526 | AB52: 0.2826686849 | AC52: 37.51586242 | AD52: 0 | AE52: 498122.9806 | AF52: -120.7394204 | AG52: 141.5085451 | AH52: -19.32 | AI52: -90.3245 | AJ52: -36.2493 | AK52: -5.686 | AL52: -28.845 | AM52: -21.5416 | AN52: -12437.8018 | AO52: 0 | AP52: 0.0298668182 | AQ52: 0.02693256362 | AR52: 0.004145648908 | AS52: 0.0002203480993 | AT52: 0.003754296973 | AU52: 0.007512581844 | AV52: 4.348193159 | AW52: 0 | AX52: -0.01831200773 | AY52: -0.01991622878 | AZ52: -0.003845735049 | BA52: -0.0001472043728 | BB52: -0.004176691753 | BC52: -0.008611454366 | BD52: -5.254382153 | BE52: 0 | BF52: 99051.9245 | BG52: 4.420625417 | BH52: -5.309391475 | BI52: -10639.4162 | BJ52: 0.1132 | BK52: 0.7916 | CA52: -99051.9245 | CB52: -94631.29908 | CC52: -90210.67367 | CD52: -85790.04825 | CE52: -81369.42283 | CF52: -76948.79742 | CG52: -72528.172 | CH52: -68107.54658 | CI52: -63686.92117 | CJ52: -59266.29575 | CK52: -54845.67033 | CL52: -50425.04492 | CM52: -46004.4195 | CN52: -41583.79408 | CO52: -37163.16867 | CP52: -32742.54325 | CQ52: -28321.91783 | CR52: -23901.29242 | CS52: -19480.667 | CT52: -15060.04158 | CU52: -10639.41617 | CV52: -6218.79075 | CW52: -1798.165333 | CX52: 2622.460084 | CY52: 7043.085501 | CZ52: 11463.71092 | DA52: 15884.33633 | DB52: 20304.96175 | DC52: 24725.58717 | DD52: 29146.21258 | DE52: 33566.838
A53: 43 | B53: 28 | C53: 111691.6926 | D53: 0.9873025418 | E53: 0.9820781906 | F53: 0.9550145247 | G53: 0.9930720693 | H53: 0.993034995 | I53: 0.9784226078 | J53: 0.9196415473 | K53: 0.6357260697 | L53: 1.632883989 | M53: 0.5184007705 | N53: 0.07608291728 | O53: 0.03406031764 | P53: 0.081262391 | Q53: 0.2895776835 | R53: 38.05687622 | S53: 0 | T53: 114471.5973 | U53: -127.3861813 | V53: 149.1179124 | W53: 1.626713857 | X53: 0.5156083531 | Y53: 0.07505022024 | Z53: 0.03398909442 | AA53: 0.0810916249 | AB53: 0.2876959059 | AC53: 37.55532282 | AD53: 0 | AE53: 112449.7176 | AF53: -123.8059548 | AG53: 144.8338554 | AH53: -10.5941 | AI53: -30.9337 | AJ53: -32.1978 | AK53: -13.2389 | AL53: -13.4928 | AM53: -70.4102 | AN53: -1851.0121 | AO53: 0 | AP53: 0.04080359083 | AQ53: 0.02315240912 | AR53: 0.005507686625 | AS53: 0.0002296487054 | AT53: 0.001105585263 | AU53: 0.013039371 | AV53: 3.496388284 | AW53: 0 | AX53: -0.03025030549 | AY53: -0.02157580704 | AZ53: -0.00544461935 | BA53: -0.0001015251748 | BB53: -0.001175391703 | BC53: -0.01538990523 | BD53: -4.210119426 | BE53: 0 | BF53: 109669.813 | BG53: 3.580226575 | BH53: -4.28405698 | BI53: -38065.2815 | BJ53: 0.0181 | BK53: 0.6411 | CA53: -109669.813 | CB53: -106089.5864 | CC53: -102509.3598 | CD53: -98929.13327 | CE53: -95348.9067 | CF53: -91768.68012 | CG53: -88188.45355 | CH53: -84608.22697 | CI53: -81028.0004 | CJ53: -77447.77382 | CK53: -73867.54725 | CL53: -70287.32067 | CM53: -66707.0941 | CN53: -63126.86752 | CO53: -59546.64095 | CP53: -55966.41437 | CQ53: -52386.1878 | CR53: -48805.96122 | CS53: -45225.73465 | CT53: -41645.50807 | CU53: -38065.2815 | CV53: -34485.05492 | CW53: -30904.82834 | CX53: -27324.60177 | CY53: -23744.37519 | CZ53: -20164.14862 | DA53: -16583.92204 | DB53: -13003.69547 | DC53: -9423.468893 | DD53: -5843.242318 | DE53: -2263.015743
A54: 44 | B54: 23 | C54: 111691.6926 | D54: 0.9902223576 | E54: 0.9465026581 | F54: 0.9481855213 | G54: 0.9912859709 | H54: 0.9796360979 | I54: 0.9720788166 | J54: 0.9177665392 | K54: 0.7771206637 | L54: 1.758283805 | M54: 0.3892921397 | N54: 0.153123325 | O54: 0.05569223022 | P54: 0.05302788074 | Q54: 0.8682345951 | R54: 37.69671986 | S54: 0 | T54: 303678.4349 | U54: -131.2539709 | V54: 150.5055046 | W54: 1.753188246 | X54: 0.3830434132 | Y54: 0.1507379191 | Z54: 0.05554619913 | AA54: 0.05270293733 | AB54: 0.8609915973 | AC54: 37.18335739 | AD54: 0 | AE54: 297730.8425 | AF54: -127.4684742 | AG54: 146.0840643 | AH54: -31.5286 | AI54: -77.984 | AJ54: -91.1046 | AK54: -17.7715 | AL54: -25.0402 | AM54: -276.7238 | AN54: -5427.4397 | AO54: 0 | AP54: 0.03449382317 | AQ54: 0.0490450469 | AR54: 0.01023789399 | AS54: 0.000502945313 | AT54: 0.002241456509 | AU54: 0.05339785675 | AV54: 3.635577691 | AW54: 0 | AX54: -0.02609697068 | AY54: -0.04483860614 | AZ54: -0.009221581672 | BA54: -0.0002682235889 | BB54: -0.002370418875 | BC54: -0.06276905361 | BD54: -4.27587537 | BE54: 0 | BF54: 105744.1003 | BG54: 3.785496714 | BH54: -4.421440224 | BI54: -30034.166 | BJ54: 0.0533 | BK54: 0.6778 | CA54: -105744.1003 | CB54: -101958.6036 | CC54: -98173.10687 | CD54: -94387.61016 | CE54: -90602.11345 | CF54: -86816.61673 | CG54: -83031.12002 | CH54: -79245.6233 | CI54: -75460.12659 | CJ54: -71674.62988 | CK54: -67889.13316 | CL54: -64103.63645 | CM54: -60318.13974 | CN54: -56532.64302 | CO54: -52747.14631 | CP54: -48961.64959 | CQ54: -45176.15288 | CR54: -41390.65617 | CS54: -37605.15945 | CT54: -33819.66274 | CU54: -30034.16603 | CV54: -26248.66931 | CW54: -22463.1726 | CX54: -18677.67588 | CY54: -14892.17917 | CZ54: -11106.68246 | DA54: -7321.185743 | DB54: -3535.689029 | DC54: 249.8076843 | DD54: 4035.304398 | DE54: 7820.801112
A55: 45 | B55: 29 | C55: 111691.6926 | D55: 0.9901637783 | E55: 0.9633881494 | F55: 0.9830558258 | G55: 0.9900245149 | H55: 0.9702970612 | I55: 0.9688513343 | J55: 0.9603214989 | K55: 0.6841527764 | L55: 1.378080929 | M55: 0.5135455213 | N55: 0.09997038493 | O55: 0.03081916014 | P55: 0.01388090998 | Q55: 0.1674773028 | R55: 37.8201665 | S55: 0 | T55: 317541.3498 | U55: -122.9063578 | V55: 145.0177045 | W55: 1.374034141 | X55: 0.5078888874 | Y55: 0.09945892926 | Z55: 0.03072627805 | AA55: 0.01375632696 | AB55: 0.1659031062 | AC55: 37.57361895 | AD55: 0 | AE55: 314354.6628 | AF55: -121.1252797 | AG55: 142.8876423 | AH55: -17.0206 | AI55: -62.6139 | AJ55: -7.225 | AK55: -15.7549 | AL55: -5.0744 | AM55: -39.5355 | AN55: -3039.4625 | AO55: 0 | AP55: 0.0226544034 | AQ55: 0.04818858901 | AR55: 0.002123484803 | AS55: 0.0002996294632 | AT55: 0.0008860668959 | AU55: 0.01029963896 | AV55: 1.696626211 | AW55: 0 | AX55: -0.0128384055 | AY55: -0.04587451279 | AZ55: -0.001978312826 | BA55: -0.0001525002997 | BB55: -0.000934676654 | BC55: -0.0118732594 | BD55: -2.056410613 | BE55: 0 | BF55: 108505.0057 | BG55: 1.781078024 | BH55: -2.13006228 | BI55: -72883.4452 | BJ55: 0.0285 | BK55: 0.3189 | CA55: -108505.0057 | CB55: -106723.9277 | CC55: -104942.8497 | CD55: -103161.7716 | CE55: -101380.6936 | CF55: -99599.61558 | CG55: -97818.53756 | CH55: -96037.45954 | CI55: -94256.38151 | CJ55: -92475.30349 | CK55: -90694.22546 | CL55: -88913.14744 | CM55: -87132.06942 | CN55: -85350.99139 | CO55: -83569.91337 | CP55: -81788.83535 | CQ55: -80007.75732 | CR55: -78226.6793 | CS55: -76445.60128 | CT55: -74664.52325 | CU55: -72883.44523 | CV55: -71102.36721 | CW55: -69321.28918 | CX55: -67540.21116 | CY55: -65759.13314 | CZ55: -63978.05511 | DA55: -62196.97709 | DB55: -60415.89907 | DC55: -58634.82104 | DD55: -56853.74302 | DE55: -55072.66499
A56: 46 | B56: 28 | C56: 111691.6926 | D56: 0.9877840452 | E56: 0.9786772172 | F56: 0.9733464323 | G56: 0.9945162593 | H56: 0.9736427647 | I56: 0.9671531283 | J56: 0.9169872837 | K56: 0.9152625917 | L56: 1.393426148 | M56: 0.8957479953 | N56: 0.08352897031 | O56: 0.04681967076 | P56: 0.06625663028 | Q56: 0.06643021376 | R56: 38.29380163 | S56: 0 | T56: 553455.5742 | U56: -128.182937 | V56: 146.8384898 | W56: 1.388350038 | X56: 0.890026825 | Y56: 0.08285732582 | Z56: 0.04674219081 | AA56: 0.0657297145 | AB56: 0.06577184154 | AC56: 37.77634246 | AD56: 0 | AE56: 542099.726 | AF56: -124.4047751 | AG56: 142.4047345 | AH56: -33.6851 | AI56: -36.4337 | AJ56: -17.714 | AK56: -10.507 | AL56: -40.5387 | AM56: -13.3636 | AN56: -11203.6061 | AO56: 0 | AP56: 0.02228564249 | AQ56: 0.04363310298 | AR56: 0.003545223773 | AS56: 0.0002707769181 | AT56: 0.003930912832 | AU56: 0.004945387007 | AV56: 3.699550924 | AW56: 0 | AX56: -0.006355369529 | AY56: -0.03846319197 | AZ56: -0.003434969753 | BA56: -0.0001555113114 | BB56: -0.004180066031 | BC56: -0.005674496835 | BD56: -4.375491675 | BE56: 0 | BF56: 100335.8444 | BG56: 3.77816197 | BH56: -4.43375528 | BI56: -24772.605 | BJ56: 0.1017 | BK56: 0.6765 | CA56: -100335.8444 | CB56: -96557.68243 | CC56: -92779.52046 | CD56: -89001.35849 | CE56: -85223.19652 | CF56: -81445.03455 | CG56: -77666.87258 | CH56: -73888.71061 | CI56: -70110.54864 | CJ56: -66332.38667 | CK56: -62554.2247 | CL56: -58776.06273 | CM56: -54997.90076 | CN56: -51219.73879 | CO56: -47441.57682 | CP56: -43663.41485 | CQ56: -39885.25288 | CR56: -36107.09091 | CS56: -32328.92894 | CT56: -28550.76697 | CU56: -24772.605 | CV56: -20994.44303 | CW56: -17216.28106 | CX56: -13438.11909 | CY56: -9659.95712 | CZ56: -5881.79515 | DA56: -2103.63318 | DB56: 1674.52879 | DC56: 5452.69076 | DD56: 9230.85273 | DE56: 13009.0147
A57: 47 | B57: 23 | C57: 111691.6926 | D57: 0.9846869596 | E57: 0.9295488879 | F57: 0.9622253768 | G57: 0.9943251492 | H57: 0.9791296024 | I57: 0.9776407742 | J57: 0.9185719461 | K57: 0.7917651292 | L57: 1.395808024 | M57: 0.3768078197 | N57: 0.1068907245 | O57: 0.05304201278 | P57: 0.01105258127 | Q57: 0.1993512442 | R57: 38.33886662 | S57: 0 | T57: 519396.7819 | U57: -125.7930751 | V57: 146.5039969 | W57: 1.389450902 | X57: 0.3688402821 | Y57: 0.1056760495 | Z57: 0.05295141976 | AA57: 0.010983131 | AB57: 0.1980114303 | AC57: 37.83286663 | AD57: 0 | AE57: 508928.8897 | AF57: -122.0875749 | AG57: 142.1162577 | AH57: -61.4807 | AI57: -78.2481 | AJ57: -24.7323 | AK57: -9.7237 | AL57: -3.2579 | AM57: -34.4322 | AN57: -10256.0173 | AO57: 0 | AP57: 0.03188987545 | AQ57: 0.06217100133 | AR57: 0.006083394376 | AS57: 0.000410233817 | AT57: 0.0005281515589 | AU57: 0.009623456484 | AV57: 3.594794078 | AW57: 0 | AX57: -0.014018911 | AY57: -0.05624387542 | AZ57: -0.005869864733 | BA57: -0.000319044627 | BB57: -0.0005707152273 | BC57: -0.01112352831 | BD57: -4.29959326 | BE57: 0 | BF57: 101223.8004 | BG57: 3.705500191 | BH57: -4.387739199 | BI57: -27113.7966 | BJ57: 0.0937 | BK57: 0.6635 | CA57: -101223.8004 | CB57: -97518.30021 | CC57: -93812.80002 | CD57: -90107.29983 | CE57: -86401.79964 | CF57: -82696.29945 | CG57: -78990.79925 | CH57: -75285.29906 | CI57: -71579.79887 | CJ57: -67874.29868 | CK57: -64168.79849 | CL57: -60463.2983 | CM57: -56757.79811 | CN57: -53052.29792 | CO57: -49346.79773 | CP57: -45641.29754 | CQ57: -41935.79734 | CR57: -38230.29715 | CS57: -34524.79696 | CT57: -30819.29677 | CU57: -27113.79658 | CV57: -23408.29639 | CW57: -19702.7962 | CX57: -15997.29601 | CY57: -12291.79582 | CZ57: -8586.295626 | DA57: -4880.795435 | DB57: -1175.295244 | DC57: 2530.204947 | DD57: 6235.705138 | DE57: 9941.205329
A58: 48 | B58: 20 | C58: 111691.6926 | D58: 0.9844145172 | E58: 0.9822032789 | F58: 0.9618205415 | G58: 0.9915022259 | H58: 0.9771780798 | I58: 0.9750419218 | J58: 0.8902741876 | K58: 1 | L58: 1.284020554 | M58: 0.546882038 | N58: 0.1500514076 | O58: 0.02192936829 | P58: 0.05651844182 | Q58: 0.4158141195 | R58: 38.41448395 | S58: 0 | T58: 553829.3949 | U58: -126.7530612 | V58: 148.7261901 | W58: 1.278069019 | X58: 0.5439685769 | Y58: 0.1483305035 | Z58: 0.02187332823 | AA58: 0.05613066694 | AB58: 0.4127039168 | AC58: 37.73040595 | AD58: 0 | AE58: 538808.1662 | AF58: -121.837997 | AG58: 142.8299803 | AH58: -21.9445 | AI58: -30.728 | AJ58: -46.1829 | AK58: -5.7149 | AL58: -8.1341 | AM58: -73.546 | AN58: -14834.9784 | AO58: 0 | AP58: 0.02699219589 | AQ58: 0.02368841421 | AR58: 0.007320565771 | AS58: 0.0001937791463 | AT58: 0.002734300112 | AU58: 0.02542167841 | AV58: 4.828713254 | AW58: 0 | AX58: -0.008999640674 | AY58: -0.02193355551 | AZ58: -0.006804515511 | BA58: -0.0001079611758 | BB58: -0.00294121709 | BC58: -0.02925510695 | BD58: -5.826167808 | BE58: 0 | BF58: 96670.4639 | BG58: 4.915064188 | BH58: -5.896209804 | BI58: 1630.8199 | BJ58: 0.1345 | BK58: 0.8801 | CA58: -96670.4639 | CB58: -91755.39971 | CC58: -86840.33552 | CD58: -81925.27134 | CE58: -77010.20715 | CF58: -72095.14296 | CG58: -67180.07877 | CH58: -62265.01459 | CI58: -57349.9504 | CJ58: -52434.88621 | CK58: -47519.82202 | CL58: -42604.75784 | CM58: -37689.69365 | CN58: -32774.62946 | CO58: -27859.56527 | CP58: =($BG58*CP$8)-$BF58 -> -22944.50109 | CQ58: -18029.4369 | CR58: -13114.37271 | CS58: -8199.308524 | CT58: -3284.244337 | CU58: 1630.819851 | CV58: 6545.884038 | CW58: 11460.94823 | CX58: 16376.01241 | CY58: 21291.0766 | CZ58: 26206.14079 | DA58: 31121.20498 | DB58: 36036.26916 | DC58: 40951.33335 | DD58: 45866.39754 | DE58: 50781.46173
A59: 49 | B59: 16 | C59: 111691.6926 | D59: 0.9901927443 | E59: 0.9472489039 | F59: 0.9577968909 | G59: 0.9922884655 | H59: 0.9889718524 | I59: 0.9817107504 | J59: 0.9359010625 | K59: 0.7546108373 | L59: 1.583436306 | M59: 0.5913778217 | N59: 0.07531601211 | O59: 0.04710566553 | P59: 0.1013304619 | Q59: 0.5621501859 | R59: 38.89369876 | S59: 0 | T59: 338193.2348 | U59: -129.064869 | V59: 152.7458034 | W59: 1.578835402 | X59: 0.5820526082 | Y59: 0.07436160581 | Z59: 0.04699656686 | AA59: 0.1009950001 | AB59: 0.5590762165 | AC59: 38.49921483 | AD59: 0 | AE59: 332992.7104 | AF59: -126.1381145 | AG59: 149.2148643 | AH59: -28.3325 | AI59: -85.1216 | AJ59: -26.0905 | AK59: -5.887 | AL59: -15.7671 | AM59: -91.3413 | AN59: -4947.9844 | AO59: 0 | AP59: 0.02453389202 | AQ59: 0.07262238485 | AR59: 0.003959779934 | AS59: 0.0005772117504 | AT59: 0.002619947717 | AU59: 0.01953072299 | AV59: 2.802910573 | AW59: 0 | AX59: -0.01235210702 | AY59: -0.06410099506 | AZ59: -0.003690012279 | BA59: -0.0004755084673 | BB59: -0.002809756683 | BC59: -0.02336225324 | BD59: -3.424148447 | BE59: 0 | BF59: 106491.1683 | BG59: 2.926754512 | BH59: -3.53093908 | BI59: -47956.078 | BJ59: 0.0466 | BK59: 0.5241 | CA59: =($BG59*CA$8)-$BF59 -> -106491.1683 | CB59: -103564.4138 | CC59: -100637.6593 | CD59: -97710.90476 | CE59: -94784.15025 | CF59: -91857.39574 | CG59: -88930.64123 | CH59: -86003.88671 | CI59: -83077.1322 | CJ59: -80150.37769 | CK59: -77223.62318 | CL59: -74296.86866 | CM59: -71370.11415 | CN59: -68443.35964 | CO59: -65516.60513 | CP59: -62589.85061 | CQ59: -59663.0961 | CR59: -56736.34159 | CS59: -53809.58708 | CT59: -50882.83256 | CU59: -47956.07805 | CV59: -45029.32354 | CW59: -42102.56903 | CX59: -39175.81451 | CY59: -36249.06 | CZ59: -33322.30549 | DA59: -30395.55098 | DB59: -27468.79646 | DC59: -24542.04195 | DD59: -21615.28744 | DE59: -18688.53293
A60: 50 | B60: 22 | C60: 111691.6926 | D60: 0.9812127692 | E60: 0.9910609457 | F60: 0.9530529915 | G60: 0.9943270977 | H60: 0.9930532649 | I60: 0.963709564 | J60: 0.8696272244 | K60: 0.6756184443 | L60: 1.188257105 | M60: 0.652351212 | N60: 0.08653273411 | O60: 0.03832517798 | P60: 0.01757834613 | Q60: 0.4611807308 | R60: 37.91599802 | S60: 0 | T60: 201312.2711 | U60: -126.8420451 | V60: 148.0821745 | W60: 1.181608402 | X60: 0.6506062312 | Y60: 0.08531102997 | Z60: 0.03825976771 | AA60: 0.0175416015 | AB60: 0.4561639347 | AC60: 37.09698629 | AD60: 0 | AE60: 195021.7794 | AF60: -121.0075907 | AG60: 141.1408636 | AH60: -29.5239 | AI60: -10.4621 | AJ60: -31.4424 | AK60: -5.0674 | AL60: -2.4008 | AM60: -118.4603 | AN60: -6093.1348 | AO60: 0 | AP60: 0.03741378787 | AQ60: 0.01558968069 | AR60: 0.005077430339 | AS60: 0.0002457702242 | AT60: 0.0002727885452 | AU60: 0.03758975762 | AV60: 5.73826525 | AW60: 0 | AX60: -0.02264774293 | AY60: -0.01518458452 | AZ60: -0.004741210566 | BA60: -0.0001659877911 | BB60: -0.0002964810637 | BC60: -0.04317954925 | BD60: -6.85509532 | BE60: 0 | BF60: 105401.2009 | BG60: 5.834454465 | BH60: -6.941310876 | BI60: 11287.8884 | BJ60: 0.0563 | BK60: 1.0447 | CA60: -105401.2009 | CB60: -99566.74644 | CC60: -93732.29197 | CD60: -87897.83751 | CE60: -82063.38304 | CF60: -76228.92858 | CG60: -70394.47411 | CH60: -64560.01965 | CI60: -58725.56518 | CJ60: -52891.11072 | CK60: -47056.65625 | CL60: -41222.20179 | CM60: -35387.74732 | CN60: -29553.29286 | CO60: -23718.83839 | CP60: -17884.38393 | CQ60: -12049.92946 | CR60: -6215.474997 | CS60: -381.0205325 | CT60: 5453.433932 | CU60: 11287.8884 | CV60: 17122.34286 | CW60: 22956.79733 | CX60: 28791.25179 | CY60: 34625.70626 | CZ60: 40460.16072 | DA60: 46294.61519 | DB60: 52129.06965 | DC60: 57963.52412 | DD60: 63797.97858 | DE60: 69632.43305
A61: 51 | B61: 17 | C61: 111691.6926 | D61: 0.9901662457 | E61: 0.9782794921 | F61: 0.9799767288 | G61: 0.9918151287 | H61: 0.978647959 | I61: 0.9745138507 | J61: 0.8835431929 | K61: 0.9459515366 | L61: 1.38770152 | M61: 0.3546259685 | N61: 0.09737940911 | O61: 0.04339504258 | P61: 0.0745780536 | Q61: 0.5127624684 | R61: 39.36816661 | S61: 0 | T61: 273579.5169 | U61: -130.4910853 | V61: 155.9234894 | W61: 1.383650969 | X61: 0.3523185663 | Y61: 0.09679400123 | Z61: 0.04328835556 | AA61: 0.0740998718 | AB61: 0.5088531229 | AC61: 38.64831594 | AD61: 0 | AE61: 266244.5539 | AF61: -125.2250654 | AG61: 149.515941 | AH61: -28.0864 | AI61: -23.7165 | AJ61: -20.2576 | AK61: -15.6045 | AL61: -23.2143 | AM61: -104.3386 | AN61: -7119.7453 | AO61: 0 | AP61: 0.02800154719 | AQ61: 0.01783709976 | AR61: 0.002727914116 | AS61: 0.0005349089757 | AT61: 0.003522431911 | AU61: 0.02591227278 | AV61: 5.187483714 | AW61: 0 | AX61: -0.02191729306 | AY61: -0.01645796201 | AZ61: -0.002616762419 | BA61: -0.0004531472371 | BB61: -0.003784448638 | BC61: -0.03080744269 | BD61: -6.331511308 | BE61: 0 | BF61: 104356.7296 | BG61: 5.266019888 | BH61: -6.407548364 | BI61: 963.6682 | BJ61: 0.0657 | BK61: 0.943 | BV61: 2016-10-17T19:15:04 | CA61: -104356.7296 | CB61: -99090.70971 | CC61: -93824.68982 | CD61: -88558.66994 | CE61: -83292.65005 | CF61: -78026.63016 | CG61: -72760.61027 | CH61: -67494.59038 | CI61: -62228.57049 | CJ61: -56962.55061 | CK61: -51696.53072 | CL61: -46430.51083 | CM61: -41164.49094 | CN61: -35898.47105 | CO61: -30632.45116 | CP61: -25366.43128 | CQ61: -20100.41139 | CR61: -14834.3915 | CS61: -9568.371611 | CT61: -4302.351722 | CU61: 963.6681658 | CV61: 6229.688054 | CW61: 11495.70794 | CX61: 16761.72783 | CY61: 22027.74772 | CZ61: 27293.76761 | DA61: 32559.7875 | DB61: 37825.80738 | DC61: 43091.82727 | DD61: 48357.84716 | DE61: 53623.86705
A62: 52 | B62: 20 | C62: 111691.6926 | D62: 0.9824830424 | E62: 0.9449091489 | F62: 0.9796501261 | G62: 0.9913971431 | H62: 0.986053301 | I62: 0.9563150748 | J62: 0.8813237222 | K62: 0.9012329506 | L62: 1.629764045 | M62: 0.5129619805 | N62: 0.06650988048 | O62: 0.0438013332 | P62: 0.003875361991 | Q62: 0.02973486911 | R62: 39.16925961 | S62: 0 | T62: 202478.0666 | U62: -129.281034 | V62: 150.630974 | W62: 1.621299441 | X62: 0.5044990604 | Y62: 0.06610299075 | Z62: 0.04368802953 | AA62: 0.00385910468 | AB62: 0.02934423879 | AC62: 38.43320957 | AD62: 0 | AE62: 196771.2141 | AF62: -123.8221415 | AG62: 144.1273045 | AH62: -47.8498 | AI62: -63.8799 | AJ62: -15.8053 | AK62: -16.4928 | AL62: -0.8843 | AM62: -9.6892 | AN62: -5552.2511 | AO62: 0 | AP62: 0.04348776927 | AQ62: 0.06243766419 | AR62: 0.001656197359 | AS62: 0.0004442710476 | AT62: 0.0001174297955 | AU62: 0.002613861464 | AV62: 5.348135314 | AW62: 0 | AX62: -0.02184135089 | AY62: -0.05480039243 | AZ62: -0.001600472119 | BA62: -0.000305032457 | BB62: -0.0001261343829 | BC62: -0.003133527772 | BD62: -6.421862547 | BE62: 0 | BF62: 105984.8402 | BG62: 5.458892508 | BH62: -6.503669457 | BI62: 3193.0099 | BJ62: 0.0511 | BK62: 0.9775 | CA62: -105984.8402 | CB62: -100525.9477 | CC62: -95067.05518 | CD62: -89608.16268 | CE62: -84149.27017 | CF62: -78690.37766 | CG62: -73231.48515 | CH62: -67772.59265 | CI62: -62313.70014 | CJ62: -56854.80763 | CK62: -51395.91512 | CL62: -45937.02262 | CM62: -40478.13011 | CN62: -35019.2376 | CO62: -29560.34509 | CP62: -24101.45259 | CQ62: -18642.56008 | CR62: -13183.66757 | CS62: -7724.775064 | CT62: -2265.882556 | CU62: 3193.009951 | CV62: 8651.902459 | CW62: 14110.79497 | CX62: 19569.68747 | CY62: 25028.57998 | CZ62: 30487.47249 | DA62: 35946.365 | DB62: 41405.2575 | DC62: 46864.15001 | DD62: 52323.04252 | DE62: 57781.93503
A63: 53 | B63: 29 | C63: 111691.6926 | D63: 0.9905599239 | E63: 0.9491707695 | F63: 0.9525369045 | G63: 0.9929547136 | H63: 0.971992361 | I63: 0.9700121859 | J63: 0.893847094 | K63: 0.9698684475 | L63: 1.517083484 | M63: 0.4234367711 | N63: 0.142305812 | O63: 0.04975119875 | P63: 0.05482932789 | Q63: 0.04574495092 | R63: 37.60340526 | S63: 0 | T63: 281191.1925 | U63: -123.0673338 | V63: 142.4920204 | W63: 1.512813455 | X63: 0.4169565934 | Y63: 0.1402672749 | Z63: 0.04964532547 | AA63: 0.05436550129 | AB63: 0.04533058076 | AC63: 36.93521774 | AD63: 0 | AE63: 273821.3838 | AF63: -118.3555437 | AG63: 136.9061572 | AH63: -24.3893 | AI63: -85.5779 | AJ63: -56.1699 | AK63: -11.365 | AL63: -32.7172 | AM63: -11.7884 | AN63: -7147.8011 | AO63: 0 | AP63: 0.02146366711 | AQ63: 0.04910766957 | AR63: 0.009289353181 | AS63: 0.0002693525012 | AT63: 0.003329139896 | AU63: 0.002677509659 | AV63: 4.625653395 | AW63: 0 | AX63: -0.009989252313 | AY63: -0.04427938897 | AZ63: -0.008715772826 | BA63: -0.0001478408019 | BB63: -0.003586450366 | BC63: -0.00326437135 | BD63: -5.515880129 | BE63: 0 | BF63: 104321.8839 | BG63: 4.711790087 | BH63: -5.585863206 | BI63: -10086.0821 | BJ63: 0.066 | BK63: 0.8437 | CA63: -104321.8839 | CB63: -99610.09381 | CC63: -94898.30373 | CD63: -90186.51364 | CE63: -85474.72355 | CF63: -80762.93347 | CG63: -76051.14338 | CH63: -71339.35329 | CI63: -66627.5632 | CJ63: -61915.77312 | CK63: -57203.98303 | CL63: -52492.19294 | CM63: -47780.40286 | CN63: -43068.61277 | CO63: -38356.82268 | CP63: -33645.0326 | CQ63: -28933.24251 | CR63: -24221.45242 | CS63: -19509.66233 | CT63: -14797.87225 | CU63: -10086.08216 | CV63: -5374.292073 | CW63: -662.5019862 | CX63: 4049.288101 | CY63: 8761.078188 | CZ63: 13472.86827 | DA63: 18184.65836 | DB63: 22896.44845 | DC63: 27608.23854 | DD63: 32320.02862 | DE63: 37031.81871
A64: 54 | B64: 27 | C64: 111691.6926 | D64: 0.9888349166 | E64: 0.9692676285 | F64: 0.9671709502 | G64: 0.9938909953 | H64: 0.964147218 | I64: 0.9812696402 | J64: 0.9974643267 | K64: 1 | L64: 1.704370005 | M64: 0.5510187093 | N64: 0.1883076587 | O64: 0.04543481945 | P64: 0.01016214116 | Q64: 0.06799804898 | R64: 38.66952739 | S64: 0 | T64: 202969.9583 | U64: -126.4135398 | V64: 148.7721224 | W64: 1.698715022 | X64: 0.5459342561 | Y64: 0.1864456501 | Z64: 0.04535111454 | AA64: 0.01005223208 | AB64: 0.06761403263 | AC64: 38.65400065 | AD64: 0 | AE64: 202701.6829 | AF64: -126.220923 | AG64: 148.5750416 | AH64: -30.4187 | AI64: -45.2002 | AJ64: -47.4652 | AK64: -14.4626 | AL64: -7.7291 | AM64: -7.409 | AN64: -115.5908 | AO64: 0 | AP64: 0.0280415132 | AQ64: 0.04101715111 | AR64: 0.009975255712 | AS64: 0.0003373941177 | AT64: 0.0008470140241 | AU64: 0.002834479487 | AV64: 0.1095640254 | AW64: 0 | AX64: -0.01221809215 | AY64: -0.03717631862 | AZ64: -0.009702537809 | BA64: -0.0002435862975 | BB64: -0.0009010150156 | BC64: -0.00329368504 | BD64: -0.1335455481 | BE64: 0 | BF64: 111423.4172 | BG64: 0.1926168331 | BH64: -0.197080783 | BI64: -107571.0806 | BJ64: 0.0024 | BK64: 0.0345 | CA64: -111423.4172 | CB64: -111230.8004 | CC64: -111038.1835 | CD64: -110845.5667 | CE64: -110652.9499 | CF64: -110460.333 | CG64: -110267.7162 | CH64: -110075.0994 | CI64: -109882.4825 | CJ64: -109689.8657 | CK64: -109497.2489 | CL64: -109304.632 | CM64: -109112.0152 | CN64: -108919.3984 | CO64: -108726.7815 | CP64: -108534.1647 | CQ64: -108341.5479 | CR64: -108148.931 | CS64: -107956.3142 | CT64: -107763.6974 | CU64: -107571.0805 | CV64: -107378.4637 | CW64: -107185.8469 | CX64: -106993.23 | CY64: -106800.6132 | CZ64: -106607.9964 | DA64: -106415.3795 | DB64: -106222.7627 | DC64: -106030.1459 | DD64: -105837.529 | DE64: -105644.9122
A65: 55 | B65: 24 | C65: 111691.6926 | D65: 0.9860903629 | E65: 0.9895206856 | F65: 0.9576901228 | G65: 0.9930953535 | H65: 0.9911610286 | I65: 0.9828047103 | J65: 0.8845679854 | K65: 0.6538365906 | L65: 1.736765601 | M65: 0.7264473387 | N65: 0.09109631884 | O65: 0.03397117149 | P65: 0.09693938159 | Q65: 0.04308759842 | R65: 38.37389131 | S65: 0 | T65: 297462.2668 | U65: -126.0068709 | V65: 148.6217015 | W65: 1.729598681 | X65: 0.724168432 | Y65: 0.08993605375 | Z65: 0.03390052682 | AA65: 0.09668145797 | AB65: 0.04286446984 | AC65: 37.65209615 | AD65: 0 | AE65: 289206.6591 | AF65: -120.9221831 | AG65: 142.4503452 | AH65: -21.6947 | AI65: -40.3014 | AJ65: -27.6693 | AK65: -6.6385 | AL65: -6.9131 | AM65: -10.5892 | AN65: -8141.8014 | AO65: 0 | AP65: 0.04037709054 | AQ65: 0.01625222484 | AR65: 0.005703727238 | AS65: 0.0002439452125 | AT65: 0.001804852859 | AU65: 0.001643289412 | AV65: 5.018662632 | AW65: 0 | AX65: -0.02415998778 | AY65: -0.01373618653 | AZ65: -0.005303613377 | BA65: -0.0001626937437 | BB65: -0.001967871925 | BC65: -0.001823887634 | BD65: -6.124201973 | BE65: 0 | BF65: 103436.085 | BG65: 5.084687762 | BH65: -6.171356214 | BI65: -1742.3297 | BJ65: 0.0739 | BK65: 0.9105 | CA65: -103436.085 | CB65: -98351.39724 | CC65: -93266.70948 | CD65: -88182.02171 | CE65: -83097.33395 | CF65: -78012.64619 | CG65: -72927.95843 | CH65: -67843.27067 | CI65: -62758.58291 | CJ65: -57673.89514 | CK65: -52589.20738 | CL65: -47504.51962 | CM65: -42419.83186 | CN65: -37335.1441 | CO65: -32250.45633 | CP65: -27165.76857 | CQ65: -22081.08081 | CR65: -16996.39305 | CS65: -11911.70529 | CT65: -6827.017526 | CU65: -1742.329764 | CV65: 3342.357998 | CW65: 8427.04576 | CX65: 13511.73352 | CY65: 18596.42128 | CZ65: 23681.10905 | DA65: 28765.79681 | DB65: 33850.48457 | DC65: 38935.17233 | DD65: 44019.86009 | DE65: 49104.54785
A66: 56 | B66: 29 | C66: 111691.6926 | D66: 0.9884010284 | E66: 0.9537018537 | F66: 0.956054804 | G66: 0.9945178317 | H66: 0.9881515298 | I66: 0.9775373882 | J66: 0.8179417232 | K66: 0.6989508778 | L66: 1.767791456 | M66: 0.5478670805 | N66: 0.06843094694 | O66: 0.0331673778 | P66: 0.03063918791 | Q66: 0.05446831271 | R66: 38.84985339 | S66: 0 | T66: 353063.3019 | U66: -131.1633252 | V66: 151.298916 | W66: 1.761690826 | X66: 0.5402373501 | Y66: 0.06752262758 | Z66: 0.03311244031 | AA66: 0.03052950105 | AB66: 0.05409871455 | AC66: 37.69958642 | AD66: 0 | AE66: 337246.7631 | AF66: -122.7716942 | AG66: 141.3768911 | AH66: -17.7344 | AI66: -160.3711 | AJ66: -12.6716 | AK66: -2.0231 | AL66: -10.6979 | AM66: -10.8043 | AN66: -15602.2364 | AO66: 0 | AP66: 0.03941697018 | AQ66: 0.05282983655 | AR66: 0.004359834183 | AS66: 0.0002534139041 | AT66: 0.000681714701 | AU66: 0.002454437462 | AV66: 8.291634789 | AW66: 0 | AX66: -0.02891431255 | AY66: -0.04431455554 | AZ66: -0.004079831431 | BA66: -0.0002009049927 | BB66: -0.0007075979676 | BC66: -0.002849143217 | BD66: -9.84095859 | BE66: 0 | BF66: 95875.1538 | BG66: 8.391630996 | BH66: -9.922024936 | BI66: 71957.4661 | BJ66: 0.1416 | BK66: 1.5026 | CA66: -95875.1538 | CB66: -87483.5228 | CC66: -79091.89181 | CD66: -70700.26081 | CE66: -62308.62982 | CF66: -53916.99882 | CG66: -45525.36782 | CH66: -37133.73683 | CI66: -28742.10583 | CJ66: -20350.47483 | CK66: -11958.84384 | CL66: -3567.212842 | CM66: 4824.418154 | CN66: 13216.04915 | CO66: 21607.68015 | CP66: 29999.31114 | CQ66: 38390.94214 | CR66: 46782.57313 | CS66: 55174.20413 | CT66: 63565.83513 | CU66: 71957.46612 | CV66: 80349.09712 | CW66: 88740.72812 | CX66: 97132.35911 | CY66: 105523.9901 | CZ66: 113915.6211 | DA66: 122307.2521 | DB66: 130698.8831 | DC66: 139090.5141 | DD66: 147482.1451 | DE66: 155873.7761
A67: 57 | B67: 23 | C67: 111691.6926 | D67: 0.9919463185 | E67: 0.946461458 | F67: 0.9764046942 | G67: 0.9936342835 | H67: 0.9697836609 | I67: 0.9548462169 | J67: 0.8831554226 | K67: 0.7266454001 | L67: 1.628281405 | M67: 0.4790023939 | N67: 0.05442014127 | O67: 0.04626573348 | P67: 0.05514235438 | Q67: 0.2925118223 | R67: 38.02619216 | S67: 0 | T67: 567807.9637 | U67: -129.1552905 | V67: 148.3668083 | W67: 1.624389805 | X67: 0.4713132331 | Y67: 0.05403372839 | Z67: 0.04617709896 | AA67: 0.0546409465 | AB67: 0.2885452878 | AC67: 37.29401887 | AD67: 0 | AE67: 551177.8978 | AF67: -123.819075 | AG67: 142.1106449 | AH67: -11.955 | AI67: -70.6048 | AJ67: -15.3703 | AK67: -7.8279 | AL67: -29.8724 | AM67: -62.3866 | AN67: -16432.0489 | AO67: 0 | AP67: 0.02549398845 | AQ67: 0.05528052811 | AR67: 0.001633653531 | AS67: 0.0003651515475 | AT67: 0.003463785022 | AU67: 0.03348461212 | AV67: 5.216493785 | AW67: 0 | AX67: -0.01872715643 | AY67: -0.04419561901 | AZ67: -0.001474840153 | BA67: -0.0002464330279 | BB67: -0.003710211629 | BC67: -0.03832041281 | BD67: -6.149488685 | BE67: 0 | BF67: 95061.6268 | BG67: 5.336215504 | BH67: -6.256163358 | BI67: 11662.6833 | BJ67: 0.1489 | BK67: 0.9555 | CA67: -95061.6268 | CB67: -89725.4113 | CC67: -84389.19579 | CD67: -79052.98029 | CE67: -73716.76479 | CF67: -68380.54928 | CG67: -63044.33378 | CH67: -57708.11827 | CI67: -52371.90277 | CJ67: -47035.68727 | CK67: -41699.47176 | CL67: -36363.25626 | CM67: -31027.04076 | CN67: -25690.82525 | CO67: -20354.60975 | CP67: -15018.39424 | CQ67: -9682.178741 | CR67: -4345.963237 | CS67: 990.2522665 | CT67: 6326.46777 | CU67: 11662.68327 | CV67: 16998.89878 | CW67: 22335.11428 | CX67: 27671.32979 | CY67: 33007.54529 | CZ67: 38343.76079 | DA67: 43679.9763 | DB67: 49016.1918 | DC67: 54352.4073 | DD67: 59688.62281 | DE67: 65024.83831
A68: 58 | B68: 23 | C68: 111691.6926 | D68: 0.9859696247 | E68: 0.9681086421 | F68: 0.9734160373 | G68: 0.9931644145 | H68: 0.9881323361 | I68: 0.9859886761 | J68: 0.9478235218 | K68: 0.7802345774 | L68: 1.486286793 | M68: 0.5542064735 | N68: 0.1026791735 | O68: 0.05172328925 | P68: 0.02749839994 | Q68: 0.1087120518 | R68: 37.78424929 | S68: 0 | T68: 221068.4508 | U68: -122.3977549 | V68: 143.7747626 | W68: 1.480089353 | X68: 0.5489099234 | Y68: 0.1018579572 | Z68: 0.05161687294 | AA68: 0.02740015484 | AB68: 0.108253817 | AC68: 37.46026687 | AD68: 0 | AE68: 218224.0157 | AF68: -120.0893982 | AG68: 141.0119343 | AH68: -19.523 | AI68: -67.1311 | AJ68: -37.0305 | AK68: -4.1638 | AL68: -8.7062 | AM68: -28.8167 | AN68: -2679.0638 | AO68: 0 | AP68: 0.03049743782 | AQ68: 0.03824692929 | AR68: 0.003491561746 | AS68: 0.0003858583324 | AT68: 0.0007424439131 | AU68: 0.00329049048 | AV68: 2.231701997 | AW68: 0 | AX68: -0.01353614873 | AY68: -0.03228957739 | AZ68: -0.003291892895 | BA68: -0.0002278765429 | BB68: -0.0007892818728 | BC68: -0.003750231028 | BD68: -2.708943229 | BE68: 0 | BF68: 108847.2575 | BG68: 2.308356718 | BH68: -2.762828238 | BI68: -62680.1232 | BJ68: 0.0255 | BK68: 0.4133 | CA68: -108847.2575 | CB68: -106538.9008 | CC68: -104230.5441 | CD68: -101922.1873 | CE68: -99613.83063 | CF68: -97305.47391 | CG68: -94997.11719 | CH68: -92688.76047 | CI68: -90380.40375 | CJ68: -88072.04704 | CK68: -85763.69032 | CL68: -83455.3336 | CM68: -81146.97688 | CN68: -78838.62016 | CO68: -76530.26344 | CP68: -74221.90673 | CQ68: -71913.55001 | CR68: -69605.19329 | CS68: -67296.83657 | CT68: -64988.47985 | CU68: -62680.12313 | CV68: -60371.76642 | CW68: -58063.4097 | CX68: -55755.05298 | CY68: -53446.69626 | CZ68: -51138.33954 | DA68: -48829.98282 | DB68: -46521.62611 | DC68: -44213.26939 | DD68: -41904.91267 | DE68: -39596.55595
